Workbook

Sheet Notes
B1: This workbook contains the Maximum Difference Simulator for all bus passengers surveyed (in England outside of London).
B5: • | C5: For the simulator to work, you need to come out of 'Protected View' and also 'Enable Content'.
B6: • | C6: Passengers rated their priorities for improvement from a list of 31 possible options.
B7: • | C7: The 'Preference %' shows the percentage share for that 'priority for improvement' option out of the 31 possibilities.
B8: • | C8: The 'Index' shows the share that priority for improvement has relative to a baseline of 100; the value an option would have if it was averagely chosen. The index value works as ratio, so an option with an index value of 200 has double the average share, one of 50 has half the average share.
B9: • | C9: Clicking on an option on the left under (attribute number) will toggle between its inclusion and deselection. For any options deselected, the Simulator recalculates the shares for each of the remaining 'active' priorities for improvement as if the deselected priorities for improvement options were not available to passengers as possible choices.
B10: • | C10: Clicking on the 'Subgroups' button you can scroll through to look at the priorities for improvement for different sub-groupings of passengers.
B11: • | C11: The Subgroups Worksheet shows the priorities for improvement across all selectable sub-groupings as both percentage share and index share (for all 31 options active)

Sheet Simulator
C2: Bus Priorities Maxdiff Simulator
E7: ="Selected subgroup: " & INDEX(subgroupData.names, subgroup.select.idx) -> Selected subgroup: Total
C11: Attribute | D11: No. and Caption | F11: Preference % | G11: Index
B12: TRUE | C12: =TRANSPOSE( attr.ordered ) -> 21 | D12: =INDEX( attr.names, TRANSPOSE(attr.ordered) ) -> Better value for money from bus journeys | F12: =IF(INDEX(attr.selection, attr.idx), INDEX(output.selection.percent, attr.idx), "") -> 0.08326448563 | G12: =IF( INDEX(attr.selection, attr.idx), INDEX(output.selection.values, attr.idx), "" ) -> 258.1199054
B13: TRUE | C13: 3 | D13: More buses arriving on time at your bus stop | F13: 0.07963647459 | G13: 246.8730712
B14: TRUE | C14: 22 | D14: More journeys on buses running to time | F14: 0.0734023912 | G14: 227.5474127
B15: TRUE | C15: 2 | D15: Buses running more often than they do now | F15: 0.07214009645 | G15: 223.634299
B16: TRUE | C16: 15 | D16: More effort made to tackle any anti-social behaviour | F16: 0.05616436892 | G16: 174.1095437
B17: TRUE | C17: 1 | D17: Buses going to more places you want to go | F17: 0.05087885416 | G17: 157.7244479
B18: TRUE | C18: 4 | D18: More bus stops with next bus displays | F18: 0.03897804546 | G18: 120.8319409
B19: TRUE | C19: 24 | D19: Being given more/better information when delays occur on journeys | F19: 0.03563188771 | G19: 110.4588519
B20: TRUE | C20: 9 | D20: Cleaner and better maintained buses | F20: 0.0344527471 | G20: 106.803516
B21: TRUE | C21: 17 | D21: Tickets which better allow travel on all local bus companies | F21: 0.03444659638 | G21: 106.7844488
B22: TRUE | C22: 30 | D22: Better security at bus stops so people feel safer waiting for buses | F22: 0.03369261188 | G22: 104.4470968
B23: TRUE | C23: 27 | D23: Drivers allowing more time for passengers to get to their seats | F23: 0.03318240265 | G23: 102.8654482
B24: TRUE | C24: 31 | D24: Better quality information at bus stops | F24: 0.02806709342 | G24: 87.0079896
B25: TRUE | C25: 25 | D25: Drivers showing more consideration to passengers | F25: 0.02782337084 | G25: 86.25244961
B26: TRUE | C26: 26 | D26: A smoother ride with less sudden braking or jolting | F26: 0.02781391793 | G26: 86.22314559
B27: TRUE | C27: 18 | D27: A more suitable range of tickets for how and when you use buses | F27: 0.02531498522 | G27: 78.47645419
B28: TRUE | C28: 7 | D28: More buses having next stop announcements/displays | F28: 0.02392761268 | G28: 74.17559931
B29: TRUE | C29: 12 | D29: More personal space on buses (whether seated or standing) | F29: 0.02381608104 | G29: 73.82985121
B30: TRUE | C30: 16 | D30: Free wi-fi being more widely available | F30: 0.02331371828 | G30: 72.27252666
B31: TRUE | C31: 11 | D31: Seats being more comfortable | F31: 0.02235029437 | G31: 69.28591255
B32: TRUE | C32: 23 | D32: Shorter journey times on buses | F32: 0.0213171246 | G32: 66.08308626
B33: TRUE | C33: 14 | D33: More seating being made available | F33: 0.01979974598 | G33: 61.37921254
B34: TRUE | C34: 10 | D34: Improved ventilation and temperature control | F34: 0.01967048839 | G34: 60.978514
B35: TRUE | C35: 19 | D35: Being able to pay for bus travel with smartcards/ contactless cards/ mobile phones/ apps | F35: 0.01693653695 | G35: 52.50326456
B36: TRUE | C36: 6 | D36: Improved display of route numbers and destinations on the outside of buses | F36: 0.01663973644 | G36: 51.58318296
B37: TRUE | C37: 28 | D37: Drivers communicating better with passengers | F37: 0.01619955547 | G37: 50.21862195
B38: TRUE | C38: 5 | D38: Improved information via apps/online on bus arrival/running times | F38: 0.01542189056 | G38: 47.80786075
B39: TRUE | C39: 8 | D39: Making it easier to step on and off buses | F39: 0.01482184805 | G39: 45.94772896
B40: TRUE | C40: 13 | D40: More space for wheelchairs and buggies | F40: 0.01413888881 | G40: 43.8305553
B41: TRUE | C41: 29 | D41: Better maintained bus stops | F41: 0.009260578234 | G41: 28.70779253
B42: TRUE | C42: 20 | D42: Being able to buy tickets from more places | F42: 0.007495570609 | G42: 23.23626889
F43: =SUM(F12:F42) -> 1

Sheet Subgroups
B2: Bus Priorities Maxdiff Simulator
B4: Preference
C7: Attribute Number | F7: 1 | G7: 2 | H7: 3 | I7: 4 | J7: 5 | K7: 6 | L7: 7 | M7: 8 | N7: 9 | O7: 10 | P7: 11 | Q7: 12 | R7: 13 | S7: 14 | T7: 15 | U7: 16 | V7: 17 | W7: 18 | X7: 19 | Y7: 20 | Z7: 21 | AA7: 22 | AB7: 23 | AC7: 24 | AD7: 25 | AE7: 26 | AF7: 27 | AG7: 28 | AH7: 29 | AI7: 30 | AJ7: 31
C8: Availability | F8: =IF( INDEX(attr.selection,attr.ordered), CHAR(252), "" ) -> ü | G8: ü | H8: ü | I8: ü | J8: ü | K8: ü | L8: ü | M8: ü | N8: ü | O8: ü | P8: ü | Q8: ü | R8: ü | S8: ü | T8: ü | U8: ü | V8: ü | W8: ü | X8: ü | Y8: ü | Z8: ü | AA8: ü | AB8: ü | AC8: ü | AD8: ü | AE8: ü | AF8: ü | AG8: ü | AH8: ü | AI8: ü | AJ8: ü
C9: Groups | D9: (Sub-grp idx) | E9: Unweighted Base | F9: =INDEX(attr.names,attr.ordered) -> Better value for money from bus journeys | G9: More buses arriving on time at your bus stop | H9: More journeys on buses running to time | I9: Buses running more often than they do now | J9: More effort made to tackle any anti-social behaviour | K9: Buses going to more places you want to go | L9: More bus stops with next bus displays | M9: Being given more/better information when delays occur on journeys | N9: Cleaner and better maintained buses | O9: Tickets which better allow travel on all local bus companies | P9: Better security at bus stops so people feel safer waiting for buses | Q9: Drivers allowing more time for passengers to get to their seats | R9: Better quality information at bus stops | S9: Drivers showing more consideration to passengers | T9: A smoother ride with less sudden braking or jolting | U9: A more suitable range of tickets for how and when you use buses | V9: More buses having next stop announcements/displays | W9: More personal space on buses (whether seated or standing) | X9: Free wi-fi being more widely available | Y9: Seats being more comfortable | Z9: Shorter journey times on buses | AA9: More seating being made available | AB9: Improved ventilation and temperature control | AC9: Being able to pay for bus travel with smartcards/ contactless cards/ mobile phones/ apps | AD9: Improved display of route numbers and destinations on the outside of buses | AE9: Drivers communicating better with passengers | AF9: Improved information via apps/online on bus arrival/running times | AG9: Making it easier to step on and off buses | AH9: More space for wheelchairs and buggies | AI9: Better maintained bus stops | AJ9: Being able to buy tickets from more places
C10: =IF( subgroup.idx="", "", INDEX(subgroupData.names,subgroup.idx) ) -> Total | D10: 1 | E10: =INDEX( subgroup.member.count.unweighted, subgroup.idx) -> 4578 | F10: =IF( INDEX(attr.selection, attr.ordered), INDEX( output.array,subgroup.idx, attr.ordered), "" ) -> 0.08326448563 | G10: 0.07963647459 | H10: 0.0734023912 | I10: 0.07214009645 | J10: 0.05616436892 | K10: 0.05087885416 | L10: 0.03897804546 | M10: 0.03563188771 | N10: 0.0344527471 | O10: 0.03444659638 | P10: 0.03369261188 | Q10: 0.03318240265 | R10: 0.02806709342 | S10: 0.02782337084 | T10: 0.02781391793 | U10: 0.02531498522 | V10: 0.02392761268 | W10: 0.02381608104 | X10: 0.02331371828 | Y10: 0.02235029437 | Z10: 0.0213171246 | AA10: 0.01979974598 | AB10: 0.01967048839 | AC10: 0.01693653695 | AD10: 0.01663973644 | AE10: 0.01619955547 | AF10: 0.01542189056 | AG10: 0.01482184805 | AH10: 0.01413888881 | AI10: 0.009260578234 | AJ10: 0.007495570609
C12: =IF( subgroup.idx="", "", INDEX(subgroupData.names,subgroup.idx) ) -> Male | D12: 2 | E12: =INDEX( subgroup.member.count.unweighted, subgroup.idx) -> 2228 | F12: =IF( INDEX(attr.selection, attr.ordered), INDEX( output.array,subgroup.idx, attr.ordered), "" ) -> 0.08154970136 | G12: 0.07860231879 | H12: 0.07285351964 | I12: 0.07218064556 | J12: 0.05463457156 | K12: 0.0511064756 | L12: 0.03916038604 | M12: 0.03565981071 | N12: 0.03465146331 | O12: 0.03328785456 | P12: 0.03303021542 | Q12: 0.02861148776 | R12: 0.02813946814 | S12: 0.02566445029 | T12: 0.02612892313 | U12: 0.02493582945 | V12: 0.02426232158 | W12: 0.02504921655 | X12: 0.02982108613 | Y12: 0.0237599248 | Z12: 0.02294932612 | AA12: 0.02064485456 | AB12: 0.02048123455 | AC12: 0.01925048108 | AD12: 0.01684337293 | AE12: 0.01539639506 | AF12: 0.01678596456 | AG12: 0.01383688259 | AH12: 0.01316875675 | AI12: 0.009526360359 | AJ12: 0.008026701087
C13: =IF( subgroup.idx="", "", INDEX(subgroupData.names,subgroup.idx) ) -> Female | D13: 3 | E13: =INDEX( subgroup.member.count.unweighted, subgroup.idx) -> 2350 | F13: =IF( INDEX(attr.selection, attr.ordered), INDEX( output.array,subgroup.idx, attr.ordered), "" ) -> 0.08491984525 | G13: 0.08063479246 | H13: 0.07393224201 | I13: 0.07210095255 | J13: 0.05764115223 | K13: 0.05065912078 | L13: 0.03880202376 | M13: 0.03560493235 | N13: 0.03426091727 | O13: 0.03556518281 | P13: 0.03433205344 | Q13: 0.03759491569 | R13: 0.0279972268 | S13: 0.02990747552 | T13: 0.02944052043 | U13: 0.02568100162 | V13: 0.02360450288 | W13: 0.02262567897 | X13: 0.01703185869 | Y13: 0.02098951369 | Z13: 0.01974148588 | AA13: 0.01898392405 | AB13: 0.01888783806 | AC13: 0.01470278094 | AD13: 0.01644315683 | AE13: 0.01697488291 | AF13: 0.0141050876 | AG13: 0.01577268022 | AH13: 0.01507540162 | AI13: 0.009004006603 | AJ13: 0.006982846085
C15: =IF( subgroup.idx="", "", INDEX(subgroupData.names,subgroup.idx) ) -> Age 1: 16-24 | D15: 4 | E15: =INDEX( subgroup.member.count.unweighted, subgroup.idx) -> 323 | F15: =IF( INDEX(attr.selection, attr.ordered), INDEX( output.array,subgroup.idx, attr.ordered), "" ) -> 0.0899029326 | G15: 0.0736641906 | H15: 0.06996169841 | I15: 0.06828015981 | J15: 0.05117373784 | K15: 0.05041372606 | L15: 0.03804656417 | M15: 0.03650828493 | N15: 0.03143235162 | O15: 0.03735917816 | P15: 0.03303653162 | Q15: 0.02357372345 | R15: 0.02768402719 | S15: 0.02330479594 | T15: 0.02086445328 | U15: 0.02914340001 | V15: 0.02538240919 | W15: 0.02018438313 | X15: 0.04155902233 | Y15: 0.01943133575 | Z15: 0.02505932065 | AA15: 0.01782867979 | AB15: 0.0181641398 | AC15: 0.02786411642 | AD15: 0.01753805309 | AE15: 0.01467962526 | AF15: 0.02353490946 | AG15: 0.01206605498 | AH15: 0.01247360025 | AI15: 0.00956783419 | AJ15: 0.01031676001
C16: =IF( subgroup.idx="", "", INDEX(subgroupData.names,subgroup.idx) ) -> Age 1: 25-34 | D16: 5 | E16: 563 | F16: =IF( INDEX(attr.selection, attr.ordered), INDEX( output.array,subgroup.idx, attr.ordered), "" ) -> 0.0977509919 | G16: 0.06875217534 | H16: 0.06567841995 | I16: 0.06322703912 | J16: 0.05890212737 | K16: 0.04835027007 | L16: 0.03309860603 | M16: 0.03386763282 | N16: 0.03340772853 | O16: 0.04248381231 | P16: 0.03708166361 | Q16: 0.02418241163 | R16: 0.02513461324 | S16: 0.02411755892 | T16: 0.02115628022 | U16: 0.03340749073 | V16: 0.0229442792 | W16: 0.02244224109 | X16: 0.03874010489 | Y16: 0.02106202016 | Z16: 0.02289424985 | AA16: 0.01916699978 | AB16: 0.01953636863 | AC16: 0.02494611819 | AD16: 0.01667779522 | AE16: 0.01507360523 | AF16: 0.01941178504 | AG16: 0.01273548621 | AH16: 0.01335378392 | AI16: 0.00996707853 | AJ16: 0.01044926228
C17: =IF( subgroup.idx="", "", INDEX(subgroupData.names,subgroup.idx) ) -> Age 1: 35-44 | D17: 6 | E17: 761 | F17: =IF( INDEX(attr.selection, attr.ordered), INDEX( output.array,subgroup.idx, attr.ordered), "" ) -> 0.102462895 | G17: 0.07675969657 | H17: 0.0726571821 | I17: 0.07105130232 | J17: 0.05728325706 | K17: 0.05304605728 | L17: 0.03443460616 | M17: 0.03473126763 | N17: 0.03244672594 | O17: 0.04195891508 | P17: 0.03518028696 | Q17: 0.02300577984 | R17: 0.02580382453 | S17: 0.02308077465 | T17: 0.02076891485 | U17: 0.03173944143 | V17: 0.02184053982 | W17: 0.0224938748 | X17: 0.02937339574 | Y17: 0.02084733256 | Z17: 0.02314231382 | AA17: 0.01917456315 | AB17: 0.01839371329 | AC17: 0.01929598305 | AD17: 0.01598915432 | AE17: 0.01417850531 | AF17: 0.01672506136 | AG17: 0.01192125988 | AH17: 0.01228084555 | AI17: 0.009135016855 | AJ17: 0.008797513031
C18: =IF( subgroup.idx="", "", INDEX(subgroupData.names,subgroup.idx) ) -> Age 1: 45-54 | D18: 7 | E18: 766 | F18: =IF( INDEX(attr.selection, attr.ordered), INDEX( output.array,subgroup.idx, attr.ordered), "" ) -> 0.09864368378 | G18: 0.08119650588 | H18: 0.07560874175 | I18: 0.07483264501 | J18: 0.05577386837 | K18: 0.0534003928 | L18: 0.03327391688 | M18: 0.03396650761 | N18: 0.03259061771 | O18: 0.04059951068 | P18: 0.03255260638 | Q18: 0.03237278487 | R18: 0.02505270482 | S18: 0.02745281523 | T18: 0.02560577099 | U18: 0.02956310635 | V18: 0.02117196682 | W18: 0.02196715654 | X18: 0.01991972299 | Y18: 0.02015839279 | Z18: 0.02096457052 | AA18: 0.01886006358 | AB18: 0.01754237245 | AC18: 0.01671300147 | AD18: 0.01545620016 | AE18: 0.01574367334 | AF18: 0.01470901522 | AG18: 0.01405709108 | AH18: 0.01405835082 | AI18: 0.008552728015 | AJ18: 0.007639515096
C19: =IF( subgroup.idx="", "", INDEX(subgroupData.names,subgroup.idx) ) -> Age 1: 55-64 | D19: 8 | E19: 852 | F19: =IF( INDEX(attr.selection, attr.ordered), INDEX( output.array,subgroup.idx, attr.ordered), "" ) -> 0.09232481269 | G19: 0.0848766732 | H19: 0.07798013579 | I19: 0.07874423831 | J19: 0.05658828514 | K19: 0.05389494936 | L19: 0.03574069198 | M19: 0.03409245032 | N19: 0.03355083433 | O19: 0.03750661235 | P19: 0.03265370156 | Q19: 0.03676176129 | R19: 0.02625621841 | S19: 0.02948780036 | T19: 0.02901471585 | U19: 0.02646602824 | V19: 0.021187991 | W19: 0.02235425384 | X19: 0.01252298269 | Y19: 0.02052558949 | Z19: 0.02011304644 | AA19: 0.01911285835 | AB19: 0.01776577433 | AC19: 0.01239347639 | AD19: 0.01530678346 | AE19: 0.01638180271 | AF19: 0.01200100103 | AG19: 0.01522879319 | AH19: 0.01449682484 | AI19: 0.008407136938 | AJ19: 0.006261776094
C20: =IF( subgroup.idx="", "", INDEX(subgroupData.names,subgroup.idx) ) -> Age 1: 65+ | D20: 9 | E20: 1313 | F20: =IF( INDEX(attr.selection, attr.ordered), INDEX( output.array,subgroup.idx, attr.ordered), "" ) -> 0.04305463628 | G20: 0.08773535866 | H20: 0.07670311358 | I20: 0.07526222115 | J20: 0.05613755857 | K20: 0.04800736587 | L20: 0.05152671836 | M20: 0.03876647785 | N20: 0.03964733603 | O20: 0.0172554826 | P20: 0.03206941848 | Q20: 0.04947043163 | R20: 0.03448973745 | S20: 0.035127026 | T20: 0.04117376111 | U20: 0.01057785879 | V20: 0.02843493545 | W20: 0.02932076696 | X20: 0.008053926774 | Y20: 0.02797644704 | Z20: 0.01801340444 | AA20: 0.02255509656 | AB20: 0.02371484452 | AC20: 0.007368565912 | AD20: 0.01805889736 | AE20: 0.01928763223 | AF20: 0.01021593092 | AG20: 0.01982151097 | AH20: 0.01665063939 | AI20: 0.009637147282 | AJ20: 0.003885751784
C22: =IF( subgroup.idx="", "", INDEX(subgroupData.names,subgroup.idx) ) -> Age 2: 16-34 | D22: 10 | E22: =INDEX( subgroup.member.count.unweighted, subgroup.idx) -> 886 | F22: =IF( INDEX(attr.selection, attr.ordered), INDEX( output.array,subgroup.idx, attr.ordered), "" ) -> 0.09427212006 | G22: 0.07092956352 | H22: 0.06757710295 | I22: 0.06546697623 | J22: 0.0554763025 | K22: 0.04926495466 | L22: 0.0352919269 | M22: 0.03503817574 | N22: 0.03253208745 | O22: 0.04021217486 | P22: 0.03528854569 | Q22: 0.02391259357 | R22: 0.0262647123 | S22: 0.023757279 | T22: 0.02102691976 | U22: 0.03151731323 | V22: 0.02402504853 | W22: 0.02144138238 | X22: 0.03998966891 | Y22: 0.02033917368 | Z22: 0.02385397805 | AA22: 0.018573752 | AB22: 0.01892808981 | AC22: 0.02623960254 | AD22: 0.01705912859 | AE22: 0.01489896259 | AF22: 0.02123947529 | AG22: 0.01243874209 | AH22: 0.01296361788 | AI22: 0.009790102307 | AJ22: 0.01039052694
C23: =IF( subgroup.idx="", "", INDEX(subgroupData.names,subgroup.idx) ) -> Age 2: 35-64 | D23: 11 | E23: =INDEX( subgroup.member.count.unweighted, subgroup.idx) -> 2379 | F23: =IF( INDEX(attr.selection, attr.ordered), INDEX( output.array,subgroup.idx, attr.ordered), "" ) -> 0.09829729279 | G23: 0.08053933122 | H23: 0.07514932563 | I23: 0.07449692227 | J23: 0.05659558046 | K23: 0.05340598914 | L23: 0.03443855271 | M23: 0.03429985565 | N23: 0.03281270258 | O23: 0.04023197799 | P23: 0.03360197846 | Q23: 0.03000680016 | R23: 0.02569267306 | S23: 0.02634456748 | T23: 0.02471478302 | U23: 0.02951150971 | V23: 0.02143615626 | W23: 0.02228368712 | X23: 0.02144872083 | Y23: 0.02053213997 | Z23: 0.02156352267 | AA23: 0.01905533192 | AB23: 0.0179375433 | AC23: 0.01646542002 | AD23: 0.01561985132 | AE23: 0.0153207634 | AF23: 0.01470781092 | AG23: 0.01356708921 | AH23: 0.01349521546 | AI23: 0.008736639082 | AJ23: 0.007690266178
C24: =IF( subgroup.idx="", "", INDEX(subgroupData.names,subgroup.idx) ) -> Age 2: 65+ | D24: 12 | E24: =INDEX( subgroup.member.count.unweighted, subgroup.idx) -> 1313 | F24: =IF( INDEX(attr.selection, attr.ordered), INDEX( output.array,subgroup.idx, attr.ordered), "" ) -> 0.04305463628 | G24: 0.08773535866 | H24: 0.07670311358 | I24: 0.07526222115 | J24: 0.05613755857 | K24: 0.04800736587 | L24: 0.05152671836 | M24: 0.03876647785 | N24: 0.03964733603 | O24: 0.0172554826 | P24: 0.03206941848 | Q24: 0.04947043163 | R24: 0.03448973745 | S24: 0.035127026 | T24: 0.04117376111 | U24: 0.01057785879 | V24: 0.02843493545 | W24: 0.02932076696 | X24: 0.008053926774 | Y24: 0.02797644704 | Z24: 0.01801340444 | AA24: 0.02255509656 | AB24: 0.02371484452 | AC24: 0.007368565912 | AD24: 0.01805889736 | AE24: 0.01928763223 | AF24: 0.01021593092 | AG24: 0.01982151097 | AH24: 0.01665063939 | AI24: 0.009637147282 | AJ24: 0.003885751784
C26: =IF( subgroup.idx="", "", INDEX(subgroupData.names,subgroup.idx) ) -> Male: 16-34 | D26: 13 | E26: =INDEX( subgroup.member.count.unweighted, subgroup.idx) -> 319 | F26: =IF( INDEX(attr.selection, attr.ordered), INDEX( output.array,subgroup.idx, attr.ordered), "" ) -> 0.09162805227 | G26: 0.0690003323 | H26: 0.06591064357 | I26: 0.06338195172 | J26: 0.05150901202 | K26: 0.04846006341 | L26: 0.03447756936 | M26: 0.03478900368 | N26: 0.03294130835 | O26: 0.03927548343 | P26: 0.03309452004 | Q26: 0.02193588957 | R26: 0.02587544629 | S26: 0.02287879173 | T26: 0.02095671872 | U26: 0.03150963525 | V26: 0.02382692253 | W26: 0.02219190927 | X26: 0.05041569172 | Y26: 0.02136489773 | Z26: 0.02497153992 | AA26: 0.01929254729 | AB26: 0.01978295183 | AC26: 0.02987116668 | AD26: 0.01727456005 | AE26: 0.01467945115 | AF26: 0.02274197978 | AG26: 0.0121477911 | AH26: 0.01247371033 | AI26: 0.01013305039 | AJ26: 0.01120740852
C27: =IF( subgroup.idx="", "", INDEX(subgroupData.names,subgroup.idx) ) -> Male: 35-64 | D27: 14 | E27: 1187 | F27: =IF( INDEX(attr.selection, attr.ordered), INDEX( output.array,subgroup.idx, attr.ordered), "" ) -> 0.09571367532 | G27: 0.07878438129 | H27: 0.07406704589 | I27: 0.07389793496 | J27: 0.05602356126 | K27: 0.05347591491 | L27: 0.03541562705 | M27: 0.03459051941 | N27: 0.03300431878 | O27: 0.03848148534 | P27: 0.03374874329 | Q27: 0.02514128716 | R27: 0.02618256695 | S27: 0.02404340164 | T27: 0.02276290982 | U27: 0.02873076924 | V27: 0.02235097077 | W27: 0.02329205128 | X27: 0.02847823424 | Y27: 0.02181205301 | Z27: 0.02326968338 | AA27: 0.01972200225 | AB27: 0.01872115106 | AC27: 0.01899046375 | AD27: 0.01599399147 | AE27: 0.01450084419 | AF27: 0.01648180255 | AG27: 0.01250624199 | AH27: 0.01247433078 | AI27: 0.009087550529 | AJ27: 0.00825448641
C28: =IF( subgroup.idx="", "", INDEX(subgroupData.names,subgroup.idx) ) -> Male: 65+ | D28: 15 | E28: 722 | F28: =IF( INDEX(attr.selection, attr.ordered), INDEX( output.array,subgroup.idx, attr.ordered), "" ) -> 0.04407800082 | G28: 0.08885597884 | H28: 0.07825462478 | I28: 0.07869167939 | J28: 0.05549814166 | K28: 0.04961723004 | L28: 0.05129380264 | M28: 0.0386099856 | N28: 0.03960272891 | O28: 0.01701923576 | P28: 0.03162236971 | Q28: 0.04243238757 | R28: 0.03427807056 | S28: 0.03175360068 | T28: 0.03809750444 | U28: 0.01062300502 | V28: 0.02829893096 | W28: 0.03147066755 | X28: 0.009600732859 | Y28: 0.03002624506 | Z28: 0.02012246207 | AA28: 0.02385372782 | AB28: 0.02452639229 | AC28: 0.008018089824 | AD28: 0.01794808702 | AE28: 0.01785357106 | AF28: 0.01078153029 | AG28: 0.01817601818 | AH28: 0.01522755931 | AI28: 0.009673550531 | AJ28: 0.004094088754
C29: =IF( subgroup.idx="", "", INDEX(subgroupData.names,subgroup.idx) ) -> Female: 16-34 | D29: 16 | E29: 567 | F29: =IF( INDEX(attr.selection, attr.ordered), INDEX( output.array,subgroup.idx, attr.ordered), "" ) -> 0.09675422493 | G29: 0.07274061929 | H29: 0.06914148302 | I29: 0.06742428213 | J29: 0.0592005758 | K29: 0.05002054213 | L29: 0.03605640079 | M29: 0.03527208472 | N29: 0.03214793346 | O29: 0.04109148906 | P29: 0.03734817584 | Q29: 0.02576821416 | R29: 0.02663013374 | S29: 0.02458195434 | T29: 0.02109282062 | U29: 0.03152452089 | V29: 0.02421103828 | W29: 0.02073682918 | X29: 0.03020229427 | Y29: 0.01937628056 | Z29: 0.02280487266 | AA29: 0.01789898667 | AB29: 0.01812559255 | AC29: 0.02283049061 | AD29: 0.01685689343 | AE29: 0.01510502781 | AF29: 0.01982900701 | AG29: 0.01271187081 | AH29: 0.01342351604 | AI29: 0.009468161583 | AJ29: 0.009623683616
C30: =IF( subgroup.idx="", "", INDEX(subgroupData.names,subgroup.idx) ) -> Female: 35-64 | D30: 17 | E30: 1192 | F30: =IF( INDEX(attr.selection, attr.ordered), INDEX( output.array,subgroup.idx, attr.ordered), "" ) -> 0.1008261034 | G30: 0.08225705301 | H30: 0.07620864673 | I30: 0.07508320313 | J30: 0.0571554653 | K30: 0.05333754672 | L30: 0.03348220526 | M30: 0.0340153578 | N30: 0.03262515117 | O30: 0.04194533705 | P30: 0.03345832699 | Q30: 0.03476909996 | R30: 0.0252131714 | S30: 0.02859691819 | T30: 0.02662525071 | U30: 0.03027568817 | V30: 0.02054074791 | W30: 0.02129671361 | X30: 0.01456832604 | Y30: 0.01927937801 | Z30: 0.01989355511 | AA30: 0.01840280381 | AB30: 0.01717055838 | AC30: 0.0139939406 | AD30: 0.01525364788 | AE30: 0.01612328948 | AF30: 0.01297145136 | AG30: 0.01460543244 | AH30: 0.0144944439 | AI30: 0.008393171597 | AJ30: 0.007138014874
C31: =IF( subgroup.idx="", "", INDEX(subgroupData.names,subgroup.idx) ) -> Female: 65+ | D31: 18 | E31: 591 | F31: =IF( INDEX(attr.selection, attr.ordered), INDEX( output.array,subgroup.idx, attr.ordered), "" ) -> 0.04206106364 | G31: 0.08664736166 | H31: 0.07519676955 | I31: 0.07193260034 | J31: 0.05675836094 | K31: 0.04644436762 | L31: 0.0517528535 | M31: 0.03891841434 | N31: 0.03969064456 | O31: 0.01748485188 | P31: 0.03250345289 | Q31: 0.05630358611 | R31: 0.03469524235 | S31: 0.0384022451 | T31: 0.04416046265 | U31: 0.01053402684 | V31: 0.02856698062 | W31: 0.02723345368 | X31: 0.006552150877 | Y31: 0.02598632217 | Z31: 0.01596574511 | AA31: 0.0212942707 | AB31: 0.0229269223 | AC31: 0.006737950759 | AD31: 0.01816648182 | AE31: 0.02067994542 | AF31: 0.009666797117 | AG31: 0.02141910064 | AH31: 0.01803229115 | AI31: 0.009601803794 | AJ31: 0.003683479862
C33: =IF( subgroup.idx="", "", INDEX(subgroupData.names,subgroup.idx) ) -> Social Grade: ABC1 | D33: 19 | E33: =INDEX( subgroup.member.count.unweighted, subgroup.idx) -> 2882 | F33: =IF( INDEX(attr.selection, attr.ordered), INDEX( output.array,subgroup.idx, attr.ordered), "" ) -> 0.08491880008 | G33: 0.08183895452 | H33: 0.0755925853 | I33: 0.07534451371 | J33: 0.05115138051 | K33: 0.0523861967 | L33: 0.04112714083 | M33: 0.03624310283 | N33: 0.03315244322 | O33: 0.03517601204 | P33: 0.03087279686 | Q33: 0.02894392148 | R33: 0.02908581873 | S33: 0.02548407061 | T33: 0.02557649269 | U33: 0.02647477259 | V33: 0.02476804622 | W33: 0.02344620255 | X33: 0.02572632033 | Y33: 0.02221029101 | Z33: 0.02232108709 | AA33: 0.01954699535 | AB33: 0.01920085961 | AC33: 0.01806542614 | AD33: 0.01677905829 | AE33: 0.01512489694 | AF33: 0.01625875347 | AG33: 0.01355194464 | AH33: 0.01289764941 | AI33: 0.009036995975 | AJ33: 0.00769647026
C34: =IF( subgroup.idx="", "", INDEX(subgroupData.names,subgroup.idx) ) -> Social Grade: C2DE | D34: 20 | E34: =INDEX( subgroup.member.count.unweighted, subgroup.idx) -> 1696 | F34: =IF( INDEX(attr.selection, attr.ordered), INDEX( output.array,subgroup.idx, attr.ordered), "" ) -> 0.08123979836 | G34: 0.07694089694 | H34: 0.07072184998 | I34: 0.06821826478 | J34: 0.06229968002 | K34: 0.0490340433 | L34: 0.03634780425 | M34: 0.03488383193 | N34: 0.03604416687 | O34: 0.03355387698 | P34: 0.03714373543 | Q34: 0.03836980752 | R34: 0.02682029287 | S34: 0.03068640054 | T34: 0.03055226456 | U34: 0.02389554123 | V34: 0.02289902039 | W34: 0.02426876901 | X34: 0.02036097574 | Y34: 0.0225216421 | Z34: 0.02008839201 | AA34: 0.02010908318 | AB34: 0.02024525904 | AC34: 0.01555490871 | AD34: 0.01646922279 | AE34: 0.01751481173 | AF34: 0.01439766831 | AG34: 0.0163760612 | AH34: 0.01565802055 | AI34: 0.009534216751 | AJ34: 0.00724969295
C36: =IF( subgroup.idx="", "", INDEX(subgroupData.names,subgroup.idx) ) -> Bus User type: Daily | D36: 21 | E36: =INDEX( subgroup.member.count.unweighted, subgroup.idx) -> 465 | F36: =IF( INDEX(attr.selection, attr.ordered), INDEX( output.array,subgroup.idx, attr.ordered), "" ) -> 0.08645528329 | G36: 0.08439823911 | H36: 0.078066135 | I36: 0.07930997193 | J36: 0.05014867827 | K36: 0.05353192707 | L36: 0.03563189491 | M36: 0.03569506402 | N36: 0.03293691562 | O36: 0.03433427211 | P36: 0.03051106731 | Q36: 0.0271577375 | R36: 0.02654646327 | S36: 0.0254018705 | T36: 0.02474006487 | U36: 0.02532434899 | V36: 0.02261706044 | W36: 0.02227772386 | X36: 0.0305677019 | Y36: 0.02129505015 | Z36: 0.02438683722 | AA36: 0.01936462969 | AB36: 0.01886721432 | AC36: 0.01870816899 | AD36: 0.0165189197 | AE36: 0.01527142524 | AF36: 0.01694818455 | AG36: 0.01302302301 | AH36: 0.01276649176 | AI36: 0.009209638875 | AJ36: 0.00798799655
C37: =IF( subgroup.idx="", "", INDEX(subgroupData.names,subgroup.idx) ) -> Bus User type: Weekly | D37: 22 | E37: =INDEX( subgroup.member.count.unweighted, subgroup.idx) -> 1951 | F37: =IF( INDEX(attr.selection, attr.ordered), INDEX( output.array,subgroup.idx, attr.ordered), "" ) -> 0.08295727186 | G37: 0.07935833694 | H37: 0.07300534669 | I37: 0.0711335214 | J37: 0.05387448306 | K37: 0.05048927224 | L37: 0.03879193863 | M37: 0.03547647362 | N37: 0.03488411709 | O37: 0.03491262459 | P37: 0.03227380912 | Q37: 0.03454167674 | R37: 0.0279626142 | S37: 0.02853450854 | T37: 0.02904367905 | U37: 0.02578993128 | V37: 0.02362756467 | W37: 0.02433976367 | X37: 0.02326637784 | Y37: 0.02302130069 | Z37: 0.02091544535 | AA37: 0.02016757923 | AB37: 0.0200868079 | AC37: 0.01670155407 | AD37: 0.01661217778 | AE37: 0.01652236632 | AF37: 0.01506417559 | AG37: 0.01533704594 | AH37: 0.01447670371 | AI37: 0.009320849005 | AJ37: 0.007510683174
C38: =IF( subgroup.idx="", "", INDEX(subgroupData.names,subgroup.idx) ) -> Bus User type: Monthly | D38: 23 | E38: =INDEX( subgroup.member.count.unweighted, subgroup.idx) -> 1303 | F38: =IF( INDEX(attr.selection, attr.ordered), INDEX( output.array,subgroup.idx, attr.ordered), "" ) -> 0.07868803325 | G38: 0.08012664458 | H38: 0.07338858043 | I38: 0.0725531696 | J38: 0.05786106077 | K38: 0.0504142513 | L38: 0.04016319002 | M38: 0.03588276046 | N38: 0.03451157774 | O38: 0.03204395764 | P38: 0.03476056921 | Q38: 0.03553795358 | R38: 0.02863848839 | S38: 0.02862468962 | T38: 0.02897728665 | U38: 0.02333799235 | V38: 0.02460424405 | W38: 0.02359341753 | X38: 0.02306329659 | Y38: 0.02222082195 | Z38: 0.02090441766 | AA38: 0.01949403589 | AB38: 0.01965740948 | AC38: 0.01607148287 | AD38: 0.01677668397 | AE38: 0.01654354238 | AF38: 0.01534742959 | AG38: 0.01535241951 | AH38: 0.01445382678 | AI38: 0.009273378332 | AJ38: 0.00713338782
C39: =IF( subgroup.idx="", "", INDEX(subgroupData.names,subgroup.idx) ) -> Bus User type: Every Three Months | D39: 24 | E39: =INDEX( subgroup.member.count.unweighted, subgroup.idx) -> 859 | F39: =IF( INDEX(attr.selection, attr.ordered), INDEX( output.array,subgroup.idx, attr.ordered), "" ) -> 0.08884544744 | G39: 0.07695405277 | H39: 0.07176749969 | I39: 0.06987546582 | J39: 0.06205202005 | K39: 0.05097392881 | L39: 0.03949159998 | M39: 0.03557844576 | N39: 0.03423504461 | O39: 0.03695741272 | P39: 0.03701969864 | Q39: 0.03002889615 | R39: 0.02829703397 | S39: 0.02640133244 | T39: 0.02507175892 | U39: 0.02712283267 | V39: 0.02432441023 | W39: 0.02381402183 | X39: 0.01983840181 | Y39: 0.02162387012 | Z39: 0.0211373017 | AA39: 0.01966389751 | AB39: 0.01920305044 | AC39: 0.01774851353 | AD39: 0.01656798743 | AE39: 0.0154896897 | AF39: 0.01549325671 | AG39: 0.01388825111 | AH39: 0.01367937354 | AI39: 0.009136081056 | AJ39: 0.007719422864
C41: =IF( subgroup.idx="", "", INDEX(subgroupData.names,subgroup.idx) ) -> PTE - Merserside | D41: 25 | E41: =INDEX( subgroup.member.count.unweighted, subgroup.idx) -> 424 | F41: =IF( INDEX(attr.selection, attr.ordered), INDEX( output.array,subgroup.idx, attr.ordered), "" ) -> 0.09196328916 | G41: 0.06942773377 | H41: 0.06502675157 | I41: 0.06229597266 | J41: 0.05522639026 | K41: 0.04790480773 | L41: 0.04238805907 | M41: 0.03547530524 | N41: 0.03412368466 | O41: 0.04082361181 | P41: 0.03446857661 | Q41: 0.02963965734 | R41: 0.02970202982 | S41: 0.02643342436 | T41: 0.02442253206 | U41: 0.03100571402 | V41: 0.02782545405 | W41: 0.02297986085 | X41: 0.0288544165 | Y41: 0.02180787048 | Z41: 0.02032335215 | AA41: 0.01904384964 | AB41: 0.02021742097 | AC41: 0.01974892148 | AD41: 0.01779020644 | AE41: 0.01598495588 | AF41: 0.01796914405 | AG41: 0.01437819077 | AH41: 0.01417799255 | AI41: 0.009937629416 | AJ41: 0.008633194654
C42: =IF( subgroup.idx="", "", INDEX(subgroupData.names,subgroup.idx) ) -> PTE - Grt Manchester | D42: 26 | E42: 433 | F42: =IF( INDEX(attr.selection, attr.ordered), INDEX( output.array,subgroup.idx, attr.ordered), "" ) -> 0.08665726435 | G42: 0.07525426485 | H42: 0.0701674367 | I42: 0.06618804453 | J42: 0.06366540631 | K42: 0.04945021162 | L42: 0.03785619704 | M42: 0.03594113003 | N42: 0.03457409285 | O42: 0.0359501346 | P42: 0.03904580912 | Q42: 0.02934291354 | R42: 0.02773262577 | S42: 0.02661862651 | T42: 0.02396592991 | U42: 0.02689926087 | V42: 0.02428132208 | W42: 0.02289929244 | X42: 0.02514693203 | Y42: 0.02091141749 | Z42: 0.02156870323 | AA42: 0.01944757546 | AB42: 0.01944979968 | AC42: 0.02074448514 | AD42: 0.01704555577 | AE42: 0.01593830128 | AF42: 0.01688039301 | AG42: 0.01383367148 | AH42: 0.01401048614 | AI42: 0.009705571765 | AJ42: 0.008827144386
C43: =IF( subgroup.idx="", "", INDEX(subgroupData.names,subgroup.idx) ) -> PTE - South Yorkshire | D43: 27 | E43: 422 | F43: =IF( INDEX(attr.selection, attr.ordered), INDEX( output.array,subgroup.idx, attr.ordered), "" ) -> 0.09369605822 | G43: 0.08042434664 | H43: 0.07515758521 | I43: 0.07528334192 | J43: 0.05791588542 | K43: 0.05279663026 | L43: 0.03505874297 | M43: 0.03428475995 | N43: 0.03291200843 | O43: 0.03787798216 | P43: 0.03417180021 | Q43: 0.02845551285 | R43: 0.02590863959 | S43: 0.025513625 | T43: 0.02411682305 | U43: 0.02774317842 | V43: 0.02236465172 | W43: 0.02232012471 | X43: 0.02433541306 | Y43: 0.02061024776 | Z43: 0.0228309818 | AA43: 0.01917474255 | AB43: 0.01844429999 | AC43: 0.01829317912 | AD43: 0.01592727182 | AE43: 0.01510965694 | AF43: 0.01600136168 | AG43: 0.01329640333 | AH43: 0.01312364981 | AI43: 0.008986833353 | AJ43: 0.007864262069
C44: =IF( subgroup.idx="", "", INDEX(subgroupData.names,subgroup.idx) ) -> PTE - Tyne and Wear | D44: 28 | E44: 429 | F44: =IF( INDEX(attr.selection, attr.ordered), INDEX( output.array,subgroup.idx, attr.ordered), "" ) -> 0.09270580538 | G44: 0.07515862969 | H44: 0.07027027094 | I44: 0.0692378345 | J44: 0.05435332813 | K44: 0.05061419078 | L44: 0.0344279091 | M44: 0.03414017905 | N44: 0.0336166703 | O44: 0.03819274898 | P44: 0.03390437486 | Q44: 0.02940095112 | R44: 0.02566975697 | S44: 0.02634669286 | T44: 0.02626526238 | U44: 0.02880029959 | V44: 0.02225049156 | W44: 0.02386804644 | X44: 0.03233822239 | Y44: 0.02329183643 | Z44: 0.02201675854 | AA44: 0.01974761336 | AB44: 0.01965454857 | AC44: 0.0192278542 | AD44: 0.01617498518 | AE44: 0.01571945347 | AF44: 0.01715367714 | AG44: 0.01397197744 | AH44: 0.0136247834 | AI44: 0.009398760541 | AJ44: 0.008456086677
C45: =IF( subgroup.idx="", "", INDEX(subgroupData.names,subgroup.idx) ) -> PTE - West Mids Metropolitan Area | D45: 29 | E45: 426 | F45: =IF( INDEX(attr.selection, attr.ordered), INDEX( output.array,subgroup.idx, attr.ordered), "" ) -> 0.08257391024 | G45: 0.0738239169 | H45: 0.06812642493 | I45: 0.06572274327 | J45: 0.07138283544 | K45: 0.04841388382 | L45: 0.03330553438 | M45: 0.03424947852 | N45: 0.03665363926 | O45: 0.03270411162 | P45: 0.04261101405 | Q45: 0.03240855238 | R45: 0.0253497918 | S45: 0.02851769216 | T45: 0.02690347342 | U45: 0.02461233311 | V45: 0.02194926125 | W45: 0.02388179578 | X45: 0.03063494912 | Y45: 0.02223396514 | Z45: 0.02127414232 | AA45: 0.01970521021 | AB45: 0.02070855053 | AC45: 0.01649600512 | AD45: 0.0162901315 | AE45: 0.01685202736 | AF45: 0.01501885682 | AG45: 0.01499368322 | AH45: 0.01467055062 | AI45: 0.01016398604 | AJ45: 0.007767549676
C46: =IF( subgroup.idx="", "", INDEX(subgroupData.names,subgroup.idx) ) -> PTE - West Yorkshire | D46: 30 | E46: 429 | F46: =IF( INDEX(attr.selection, attr.ordered), INDEX( output.array,subgroup.idx, attr.ordered), "" ) -> 0.09246805627 | G46: 0.08034682352 | H46: 0.07451902647 | I46: 0.07517103197 | J46: 0.05451912963 | K46: 0.05213793842 | L46: 0.03723202837 | M46: 0.03470416617 | N46: 0.03237338434 | O46: 0.03865093686 | P46: 0.03289806452 | Q46: 0.03147475354 | R46: 0.02703953375 | S46: 0.02687898911 | T46: 0.02511093357 | U46: 0.02853403224 | V46: 0.023522602 | W46: 0.02068754818 | X46: 0.02642147495 | Y46: 0.01941235904 | Z46: 0.02121998246 | AA46: 0.0180394095 | AB46: 0.01771854821 | AC46: 0.01714460528 | AD46: 0.01623902066 | AE46: 0.01571719725 | AF46: 0.01539440938 | AG46: 0.01400178742 | AH46: 0.01384392238 | AI46: 0.008957784445 | AJ46: 0.007620520077
C47: =IF( subgroup.idx="", "", INDEX(subgroupData.names,subgroup.idx) ) -> PTE - Bristol Area | D47: 31 | E47: 431 | F47: =IF( INDEX(attr.selection, attr.ordered), INDEX( output.array,subgroup.idx, attr.ordered), "" ) -> 0.08349188252 | G47: 0.08719974895 | H47: 0.08058934308 | I47: 0.08184433219 | J47: 0.0453081224 | K47: 0.05449451214 | L47: 0.04287148937 | M47: 0.03744728384 | N47: 0.03063904976 | O47: 0.03370571582 | P47: 0.02807704163 | Q47: 0.02655744476 | R47: 0.02986616389 | S47: 0.02435191763 | T47: 0.02258275294 | U47: 0.02492356808 | V47: 0.02533393089 | W47: 0.01997779855 | X47: 0.03106998649 | Y47: 0.01859668515 | Z47: 0.02299535856 | AA47: 0.01774973083 | AB47: 0.01691938587 | AC47: 0.02122232875 | AD47: 0.0169521122 | AE47: 0.01460880457 | AF47: 0.01883770349 | AG47: 0.01241773376 | AH47: 0.01237560004 | AI47: 0.008629969041 | AJ47: 0.008362502818
C49: =IF( subgroup.idx="", "", INDEX(subgroupData.names,subgroup.idx) ) -> Bus company used: Arriva Bus | D49: 32 | E49: 1094 | F49: =IF( INDEX(attr.selection, attr.ordered), INDEX( output.array,subgroup.idx, attr.ordered), "" ) -> 0.08911187755 | G49: 0.07843176451 | H49: 0.07268996821 | I49: 0.07140765373 | J49: 0.05545385609 | K49: 0.05165313147 | L49: 0.03989016982 | M49: 0.03562720234 | N49: 0.03398030457 | O49: 0.0368272003 | P49: 0.03341775371 | Q49: 0.03361716577 | R49: 0.02849105877 | S49: 0.02797068425 | T49: 0.02767071377 | U49: 0.02659821284 | V49: 0.02430718361 | W49: 0.02249794166 | X49: 0.02158438754 | Y49: 0.02140769774 | Z49: 0.02070601353 | AA49: 0.01895728326 | AB49: 0.01919895425 | AC49: 0.01529250514 | AD49: 0.01668096977 | AE49: 0.01626576748 | AF49: 0.01476050073 | AG49: 0.01491137316 | AH49: 0.01418647901 | AI49: 0.009250908595 | AJ49: 0.007153316837
C50: =IF( subgroup.idx="", "", INDEX(subgroupData.names,subgroup.idx) ) -> Bus company used: First Bus | D50: 33 | E50: =INDEX( subgroup.member.count.unweighted, subgroup.idx) -> 1299 | F50: =IF( INDEX(attr.selection, attr.ordered), INDEX( output.array,subgroup.idx, attr.ordered), "" ) -> 0.0864681698 | G50: 0.08458932794 | H50: 0.07796142751 | I50: 0.07810643796 | J50: 0.05493785055 | K50: 0.05301986517 | L50: 0.03854236211 | M50: 0.03601510329 | N50: 0.03268635199 | O50: 0.03487724155 | P50: 0.03296916889 | Q50: 0.03008788961 | R50: 0.02781498864 | S50: 0.02636100291 | T50: 0.02475359303 | U50: 0.02554473257 | V50: 0.0233760853 | W50: 0.02178734924 | X50: 0.02275971977 | Y50: 0.01993867866 | Z50: 0.02185154738 | AA50: 0.01865601317 | AB50: 0.01803811494 | AC50: 0.01769273801 | AD50: 0.0163545808 | AE50: 0.01546612395 | AF50: 0.01585140968 | AG50: 0.01357943997 | AH50: 0.01343691958 | AI50: 0.008820062355 | AJ50: 0.007655703697
C51: =IF( subgroup.idx="", "", INDEX(subgroupData.names,subgroup.idx) ) -> Bus company used: National Express | D51: 34 | E51: 283 | F51: =IF( INDEX(attr.selection, attr.ordered), INDEX( output.array,subgroup.idx, attr.ordered), "" ) -> 0.08043408424 | G51: 0.07402574661 | H51: 0.06850332566 | I51: 0.06753504347 | J51: 0.06629425119 | K51: 0.04863018212 | L51: 0.03248180307 | M51: 0.03417235143 | N51: 0.03683940579 | O51: 0.03231407322 | P51: 0.04009078837 | Q51: 0.02932542703 | R51: 0.02507238262 | S51: 0.02741453063 | T51: 0.02637912804 | U51: 0.024770132 | V51: 0.02224768067 | W51: 0.02515315404 | X51: 0.03439283439 | Y51: 0.02386234094 | Z51: 0.02282213287 | AA51: 0.02055470865 | AB51: 0.02170378837 | AC51: 0.01809971366 | AD51: 0.01660267006 | AE51: 0.01655068293 | AF51: 0.01630924229 | AG51: 0.0145531288 | AH51: 0.01421570154 | AI51: 0.01038706581 | AJ51: 0.008262499486
C52: =IF( subgroup.idx="", "", INDEX(subgroupData.names,subgroup.idx) ) -> Bus company used: Stagecoach | D52: 35 | E52: 997 | F52: =IF( INDEX(attr.selection, attr.ordered), INDEX( output.array,subgroup.idx, attr.ordered), "" ) -> 0.08458000127 | G52: 0.07705815215 | H52: 0.07138203813 | I52: 0.06859814572 | J52: 0.0583260966 | K52: 0.04976203828 | L52: 0.03698871611 | M52: 0.03518890017 | N52: 0.0352340839 | O52: 0.03518105849 | P52: 0.03517650758 | Q52: 0.03332574082 | R52: 0.02716231499 | S52: 0.0279498423 | T52: 0.02811432035 | U52: 0.02590566269 | V52: 0.02308844264 | W52: 0.02496507185 | X52: 0.02346347794 | Y52: 0.02333558999 | Z52: 0.02160484575 | AA52: 0.02060283674 | AB52: 0.02031973715 | AC52: 0.01780884951 | AD52: 0.01657247582 | AE52: 0.01631793196 | AF52: 0.01528612024 | AG52: 0.0150104644 | AH52: 0.01437040688 | AI52: 0.009448334706 | AJ52: 0.007871794878
C53: =IF( subgroup.idx="", "", INDEX(subgroupData.names,subgroup.idx) ) -> Bus company used: Go Ahead | D53: 36 | E53: 173 | F53: =IF( INDEX(attr.selection, attr.ordered), INDEX( output.array,subgroup.idx, attr.ordered), "" ) -> 0.0666747275 | G53: 0.08064997998 | H53: 0.07235785534 | I53: 0.07015690921 | J53: 0.05114656845 | K53: 0.04835920821 | L53: 0.04574401925 | M53: 0.03741177789 | N53: 0.03559483205 | O53: 0.0292976691 | P53: 0.03111000208 | Q53: 0.03987264935 | R53: 0.03163781493 | S53: 0.0310603332 | T53: 0.03329476528 | U53: 0.02153563033 | V53: 0.02727663895 | W53: 0.02440755275 | X53: 0.02461410454 | Y53: 0.02380428095 | Z53: 0.01879571064 | AA53: 0.019800746 | AB53: 0.02073398518 | AC53: 0.01543299665 | AD53: 0.01774145204 | AE53: 0.01771074196 | AF53: 0.01534783911 | AG53: 0.01694594102 | AH53: 0.01521738101 | AI53: 0.009508307687 | AJ53: 0.006757579369
C54: =IF( subgroup.idx="", "", INDEX(subgroupData.names,subgroup.idx) ) -> Bus company used: Other bus company | D54: 37 | E54: 489 | F54: =IF( INDEX(attr.selection, attr.ordered), INDEX( output.array,subgroup.idx, attr.ordered), "" ) -> 0.08064051072 | G54: 0.08045541196 | H54: 0.07394754292 | I54: 0.07338429057 | J54: 0.05212838165 | K54: 0.05090731413 | L54: 0.03965665799 | M54: 0.03539632215 | N54: 0.03407694016 | O54: 0.03445681073 | P54: 0.03045635409 | Q54: 0.03590649447 | R54: 0.02819381478 | S54: 0.02833710091 | T54: 0.02986083433 | U54: 0.02590017344 | V54: 0.02379845351 | W54: 0.02461355276 | X54: 0.0228380715 | Y54: 0.02313176794 | Z54: 0.02162389766 | AA54: 0.02030498307 | AB54: 0.01937387192 | AC54: 0.01690937516 | AD54: 0.01632434628 | AE54: 0.01612293906 | AF54: 0.01584307066 | AG54: 0.01523348586 | AH54: 0.01417735819 | AI54: 0.008796466319 | AJ54: 0.007203405115
C56: =IF( subgroup.idx="", "", INDEX(subgroupData.names,subgroup.idx) ) -> Typical Journey Purpose: Commuting work | D56: 38 | E56: 1226 | F56: =IF( INDEX(attr.selection, attr.ordered), INDEX( output.array,subgroup.idx, attr.ordered), "" ) -> 0.09496717912 | G56: 0.08083732986 | H56: 0.07588636823 | I56: 0.07552935193 | J56: 0.05011185712 | K56: 0.05346616147 | L56: 0.03700899597 | M56: 0.03584419272 | N56: 0.03137901899 | O56: 0.03862343798 | P56: 0.03116265426 | Q56: 0.02531840326 | R56: 0.02715068914 | S56: 0.02407639931 | T56: 0.02197980662 | U56: 0.02896593665 | V56: 0.02347996066 | W56: 0.02056810399 | X56: 0.03124350371 | Y56: 0.01933383429 | Z56: 0.02370619269 | AA56: 0.01824123792 | AB56: 0.01745530393 | AC56: 0.02141646814 | AD56: 0.01660330898 | AE56: 0.014628663 | AF56: 0.01839160005 | AG56: 0.01227819614 | AH56: 0.01248939835 | AI56: 0.008970666696 | AJ56: 0.008885778794
C57: =IF( subgroup.idx="", "", INDEX(subgroupData.names,subgroup.idx) ) -> Typical Journey Purpose: Communting education | D57: 39 | E57: 275 | F57: =IF( INDEX(attr.selection, attr.ordered), INDEX( output.array,subgroup.idx, attr.ordered), "" ) -> 0.09387970507 | G57: 0.07448614355 | H57: 0.07047431334 | I57: 0.06905355132 | J57: 0.04964029444 | K57: 0.05100299784 | L57: 0.03468443373 | M57: 0.03531338868 | N57: 0.03268355504 | O57: 0.03905062907 | P57: 0.03132506946 | Q57: 0.0244017532 | R57: 0.02606732215 | S57: 0.02371659285 | T57: 0.02256313764 | U57: 0.03061710483 | V57: 0.02299495752 | W57: 0.02234133388 | X57: 0.03811947006 | Y57: 0.02164048051 | Z57: 0.02504919646 | AA57: 0.01938110896 | AB57: 0.01940245902 | AC57: 0.02541736038 | AD57: 0.0169073565 | AE57: 0.01481085516 | AF57: 0.02018374552 | AG57: 0.01247844944 | AH57: 0.01257001931 | AI57: 0.009643610579 | AJ57: 0.0100996045
C58: =IF( subgroup.idx="", "", INDEX(subgroupData.names,subgroup.idx) ) -> Typical Journey Purpose: NET: Commuting | D58: 40 | E58: =INDEX( subgroup.member.count.unweighted, subgroup.idx) -> 1396 | F58: =IF( INDEX(attr.selection, attr.ordered), INDEX( output.array,subgroup.idx, attr.ordered), "" ) -> 0.09431094461 | G58: 0.08003781179 | H58: 0.07516112479 | I58: 0.07475472546 | J58: 0.05044177959 | K58: 0.05312779503 | L58: 0.03644330858 | M58: 0.03572189598 | N58: 0.03167149895 | O58: 0.03839381037 | P58: 0.03140858488 | Q58: 0.02518603989 | R58: 0.02688081484 | S58: 0.02405244249 | T58: 0.02208802413 | U58: 0.02904327768 | V58: 0.02328175919 | W58: 0.02093279234 | X58: 0.03276250145 | Y58: 0.01979786798 | Z58: 0.02398716266 | AA58: 0.01846981898 | AB58: 0.01779455502 | AC58: 0.02154416621 | AD58: 0.01661378458 | AE58: 0.01468594807 | AF58: 0.01849546995 | AG58: 0.01232344777 | AH58: 0.0125123834 | AI58: 0.009092980235 | AJ58: 0.008981483118
C59: =IF( subgroup.idx="", "", INDEX(subgroupData.names,subgroup.idx) ) -> Typical Journey Purpose: Shopping trips | D59: 41 | E59: 3248 | F59: =IF( INDEX(attr.selection, attr.ordered), INDEX( output.array,subgroup.idx, attr.ordered), "" ) -> 0.08044016834 | G59: 0.07957178261 | H59: 0.07292354974 | I59: 0.07136859884 | J59: 0.05726839778 | K59: 0.05023091329 | L59: 0.03912595453 | M59: 0.0354448278 | N59: 0.03542194259 | O59: 0.03345906301 | P59: 0.03406068746 | Q59: 0.03636953049 | R59: 0.02814962741 | S59: 0.02937475542 | T59: 0.02990185995 | U59: 0.02422747757 | V59: 0.0237164313 | W59: 0.02459766975 | X59: 0.02035063201 | Y59: 0.02298957339 | Z59: 0.02043593701 | AA59: 0.0202622919 | AB59: 0.02025709189 | AC59: 0.01544275479 | AD59: 0.01660104892 | AE59: 0.01684960754 | AF59: 0.0140796581 | AG59: 0.01580215476 | AH59: 0.01485707872 | AI59: 0.009330937149 | AJ59: 0.007087995951
C60: =IF( subgroup.idx="", "", INDEX(subgroupData.names,subgroup.idx) ) -> Typical Journey Purpose: Socialising / relatives | D60: 42 | E60: 2370 | F60: =IF( INDEX(attr.selection, attr.ordered), INDEX( output.array,subgroup.idx, attr.ordered), "" ) -> 0.08689601649 | G60: 0.08208441665 | H60: 0.07585828028 | I60: 0.07486610067 | J60: 0.05386138544 | K60: 0.05259358578 | L60: 0.03966018506 | M60: 0.03626457505 | N60: 0.03302991781 | O60: 0.03562243711 | P60: 0.03232097357 | Q60: 0.03187425641 | R60: 0.02846405792 | S60: 0.02710369234 | T60: 0.02612196606 | U60: 0.02609270922 | V60: 0.02407117378 | W60: 0.02201110422 | X60: 0.02259603701 | Y60: 0.020649063 | Z60: 0.02191475086 | AA60: 0.01875261555 | AB60: 0.01824735326 | AC60: 0.01666576829 | AD60: 0.01661513146 | AE60: 0.01580096106 | AF60: 0.01586186958 | AG60: 0.01412672912 | AH60: 0.01369120691 | AI60: 0.008900257301 | AJ60: 0.00738142272
C61: =IF( subgroup.idx="", "", INDEX(subgroupData.names,subgroup.idx) ) -> Typical Journey Purpose: Other | D61: 43 | E61: 1829 | F61: =IF( INDEX(attr.selection, attr.ordered), INDEX( output.array,subgroup.idx, attr.ordered), "" ) -> 0.07771989005 | G61: 0.08391771891 | H61: 0.07617975345 | I61: 0.07516039784 | J61: 0.056001464 | K61: 0.05112478113 | L61: 0.04316297772 | M61: 0.03659205919 | N61: 0.03451608087 | O61: 0.03265166183 | P61: 0.03280955199 | Q61: 0.03746734169 | R61: 0.03011170624 | S61: 0.02958236191 | T61: 0.03047008283 | U61: 0.02335893959 | V61: 0.02528915031 | W61: 0.02385845573 | X61: 0.01373710302 | Y61: 0.02212509239 | Z61: 0.01971349566 | AA61: 0.01955466913 | AB61: 0.01925361689 | AC61: 0.01317115596 | AD61: 0.01673425686 | AE61: 0.01667514844 | AF61: 0.0136447438 | AG61: 0.01574963416 | AH61: 0.01460497114 | AI61: 0.008805271135 | AJ61: 0.006256466137
C62: =IF( subgroup.idx="", "", INDEX(subgroupData.names,subgroup.idx) ) -> Typical Journey Purpose: NET: Non Commuter | D62: 44 | E62: 4176 | F62: =IF( INDEX(attr.selection, attr.ordered), INDEX( output.array,subgroup.idx, attr.ordered), "" ) -> 0.08257450646 | G62: 0.08022229714 | H62: 0.07374961599 | I62: 0.07255345504 | J62: 0.05642200801 | K62: 0.05088273196 | L62: 0.03921955296 | M62: 0.03562656292 | N62: 0.03458796363 | O62: 0.03421174976 | P62: 0.03365585566 | Q62: 0.03436807726 | R62: 0.02817522421 | S62: 0.02831544181 | T62: 0.02853423021 | U62: 0.02501931614 | V62: 0.02388221329 | W62: 0.02396986396 | X62: 0.02121885449 | Y62: 0.02240135222 | Z62: 0.02101808454 | AA62: 0.01986013272 | AB62: 0.0196771141 | AC62: 0.01614986271 | AD62: 0.01657769495 | AE62: 0.01635439263 | AF62: 0.01492227704 | AG62: 0.01510023157 | AH62: 0.01431659585 | AI62: 0.009178229405 | AJ62: 0.007254511355
C64: =IF( subgroup.idx="", "", INDEX(subgroupData.names,subgroup.idx) ) -> Typical journey length: 10 mins or less | D64: 45 | E64: 462 | F64: =IF( INDEX(attr.selection, attr.ordered), INDEX( output.array,subgroup.idx, attr.ordered), "" ) -> 0.07704904471 | G64: 0.07907518621 | H64: 0.07229987231 | I64: 0.06843015339 | J64: 0.05658340178 | K64: 0.04950264996 | L64: 0.04103080654 | M64: 0.03686461698 | N64: 0.03549281569 | O64: 0.03240424624 | P64: 0.03422621101 | Q64: 0.03601314668 | R64: 0.02928846521 | S64: 0.02980815518 | T64: 0.02976005435 | U64: 0.02355501104 | V64: 0.02505744286 | W64: 0.02358721396 | X64: 0.02171148285 | Y64: 0.02239435017 | Z64: 0.02025196895 | AA64: 0.0198688761 | AB64: 0.02011727517 | AC64: 0.01711414734 | AD64: 0.01733735454 | AE64: 0.01729141179 | AF64: 0.01573475061 | AG64: 0.01583515143 | AH64: 0.01511045113 | AI64: 0.009626223838 | AJ64: 0.007578062001
C65: =IF( subgroup.idx="", "", INDEX(subgroupData.names,subgroup.idx) ) -> Typical journey length: 11 to 20 mins | D65: 46 | E65: 1634 | F65: =IF( INDEX(attr.selection, attr.ordered), INDEX( output.array,subgroup.idx, attr.ordered), "" ) -> 0.08398374334 | G65: 0.07873711552 | H65: 0.07233642631 | I65: 0.07069985506 | J65: 0.05522359915 | K65: 0.04980148662 | L65: 0.03918633964 | M65: 0.0356082624 | N65: 0.03420709326 | O65: 0.03541312173 | P65: 0.03358662344 | Q65: 0.03498445545 | R65: 0.02818304755 | S65: 0.02857308571 | T65: 0.0284455084 | U65: 0.0260435652 | V65: 0.02408261854 | W65: 0.02347445093 | X65: 0.0232204566 | Y65: 0.02181369422 | Z65: 0.02017668508 | AA65: 0.01944698365 | AB65: 0.01946648282 | AC65: 0.01777618516 | AD65: 0.01670504464 | AE65: 0.01650618289 | AF65: 0.01550365926 | AG65: 0.01522438561 | AH65: 0.01460949475 | AI65: 0.00919155911 | AJ65: 0.007788787966
C66: =IF( subgroup.idx="", "", INDEX(subgroupData.names,subgroup.idx) ) -> Typical journey length: 21 to 30 mins | D66: 47 | E66: =INDEX( subgroup.member.count.unweighted, subgroup.idx) -> 1359 | F66: =IF( INDEX(attr.selection, attr.ordered), INDEX( output.array,subgroup.idx, attr.ordered), "" ) -> 0.08778173079 | G66: 0.07766439971 | H66: 0.07208667542 | I66: 0.07019938914 | J66: 0.05976436944 | K66: 0.05084887059 | L66: 0.03740392202 | M66: 0.03515371497 | N66: 0.03455280438 | O66: 0.03619516902 | P66: 0.03551622496 | Q66: 0.03245644952 | R66: 0.0273164014 | S66: 0.02762070644 | T66: 0.02682971312 | U66: 0.02685638842 | V66: 0.02337182092 | W66: 0.02324027329 | X66: 0.02273747093 | Y66: 0.02170865086 | Z66: 0.02118093089 | AA66: 0.01936859995 | AB66: 0.01964054946 | AC66: 0.01685806196 | AD66: 0.0164525715 | AE66: 0.01614530802 | AF66: 0.01523816737 | AG66: 0.01469017445 | AH66: 0.01411623728 | AI66: 0.009366713203 | AJ66: 0.007637540573
C67: =IF( subgroup.idx="", "", INDEX(subgroupData.names,subgroup.idx) ) -> Typical journey length: Over half an hour | D67: 48 | E67: 1099 | F67: =IF( INDEX(attr.selection, attr.ordered), INDEX( output.array,subgroup.idx, attr.ordered), "" ) -> 0.07891753675 | G67: 0.08508222972 | H67: 0.07832855048 | I67: 0.07988980422 | J67: 0.05220991823 | K67: 0.05370113617 | L67: 0.04025825597 | M67: 0.03596629864 | N67: 0.0339893273 | O67: 0.03145934584 | P67: 0.03076709476 | Q67: 0.02994490778 | R67: 0.02855902208 | S67: 0.02592420307 | T67: 0.02707131136 | U67: 0.02283481297 | V67: 0.02404157186 | W67: 0.02489212208 | X67: 0.02365814058 | Y67: 0.02366776452 | Z67: 0.02392652549 | AA67: 0.02070645966 | AB67: 0.0195543495 | AC67: 0.01533702564 | AD67: 0.01646948823 | AE67: 0.01521719985 | AF67: 0.01529217043 | AG67: 0.01380039515 | AH67: 0.01288587605 | AI67: 0.008955457459 | AJ67: 0.006691698147
C68: =IF( subgroup.idx="", "", INDEX(subgroupData.names,subgroup.idx) ) -> Typical journey length: NET up to 20 min | D68: 49 | E68: 2096 | F68: =IF( INDEX(attr.selection, attr.ordered), INDEX( output.array,subgroup.idx, attr.ordered), "" ) -> 0.08247600391 | G68: 0.07881061872 | H68: 0.07232847875 | I68: 0.07020637742 | J68: 0.0555192469 | K68: 0.04973651367 | L68: 0.0395873629 | M68: 0.03588141851 | N68: 0.03448663452 | O68: 0.03475893321 | P68: 0.03372568232 | Q68: 0.03520811309 | R68: 0.02842338702 | S68: 0.02884161402 | T68: 0.02873131646 | U68: 0.02550250474 | V68: 0.02429456446 | W68: 0.02349896782 | X68: 0.02289237613 | Y68: 0.02193994021 | Z68: 0.02019305327 | AA68: 0.01953871134 | AB68: 0.01960797783 | AC68: 0.01763224516 | AD68: 0.01684252121 | AE68: 0.01667690705 | AF68: 0.01555390305 | AG68: 0.01535717807 | AH68: 0.01471841249 | AI68: 0.009286063743 | AJ68: 0.00774297201
C69: =IF( subgroup.idx="", "", INDEX(subgroupData.names,subgroup.idx) ) -> Typical journey length: NET longer than 20 min | D69: 50 | E69: 2458 | F69: =IF( INDEX(attr.selection, attr.ordered), INDEX( output.array,subgroup.idx, attr.ordered), "" ) -> 0.08389572526 | G69: 0.08091632857 | H69: 0.07482307321 | I69: 0.07444760465 | J69: 0.05645254673 | K69: 0.05209928544 | L69: 0.03865524362 | M69: 0.03550994641 | N69: 0.03430577966 | O69: 0.03411901467 | P69: 0.03343423689 | Q69: 0.03135540581 | R69: 0.0278611583 | S69: 0.0268769703 | T69: 0.02693562823 | U69: 0.02509335567 | V69: 0.02366543542 | W69: 0.02396443315 | X69: 0.02314108657 | Y69: 0.02256751366 | Z69: 0.02238458187 | AA69: 0.01995510902 | AB69: 0.01960275995 | AC69: 0.01619124944 | AD69: 0.01645998769 | AE69: 0.01573843138 | AF69: 0.01526184196 | AG69: 0.01430010094 | AH69: 0.01357685485 | AI69: 0.009186421335 | AJ69: 0.007222889351
C71: =IF( subgroup.idx="", "", INDEX(subgroupData.names,subgroup.idx) ) -> Typical journey type: Across town centre | D71: 51 | E71: 1030 | F71: =IF( INDEX(attr.selection, attr.ordered), INDEX( output.array,subgroup.idx, attr.ordered), "" ) -> 0.0886549248 | G71: 0.07005843999 | H71: 0.06575441795 | I71: 0.06148594489 | J71: 0.06153969754 | K71: 0.04754325859 | L71: 0.03466773068 | M71: 0.03480707277 | N71: 0.03524974163 | O71: 0.03778284039 | P71: 0.03813170448 | Q71: 0.03144380582 | R71: 0.02618421715 | S71: 0.02783065136 | T71: 0.02561733366 | U71: 0.02866406046 | V71: 0.02338569958 | W71: 0.02307742043 | X71: 0.03274801864 | Y71: 0.02164521011 | Z71: 0.02141167679 | AA71: 0.01960979033 | AB71: 0.02019107532 | AC71: 0.02199597891 | AD71: 0.017027944 | AE71: 0.01666289901 | AF71: 0.01782474241 | AG71: 0.01476768454 | AH71: 0.01479676774 | AI71: 0.01008203303 | AJ71: 0.009357216977
C72: =IF( subgroup.idx="", "", INDEX(subgroupData.names,subgroup.idx) ) -> Typical journey type: Across outskirts of town | D72: 52 | E72: 495 | F72: =IF( INDEX(attr.selection, attr.ordered), INDEX( output.array,subgroup.idx, attr.ordered), "" ) -> 0.08070290766 | G72: 0.08034979376 | H72: 0.07427771635 | I72: 0.07380173667 | J72: 0.05756500373 | K72: 0.05131015224 | L72: 0.03734285062 | M72: 0.0354368804 | N72: 0.03447230167 | O72: 0.0316546548 | P72: 0.03472106188 | Q72: 0.03103358793 | R72: 0.02718375099 | S72: 0.0266505656 | T72: 0.02690295539 | U72: 0.02360849115 | V72: 0.02320208183 | W72: 0.02364585602 | X72: 0.02968118476 | Y72: 0.02210351119 | Z72: 0.02245827305 | AA72: 0.01988460543 | AB72: 0.01992640916 | AC72: 0.0184941075 | AD72: 0.01648852394 | AE72: 0.01581347758 | AF72: 0.01622626061 | AG72: 0.01414593938 | AH72: 0.01354265908 | AI72: 0.009509945748 | AJ72: 0.007862753903
C73: =IF( subgroup.idx="", "", INDEX(subgroupData.names,subgroup.idx) ) -> Typical journey type: Across rural areas | D73: 53 | E73: =INDEX( subgroup.member.count.unweighted, subgroup.idx) -> 132 | F73: =IF( INDEX(attr.selection, attr.ordered), INDEX( output.array,subgroup.idx, attr.ordered), "" ) -> 0.08650989356 | G73: 0.0696434039 | H73: 0.06626516002 | I73: 0.065275718 | J73: 0.04808780417 | K73: 0.04859056394 | L73: 0.03616030838 | M73: 0.03423378601 | N73: 0.0365149376 | O73: 0.03657952516 | P73: 0.03080090375 | Q73: 0.03134494587 | R73: 0.02688832321 | S73: 0.02705006222 | T73: 0.028835422 | U73: 0.02657848953 | V73: 0.02458299764 | W73: 0.02851901449 | X73: 0.02748350523 | Y73: 0.02739490759 | Z73: 0.02261134798 | AA73: 0.02315808752 | AB73: 0.02336444242 | AC73: 0.02230118399 | AD73: 0.01756029808 | AE73: 0.01646216935 | AF73: 0.01755614083 | AG73: 0.0154670592 | AH73: 0.01469648147 | AI73: 0.01025080708 | AJ73: 0.009232309777
C74: =IF( subgroup.idx="", "", INDEX(subgroupData.names,subgroup.idx) ) -> Typical journey type: Between a rural area and a town | D74: 54 | E74: 724 | F74: =IF( INDEX(attr.selection, attr.ordered), INDEX( output.array,subgroup.idx, attr.ordered), "" ) -> 0.07579430039 | G74: 0.08728483019 | H74: 0.07968886851 | I74: 0.08097400261 | J74: 0.05463972984 | K74: 0.05356890748 | L74: 0.03789446295 | M74: 0.03559838471 | N74: 0.03535127421 | O74: 0.02946374587 | P74: 0.03144147542 | Q74: 0.03379744929 | R74: 0.02750925893 | S74: 0.02802305206 | T74: 0.03020069679 | U74: 0.02081932969 | V74: 0.02224719842 | W74: 0.02577794544 | X74: 0.01880951636 | Y74: 0.02441766761 | Z74: 0.02297937368 | AA74: 0.02115512219 | AB74: 0.02041029851 | AC74: 0.01293214285 | AD74: 0.01607285135 | AE74: 0.0160933035 | AF74: 0.01326643919 | AG74: 0.01503140066 | AH74: 0.01372099802 | AI74: 0.008953817192 | AJ74: 0.006082156097
C75: =IF( subgroup.idx="", "", INDEX(subgroupData.names,subgroup.idx) ) -> Typical journey type: Between outskirts of town & town centre | D75: 55 | E75: 1438 | F75: =IF( INDEX(attr.selection, attr.ordered), INDEX( output.array,subgroup.idx, attr.ordered), "" ) -> 0.08380482689 | G75: 0.08345102837 | H75: 0.07614882368 | I75: 0.07519588155 | J75: 0.05287406171 | K75: 0.05157671534 | L75: 0.04183085448 | M75: 0.03616903255 | N75: 0.03336309675 | O75: 0.03564690527 | P75: 0.03133971973 | Q75: 0.03536347079 | R75: 0.02932866928 | S75: 0.02844676904 | T75: 0.02875082823 | U75: 0.02613853881 | V75: 0.0246285177 | W75: 0.02287838328 | X75: 0.01678188019 | Y75: 0.02112487138 | Z75: 0.02000899486 | AA75: 0.01906658464 | AB75: 0.01843500333 | AC75: 0.01569571512 | AD75: 0.01647637496 | AE75: 0.01612347065 | AF75: 0.01461811612 | AG75: 0.01496523859 | AH75: 0.01415848896 | AI75: 0.008633756897 | AJ75: 0.006975380822
C76: =IF( subgroup.idx="", "", INDEX(subgroupData.names,subgroup.idx) ) -> Typical journey type: Between one town and another town | D76: 56 | E76: 674 | F76: =IF( INDEX(attr.selection, attr.ordered), INDEX( output.array,subgroup.idx, attr.ordered), "" ) -> 0.08404151608 | G76: 0.08088564885 | H76: 0.07457918285 | I76: 0.07418863737 | J76: 0.05468061074 | K76: 0.05265597198 | L76: 0.04356828662 | M76: 0.03643536358 | N76: 0.03384554623 | O76: 0.03399185446 | P76: 0.03240395423 | Q76: 0.03237163494 | R76: 0.03025343603 | S76: 0.02707169497 | T76: 0.02738012912 | U76: 0.02431240567 | V76: 0.02578704868 | W76: 0.02413246185 | X76: 0.02039782602 | Y76: 0.02316662155 | Z76: 0.02099150131 | AA76: 0.01948449022 | AB76: 0.01957506942 | AC76: 0.01299479233 | AD76: 0.01688365303 | AE76: 0.01579486742 | AF76: 0.01446678463 | AG76: 0.01461794746 | AH76: 0.01361232257 | AI76: 0.009086897129 | AJ76: 0.006341842653
C78: =IF( subgroup.idx="", "", INDEX(subgroupData.names,subgroup.idx) ) -> Ticket type: A free pass | D78: 57 | E78: 1667 | F78: =IF( INDEX(attr.selection, attr.ordered), INDEX( output.array,subgroup.idx, attr.ordered), "" ) -> 0.04564873516 | G78: 0.08750742115 | H78: 0.07677945367 | I78: 0.07513940821 | J78: 0.05478121028 | K78: 0.04827279587 | L78: 0.05032973278 | M78: 0.03870286396 | N78: 0.03914632146 | O78: 0.01821783678 | P78: 0.03163281064 | Q78: 0.0480994742 | R78: 0.03395172734 | S78: 0.0347221972 | T78: 0.04009078164 | U78: 0.01148016964 | V78: 0.02813647756 | W78: 0.02876050296 | X78: 0.01069508554 | Y78: 0.02760795737 | Z78: 0.01846772112 | AA78: 0.02231080276 | AB78: 0.02339686335 | AC78: 0.008164271848 | AD78: 0.018072155 | AE78: 0.01920110996 | AF78: 0.01088071132 | AG78: 0.01943413628 | AH78: 0.01649923888 | AI78: 0.009664626852 | AJ78: 0.004205399212
C79: =IF( subgroup.idx="", "", INDEX(subgroupData.names,subgroup.idx) ) -> Ticket type: Single/ return/ multi tickets | D79: 58 | E79: 1578 | F79: =IF( INDEX(attr.selection, attr.ordered), INDEX( output.array,subgroup.idx, attr.ordered), "" ) -> 0.09850535859 | G79: 0.07718466385 | H79: 0.0727994095 | I79: 0.07196121829 | J79: 0.05872829152 | K79: 0.05239264441 | L79: 0.03340978244 | M79: 0.03433676802 | N79: 0.03228160811 | O79: 0.0404523858 | P79: 0.03557886561 | Q79: 0.0261801556 | R79: 0.02520971313 | S79: 0.02458208465 | T79: 0.02193742751 | U79: 0.03036733273 | V79: 0.02184630807 | W79: 0.02140758308 | X79: 0.02937056811 | Y79: 0.01959392385 | Z79: 0.02274715888 | AA79: 0.01855500691 | AB79: 0.017723012 | AC79: 0.02101392441 | AD79: 0.01590763754 | AE79: 0.01476612596 | AF79: 0.01773381341 | AG79: 0.0125556142 | AH79: 0.012962336 | AI79: 0.009019454207 | AJ79: 0.008889823631
C80: =IF( subgroup.idx="", "", INDEX(subgroupData.names,subgroup.idx) ) -> Ticket type: One day travelcard/ticket | D80: 59 | E80: =INDEX( subgroup.member.count.unweighted, subgroup.idx) -> 784 | F80: =IF( INDEX(attr.selection, attr.ordered), INDEX( output.array,subgroup.idx, attr.ordered), "" ) -> 0.1139168632 | G80: 0.06873906698 | H80: 0.0659783921 | I80: 0.06368084983 | J80: 0.05933935648 | K80: 0.05020991904 | L80: 0.03027082818 | M80: 0.03219331716 | N80: 0.03234324082 | O80: 0.04960544019 | P80: 0.0366316084 | Q80: 0.02590242279 | R80: 0.02342567334 | S80: 0.02467798489 | T80: 0.02109184679 | U80: 0.03835435826 | V80: 0.02072246064 | W80: 0.02131023315 | X80: 0.02979244745 | Y80: 0.01955426237 | Z80: 0.0212430216 | AA80: 0.0185244551 | AB80: 0.01803601564 | AC80: 0.02187291274 | AD80: 0.01550684611 | AE80: 0.01485812636 | AF80: 0.01678667162 | AG80: 0.01274616367 | AH80: 0.01350077853 | AI80: 0.009255623077 | AJ80: 0.009928813565
C81: =IF( subgroup.idx="", "", INDEX(subgroupData.names,subgroup.idx) ) -> Ticket type: A season ticket for a longer period | D81: 60 | E81: =INDEX( subgroup.member.count.unweighted, subgroup.idx) -> 430 | F81: =IF( INDEX(attr.selection, attr.ordered), INDEX( output.array,subgroup.idx, attr.ordered), "" ) -> 0.09788988593 | G81: 0.08358389643 | H81: 0.07877468085 | I81: 0.07939807526 | J81: 0.04755471148 | K81: 0.05552055512 | L81: 0.03754891282 | M81: 0.03625394184 | N81: 0.03063389849 | O81: 0.03941848155 | P81: 0.02927266416 | Q81: 0.02197419112 | R81: 0.02738196226 | S81: 0.02225841333 | T81: 0.0200377126 | U81: 0.02953380525 | V81: 0.02320962812 | W81: 0.02095659829 | X81: 0.02803968613 | Y81: 0.01967099272 | Z81: 0.02525711726 | AA81: 0.01849018433 | AB81: 0.01717118633 | AC81: 0.02106613992 | AD81: 0.0164198153 | AE81: 0.01372364677 | AF81: 0.01859497049 | AG81: 0.01132403045 | AH81: 0.0116666325 | AI81: 0.008650820225 | AJ81: 0.0087227627
C83: =IF( subgroup.idx="", "", INDEX(subgroupData.names,subgroup.idx) ) -> Income: Up to 21K | D83: 61 | E83: =INDEX( subgroup.member.count.unweighted, subgroup.idx) -> 1500 | F83: =IF( INDEX(attr.selection, attr.ordered), INDEX( output.array,subgroup.idx, attr.ordered), "" ) -> 0.08089342691 | G83: 0.0777962654 | H83: 0.07158228296 | I83: 0.06977359474 | J83: 0.05677660036 | K83: 0.04955583697 | L83: 0.03801313845 | M83: 0.0351800588 | N83: 0.03555404119 | O83: 0.03337531386 | P83: 0.03405427211 | Q83: 0.03860054381 | R83: 0.02762729479 | S83: 0.03037870751 | T83: 0.03132063643 | U83: 0.02407001955 | V83: 0.0237561251 | W83: 0.02462436655 | X83: 0.01992119001 | Y83: 0.02308562908 | Z83: 0.02031715988 | AA83: 0.02033673218 | AB83: 0.02030569678 | AC83: 0.01617078784 | AD83: 0.01668123801 | AE83: 0.01732009034 | AF83: 0.01455912519 | AG83: 0.01637524412 | AH83: 0.01536646244 | AI83: 0.00937699135 | AJ83: 0.007251127297
C84: =IF( subgroup.idx="", "", INDEX(subgroupData.names,subgroup.idx) ) -> Income: 21K to 41K | D84: 62 | E84: =INDEX( subgroup.member.count.unweighted, subgroup.idx) -> 1663 | F84: =IF( INDEX(attr.selection, attr.ordered), INDEX( output.array,subgroup.idx, attr.ordered), "" ) -> 0.08600642338 | G84: 0.08001021638 | H84: 0.07378237881 | I84: 0.072247408 | J84: 0.05872854024 | K84: 0.05136604866 | L84: 0.03849961443 | M84: 0.03557069285 | N84: 0.03439780575 | O84: 0.03569813413 | P84: 0.03497023481 | Q84: 0.03256822172 | R84: 0.02788597584 | S84: 0.02759800609 | T84: 0.02657363648 | U84: 0.02610298219 | V84: 0.02359463562 | W84: 0.02323839646 | X84: 0.02162922777 | Y84: 0.02155626692 | Z84: 0.02109365882 | AA84: 0.01942432719 | AB84: 0.01933001488 | AC84: 0.01554086541 | AD84: 0.01649670185 | AE84: 0.01608892823 | AF84: 0.01468555511 | AG84: 0.01461914311 | AH84: 0.01413414647 | AI84: 0.009255889389 | AJ84: 0.007305923008
C85: =IF( subgroup.idx="", "", INDEX(subgroupData.names,subgroup.idx) ) -> Income: More than 41K | D85: 63 | E85: =INDEX( subgroup.member.count.unweighted, subgroup.idx) -> 923 | F85: =IF( INDEX(attr.selection, attr.ordered), INDEX( output.array,subgroup.idx, attr.ordered), "" ) -> 0.08730954902 | G85: 0.08222864006 | H85: 0.07638875346 | I85: 0.07717460775 | J85: 0.04817601206 | K85: 0.05289123663 | L85: 0.04178809082 | M85: 0.03679732355 | N85: 0.03088768127 | O85: 0.03668896947 | P85: 0.03006275669 | Q85: 0.02218735247 | R85: 0.02929068463 | S85: 0.02219670813 | T85: 0.02114509516 | U85: 0.02853040682 | V85: 0.02545497875 | W85: 0.02162364472 | X85: 0.03392451372 | Y85: 0.02059363673 | Z85: 0.02391262692 | AA85: 0.01848199042 | AB85: 0.01782060328 | AC85: 0.02325600821 | AD85: 0.01694371458 | AE85: 0.01377436576 | AF85: 0.0196735524 | AG85: 0.0114741367 | AH85: 0.01149190504 | AI85: 0.008850381193 | AJ85: 0.008980073559
C87: =IF( subgroup.idx="", "", INDEX(subgroupData.names,subgroup.idx) ) -> Disability: Yes - high impact | D87: 64 | E87: =INDEX( subgroup.member.count.unweighted, subgroup.idx) -> 135 | F87: =IF( INDEX(attr.selection, attr.ordered), INDEX( output.array,subgroup.idx, attr.ordered), "" ) -> 0.05908780476 | G87: 0.06588847432 | H87: 0.06023883912 | I87: 0.05261078718 | J87: 0.07424335266 | K87: 0.0413951708 | L87: 0.03732795989 | M87: 0.03498972707 | N87: 0.04351672172 | O87: 0.023742924 | P87: 0.04378736274 | Q87: 0.05007235038 | R87: 0.02775928794 | S87: 0.037170799 | T87: 0.03983895733 | U87: 0.01560700635 | V87: 0.02453513914 | W87: 0.0322456869 | X87: 0.01261372666 | Y87: 0.03015288516 | Z87: 0.01742716845 | AA87: 0.02433632112 | AB87: 0.0269572487 | AC87: 0.01479426811 | AD87: 0.01782628933 | AE87: 0.02101942137 | AF87: 0.01238935871 | AG87: 0.02124033058 | AH87: 0.01932245124 | AI87: 0.0112213081 | AJ87: 0.006640871147
C88: =IF( subgroup.idx="", "", INDEX(subgroupData.names,subgroup.idx) ) -> Disability: Yes - low impact | D88: 65 | E88: =INDEX( subgroup.member.count.unweighted, subgroup.idx) -> 488 | F88: =IF( INDEX(attr.selection, attr.ordered), INDEX( output.array,subgroup.idx, attr.ordered), "" ) -> 0.06841545144 | G88: 0.0789187956 | H88: 0.07142880897 | I88: 0.06996630885 | J88: 0.06144243523 | K88: 0.04830576836 | L88: 0.03635434612 | M88: 0.03400377803 | N88: 0.03832226753 | O88: 0.02746392588 | P88: 0.03584105952 | Q88: 0.04727978928 | R88: 0.02665480463 | S88: 0.03420806527 | T88: 0.0374932374 | U88: 0.018552225 | V88: 0.02248690675 | W88: 0.02750673226 | X88: 0.01547263383 | Y88: 0.02580161703 | Z88: 0.01892815146 | AA88: 0.02200391532 | AB88: 0.02218769147 | AC88: 0.01235722935 | AD88: 0.01619028096 | AE88: 0.01886063567 | AF88: 0.01196674988 | AG88: 0.01893818573 | AH88: 0.01709031276 | AI88: 0.009557529717 | AJ88: 0.006000360713
C89: =IF( subgroup.idx="", "", INDEX(subgroupData.names,subgroup.idx) ) -> Disability: NET no disability / no disability impacting bus use | D89: 66 | E89: =INDEX( subgroup.member.count.unweighted, subgroup.idx) -> 3326 | F89: =IF( INDEX(attr.selection, attr.ordered), INDEX( output.array,subgroup.idx, attr.ordered), "" ) -> 0.08687166769 | G89: 0.07984077966 | H89: 0.07389500451 | I89: 0.07302650932 | J89: 0.05521286478 | K89: 0.05156569483 | L89: 0.03895981152 | M89: 0.0357566154 | N89: 0.03342368413 | O89: 0.03600328439 | P89: 0.03339316672 | Q89: 0.02987670942 | R89: 0.02804635 | S89: 0.02622467388 | T89: 0.0255447608 | U89: 0.02685479035 | V89: 0.02401749582 | W89: 0.02284941053 | X89: 0.02591163023 | Y89: 0.02144782979 | Z89: 0.02190928088 | AA89: 0.01921943783 | AB89: 0.01896937672 | AC89: 0.01838947252 | AD89: 0.01662557926 | AE89: 0.01550500566 | AF89: 0.01635260672 | AG89: 0.0138155425 | AH89: 0.01340798417 | AI89: 0.00916377199 | AJ89: 0.007919207975
B94: Index
C97: Attribute Number | F97: =attr.idx -> 1 | G97: 2 | H97: 3 | I97: 4 | J97: 5 | K97: 6 | L97: 7 | M97: 8 | N97: 9 | O97: 10 | P97: 11 | Q97: 12 | R97: 13 | S97: =attr.idx -> 14 | T97: 15 | U97: 16 | V97: 17 | W97: 18 | X97: 19 | Y97: 20 | Z97: 21 | AA97: 22 | AB97: 23 | AC97: 24 | AD97: 25 | AE97: 26 | AF97: 27 | AG97: 28 | AH97: 29 | AI97: 30 | AJ97: 31
C98: Availability | F98: =F8 -> ü | G98: =G8 -> ü | H98: ü | I98: ü | J98: ü | K98: ü | L98: ü | M98: ü | N98: ü | O98: ü | P98: ü | Q98: ü | R98: ü | S98: ü | T98: ü | U98: ü | V98: ü | W98: ü | X98: ü | Y98: ü | Z98: ü | AA98: ü | AB98: ü | AC98: =AC8 -> ü | AD98: ü | AE98: ü | AF98: ü | AG98: ü | AH98: ü | AI98: ü | AJ98: ü
C99: Groups | E99: Unweighted Base | F99: =INDEX(attr.names,attr.ordered) -> Better value for money from bus journeys | G99: More buses arriving on time at your bus stop | H99: More journeys on buses running to time | I99: Buses running more often than they do now | J99: More effort made to tackle any anti-social behaviour | K99: Buses going to more places you want to go | L99: More bus stops with next bus displays | M99: Being given more/better information when delays occur on journeys | N99: Cleaner and better maintained buses | O99: Tickets which better allow travel on all local bus companies | P99: Better security at bus stops so people feel safer waiting for buses | Q99: Drivers allowing more time for passengers to get to their seats | R99: Better quality information at bus stops | S99: Drivers showing more consideration to passengers | T99: A smoother ride with less sudden braking or jolting | U99: A more suitable range of tickets for how and when you use buses | V99: More buses having next stop announcements/displays | W99: More personal space on buses (whether seated or standing) | X99: Free wi-fi being more widely available | Y99: Seats being more comfortable | Z99: Shorter journey times on buses | AA99: More seating being made available | AB99: Improved ventilation and temperature control | AC99: Being able to pay for bus travel with smartcards/ contactless cards/ mobile phones/ apps | AD99: Improved display of route numbers and destinations on the outside of buses | AE99: Drivers communicating better with passengers | AF99: Improved information via apps/online on bus arrival/running times | AG99: Making it easier to step on and off buses | AH99: More space for wheelchairs and buggies | AI99: Better maintained bus stops | AJ99: Being able to buy tickets from more places
C100: =IF( subgroup.idx="", "", INDEX(subgroupData.names,subgroup.idx) ) -> Total | D100: 1 | E100: =INDEX( subgroup.member.count.unweighted, subgroup.idx) -> 4578 | F100: =IF( INDEX(attr.selection, attr.ordered), 100*attr.select.count*INDEX( output.array,subgroup.idx, attr.ordered), "" ) -> 258.1199054 | G100: 246.8730712 | H100: 227.5474127 | I100: 223.634299 | J100: 174.1095437 | K100: 157.7244479 | L100: 120.8319409 | M100: 110.4588519 | N100: 106.803516 | O100: 106.7844488 | P100: 104.4470968 | Q100: 102.8654482 | R100: 87.0079896 | S100: 86.25244961 | T100: 86.22314559 | U100: 78.47645419 | V100: 74.17559931 | W100: 73.82985121 | X100: 72.27252666 | Y100: 69.28591255 | Z100: 66.08308626 | AA100: 61.37921254 | AB100: 60.978514 | AC100: 52.50326456 | AD100: 51.58318296 | AE100: 50.21862195 | AF100: 47.80786075 | AG100: 45.94772896 | AH100: 43.8305553 | AI100: 28.70779253 | AJ100: 23.23626889
C102: =IF( subgroup.idx="", "", INDEX(subgroupData.names,subgroup.idx) ) -> Male | D102: 2 | E102: =INDEX( subgroup.member.count.unweighted, subgroup.idx) -> 2228 | F102: =IF( INDEX(attr.selection, attr.ordered), 100*attr.select.count*INDEX( output.array,subgroup.idx, attr.ordered), "" ) -> 252.8040742 | G102: 243.6671882 | H102: 225.8459109 | I102: 223.7600012 | J102: 169.3671718 | K102: 158.4300744 | L102: 121.3971967 | M102: 110.5454132 | N102: 107.4195362 | O102: 103.1923491 | P102: 102.3936678 | Q102: 88.69561206 | R102: 87.23235122 | S102: 79.55979589 | T102: 80.9996617 | U102: 77.30107128 | V102: 75.21319691 | W102: 77.6525713 | X102: 92.44536699 | Y102: 73.65576688 | Z102: 71.14291097 | AA102: 63.99904913 | AB102: 63.49182712 | AC102: 59.67649134 | AD102: 52.21445608 | AE102: 47.72882469 | AF102: 52.03649013 | AG102: 42.89433604 | AH102: 40.82314591 | AI102: 29.53171711 | AJ102: 24.88277337
C103: =IF( subgroup.idx="", "", INDEX(subgroupData.names,subgroup.idx) ) -> Female | D103: 3 | E103: =INDEX( subgroup.member.count.unweighted, subgroup.idx) -> 2350 | F103: =IF( INDEX(attr.selection, attr.ordered), 100*attr.select.count*INDEX( output.array,subgroup.idx, attr.ordered), "" ) -> 263.2515203 | G103: 249.9678566 | H103: 229.1899502 | I103: 223.5129529 | J103: 178.6875719 | K103: 157.0432744 | L103: 120.2862737 | M103: 110.3752903 | N103: 106.2088435 | O103: 110.2520667 | P103: 106.4293657 | Q103: 116.5442386 | R103: 86.79140308 | S103: 92.71317412 | T103: 91.26561332 | U103: 79.61110503 | V103: 73.17395892 | W103: 70.13960481 | X103: 52.79876195 | Y103: 65.06749245 | Z103: 61.19860622 | AA103: 58.85016455 | AB103: 58.55229797 | AC103: 45.57862091 | AD103: 50.97378617 | AE103: 52.62213703 | AF103: 43.72577155 | AG103: 48.89530868 | AH103: 46.73374502 | AI103: 27.91242047 | AJ103: 21.64682286
C105: =IF( subgroup.idx="", "", INDEX(subgroupData.names,subgroup.idx) ) -> Age 1: 16-24 | D105: 4 | E105: =INDEX( subgroup.member.count.unweighted, subgroup.idx) -> 323 | F105: =IF( INDEX(attr.selection, attr.ordered), 100*attr.select.count*INDEX( output.array,subgroup.idx, attr.ordered), "" ) -> 278.6990911 | G105: 228.3589909 | H105: 216.8812651 | I105: 211.6684954 | J105: 158.6385873 | K105: 156.2825508 | L105: 117.9443489 | M105: 113.1756833 | N105: 97.44029002 | O105: 115.8134523 | P105: 102.413248 | Q105: 73.07854271 | R105: 85.8204843 | S105: 72.24486742 | T105: 64.67980516 | U105: 90.34454002 | V105: 78.68546849 | W105: 62.57158771 | X105: 128.8329692 | Y105: 60.23714082 | Z105: 77.68389402 | AA105: 55.26890736 | AB105: 56.30883338 | AC105: 86.37876091 | AD105: 54.36796459 | AE105: 45.50683831 | AF105: 72.95821933 | AG105: 37.40477045 | AH105: 38.66816077 | AI105: 29.66028599 | AJ105: 31.98195604
C106: =IF( subgroup.idx="", "", INDEX(subgroupData.names,subgroup.idx) ) -> Age 1: 25-34 | D106: 5 | E106: 563 | F106: =IF( INDEX(attr.selection, attr.ordered), 100*attr.select.count*INDEX( output.array,subgroup.idx, attr.ordered), "" ) -> 303.0280749 | G106: 213.1317436 | H106: 203.6031018 | I106: 196.0038213 | J106: 182.5965949 | K106: 149.8858372 | L106: 102.6056787 | M106: 104.9896617 | N106: 103.5639584 | O106: 131.6998182 | P106: 114.9531572 | Q106: 74.96547606 | R106: 77.91730105 | S106: 74.76443267 | T106: 65.58446868 | U106: 103.5632213 | V106: 71.12726553 | W106: 69.57094737 | X106: 120.0943252 | Y106: 65.29226251 | Z106: 70.97217453 | AA106: 59.41769931 | AB106: 60.56274275 | AC106: 77.3329664 | AD106: 51.70116519 | AE106: 46.72817621 | AF106: 60.17653361 | AG106: 39.48000724 | AH106: 41.39673014 | AI106: 30.89794344 | AJ106: 32.39271307
C107: =IF( subgroup.idx="", "", INDEX(subgroupData.names,subgroup.idx) ) -> Age 1: 35-44 | D107: 6 | E107: 761 | F107: =IF( INDEX(attr.selection, attr.ordered), 100*attr.select.count*INDEX( output.array,subgroup.idx, attr.ordered), "" ) -> 317.6349746 | G107: 237.9550594 | H107: 225.2372645 | I107: 220.2590372 | J107: 177.5780969 | K107: 164.4427776 | L107: 106.7472791 | M107: 107.6669296 | N107: 100.5848504 | O107: 130.0726368 | P107: 109.0588896 | Q107: 71.3179175 | R107: 79.99185606 | S107: 71.55040142 | T107: 64.38363604 | U107: 98.39226842 | V107: 67.70567345 | W107: 69.73101188 | X107: 91.0575268 | Y107: 64.62673092 | Z107: 71.74117286 | AA107: 59.44114577 | AB107: 57.0205112 | AC107: 59.81754745 | AD107: 49.5663784 | AE107: 43.95336648 | AF107: 51.84769023 | AG107: 36.95590564 | AH107: 38.0706212 | AI107: 28.31855225 | AJ107: 27.2722904
C108: =IF( subgroup.idx="", "", INDEX(subgroupData.names,subgroup.idx) ) -> Age 1: 45-54 | D108: 7 | E108: 766 | F108: =IF( INDEX(attr.selection, attr.ordered), 100*attr.select.count*INDEX( output.array,subgroup.idx, attr.ordered), "" ) -> 305.7954197 | G108: 251.7091682 | H108: 234.3870994 | I108: 231.9811995 | J108: 172.898992 | K108: 165.5412177 | L108: 103.1491423 | M108: 105.2961736 | N108: 101.0309149 | O108: 125.8584831 | P108: 100.9130798 | Q108: 100.3556331 | R108: 77.66338494 | S108: 85.10372721 | T108: 79.37789007 | U108: 91.64562967 | V108: 65.63309713 | W108: 68.09818526 | X108: 61.75114127 | Y108: 62.49101765 | Z108: 64.99016861 | AA108: 58.46619709 | AB108: 54.3813546 | AC108: 51.81030456 | AD108: 47.9142205 | AE108: 48.80538736 | AF108: 45.59794717 | AG108: 43.57698234 | AH108: 43.58088754 | AI108: 26.51345685 | AJ108: 23.6824968
C109: =IF( subgroup.idx="", "", INDEX(subgroupData.names,subgroup.idx) ) -> Age 1: 55-64 | D109: 8 | E109: 852 | F109: =IF( INDEX(attr.selection, attr.ordered), 100*attr.select.count*INDEX( output.array,subgroup.idx, attr.ordered), "" ) -> 286.2069193 | G109: 263.1176869 | H109: 241.738421 | I109: 244.1071388 | J109: 175.4236839 | K109: 167.074343 | L109: 110.7961451 | M109: 105.686596 | N109: 104.0075864 | O109: 116.2704983 | P109: 101.2264748 | Q109: 113.96146 | R109: 81.39427709 | S109: 91.41218113 | T109: 89.94561914 | U109: 82.04468753 | V109: 65.68277211 | W109: 69.29818691 | X109: 38.82124634 | Y109: 63.62932742 | Z109: 62.35044396 | AA109: 59.24986089 | AB109: 55.07390042 | AC109: 38.41977681 | AD109: 47.45102872 | AE109: 50.78358841 | AF109: 37.20310319 | AG109: 47.20925889 | AH109: 44.94015701 | AI109: 26.06212451 | AJ109: 19.41150589
C110: =IF( subgroup.idx="", "", INDEX(subgroupData.names,subgroup.idx) ) -> Age 1: 65+ | D110: 9 | E110: 1313 | F110: =IF( INDEX(attr.selection, attr.ordered), 100*attr.select.count*INDEX( output.array,subgroup.idx, attr.ordered), "" ) -> 133.4693725 | G110: 271.9796118 | H110: 237.7796521 | I110: 233.3128856 | J110: 174.0264316 | K110: 148.8228342 | L110: 159.7328269 | M110: 120.1760813 | N110: 122.9067417 | O110: 53.49199606 | P110: 99.41519729 | Q110: 153.358338 | R110: 106.9181861 | S110: 108.8937806 | T110: 127.6386594 | U110: 32.79136225 | V110: 88.14829991 | W110: 90.89437758 | X110: 24.967173 | Y110: 86.72698583 | Z110: 55.84155376 | AA110: 69.92079934 | AB110: 73.51601801 | AC110: 22.84255433 | AD110: 55.98258182 | AE110: 59.79165993 | AF110: 31.66938584 | AG110: 61.44668401 | AH110: 51.61698211 | AI110: 29.87515657 | AJ110: 12.04583053
C112: =IF( subgroup.idx="", "", INDEX(subgroupData.names,subgroup.idx) ) -> Age 2: 16-34 | D112: 10 | E112: =INDEX( subgroup.member.count.unweighted, subgroup.idx) -> 886 | F112: =IF( INDEX(attr.selection, attr.ordered), 100*attr.select.count*INDEX( output.array,subgroup.idx, attr.ordered), "" ) -> 292.2435722 | G112: 219.8816469 | H112: 209.4890192 | I112: 202.9476263 | J112: 171.9765378 | K112: 152.7213594 | L112: 109.4049734 | M112: 108.6183448 | N112: 100.8494711 | O112: 124.6577421 | P112: 109.3944916 | Q112: 74.12904006 | R112: 81.42060812 | S112: 73.64756489 | T112: 65.18345127 | U112: 97.70367101 | V112: 74.47765044 | W112: 66.46828538 | X112: 123.9679736 | Y112: 63.0514384 | Z112: 73.94733196 | AA112: 57.57863121 | AB112: 58.67707842 | AC112: 81.34276788 | AD112: 52.88329863 | AE112: 46.18678402 | AF112: 65.84237339 | AG112: 38.56010048 | AH112: 40.18721543 | AI112: 30.34931715 | AJ112: 32.21063352
C113: =IF( subgroup.idx="", "", INDEX(subgroupData.names,subgroup.idx) ) -> Age 2: 35-64 | D113: 11 | E113: =INDEX( subgroup.member.count.unweighted, subgroup.idx) -> 2379 | F113: =IF( INDEX(attr.selection, attr.ordered), 100*attr.select.count*INDEX( output.array,subgroup.idx, attr.ordered), "" ) -> 304.7216077 | G113: 249.6719268 | H113: 232.9629094 | I113: 230.940459 | J113: 175.4462994 | K113: 165.5585663 | L113: 106.7595134 | M113: 106.3295525 | N113: 101.719378 | O113: 124.7191318 | P113: 104.1661332 | Q113: 93.02108049 | R113: 79.6472865 | S113: 81.6681592 | T113: 76.61582737 | U113: 91.48568012 | V113: 66.45208441 | W113: 69.07943008 | X113: 66.49103459 | Y113: 63.64963391 | Z113: 66.84692027 | AA113: 59.07152895 | AB113: 55.60638422 | AC113: 51.04280208 | AD113: 48.42153909 | AE113: 47.49436653 | AF113: 45.59421385 | AG113: 42.05797655 | AH113: 41.83516794 | AI113: 27.08358116 | AJ113: 23.83982515
C114: =IF( subgroup.idx="", "", INDEX(subgroupData.names,subgroup.idx) ) -> Age 2: 65+ | D114: 12 | E114: =INDEX( subgroup.member.count.unweighted, subgroup.idx) -> 1313 | F114: =IF( INDEX(attr.selection, attr.ordered), 100*attr.select.count*INDEX( output.array,subgroup.idx, attr.ordered), "" ) -> 133.4693725 | G114: 271.9796118 | H114: 237.7796521 | I114: 233.3128856 | J114: 174.0264316 | K114: 148.8228342 | L114: 159.7328269 | M114: 120.1760813 | N114: 122.9067417 | O114: 53.49199606 | P114: 99.41519729 | Q114: 153.358338 | R114: 106.9181861 | S114: 108.8937806 | T114: 127.6386594 | U114: 32.79136225 | V114: 88.14829991 | W114: 90.89437758 | X114: 24.967173 | Y114: 86.72698583 | Z114: 55.84155376 | AA114: 69.92079934 | AB114: 73.51601801 | AC114: 22.84255433 | AD114: 55.98258182 | AE114: 59.79165993 | AF114: 31.66938584 | AG114: 61.44668401 | AH114: 51.61698211 | AI114: 29.87515657 | AJ114: 12.04583053
C116: =IF( subgroup.idx="", "", INDEX(subgroupData.names,subgroup.idx) ) -> Male: 16-34 | D116: 13 | E116: =INDEX( subgroup.member.count.unweighted, subgroup.idx) -> 319 | F116: =IF( INDEX(attr.selection, attr.ordered), 100*attr.select.count*INDEX( output.array,subgroup.idx, attr.ordered), "" ) -> 284.046962 | G116: 213.9010301 | H116: 204.3229951 | I116: 196.4840503 | J116: 159.6779373 | K116: 150.2261966 | L116: 106.880465 | M116: 107.8459114 | N116: 102.1180559 | O116: 121.7539986 | P116: 102.5930121 | Q116: 68.00125765 | R116: 80.21388349 | S116: 70.92425437 | T116: 64.96582804 | U116: 97.67986929 | V116: 73.86345985 | W116: 68.79491873 | X116: 156.2886443 | Y116: 66.23118296 | Z116: 77.41177376 | AA116: 59.8068966 | AB116: 61.32715066 | AC116: 92.60061672 | AD116: 53.55113615 | AE116: 45.50629856 | AF116: 70.50013732 | AG116: 37.65815242 | AH116: 38.66850203 | AI116: 31.4124562 | AJ116: 34.74296641
C117: =IF( subgroup.idx="", "", INDEX(subgroupData.names,subgroup.idx) ) -> Male: 35-64 | D117: 14 | E117: 1187 | F117: =IF( INDEX(attr.selection, attr.ordered), 100*attr.select.count*INDEX( output.array,subgroup.idx, attr.ordered), "" ) -> 296.7123935 | G117: 244.231582 | H117: 229.6078423 | I117: 229.0835984 | J117: 173.6730399 | K117: 165.7753362 | L117: 109.7884439 | M117: 107.2306102 | N117: 102.3133882 | O117: 119.2926045 | P117: 104.6211042 | Q117: 77.9379902 | R117: 81.16595756 | S117: 74.53454509 | T117: 70.56502043 | U117: 89.06538466 | V117: 69.2880094 | W117: 72.20535897 | X117: 88.28252614 | Y117: 67.61736433 | Z117: 72.13601849 | AA117: 61.13820699 | AB117: 58.03556828 | AC117: 58.87043764 | AD117: 49.58137357 | AE117: 44.95261699 | AF117: 51.09358791 | AG117: 38.76935017 | AH117: 38.67042541 | AI117: 28.17140664 | AJ117: 25.58890787
C118: =IF( subgroup.idx="", "", INDEX(subgroupData.names,subgroup.idx) ) -> Male: 65+ | D118: 15 | E118: 722 | F118: =IF( INDEX(attr.selection, attr.ordered), 100*attr.select.count*INDEX( output.array,subgroup.idx, attr.ordered), "" ) -> 136.6418025 | G118: 275.4535344 | H118: 242.5893368 | I118: 243.9442061 | J118: 172.0442392 | K118: 153.8134131 | L118: 159.0107882 | M118: 119.6909554 | N118: 122.7684596 | O118: 52.75963087 | P118: 98.02934611 | Q118: 131.5404015 | R118: 106.2620187 | S118: 98.43616211 | T118: 118.1022638 | U118: 32.93131557 | V118: 87.72668599 | W118: 97.5590694 | X118: 29.76227186 | Y118: 93.08135968 | Z118: 62.37963241 | AA118: 73.94655625 | AB118: 76.0318161 | AC118: 24.85607846 | AD118: 55.63906976 | AE118: 55.3460703 | AF118: 33.4227439 | AG118: 56.34565635 | AH118: 47.20543387 | AI118: 29.98800665 | AJ118: 12.69167514
C119: =IF( subgroup.idx="", "", INDEX(subgroupData.names,subgroup.idx) ) -> Female: 16-34 | D119: 16 | E119: 567 | F119: =IF( INDEX(attr.selection, attr.ordered), 100*attr.select.count*INDEX( output.array,subgroup.idx, attr.ordered), "" ) -> 299.9380973 | G119: 225.4959198 | H119: 214.3385974 | I119: 209.0152746 | J119: 183.521785 | K119: 155.0636806 | L119: 111.7748424 | M119: 109.3434626 | N119: 99.65859371 | O119: 127.3836161 | P119: 115.7793451 | Q119: 79.8814639 | R119: 82.55341459 | S119: 76.20405846 | T119: 65.38774394 | U119: 97.72601475 | V119: 75.05421866 | W119: 64.28417045 | X119: 93.62711223 | Y119: 60.06646975 | Z119: 70.69510525 | AA119: 55.48685869 | AB119: 56.18933689 | AC119: 70.77452089 | AD119: 52.25636964 | AE119: 46.8255862 | AF119: 61.46992174 | AG119: 39.40679952 | AH119: 41.61289973 | AI119: 29.35130091 | AJ119: 29.83341921
C120: =IF( subgroup.idx="", "", INDEX(subgroupData.names,subgroup.idx) ) -> Female: 35-64 | D120: 17 | E120: 1192 | F120: =IF( INDEX(attr.selection, attr.ordered), 100*attr.select.count*INDEX( output.array,subgroup.idx, attr.ordered), "" ) -> 312.5609206 | G120: 254.9968643 | H120: 236.2468049 | I120: 232.7579297 | J120: 177.1819424 | K120: 165.3463948 | L120: 103.7948363 | M120: 105.4476092 | N120: 101.1379686 | O120: 130.0305449 | P120: 103.7208137 | Q120: 107.7842099 | R120: 78.16083134 | S120: 88.65044638 | T120: 82.53827721 | U120: 93.85463331 | V120: 63.67631852 | W120: 66.01981219 | X120: 45.16181072 | Y120: 59.76607182 | Z120: 61.67002084 | AA120: 57.04869181 | AB120: 53.22873098 | AC120: 43.38121586 | AD120: 47.28630844 | AE120: 49.98219737 | AF120: 40.21149921 | AG120: 45.27684057 | AH120: 44.93277609 | AI120: 26.01883195 | AJ120: 22.12784611
C121: =IF( subgroup.idx="", "", INDEX(subgroupData.names,subgroup.idx) ) -> Female: 65+ | D121: 18 | E121: 591 | F121: =IF( INDEX(attr.selection, attr.ordered), 100*attr.select.count*INDEX( output.array,subgroup.idx, attr.ordered), "" ) -> 130.3892973 | G121: 268.6068212 | H121: 233.1099856 | I121: 222.991061 | J121: 175.9509189 | K121: 143.9775396 | L121: 160.4338458 | M121: 120.6470844 | N121: 123.0409981 | O121: 54.20304083 | P121: 100.760704 | Q121: 174.5411169 | R121: 107.5552513 | S121: 119.0469598 | T121: 136.8974342 | U121: 32.65548321 | V121: 88.55763993 | W121: 84.42370642 | X121: 20.31166772 | Y121: 80.55759874 | Z121: 49.49380984 | AA121: 66.01223916 | AB121: 71.07345914 | AC121: 20.88764735 | AD121: 56.31609365 | AE121: 64.10783079 | AF121: 29.96707106 | AG121: 66.39921198 | AH121: 55.90010258 | AI121: 29.76559176 | AJ121: 11.41878757
C123: =IF( subgroup.idx="", "", INDEX(subgroupData.names,subgroup.idx) ) -> Social Grade: ABC1 | D123: 19 | E123: =INDEX( subgroup.member.count.unweighted, subgroup.idx) -> 2882 | F123: =IF( INDEX(attr.selection, attr.ordered), 100*attr.select.count*INDEX( output.array,subgroup.idx, attr.ordered), "" ) -> 263.2482802 | G123: 253.700759 | H123: 234.3370144 | I123: 233.5679925 | J123: 158.5692796 | K123: 162.3972098 | L123: 127.4941366 | M123: 112.3536188 | N123: 102.772574 | O123: 109.0456373 | P123: 95.70567025 | Q123: 89.72615659 | R123: 90.16603808 | S123: 79.00061888 | T123: 79.28712735 | U123: 82.07179503 | V123: 76.78094329 | W123: 72.68322792 | X123: 79.75159302 | Y123: 68.85190214 | Z123: 69.19536998 | AA123: 60.59568557 | AB123: 59.52266479 | AC123: 56.00282105 | AD123: 52.01508071 | AE123: 46.88718051 | AF123: 50.40213576 | AG123: 42.01102837 | AH123: 39.98271318 | AI123: 28.01468752 | AJ123: 23.8590578
C124: =IF( subgroup.idx="", "", INDEX(subgroupData.names,subgroup.idx) ) -> Social Grade: C2DE | D124: 20 | E124: =INDEX( subgroup.member.count.unweighted, subgroup.idx) -> 1696 | F124: =IF( INDEX(attr.selection, attr.ordered), 100*attr.select.count*INDEX( output.array,subgroup.idx, attr.ordered), "" ) -> 251.8433749 | G124: 238.5167805 | H124: 219.2377349 | I124: 211.4766208 | J124: 193.1290081 | K124: 152.0055342 | L124: 112.6781932 | M124: 108.139879 | N124: 111.7369173 | O124: 104.0170186 | P124: 115.1455798 | Q124: 118.9464033 | R124: 83.14290789 | S124: 95.12784167 | T124: 94.71202012 | U124: 74.0761778 | V124: 70.9869632 | W124: 75.23318393 | X124: 63.11902479 | Y124: 69.8170905 | Z124: 62.27401525 | AA124: 62.33815784 | AB124: 62.76030303 | AC124: 48.220217 | AD124: 51.05459066 | AE124: 54.29591635 | AF124: 44.63277176 | AG124: 50.76578972 | AH124: 48.53986369 | AI124: 29.55607193 | AJ124: 22.47404815
C126: =IF( subgroup.idx="", "", INDEX(subgroupData.names,subgroup.idx) ) -> Bus User type: Daily | D126: 21 | E126: =INDEX( subgroup.member.count.unweighted, subgroup.idx) -> 465 | F126: =IF( INDEX(attr.selection, attr.ordered), 100*attr.select.count*INDEX( output.array,subgroup.idx, attr.ordered), "" ) -> 268.0113782 | G126: 261.6345412 | H126: 242.0050185 | I126: 245.860913 | J126: 155.4609026 | K126: 165.9489739 | L126: 110.4588742 | M126: 110.6546984 | N126: 102.1044384 | O126: 106.4362435 | P126: 94.58430866 | Q126: 84.18898624 | R126: 82.29403615 | S126: 78.74579853 | T126: 76.69420109 | U126: 78.50548188 | V126: 70.11288736 | W126: 69.06094395 | X126: 94.75987588 | Y126: 66.01465545 | Z126: 75.59919538 | AA126: 60.03035203 | AB126: 58.48836441 | AC126: 57.99532388 | AD126: 51.20865106 | AE126: 47.34141824 | AF126: 52.53937209 | AG126: 40.37137133 | AH126: 39.57612445 | AI126: 28.54988051 | AJ126: 24.76278931
C127: =IF( subgroup.idx="", "", INDEX(subgroupData.names,subgroup.idx) ) -> Bus User type: Weekly | D127: 22 | E127: =INDEX( subgroup.member.count.unweighted, subgroup.idx) -> 1951 | F127: =IF( INDEX(attr.selection, attr.ordered), 100*attr.select.count*INDEX( output.array,subgroup.idx, attr.ordered), "" ) -> 257.1675428 | G127: 246.0108445 | H127: 226.3165747 | I127: 220.5139163 | J127: 167.0108975 | K127: 156.516744 | L127: 120.2550098 | M127: 109.9770682 | N127: 108.140763 | O127: 108.2291362 | P127: 100.0488083 | Q127: 107.0791979 | R127: 86.68410403 | S127: 88.45697646 | T127: 90.03540507 | U127: 79.94878696 | V127: 73.24545049 | W127: 75.45326738 | X127: 72.12577131 | Y127: 71.36603213 | Z127: 64.83788057 | AA127: 62.5194956 | AB127: 62.26910449 | AC127: 51.77481762 | AD127: 51.49775112 | AE127: 51.2193356 | AF127: 46.69894432 | AG127: 47.54484241 | AH127: 44.87778151 | AI127: 28.89463192 | AJ127: 23.28311784
C128: =IF( subgroup.idx="", "", INDEX(subgroupData.names,subgroup.idx) ) -> Bus User type: Monthly | D128: 23 | E128: =INDEX( subgroup.member.count.unweighted, subgroup.idx) -> 1303 | F128: =IF( INDEX(attr.selection, attr.ordered), 100*attr.select.count*INDEX( output.array,subgroup.idx, attr.ordered), "" ) -> 243.9329031 | G128: 248.3925982 | H128: 227.5045993 | I128: 224.9148258 | J128: 179.3692884 | K128: 156.284179 | L128: 124.5058891 | M128: 111.2365574 | N128: 106.985891 | O128: 99.33626869 | P128: 107.7577646 | Q128: 110.1676561 | R128: 88.77931402 | S128: 88.73653782 | T128: 89.82958862 | U128: 72.34777627 | V128: 76.27315657 | W128: 73.13959435 | X128: 71.49621944 | Y128: 68.88454805 | Z128: 64.80369474 | AA128: 60.43151126 | AB128: 60.93796938 | AC128: 49.8215969 | AD128: 52.00772029 | AE128: 51.28498139 | AF128: 47.57703172 | AG128: 47.59250049 | AH128: 44.80686302 | AI128: 28.74747283 | AJ128: 22.11350224
C129: =IF( subgroup.idx="", "", INDEX(subgroupData.names,subgroup.idx) ) -> Bus User type: Every Three Months | D129: 24 | E129: =INDEX( subgroup.member.count.unweighted, subgroup.idx) -> 859 | F129: =IF( INDEX(attr.selection, attr.ordered), 100*attr.select.count*INDEX( output.array,subgroup.idx, attr.ordered), "" ) -> 275.4208871 | G129: 238.5575636 | H129: 222.479249 | I129: 216.6139441 | J129: 192.3612621 | K129: 158.0191793 | L129: 122.4239599 | M129: 110.2931819 | N129: 106.1286383 | O129: 114.5679794 | P129: 114.7610658 | Q129: 93.08957806 | R129: 87.72080531 | S129: 81.84413055 | T129: 77.72245264 | U129: 84.08078126 | V129: 75.40567172 | W129: 73.82346768 | X129: 61.49904562 | Y129: 67.03399738 | Z129: 65.52563526 | AA129: 60.95808229 | AB129: 59.52945636 | AC129: 55.02039195 | AD129: 51.36076102 | AE129: 48.01803805 | AF129: 48.0290958 | AG129: 43.05357844 | AH129: 42.40605796 | AI129: 28.32185127 | AJ129: 23.93021088
C131: =IF( subgroup.idx="", "", INDEX(subgroupData.names,subgroup.idx) ) -> PTE - Merserside | D131: 25 | E131: =INDEX( subgroup.member.count.unweighted, subgroup.idx) -> 424 | F131: =IF( INDEX(attr.selection, attr.ordered), 100*attr.select.count*INDEX( output.array,subgroup.idx, attr.ordered), "" ) -> 285.0861964 | G131: 215.2259747 | H131: 201.5829299 | I131: 193.1175153 | J131: 171.2018098 | K131: 148.5049039 | L131: 131.4029831 | M131: 109.9734463 | N131: 105.7834225 | O131: 126.5531966 | P131: 106.8525875 | Q131: 91.88293774 | R131: 92.07629244 | S131: 81.94361551 | T131: 75.70984938 | U131: 96.11771346 | V131: 86.25890754 | W131: 71.23756864 | X131: 89.44869114 | Y131: 67.6043985 | Z131: 63.00239166 | AA131: 59.03593389 | AB131: 62.67400501 | AC131: 61.2216566 | AD131: 55.14963995 | AE131: 49.55336324 | AF131: 55.70434656 | AG131: 44.57239139 | AH131: 43.95177689 | AI131: 30.80665119 | AJ131: 26.76290343
C132: =IF( subgroup.idx="", "", INDEX(subgroupData.names,subgroup.idx) ) -> PTE - Grt Manchester | D132: 26 | E132: 433 | F132: =IF( INDEX(attr.selection, attr.ordered), 100*attr.select.count*INDEX( output.array,subgroup.idx, attr.ordered), "" ) -> 268.6375195 | G132: 233.288221 | H132: 217.5190538 | I132: 205.1829381 | J132: 197.3627596 | K132: 153.295656 | L132: 117.3542108 | M132: 111.4175031 | N132: 107.1796878 | O132: 111.4454173 | P132: 121.0420083 | Q132: 90.96303198 | R132: 85.9711399 | S132: 82.51774218 | T132: 74.29438272 | U132: 83.38770871 | V132: 75.27209846 | W132: 70.98780655 | X132: 77.9554893 | Y132: 64.82539422 | Z132: 66.86298001 | AA132: 60.28748392 | AB132: 60.29437901 | AC132: 64.30790393 | AD132: 52.84122289 | AE132: 49.40873396 | AF132: 52.32921832 | AG132: 42.88438157 | AH132: 43.43250704 | AI132: 30.08727247 | AJ132: 27.3641476
C133: =IF( subgroup.idx="", "", INDEX(subgroupData.names,subgroup.idx) ) -> PTE - South Yorkshire | D133: 27 | E133: 422 | F133: =IF( INDEX(attr.selection, attr.ordered), 100*attr.select.count*INDEX( output.array,subgroup.idx, attr.ordered), "" ) -> 290.4577805 | G133: 249.3154746 | H133: 232.9885141 | I133: 233.3783599 | J133: 179.5392448 | K133: 163.6695538 | L133: 108.6821032 | M133: 106.2827559 | N133: 102.0272261 | O133: 117.4217447 | P133: 105.9325806 | Q133: 88.21208983 | R133: 80.31678274 | S133: 79.09223749 | T133: 74.76215145 | U133: 86.0038531 | V133: 69.33042033 | W133: 69.19238661 | X133: 75.4397805 | Y133: 63.89176805 | Z133: 70.77604359 | AA133: 59.44170189 | AB133: 57.17732996 | AC133: 56.70885527 | AD133: 49.37454263 | AE133: 46.83993651 | AF133: 49.60422121 | AG133: 41.21885032 | AH133: 40.68331441 | AI133: 27.8591834 | AJ133: 24.37921241
C134: =IF( subgroup.idx="", "", INDEX(subgroupData.names,subgroup.idx) ) -> PTE - Tyne and Wear | D134: 28 | E134: 429 | F134: =IF( INDEX(attr.selection, attr.ordered), 100*attr.select.count*INDEX( output.array,subgroup.idx, attr.ordered), "" ) -> 287.3879967 | G134: 232.991752 | H134: 217.8378399 | I134: 214.637287 | J134: 168.4953172 | K134: 156.9039914 | L134: 106.7265182 | M134: 105.834555 | N134: 104.2116779 | O134: 118.3975218 | P134: 105.1035621 | Q134: 91.14294849 | R134: 79.5762466 | S134: 81.67474788 | T134: 81.42231339 | U134: 89.28092873 | V134: 68.97652383 | W134: 73.99094395 | X134: 100.2484894 | Y134: 72.20469294 | Z134: 68.25195149 | AA134: 61.21760143 | AB134: 60.92910055 | AC134: 59.60634802 | AD134: 50.14245407 | AE134: 48.73030577 | AF134: 53.17639915 | AG134: 43.31313008 | AH134: 42.23682853 | AI134: 29.13615768 | AJ134: 26.2138687
C135: =IF( subgroup.idx="", "", INDEX(subgroupData.names,subgroup.idx) ) -> PTE - West Mids Metropolitan Area | D135: 29 | E135: 426 | F135: =IF( INDEX(attr.selection, attr.ordered), 100*attr.select.count*INDEX( output.array,subgroup.idx, attr.ordered), "" ) -> 255.9791218 | G135: 228.8541424 | H135: 211.1919173 | I135: 203.7405041 | J135: 221.2867899 | K135: 150.0830398 | L135: 103.2471566 | M135: 106.1733834 | N135: 113.6262817 | O135: 101.382746 | P135: 132.0941435 | Q135: 100.4665124 | R135: 78.58435458 | S135: 88.40484569 | T135: 83.40076761 | U135: 76.29823263 | V135: 68.04270989 | W135: 74.03356692 | X135: 94.96834227 | Y135: 68.92529194 | Z135: 65.94984119 | AA135: 61.08615166 | AB135: 64.19650663 | AC135: 51.13761586 | AD135: 50.49940765 | AE135: 52.24128482 | AF135: 46.55845614 | AG135: 46.48041797 | AH135: 45.47870693 | AI135: 31.50835671 | AJ135: 24.079404
C136: =IF( subgroup.idx="", "", INDEX(subgroupData.names,subgroup.idx) ) -> PTE - West Yorkshire | D136: 30 | E136: 429 | F136: =IF( INDEX(attr.selection, attr.ordered), 100*attr.select.count*INDEX( output.array,subgroup.idx, attr.ordered), "" ) -> 286.6509744 | G136: 249.0751529 | H136: 231.0089821 | I136: 233.0301991 | J136: 169.0093019 | K136: 161.6276091 | L136: 115.419288 | M136: 107.5829151 | N136: 100.3574915 | O136: 119.8179043 | P136: 101.984 | Q136: 97.57173597 | R136: 83.82255462 | S136: 83.32486624 | T136: 77.84389408 | U136: 88.45549995 | V136: 72.92006619 | W136: 64.13139937 | X136: 81.90657234 | Y136: 60.17831302 | Z136: 65.78194563 | AA136: 55.92216945 | AB136: 54.92749946 | AC136: 53.14827638 | AD136: 50.34096404 | AE136: 48.72331148 | AF136: 47.72266908 | AG136: 43.40554101 | AH136: 42.91615936 | AI136: 27.76913178 | AJ136: 23.62361224
C137: =IF( subgroup.idx="", "", INDEX(subgroupData.names,subgroup.idx) ) -> PTE - Bristol Area | D137: 31 | E137: 431 | F137: =IF( INDEX(attr.selection, attr.ordered), 100*attr.select.count*INDEX( output.array,subgroup.idx, attr.ordered), "" ) -> 258.8248358 | G137: 270.3192218 | H137: 249.8269636 | I137: 253.7174298 | J137: 140.4551795 | K137: 168.9329876 | L137: 132.901617 | M137: 116.0865799 | N137: 94.98105424 | O137: 104.4877191 | P137: 87.03882907 | Q137: 82.32807877 | R137: 92.58510805 | S137: 75.49094465 | T137: 70.00653411 | U137: 77.26306105 | V137: 78.53518575 | W137: 61.9311755 | X137: 96.31695812 | Y137: 57.64972395 | Z137: 71.28561153 | AA137: 55.02416556 | AB137: 52.45009619 | AC137: 65.78921913 | AD137: 52.55154781 | AE137: 45.28729416 | AF137: 58.39688082 | AG137: 38.49497467 | AH137: 38.36436012 | AI137: 26.75290403 | AJ137: 25.92375874
C139: =IF( subgroup.idx="", "", INDEX(subgroupData.names,subgroup.idx) ) -> Bus company used: Arriva Bus | D139: 32 | E139: 1094 | F139: =IF( INDEX(attr.selection, attr.ordered), 100*attr.select.count*INDEX( output.array,subgroup.idx, attr.ordered), "" ) -> 276.2468204 | G139: 243.13847 | H139: 225.3389014 | I139: 221.3637266 | J139: 171.9069539 | K139: 160.1247076 | L139: 123.6595264 | M139: 110.4443272 | N139: 105.3389442 | O139: 114.1643209 | P139: 103.5950365 | Q139: 104.2132139 | R139: 88.32228219 | S139: 86.70912119 | T139: 85.77921267 | U139: 82.4544598 | V139: 75.35226919 | W139: 69.74361915 | X139: 66.91160136 | Y139: 66.36386301 | Z139: 64.18864195 | AA139: 58.7675781 | AB139: 59.51675817 | AC139: 47.40676594 | AD139: 51.7110063 | AE139: 50.42387917 | AF139: 45.75755225 | AG139: 46.22525678 | AH139: 43.97808494 | AI139: 28.67781664 | AJ139: 22.1752822
C140: =IF( subgroup.idx="", "", INDEX(subgroupData.names,subgroup.idx) ) -> Bus company used: First Bus | D140: 33 | E140: =INDEX( subgroup.member.count.unweighted, subgroup.idx) -> 1299 | F140: =IF( INDEX(attr.selection, attr.ordered), 100*attr.select.count*INDEX( output.array,subgroup.idx, attr.ordered), "" ) -> 268.0513264 | G140: 262.2269166 | H140: 241.6804253 | I140: 242.1299577 | J140: 170.3073367 | K140: 164.361582 | L140: 119.4813225 | M140: 111.6468202 | N140: 101.3276912 | O140: 108.1194488 | P140: 102.2044236 | Q140: 93.27245778 | R140: 86.22646477 | S140: 81.71910904 | T140: 76.73613838 | U140: 79.18867098 | V140: 72.46586442 | W140: 67.54078264 | X140: 70.5551313 | Y140: 61.80990384 | Z140: 67.73979687 | AA140: 57.83364083 | AB140: 55.91815631 | AC140: 54.84748783 | AD140: 50.69920049 | AE140: 47.94498423 | AF140: 49.13937 | AG140: 42.0962639 | AH140: 41.6544507 | AI140: 27.3421933 | AJ140: 23.73268146
C141: =IF( subgroup.idx="", "", INDEX(subgroupData.names,subgroup.idx) ) -> Bus company used: National Express | D141: 34 | E141: 283 | F141: =IF( INDEX(attr.selection, attr.ordered), 100*attr.select.count*INDEX( output.array,subgroup.idx, attr.ordered), "" ) -> 249.3456611 | G141: 229.4798145 | H141: 212.3603096 | I141: 209.3586348 | J141: 205.5121787 | K141: 150.7535646 | L141: 100.6935895 | M141: 105.9342894 | N141: 114.2021579 | O141: 100.173627 | P141: 124.2814439 | Q141: 90.90882381 | R141: 77.72438614 | S141: 84.98504496 | T141: 81.77529694 | U141: 76.7874092 | V141: 68.96781008 | W141: 77.97477751 | X141: 106.6177866 | Y141: 73.97325691 | Z141: 70.74861191 | AA141: 63.7195968 | AB141: 67.28174393 | AC141: 56.10911234 | AD141: 51.46827717 | AE141: 51.30711709 | AF141: 50.55865109 | AG141: 45.11469927 | AH141: 44.06867478 | AI141: 32.19990402 | AJ141: 25.61374841
C142: =IF( subgroup.idx="", "", INDEX(subgroupData.names,subgroup.idx) ) -> Bus company used: Stagecoach | D142: 35 | E142: 997 | F142: =IF( INDEX(attr.selection, attr.ordered), 100*attr.select.count*INDEX( output.array,subgroup.idx, attr.ordered), "" ) -> 262.1980039 | G142: 238.8802717 | H142: 221.2843182 | I142: 212.6542517 | J142: 180.8108995 | K142: 154.2623187 | L142: 114.6650199 | M142: 109.0855905 | N142: 109.2256601 | O142: 109.0612813 | P142: 109.0471735 | Q142: 103.3097965 | R142: 84.20317646 | S142: 86.64451114 | T142: 87.15439309 | U142: 80.30755433 | V142: 71.57417219 | W142: 77.39172274 | X142: 72.73678163 | Y142: 72.34032897 | Z142: 66.97502182 | AA142: 63.86879389 | AB142: 62.99118516 | AC142: 55.2074335 | AD142: 51.37467504 | AE142: 50.58558906 | AF142: 47.38697275 | AG142: 46.53243965 | AH142: 44.54826131 | AI142: 29.28983759 | AJ142: 24.40256412
C143: =IF( subgroup.idx="", "", INDEX(subgroupData.names,subgroup.idx) ) -> Bus company used: Go Ahead | D143: 36 | E143: 173 | F143: =IF( INDEX(attr.selection, attr.ordered), 100*attr.select.count*INDEX( output.array,subgroup.idx, attr.ordered), "" ) -> 206.6916553 | G143: 250.0149379 | H143: 224.3093515 | I143: 217.4864185 | J143: 158.5543622 | K143: 149.9135455 | L143: 141.8064597 | M143: 115.9765115 | N143: 110.3439793 | O143: 90.82277422 | P143: 96.44100646 | Q143: 123.605213 | R143: 98.07722627 | S143: 96.28703292 | T143: 103.2137724 | U143: 66.76045402 | V143: 84.55758076 | W143: 75.66341354 | X143: 76.30372408 | Y143: 73.79327095 | Z143: 58.26670298 | AA143: 61.38231261 | AB143: 64.27535405 | AC143: 47.8422896 | AD143: 54.99850132 | AE143: 54.90330006 | AF143: 47.57830123 | AG143: 52.53241715 | AH143: 47.17388114 | AI143: 29.47575383 | AJ143: 20.94849604
C144: =IF( subgroup.idx="", "", INDEX(subgroupData.names,subgroup.idx) ) -> Bus company used: Other bus company | D144: 37 | E144: 489 | F144: =IF( INDEX(attr.selection, attr.ordered), 100*attr.select.count*INDEX( output.array,subgroup.idx, attr.ordered), "" ) -> 249.9855832 | G144: 249.4117771 | H144: 229.237383 | I144: 227.4913008 | J144: 161.5979831 | K144: 157.8126738 | L144: 122.9356398 | M144: 109.7285987 | N144: 105.6385145 | O144: 106.8161133 | P144: 94.41469768 | Q144: 111.3101328 | R144: 87.4008258 | S144: 87.84501283 | T144: 92.56858643 | U144: 80.29053767 | V144: 73.77520587 | W144: 76.30201355 | X144: 70.79802165 | Y144: 71.70848062 | Z144: 67.03408273 | AA144: 62.94544753 | AB144: 60.05900295 | AC144: 52.41906298 | AD144: 50.60547346 | AE144: 49.98111108 | AF144: 49.11351905 | AG144: 47.22380617 | AH144: 43.94981038 | AI144: 27.26904559 | AJ144: 22.33055586
C146: =IF( subgroup.idx="", "", INDEX(subgroupData.names,subgroup.idx) ) -> Typical Journey Purpose: Commuting work | D146: 38 | E146: 1226 | F146: =IF( INDEX(attr.selection, attr.ordered), 100*attr.select.count*INDEX( output.array,subgroup.idx, attr.ordered), "" ) -> 294.3982553 | G146: 250.5957226 | H146: 235.2477415 | I146: 234.140991 | J146: 155.3467571 | K146: 165.7451006 | L146: 114.7278875 | M146: 111.1169974 | N146: 97.27495887 | O146: 119.7326577 | P146: 96.6042282 | Q146: 78.48705011 | R146: 84.16713634 | S146: 74.63683786 | T146: 68.13740053 | U146: 89.79440361 | V146: 72.78787805 | W146: 63.76112237 | X146: 96.85486152 | Y146: 59.93488629 | Z146: 73.48919735 | AA146: 56.54783757 | AB146: 54.11144218 | AC146: 66.39105125 | AD146: 51.47025784 | AE146: 45.3488553 | AF146: 57.01396017 | AG146: 38.06240803 | AH146: 38.71713489 | AI146: 27.80906676 | AJ146: 27.54591426
C147: =IF( subgroup.idx="", "", INDEX(subgroupData.names,subgroup.idx) ) -> Typical Journey Purpose: Communting education | D147: 39 | E147: 275 | F147: =IF( INDEX(attr.selection, attr.ordered), 100*attr.select.count*INDEX( output.array,subgroup.idx, attr.ordered), "" ) -> 291.0270857 | G147: 230.907045 | H147: 218.4703714 | I147: 214.0660091 | J147: 153.8849128 | K147: 158.1092933 | L147: 107.5217446 | M147: 109.4715049 | N147: 101.3190206 | O147: 121.0569501 | P147: 97.10771534 | Q147: 75.64543491 | R147: 80.80869868 | S147: 73.52143783 | T147: 69.94572669 | U147: 94.91302496 | V147: 71.28436831 | W147: 69.25813502 | X147: 118.1703572 | Y147: 67.08548958 | Z147: 77.65250904 | AA147: 60.08143778 | AB147: 60.14762297 | AC147: 78.79381718 | AD147: 52.41280515 | AE147: 45.91365098 | AF147: 62.5696111 | AG147: 38.68319327 | AH147: 38.96705986 | AI147: 29.89519279 | AJ147: 31.30877394
C148: =IF( subgroup.idx="", "", INDEX(subgroupData.names,subgroup.idx) ) -> Typical Journey Purpose: NET: Commuting | D148: 40 | E148: =INDEX( subgroup.member.count.unweighted, subgroup.idx) -> 1396 | F148: =IF( INDEX(attr.selection, attr.ordered), 100*attr.select.count*INDEX( output.array,subgroup.idx, attr.ordered), "" ) -> 292.3639283 | G148: 248.1172165 | H148: 232.9994869 | I148: 231.7396489 | J148: 156.3695167 | K148: 164.6961646 | L148: 112.9742566 | M148: 110.7378776 | N148: 98.18164673 | O148: 119.0208122 | P148: 97.36661312 | Q148: 78.07672365 | R148: 83.330526 | S148: 74.56257171 | T148: 68.47287481 | U148: 90.0341608 | V148: 72.17345349 | W148: 64.89165625 | X148: 101.5637545 | Y148: 61.37339073 | Z148: 74.36020423 | AA148: 57.25643883 | AB148: 55.16312055 | AC148: 66.78691526 | AD148: 51.5027322 | AE148: 45.52643902 | AF148: 57.33595685 | AG148: 38.20268809 | AH148: 38.78838854 | AI148: 28.18823873 | AJ148: 27.84259767
C149: =IF( subgroup.idx="", "", INDEX(subgroupData.names,subgroup.idx) ) -> Typical Journey Purpose: Shopping trips | D149: 41 | E149: 3248 | F149: =IF( INDEX(attr.selection, attr.ordered), 100*attr.select.count*INDEX( output.array,subgroup.idx, attr.ordered), "" ) -> 249.3645218 | G149: 246.6725261 | H149: 226.0630042 | I149: 221.2426564 | J149: 177.5320331 | K149: 155.7158312 | L149: 121.290459 | M149: 109.8789662 | N149: 109.808022 | O149: 103.7230953 | P149: 105.5881311 | Q149: 112.7455445 | R149: 87.26384497 | S149: 91.06174181 | T149: 92.69576585 | U149: 75.10518046 | V149: 73.52093702 | W149: 76.25277621 | X149: 63.08695924 | Y149: 71.26767752 | Z149: 63.35140472 | AA149: 62.8131049 | AB149: 62.79698487 | AC149: 47.87253984 | AD149: 51.46325165 | AE149: 52.23378339 | AF149: 43.64694011 | AG149: 48.98667976 | AH149: 46.05694403 | AI149: 28.92590516 | AJ149: 21.97278745
C150: =IF( subgroup.idx="", "", INDEX(subgroupData.names,subgroup.idx) ) -> Typical Journey Purpose: Socialising / relatives | D150: 42 | E150: 2370 | F150: =IF( INDEX(attr.selection, attr.ordered), 100*attr.select.count*INDEX( output.array,subgroup.idx, attr.ordered), "" ) -> 269.3776511 | G150: 254.4616916 | H150: 235.1606689 | I150: 232.0849121 | J150: 166.9702949 | K150: 163.0401159 | L150: 122.9465737 | M150: 112.4201827 | N150: 102.3927452 | O150: 110.429555 | P150: 100.1950181 | Q150: 98.81019486 | R150: 88.23857954 | S150: 84.02144624 | T150: 80.9780948 | U150: 80.88739857 | V150: 74.62063873 | W150: 68.23442307 | X150: 70.04771473 | Y150: 64.01209531 | Z150: 67.93572768 | AA150: 58.13310822 | AB150: 56.56679511 | AC150: 51.66388171 | AD150: 51.50690753 | AE150: 48.98297928 | AF150: 49.1717957 | AG150: 43.79286028 | AH150: 42.44274142 | AI150: 27.59079763 | AJ150: 22.88241043
C151: =IF( subgroup.idx="", "", INDEX(subgroupData.names,subgroup.idx) ) -> Typical Journey Purpose: Other | D151: 43 | E151: 1829 | F151: =IF( INDEX(attr.selection, attr.ordered), 100*attr.select.count*INDEX( output.array,subgroup.idx, attr.ordered), "" ) -> 240.9316592 | G151: 260.1449286 | H151: 236.1572357 | I151: 232.9972333 | J151: 173.6045384 | K151: 158.4868215 | L151: 133.8052309 | M151: 113.4353835 | N151: 106.9998507 | O151: 101.2201517 | P151: 101.7096112 | Q151: 116.1487592 | R151: 93.34628935 | S151: 91.70532193 | T151: 94.45725678 | U151: 72.41271272 | V151: 78.39636596 | W151: 73.96121277 | X151: 42.58501938 | Y151: 68.5877864 | Z151: 61.11183654 | AA151: 60.6194743 | AB151: 59.68621236 | AC151: 40.83058347 | AD151: 51.87619628 | AE151: 51.69296016 | AF151: 42.29870577 | AG151: 48.8238659 | AH151: 45.27541054 | AI151: 27.29634052 | AJ151: 19.39504503
C152: =IF( subgroup.idx="", "", INDEX(subgroupData.names,subgroup.idx) ) -> Typical Journey Purpose: NET: Non Commuter | D152: 44 | E152: 4176 | F152: =IF( INDEX(attr.selection, attr.ordered), 100*attr.select.count*INDEX( output.array,subgroup.idx, attr.ordered), "" ) -> 255.98097 | G152: 248.6891211 | H152: 228.6238096 | I152: 224.9157106 | J152: 174.9082248 | K152: 157.7364691 | L152: 121.5806142 | M152: 110.4423451 | N152: 107.2226873 | O152: 106.0564243 | P152: 104.3331526 | Q152: 106.5410395 | R152: 87.34319504 | S152: 87.77786961 | T152: 88.45611364 | U152: 77.55988005 | V152: 74.03486119 | W152: 74.30657827 | X152: 65.77844893 | Y152: 69.44419188 | Z152: 65.15606209 | AA152: 61.56641144 | AB152: 60.9990537 | AC152: 50.06457441 | AD152: 51.39085433 | AE152: 50.69861715 | AF152: 46.25905884 | AG152: 46.81071785 | AH152: 44.38144712 | AI152: 28.45251116 | AJ152: 22.4889852
C154: =IF( subgroup.idx="", "", INDEX(subgroupData.names,subgroup.idx) ) -> Typical journey length: 10 mins or less | D154: 45 | E154: 462 | F154: =IF( INDEX(attr.selection, attr.ordered), 100*attr.select.count*INDEX( output.array,subgroup.idx, attr.ordered), "" ) -> 238.8520386 | G154: 245.1330772 | H154: 224.1296041 | I154: 212.1334755 | J154: 175.4085455 | K154: 153.4582149 | L154: 127.1955003 | M154: 114.2803126 | N154: 110.0277286 | O154: 100.4531633 | P154: 106.1012541 | Q154: 111.6407547 | R154: 90.79424214 | S154: 92.40528106 | T154: 92.25616848 | U154: 73.02053422 | V154: 77.67807287 | W154: 73.12036327 | X154: 67.30559683 | Y154: 69.42248552 | Z154: 62.78110375 | AA154: 61.59351593 | AB154: 62.36355302 | AC154: 53.05385675 | AD154: 53.74579907 | AE154: 53.60337654 | AF154: 48.77772689 | AG154: 49.08896944 | AH154: 46.84239851 | AI154: 29.8412939 | AJ154: 23.4919922
C155: =IF( subgroup.idx="", "", INDEX(subgroupData.names,subgroup.idx) ) -> Typical journey length: 11 to 20 mins | D155: 46 | E155: 1634 | F155: =IF( INDEX(attr.selection, attr.ordered), 100*attr.select.count*INDEX( output.array,subgroup.idx, attr.ordered), "" ) -> 260.3496044 | G155: 244.0850581 | H155: 224.2429215 | I155: 219.1695507 | J155: 171.1931574 | K155: 154.3846085 | L155: 121.4776529 | M155: 110.3856134 | N155: 106.0419891 | O155: 109.7806774 | P155: 104.1185327 | Q155: 108.4518119 | R155: 87.36744741 | S155: 88.5765657 | T155: 88.18107603 | U155: 80.73505213 | V155: 74.65611747 | W155: 72.77079787 | X155: 71.98341547 | Y155: 67.62245208 | Z155: 62.54772375 | AA155: 60.28564933 | AB155: 60.34609673 | AC155: 55.10617398 | AD155: 51.78563837 | AE155: 51.16916696 | AF155: 48.06134371 | AG155: 47.19559539 | AH155: 45.28943373 | AI155: 28.49383324 | AJ155: 24.14524269
C156: =IF( subgroup.idx="", "", INDEX(subgroupData.names,subgroup.idx) ) -> Typical journey length: 21 to 30 mins | D156: 47 | E156: =INDEX( subgroup.member.count.unweighted, subgroup.idx) -> 1359 | F156: =IF( INDEX(attr.selection, attr.ordered), 100*attr.select.count*INDEX( output.array,subgroup.idx, attr.ordered), "" ) -> 272.1233654 | G156: 240.7596391 | H156: 223.4686938 | I156: 217.6181063 | J156: 185.2695453 | K156: 157.6314988 | L156: 115.9521582 | M156: 108.9765164 | N156: 107.1136936 | O156: 112.205024 | P156: 110.1002974 | Q156: 100.6149935 | R156: 84.68084435 | S156: 85.62418998 | T156: 83.17211068 | U156: 83.25480409 | V156: 72.45264486 | W156: 72.04484721 | X156: 70.4861599 | Y156: 67.29681765 | Z156: 65.66088577 | AA156: 60.04265983 | AB156: 60.88570331 | AC156: 52.25999208 | AD156: 51.00297167 | AE156: 50.05045487 | AF156: 47.23831884 | AG156: 45.53954078 | AH156: 43.76033556 | AI156: 29.03681093 | AJ156: 23.67637578
C157: =IF( subgroup.idx="", "", INDEX(subgroupData.names,subgroup.idx) ) -> Typical journey length: Over half an hour | D157: 48 | E157: 1099 | F157: =IF( INDEX(attr.selection, attr.ordered), 100*attr.select.count*INDEX( output.array,subgroup.idx, attr.ordered), "" ) -> 244.6443639 | G157: 263.7549121 | H157: 242.8185065 | I157: 247.6583931 | J157: 161.8507465 | K157: 166.4735221 | L157: 124.8005935 | M157: 111.4955258 | N157: 105.3669146 | O157: 97.52397211 | P157: 95.37799376 | Q157: 92.82921412 | R157: 88.53296846 | S157: 80.3650295 | T157: 83.92106523 | U157: 70.78792022 | V157: 74.52887277 | W157: 77.16557844 | X157: 73.34023579 | Y157: 73.37007003 | Z157: 74.17222901 | AA157: 64.19002495 | AB157: 60.61848344 | AC157: 47.54477949 | AD157: 51.0554135 | AE157: 47.17331952 | AF157: 47.40572833 | AG157: 42.78122495 | AH157: 39.94621575 | AI157: 27.76191812 | AJ157: 20.74426426
C158: =IF( subgroup.idx="", "", INDEX(subgroupData.names,subgroup.idx) ) -> Typical journey length: NET up to 20 min | D158: 49 | E158: 2096 | F158: =IF( INDEX(attr.selection, attr.ordered), 100*attr.select.count*INDEX( output.array,subgroup.idx, attr.ordered), "" ) -> 255.6756121 | G158: 244.312918 | H158: 224.2182841 | I158: 217.63977 | J158: 172.1096654 | K158: 154.1831924 | L158: 122.720825 | M158: 111.2323974 | N158: 106.908567 | O158: 107.752693 | P158: 104.5496152 | Q158: 109.1451506 | R158: 88.11249976 | S158: 89.40900348 | T158: 89.06708102 | U158: 79.0577647 | V158: 75.31314982 | W158: 72.84680024 | X158: 70.966366 | Y158: 68.01381464 | Z158: 62.59846513 | AA158: 60.57000517 | AB158: 60.78473128 | AC158: 54.65995998 | AD158: 52.21181574 | AE158: 51.69841184 | AF158: 48.21709946 | AG158: 47.60725203 | AH158: 45.62707872 | AI158: 28.7867976 | AJ158: 24.00321323
C159: =IF( subgroup.idx="", "", INDEX(subgroupData.names,subgroup.idx) ) -> Typical journey length: NET longer than 20 min | D159: 50 | E159: 2458 | F159: =IF( INDEX(attr.selection, attr.ordered), 100*attr.select.count*INDEX( output.array,subgroup.idx, attr.ordered), "" ) -> 260.0767483 | G159: 250.8406186 | H159: 231.951527 | I159: 230.7875744 | J159: 175.0028949 | K159: 161.5077848 | L159: 119.8312552 | M159: 110.0808339 | N159: 106.3479169 | O159: 105.7689455 | P159: 103.6461344 | Q159: 97.20175802 | R159: 86.36959073 | S159: 83.31860793 | T159: 83.50044753 | U159: 77.78940257 | V159: 73.36284979 | W159: 74.28974277 | X159: 71.73736837 | Y159: 69.95929235 | Z159: 69.39220378 | AA159: 61.86083796 | AB159: 60.76855584 | AC159: 50.19287328 | AD159: 51.02596183 | AE159: 48.78913728 | AF159: 47.31171008 | AG159: 44.3303129 | AH159: 42.08825002 | AI159: 28.47790614 | AJ159: 22.39095699
C161: =IF( subgroup.idx="", "", INDEX(subgroupData.names,subgroup.idx) ) -> Typical journey type: Across town centre | D161: 51 | E161: 1030 | F161: =IF( INDEX(attr.selection, attr.ordered), 100*attr.select.count*INDEX( output.array,subgroup.idx, attr.ordered), "" ) -> 274.8302669 | G161: 217.181164 | H161: 203.8386956 | I161: 190.6064292 | J161: 190.7730624 | K161: 147.3841016 | L161: 107.4699651 | M161: 107.9019256 | N161: 109.2741991 | O161: 117.1268052 | P161: 118.2082839 | Q161: 97.47579806 | R161: 81.17107317 | S161: 86.27501921 | T161: 79.41373436 | U161: 88.85858743 | V161: 72.49566869 | W161: 71.54000333 | X161: 101.5188578 | Y161: 67.10015135 | Z161: 66.37619806 | AA161: 60.79035003 | AB161: 62.5923335 | AC161: 68.18753462 | AD161: 52.78662641 | AE161: 51.65498693 | AF161: 55.25670148 | AG161: 45.77982207 | AH161: 45.86998 | AI161: 31.25430241 | AJ161: 29.00737263
C162: =IF( subgroup.idx="", "", INDEX(subgroupData.names,subgroup.idx) ) -> Typical journey type: Across outskirts of town | D162: 52 | E162: 495 | F162: =IF( INDEX(attr.selection, attr.ordered), 100*attr.select.count*INDEX( output.array,subgroup.idx, attr.ordered), "" ) -> 250.1790138 | G162: 249.0843606 | H162: 230.2609207 | I162: 228.7853837 | J162: 178.4515116 | K162: 159.0614719 | L162: 115.7628369 | M162: 109.8543292 | N162: 106.8641352 | O162: 98.12942987 | P162: 107.6352918 | Q162: 96.20412258 | R162: 84.26962808 | S162: 82.61675335 | T162: 83.39916171 | U162: 73.18632256 | V162: 71.92645366 | W162: 73.30215367 | X162: 92.01167277 | Y162: 68.52088468 | Z162: 69.62064645 | AA162: 61.64227684 | AB162: 61.7718684 | AC162: 57.33173325 | AD162: 51.11442421 | AE162: 49.02178051 | AF162: 50.30140788 | AG162: 43.85241208 | AH162: 41.98224315 | AI162: 29.48083182 | AJ162: 24.3745371
C163: =IF( subgroup.idx="", "", INDEX(subgroupData.names,subgroup.idx) ) -> Typical journey type: Across rural areas | D163: 53 | E163: =INDEX( subgroup.member.count.unweighted, subgroup.idx) -> 132 | F163: =IF( INDEX(attr.selection, attr.ordered), 100*attr.select.count*INDEX( output.array,subgroup.idx, attr.ordered), "" ) -> 268.18067 | G163: 215.8945521 | H163: 205.4219961 | I163: 202.3547258 | J163: 149.0721929 | K163: 150.6307482 | L163: 112.096956 | M163: 106.1247366 | N163: 113.1963066 | O163: 113.396528 | P163: 95.48280164 | Q163: 97.16933221 | R163: 83.35380194 | S163: 83.85519289 | T163: 89.38980821 | U163: 82.39331756 | V163: 76.20729267 | W163: 88.40894492 | X163: 85.19886622 | Y163: 84.92421354 | Z163: 70.09517873 | AA163: 71.79007132 | AB163: 72.4297715 | AC163: 69.13367036 | AD163: 54.43692405 | AE163: 51.03272499 | AF163: 54.42403657 | AG163: 47.94788353 | AH163: 45.55909256 | AI163: 31.77750196 | AJ163: 28.62016031
C164: =IF( subgroup.idx="", "", INDEX(subgroupData.names,subgroup.idx) ) -> Typical journey type: Between a rural area and a town | D164: 54 | E164: 724 | F164: =IF( INDEX(attr.selection, attr.ordered), 100*attr.select.count*INDEX( output.array,subgroup.idx, attr.ordered), "" ) -> 234.9623312 | G164: 270.5829736 | H164: 247.0354924 | I164: 251.0194081 | J164: 169.3831625 | K164: 166.0636132 | L164: 117.4728351 | M164: 110.3549926 | N164: 109.58895 | O164: 91.33761221 | P164: 97.46857381 | Q164: 104.7720928 | R164: 85.27870267 | S164: 86.87146139 | T164: 93.62216006 | U164: 64.53992203 | V164: 68.9663151 | W164: 79.91163085 | X164: 58.30950072 | Y164: 75.69476959 | Z164: 71.23605841 | AA164: 65.58087879 | AB164: 63.27192538 | AC164: 40.08964283 | AD164: 49.82583919 | AE164: 49.88924084 | AF164: 41.12596147 | AG164: 46.59734206 | AH164: 42.53509385 | AI164: 27.7568333 | AJ164: 18.8546839
C165: =IF( subgroup.idx="", "", INDEX(subgroupData.names,subgroup.idx) ) -> Typical journey type: Between outskirts of town & town centre | D165: 55 | E165: 1438 | F165: =IF( INDEX(attr.selection, attr.ordered), 100*attr.select.count*INDEX( output.array,subgroup.idx, attr.ordered), "" ) -> 259.7949634 | G165: 258.6981879 | H165: 236.0613534 | I165: 233.1072328 | J165: 163.9095913 | K165: 159.8878176 | L165: 129.6756489 | M165: 112.1240009 | N165: 103.4255999 | O165: 110.5054064 | P165: 97.15313115 | Q165: 109.6267595 | R165: 90.91887476 | S165: 88.18498402 | T165: 89.12756752 | U165: 81.02947033 | V165: 76.34840488 | W165: 70.92298816 | X165: 52.0238286 | Y165: 65.48710127 | Z165: 62.02788407 | AA165: 59.10641237 | AB165: 57.14851033 | AC165: 48.65671688 | AD165: 51.07676238 | AE165: 49.98275902 | AF165: 45.31615999 | AG165: 46.39223964 | AH165: 43.89131578 | AI165: 26.76464638 | AJ165: 21.62368055
C166: =IF( subgroup.idx="", "", INDEX(subgroupData.names,subgroup.idx) ) -> Typical journey type: Between one town and another town | D166: 56 | E166: 674 | F166: =IF( INDEX(attr.selection, attr.ordered), 100*attr.select.count*INDEX( output.array,subgroup.idx, attr.ordered), "" ) -> 260.5286998 | G166: 250.7455114 | H166: 231.1954668 | I166: 229.9847758 | J166: 169.5098933 | K166: 163.2335132 | L166: 135.0616885 | M166: 112.9496271 | N166: 104.9211933 | O166: 105.3747488 | P166: 100.4522581 | Q166: 100.3520683 | R166: 93.7856517 | S166: 83.92225441 | T166: 84.87840029 | U166: 75.36845758 | V166: 79.93985092 | W166: 74.81063172 | X166: 63.23326067 | Y166: 71.8165268 | Z166: 65.07365406 | AA166: 60.40191967 | AB166: 60.68271519 | AC166: 40.28385622 | AD166: 52.33932441 | AE166: 48.964089 | AF166: 44.84703235 | AG166: 45.31563712 | AH166: 42.19819995 | AI166: 28.1693811 | AJ166: 19.65971222
C168: =IF( subgroup.idx="", "", INDEX(subgroupData.names,subgroup.idx) ) -> Ticket type: A free pass | D168: 57 | E168: 1667 | F168: =IF( INDEX(attr.selection, attr.ordered), 100*attr.select.count*INDEX( output.array,subgroup.idx, attr.ordered), "" ) -> 141.511079 | G168: 271.2730056 | H168: 238.0163064 | I168: 232.9321655 | J168: 169.8217519 | K168: 149.6456672 | L168: 156.0221716 | M168: 119.9788783 | N168: 121.3535965 | O168: 56.47529402 | P168: 98.06171298 | Q168: 149.10837 | R168: 105.2503548 | S168: 107.6388113 | T168: 124.2814231 | U168: 35.58852588 | V168: 87.22308043 | W168: 89.15755918 | X168: 33.15476518 | Y168: 85.58466786 | Z168: 57.24993547 | AA168: 69.16348855 | AB168: 72.53027639 | AC168: 25.30924273 | AD168: 56.02368051 | AE168: 59.52344088 | AF168: 33.73020508 | AG168: 60.24582246 | AH168: 51.14764053 | AI168: 29.96034324 | AJ168: 13.03673756
C169: =IF( subgroup.idx="", "", INDEX(subgroupData.names,subgroup.idx) ) -> Ticket type: Single/ return/ multi tickets | D169: 58 | E169: 1578 | F169: =IF( INDEX(attr.selection, attr.ordered), 100*attr.select.count*INDEX( output.array,subgroup.idx, attr.ordered), "" ) -> 305.3666116 | G169: 239.2724579 | H169: 225.6781695 | I169: 223.0797767 | J169: 182.0577037 | K169: 162.4171977 | L169: 103.5703256 | M169: 106.4439809 | N169: 100.0729852 | O169: 125.402396 | P169: 110.2944834 | Q169: 81.15848235 | R169: 78.15011069 | S169: 76.2044624 | T169: 68.00602529 | U169: 94.13873147 | V169: 67.72355501 | W169: 66.36350755 | X169: 91.04876113 | Y169: 60.74116393 | Z169: 70.51619252 | AA169: 57.52052144 | AB169: 54.94133719 | AC169: 65.14316568 | AD169: 49.31367637 | AE169: 45.77499049 | AF169: 54.97482156 | AG169: 38.92240401 | AH169: 40.18324159 | AI169: 27.96030804 | AJ169: 27.55845326
C170: =IF( subgroup.idx="", "", INDEX(subgroupData.names,subgroup.idx) ) -> Ticket type: One day travelcard/ticket | D170: 59 | E170: =INDEX( subgroup.member.count.unweighted, subgroup.idx) -> 784 | F170: =IF( INDEX(attr.selection, attr.ordered), 100*attr.select.count*INDEX( output.array,subgroup.idx, attr.ordered), "" ) -> 353.1422758 | G170: 213.0911076 | H170: 204.5330155 | I170: 197.4106345 | J170: 183.9520051 | K170: 155.650749 | L170: 93.83956736 | M170: 99.79928318 | N170: 100.2640465 | O170: 153.7768646 | P170: 113.557986 | Q170: 80.29751063 | R170: 72.61958735 | S170: 76.50175315 | T170: 65.38472505 | U170: 118.8985106 | V170: 64.23962799 | W170: 66.06172278 | X170: 92.35658709 | Y170: 60.61821334 | Z170: 65.85336697 | AA170: 57.4258108 | AB170: 55.9116485 | AC170: 67.8060295 | AD170: 48.07122293 | AE170: 46.06019171 | AF170: 52.03868203 | AG170: 39.51310736 | AH170: 41.85241344 | AI170: 28.69243154 | AJ170: 30.77932205
C171: =IF( subgroup.idx="", "", INDEX(subgroupData.names,subgroup.idx) ) -> Ticket type: A season ticket for a longer period | D171: 60 | E171: =INDEX( subgroup.member.count.unweighted, subgroup.idx) -> 430 | F171: =IF( INDEX(attr.selection, attr.ordered), 100*attr.select.count*INDEX( output.array,subgroup.idx, attr.ordered), "" ) -> 303.4586464 | G171: 259.1100789 | H171: 244.2015106 | I171: 246.1340333 | J171: 147.4196056 | K171: 172.1137209 | L171: 116.4016297 | M171: 112.3872197 | N171: 94.96508531 | O171: 122.1972928 | P171: 90.74525888 | Q171: 68.11999249 | R171: 84.88408299 | S171: 69.00108133 | T171: 62.11690905 | U171: 91.55479627 | V171: 71.94984717 | W171: 64.96545469 | X171: 86.92302699 | Y171: 60.98007742 | Z171: 78.29706349 | AA171: 57.31957141 | AB171: 53.23067764 | AC171: 65.30503375 | AD171: 50.90142742 | AE171: 42.54330499 | AF171: 57.64440852 | AG171: 35.10449438 | AH171: 36.16656075 | AI171: 26.8175427 | AJ171: 27.04056437
C173: =IF( subgroup.idx="", "", INDEX(subgroupData.names,subgroup.idx) ) -> Income: Up to 21K | D173: 61 | E173: =INDEX( subgroup.member.count.unweighted, subgroup.idx) -> 1500 | F173: =IF( INDEX(attr.selection, attr.ordered), 100*attr.select.count*INDEX( output.array,subgroup.idx, attr.ordered), "" ) -> 250.7696234 | G173: 241.1684227 | H173: 221.9050772 | I173: 216.2981437 | J173: 176.0074611 | K173: 153.6230946 | L173: 117.8407292 | M173: 109.0581823 | N173: 110.2175277 | O173: 103.463473 | P173: 105.5682435 | Q173: 119.6616858 | R173: 85.64461384 | S173: 94.17399328 | T173: 97.09397293 | U173: 74.6170606 | V173: 73.64398781 | W173: 76.33553629 | X173: 61.75568902 | Y173: 71.56545015 | Z173: 62.98319564 | AA173: 63.04386976 | AB173: 62.94766001 | AC173: 50.12944229 | AD173: 51.71183782 | AE173: 53.69228006 | AF173: 45.13328808 | AG173: 50.76325678 | AH173: 47.63603358 | AI173: 29.06867319 | AJ173: 22.47849462
C174: =IF( subgroup.idx="", "", INDEX(subgroupData.names,subgroup.idx) ) -> Income: 21K to 41K | D174: 62 | E174: =INDEX( subgroup.member.count.unweighted, subgroup.idx) -> 1663 | F174: =IF( INDEX(attr.selection, attr.ordered), 100*attr.select.count*INDEX( output.array,subgroup.idx, attr.ordered), "" ) -> 266.6199125 | G174: 248.0316708 | H174: 228.7253743 | I174: 223.9669648 | J174: 182.0584748 | K174: 159.2347508 | L174: 119.3488047 | M174: 110.2691478 | N174: 106.6331978 | O174: 110.6642158 | P174: 108.4077279 | Q174: 100.9614873 | R174: 86.44652512 | S174: 85.55381888 | T174: 82.37827308 | U174: 80.9192448 | V174: 73.14337041 | W174: 72.03902902 | X174: 67.05060608 | Y174: 66.82442747 | Z174: 65.39034235 | AA174: 60.21541428 | AB174: 59.92304612 | AC174: 48.17668278 | AD174: 51.13977574 | AE174: 49.87567751 | AF174: 45.52522085 | AG174: 45.31934363 | AH174: 43.81585406 | AI174: 28.6932571 | AJ174: 22.64836132
C175: =IF( subgroup.idx="", "", INDEX(subgroupData.names,subgroup.idx) ) -> Income: More than 41K | D175: 63 | E175: =INDEX( subgroup.member.count.unweighted, subgroup.idx) -> 923 | F175: =IF( INDEX(attr.selection, attr.ordered), 100*attr.select.count*INDEX( output.array,subgroup.idx, attr.ordered), "" ) -> 270.659602 | G175: 254.9087842 | H175: 236.8051357 | I175: 239.241284 | J175: 149.3456374 | K175: 163.9628336 | L175: 129.5430815 | M175: 114.071703 | N175: 95.75181193 | O175: 113.7358054 | P175: 93.19454575 | Q175: 68.78079266 | R175: 90.80112235 | S175: 68.80979521 | T175: 65.54979501 | U175: 88.44426114 | V175: 78.91043411 | W175: 67.03329864 | X175: 105.1659925 | Y175: 63.84027388 | Z175: 74.12914344 | AA175: 57.2941703 | AB175: 55.24387015 | AC175: 72.09362546 | AD175: 52.5255152 | AE175: 42.70053387 | AF175: 60.98801245 | AG175: 35.56982377 | AH175: 35.62490563 | AI175: 27.4361817 | AJ175: 27.83822803
C177: =IF( subgroup.idx="", "", INDEX(subgroupData.names,subgroup.idx) ) -> Disability: Yes - high impact | D177: 64 | E177: =INDEX( subgroup.member.count.unweighted, subgroup.idx) -> 135 | F177: =IF( INDEX(attr.selection, attr.ordered), 100*attr.select.count*INDEX( output.array,subgroup.idx, attr.ordered), "" ) -> 183.1721947 | G177: 204.2542704 | H177: 186.7404013 | I177: 163.0934403 | J177: 230.1543933 | K177: 128.3250295 | L177: 115.7166757 | M177: 108.4681539 | N177: 134.9018373 | O177: 73.6030644 | P177: 135.7408245 | Q177: 155.2242862 | R177: 86.05379262 | S177: 115.2294769 | T177: 123.5007677 | U177: 48.38171968 | V177: 76.05893134 | W177: 99.9616294 | X177: 39.10255266 | Y177: 93.47394401 | Z177: 54.02422221 | AA177: 75.44259546 | AB177: 83.56747098 | AC177: 45.86223115 | AD177: 55.26149692 | AE177: 65.16020624 | AF177: 38.40701201 | AG177: 65.84502481 | AH177: 59.89959884 | AI177: 34.78605511 | AJ177: 20.58670056
C178: =IF( subgroup.idx="", "", INDEX(subgroupData.names,subgroup.idx) ) -> Disability: Yes - low impact | D178: 65 | E178: =INDEX( subgroup.member.count.unweighted, subgroup.idx) -> 488 | F178: =IF( INDEX(attr.selection, attr.ordered), 100*attr.select.count*INDEX( output.array,subgroup.idx, attr.ordered), "" ) -> 212.0878995 | G178: 244.6482664 | H178: 221.4293078 | I178: 216.8955574 | J178: 190.4715492 | K178: 149.7478819 | L178: 112.698473 | M178: 105.4117119 | N178: 118.7990293 | O178: 85.13817022 | P178: 111.1072845 | Q178: 146.5673468 | R178: 82.62989435 | S178: 106.0450023 | T178: 116.2290359 | U178: 57.51189749 | V178: 69.70941091 | W178: 85.27086999 | X178: 47.96516486 | Y178: 79.9850128 | Z178: 58.67726952 | AA178: 68.2121375 | AB178: 68.78184355 | AC178: 38.30741098 | AD178: 50.18987098 | AE178: 58.46797058 | AF178: 37.09692463 | AG178: 58.70837575 | AH178: 52.97996955 | AI178: 29.62834212 | AJ178: 18.60111821
C179: =IF( subgroup.idx="", "", INDEX(subgroupData.names,subgroup.idx) ) -> Disability: NET no disability / no disability impacting bus use | D179: 66 | E179: =INDEX( subgroup.member.count.unweighted, subgroup.idx) -> 3326 | F179: =IF( INDEX(attr.selection, attr.ordered), 100*attr.select.count*INDEX( output.array,subgroup.idx, attr.ordered), "" ) -> 269.3021699 | G179: 247.5064169 | H179: 229.074514 | I179: 226.3821789 | J179: 171.1598808 | K179: 159.853654 | L179: 120.7754157 | M179: 110.8455077 | N179: 103.6134208 | O179: 111.6101816 | P179: 103.5188168 | Q179: 92.61779921 | R179: 86.94368499 | S179: 81.29648904 | T179: 79.18875847 | U179: 83.24985009 | V179: 74.45423704 | W179: 70.83317263 | X179: 80.32605371 | Y179: 66.48827236 | Z179: 67.91877074 | AA179: 59.58025726 | AB179: 58.80506785 | AC179: 57.0073648 | AD179: 51.53929571 | AE179: 48.06551754 | AF179: 50.69308084 | AG179: 42.82818175 | AH179: 41.56475093 | AI179: 28.40769317 | AJ179: 24.54954472

Sheet ClassOptions (hidden)
B1: ClassParameter array | I1: Transpose | J1: Biℓ
B3: Parameters | C3: Variables: (a) No. of Options 4 - 100; (b) No. of classes = 1 - 10; (c) no. of Dfactors = 0-3
C4: Option 1 | D4: Option 2 | E4: Option 3 | F4: Option 4 | G4: Option 5 | H4: Option 6 | I4: Option 7 | J4: Option 8 | K4: Option 9 | L4: Option 10 | M4: Option 11 | N4: Option 12 | O4: Option 13 | P4: Option 14 | Q4: Option 15 | R4: Option 16 | S4: Option 17 | T4: Option 18 | U4: Option 19 | V4: Option 20 | W4: Option 21 | X4: Option 22 | Y4: Option 23 | Z4: Option 24 | AA4: Option 25 | AB4: Option 26 | AC4: Option 27 | AD4: Option 28 | AE4: Option 29 | AF4: Option 30 | AG4: Option 31
B5: Class 1 | C5: 1.8511 | D5: 1.7413 | E5: 1.5634 | F5: -0.1725 | G5: -1.2404 | H5: -0.6333 | I5: -0.7136 | J5: -1.0297 | K5: 0.1213 | L5: -1.0775 | M5: -0.7041 | N5: -0.5278 | O5: -0.7242 | P5: -0.2561 | Q5: 0.5349 | R5: -2.6374 | S5: 2.394 | T5: 2.0102 | U5: -1.7866 | V5: -0.7433 | W5: 3.2899 | X5: 1.6998 | Y5: 0.2768 | Z5: 0.3422 | AA5: -0.0944 | AB5: -0.8047 | AC5: -0.3535 | AD5: -0.7614 | AE5: -1.2785 | AF5: -0.1726 | AG5: -0.1135
B6: Class 2 | C6: 0.8889 | D6: 1.1991 | E6: 1.2595 | F6: 0.181 | G6: -0.6037 | H6: -0.3672 | I6: -0.3333 | J6: -0.7521 | K6: 0.6268 | L6: 0.2348 | M6: 0.6436 | N6: 0.792 | O6: -0.864 | P6: 0.6673 | Q6: -0.0284 | R6: -2.5681 | S6: 0.0727 | T6: -0.4012 | U6: -0.3136 | V6: -1.115 | W6: 1.1426 | X6: 1.2669 | Y6: 0.6672 | Z6: 0.3683 | AA6: -0.2286 | AB6: 0.254 | AC6: -0.3922 | AD6: -0.6875 | AE6: -1.0051 | AF6: -0.5758 | AG6: -0.0288
B7: Class 3 | C7: 0.9448 | D7: 0.8469 | E7: 1.3175 | F7: -0.1824 | G7: -0.7704 | H7: -0.3445 | I7: -0.3609 | J7: -1.0134 | K7: 0.786 | L7: -0.3767 | M7: -0.9476 | N7: -0.1663 | O7: -0.4962 | P7: -0.2263 | Q7: 2.5423 | R7: -2.5206 | S7: 0.1103 | T7: -0.3821 | U7: -1.0605 | V7: -1.1643 | W7: 1.6816 | X7: 1.2629 | Y7: 0.0177 | Z7: 0.7119 | AA7: 0.1768 | AB7: -1.0487 | AC7: -0.3936 | AD7: -0.2943 | AE7: -0.5687 | AF7: 1.9761 | AG7: -0.0573
B8: Class 4 | C8: 1.1206 | D8: 1.2212 | E8: 1.6612 | F8: 2.2274 | G8: 0.1706 | H8: 0.6 | I8: 1.489 | J8: -0.8293 | K8: 0.2821 | L8: -0.4064 | M8: -0.7801 | N8: -0.6588 | O8: -0.8985 | P8: -0.72 | Q8: 0.4616 | R8: -2.3808 | S8: -0.494 | T8: -1.136 | U8: -1.2076 | V8: -1.9093 | W8: -0.0027 | X8: 1.5354 | Y8: -0.3119 | Z8: 1.4208 | AA8: -0.0591 | AB8: -0.6382 | AC8: -0.3103 | AD8: -0.4156 | AE8: -0.7566 | AF8: 0.0953 | AG8: 1.6303
B9: Class 5 | C9: 0.9485 | D9: 1.2758 | E9: 1.3039 | F9: 0.1882 | G9: -0.0291 | H9: -0.3081 | I9: -0.1591 | J9: -1.0716 | K9: 0.199 | L9: -0.4137 | M9: -0.1652 | N9: -0.3629 | O9: -1.1041 | P9: -0.3442 | Q9: 0.2476 | R9: 1.528 | S9: -0.1018 | T9: -0.3074 | U9: -0.437 | V9: -1.1953 | W9: 1.051 | X9: 1.2283 | Y9: 0.5148 | Z9: 0.4564 | AA9: -0.2448 | AB9: -0.3237 | AC9: -0.752 | AD9: -0.572 | AE9: -0.861 | AF9: -0.1944 | AG9: 0.0058
B10: Class 6 | C10: 0.8296 | D10: 1.3761 | E10: 1.7118 | F10: 0.2717 | G10: -1.1076 | H10: -0.1813 | I10: -0.2127 | J10: 0.2895 | K10: 0.5293 | L10: -0.7296 | M10: -1.1173 | N10: -0.9065 | O10: 0.3096 | P10: -0.5266 | Q10: 0.8334 | R10: -3.2415 | S10: 0.0145 | T10: -0.8069 | U10: -1.5043 | V10: -1.8488 | W10: 0.983 | X10: 1.524 | Y10: -0.769 | Z10: 0.6904 | AA10: 1.2029 | AB10: 1.0014 | AC10: 1.5278 | AD10: 0.4951 | AE10: -1.0501 | AF10: 0.2433 | AG10: 0.1688
B11: Dfac1 | C11: -0.0676 | D11: -0.2388 | E11: -0.1888 | F11: 0.2609 | G11: 1.2612 | H11: 0.1706 | I11: 0.3945 | J11: -0.7011 | K11: -0.5461 | L11: -0.7454 | M11: -1.112 | N11: -0.9922 | O11: -0.3461 | P11: -0.717 | Q11: -0.4543 | R11: 1.0192 | S11: 0.9644 | T11: 1.2783 | U11: 1.9198 | V11: 1.2267 | W11: 0.6867 | X11: -0.123 | Y11: -0.0238 | Z11: 0.1476 | AA11: -0.4989 | AB11: -1.11 | AC11: -0.8424 | AD11: -0.3494 | AE11: -0.2287 | AF11: -0.2339 | AG11: 0.1894
B12: Dfac2 | C12: 0.9751 | D12: 1.6059 | E12: 1.2773 | F12: 0.3721 | G12: 0.0922 | H12: 0.0257 | I12: 0.0017 | J12: -0.7129 | K12: -0.2488 | L12: -0.6312 | M12: -0.4255 | N12: -0.384 | O12: -0.6651 | P12: -0.1028 | Q12: -0.3483 | R12: -0.4078 | S12: 0.006 | T12: -0.1118 | U12: -0.479 | V12: -0.4667 | W12: 0.4286 | X12: 1.2233 | Y12: 0.9546 | Z12: 0.45 | AA12: -0.3408 | AB12: -0.4184 | AC12: -0.7208 | AD12: -0.3428 | AE12: -0.4317 | AF12: -0.4973 | AG12: 0.3232

Sheet LatentClassData (hidden)
B2: Individual Latent Class and Dfactor Weights | I2: Posterior array | K2: Cℓk
B3: FROM MODELLING SOFTWARE
B4: LC weights = probabilities; DF weights = Score (e.g. -1 0 1 - but can vary)
B6: RespondentID | C6: New Weights | D6: Class#1 | E6: Class#2 | F6: Class#3 | G6: Class#4 | H6: Class#5 | I6: Class#6 | J6: Dfac1 | K6: Dfac2 | O6: Version | R6: 1 | S6: 2 | T6: 3 | U6: 4 | V6: 5 | W6: 6 | X6: 7 | Y6: 8 | Z6: 9 | AA6: 10
B7: 69 | C7: 2.55482 | D7: 2.724973897e-08 | E7: 0.9815183729 | F7: 1.534934739e-05 | G7: 1.784833582e-08 | H7: 0.01846581476 | I7: 4.178583297e-07 | J7: -0.09075169147 | K7: -0.3873034194 | O7: 2 | R7: =IF(rotationData=rotation.column.idx,1,0) -> 0 | S7: 1 | T7: 0 | U7: 0 | V7: 0 | W7: 0 | X7: 0 | Y7: 0 | Z7: 0 | AA7: 0
B8: 70 | C8: 0.6683 | D8: 6.244646975e-07 | E8: 0.000982408316 | F8: 4.968801842e-05 | G8: 0.8789650449 | H8: 1.878628501e-05 | I8: 0.119983448 | J8: -0.6074463539 | K8: 0.2814149525 | O8: 8 | R8: 0 | S8: 0 | T8: 0 | U8: 0 | V8: 0 | W8: 0 | X8: 0 | Y8: 1 | Z8: 0 | AA8: 0
B9: 71 | C9: 1.18661 | D9: 0.8313962102 | E9: 0.1563977393 | F9: 4.906831055e-06 | G9: 0.000446911046 | H9: 0.003841360287 | I9: 0.007912872358 | J9: 0.1127730651 | K9: -0.01629126842 | O9: 3 | R9: 0 | S9: 0 | T9: 1 | U9: 0 | V9: 0 | W9: 0 | X9: 0 | Y9: 0 | Z9: 0 | AA9: 0
B10: 73 | C10: 1.10002 | D10: 0.0009781184923 | E10: 0.4869358083 | F10: 0.000128817613 | G10: 0.0594592925 | H10: 0.4524968272 | I10: 1.135859149e-06 | J10: 0.01194318288 | K10: 0.3559966805 | O10: 4 | R10: 0 | S10: 0 | T10: 0 | U10: 1 | V10: 0 | W10: 0 | X10: 0 | Y10: 0 | Z10: 0 | AA10: 0
B11: 74 | C11: 1.19431 | D11: 0.0003438432837 | E11: 0.05546011766 | F11: 0.6458172282 | G11: 0.2697820524 | H11: 0.0003519128812 | I11: 0.02824484561 | J11: -0.9547720732 | K11: 0.1228049752 | O11: 6 | R11: 0 | S11: 0 | T11: 0 | U11: 0 | V11: 0 | W11: 1 | X11: 0 | Y11: 0 | Z11: 0 | AA11: 0
B12: 75 | C12: 0.45448 | D12: 9.619370715e-06 | E12: 0.01349230528 | F12: 0.0002540476514 | G12: 0.002841419217 | H12: 3.546427852e-05 | I12: 0.9833671442 | J12: -0.9803253693 | K12: -0.01158640355 | O12: 10 | R12: 0 | S12: 0 | T12: 0 | U12: 0 | V12: 0 | W12: 0 | X12: 0 | Y12: 0 | Z12: 0 | AA12: 1
B13: 76 | C13: 2.12651 | D13: 0.9226795539 | E13: 0.03627349483 | F13: 8.347937066e-05 | G13: 1.419739304e-05 | H13: 0.0002640244582 | I13: 0.04068525005 | J13: -0.8306388169 | K13: 0.6787543833 | O13: 9 | R13: 0 | S13: 0 | T13: 0 | U13: 0 | V13: 0 | W13: 0 | X13: 0 | Y13: 0 | Z13: 1 | AA13: 0
B14: 77 | C14: 1.03774 | D14: 0.0002953434688 | E14: 0.0001333649692 | F14: 0.9990493755 | G14: 1.210121586e-09 | H14: 0.0004868047019 | I14: 3.511012037e-05 | J14: -0.05501815405 | K14: -0.05536293578 | O14: 7 | R14: 0 | S14: 0 | T14: 0 | U14: 0 | V14: 0 | W14: 0 | X14: 1 | Y14: 0 | Z14: 0 | AA14: 0
B15: 78 | C15: 2.13648 | D15: 0.01372428356 | E15: 0.8219658482 | F15: 2.929617081e-06 | G15: 0.000111218662 | H15: 0.07519231058 | I15: 0.08900340935 | J15: 0.9441125632 | K15: 0.05797314383 | O15: 1 | R15: 1 | S15: 0 | T15: 0 | U15: 0 | V15: 0 | W15: 0 | X15: 0 | Y15: 0 | Z15: 0 | AA15: 0
B16: 79 | C16: 0.90984 | D16: 3.185028153e-09 | E16: 0.006169577361 | F16: 7.294351643e-06 | G16: 0.9795113483 | H16: 5.123123991e-06 | I16: 0.01430665371 | J16: -0.9803678239 | K16: -0.9902123451 | O16: 9 | R16: 0 | S16: 0 | T16: 0 | U16: 0 | V16: 0 | W16: 0 | X16: 0 | Y16: 0 | Z16: 1 | AA16: 0
B17: 80 | C17: 0.24114 | D17: 5.030211831e-05 | E17: 0.001082122039 | F17: 0.9985857898 | G17: 5.48018781e-06 | H17: 3.949921843e-05 | I17: 0.0002368066773 | J17: 0.9365694558 | K17: -0.9964730561 | O17: 5 | R17: 0 | S17: 0 | T17: 0 | U17: 0 | V17: 1 | W17: 0 | X17: 0 | Y17: 0 | Z17: 0 | AA17: 0
B18: 84 | C18: 1.40475 | D18: 8.091451322e-06 | E18: 0.8810781379 | F18: 0.0543441874 | G18: 2.848982467e-08 | H18: 0.06456366314 | I18: 5.891647914e-06 | J18: 0.08769761375 | K18: -0.9999995622 | O18: 3 | R18: 0 | S18: 0 | T18: 1 | U18: 0 | V18: 0 | W18: 0 | X18: 0 | Y18: 0 | Z18: 0 | AA18: 0
B19: 87 | C19: 1.04062 | D19: 0.008312536612 | E19: 0.008649679637 | F19: 0.08216350417 | G19: 0.3224544563 | H19: 0.000384465511 | I19: 0.5780353578 | J19: 0.5162153272 | K19: 0.4625846006 | O19: 5 | R19: 0 | S19: 0 | T19: 0 | U19: 0 | V19: 1 | W19: 0 | X19: 0 | Y19: 0 | Z19: 0 | AA19: 0
B20: 89 | C20: 2.18998 | D20: 1.27677955e-05 | E20: 0.003618815864 | F20: 0.9949035809 | G20: 0.0001867179462 | H20: 0.0002364336001 | I20: 0.001041683853 | J20: -0.008019184618 | K20: -0.00405157252 | O20: 8 | R20: 0 | S20: 0 | T20: 0 | U20: 0 | V20: 0 | W20: 0 | X20: 0 | Y20: 1 | Z20: 0 | AA20: 0
B21: 92 | C21: 3.6355 | D21: 5.231114524e-13 | E21: 4.129051117e-05 | F21: 9.334285379e-08 | G21: 0.01616788485 | H21: 0.9837895399 | I21: 1.191432224e-06 | J21: -0.0006487404973 | K21: -0.9861931455 | O21: 1 | R21: 1 | S21: 0 | T21: 0 | U21: 0 | V21: 0 | W21: 0 | X21: 0 | Y21: 0 | Z21: 0 | AA21: 0
B22: 94 | C22: 0.98979 | D22: 0.9323902103 | E22: 0.006578299843 | F22: 0.01580119983 | G22: 4.109284664e-06 | H22: 0.04522017575 | I22: 6.004993991e-06 | J22: 0.2802449039 | K22: -0.5138538584 | O22: 4 | R22: 0 | S22: 0 | T22: 0 | U22: 1 | V22: 0 | W22: 0 | X22: 0 | Y22: 0 | Z22: 0 | AA22: 0
B23: 95 | C23: 2.561 | D23: 3.243352171e-07 | E23: 0.004663015285 | F23: 1.640106964e-07 | G23: 0.5205692739 | H23: 0.02010001665 | I23: 0.4546672058 | J23: -0.6092367085 | K23: -0.7350833385 | O23: 7 | R23: 0 | S23: 0 | T23: 0 | U23: 0 | V23: 0 | W23: 0 | X23: 1 | Y23: 0 | Z23: 0 | AA23: 0
B24: 96 | C24: 1.18121 | D24: 8.629340498e-12 | E24: 6.961532025e-07 | F24: 4.062458078e-08 | G24: 0.9993868239 | H24: 3.857206143e-08 | I24: 0.0006124007023 | J24: -0.2722943339 | K24: 0.07505752242 | O24: 7 | R24: 0 | S24: 0 | T24: 0 | U24: 0 | V24: 0 | W24: 0 | X24: 1 | Y24: 0 | Z24: 0 | AA24: 0
B25: 97 | C25: 0.8803 | D25: 0.1652944966 | E25: 0.1338754429 | F25: 0.459153408 | G25: 6.08198381e-07 | H25: 0.0004791736018 | I25: 0.2411968707 | J25: -0.4018016641 | K25: -0.5310922342 | O25: 6 | R25: 0 | S25: 0 | T25: 0 | U25: 0 | V25: 0 | W25: 1 | X25: 0 | Y25: 0 | Z25: 0 | AA25: 0
B26: 99 | C26: 0.93958 | D26: 0.01517826234 | E26: 0.3314866797 | F26: 0.01298303893 | G26: 5.443982427e-05 | H26: 0.4085376185 | I26: 0.2317599607 | J26: 0.005709608211 | K26: 0.2139550957 | O26: 2 | R26: 0 | S26: 1 | T26: 0 | U26: 0 | V26: 0 | W26: 0 | X26: 0 | Y26: 0 | Z26: 0 | AA26: 0
B27: 100 | C27: 0.22528 | D27: 0.8666926102 | E27: 0.0656625071 | F27: 0.03030669435 | G27: 0.03725587947 | H27: 8.228806329e-06 | I27: 7.408008476e-05 | J27: 0.9885757662 | K27: 0.1233979551 | O27: 2 | R27: 0 | S27: 1 | T27: 0 | U27: 0 | V27: 0 | W27: 0 | X27: 0 | Y27: 0 | Z27: 0 | AA27: 0
B28: 101 | C28: 3.20992 | D28: 0.01030583747 | E28: 0.9872158293 | F28: 0.0001242299753 | G28: 0.000201897722 | H28: 0.002140621847 | I28: 1.158370218e-05 | J28: -0.5046979014 | K28: 0.4548746684 | O28: 10 | R28: 0 | S28: 0 | T28: 0 | U28: 0 | V28: 0 | W28: 0 | X28: 0 | Y28: 0 | Z28: 0 | AA28: 1
B29: 102 | C29: 1.10764 | D29: 6.022083919e-05 | E29: 0.9766347897 | F29: 0.01910204048 | G29: 3.892871546e-05 | H29: 0.000101375069 | I29: 0.004062645159 | J29: -0.8223895497 | K29: -0.4851067102 | O29: 6 | R29: 0 | S29: 0 | T29: 0 | U29: 0 | V29: 0 | W29: 1 | X29: 0 | Y29: 0 | Z29: 0 | AA29: 0
B30: 103 | C30: 0.72644 | D30: 0.04323967603 | E30: 0.007330492975 | F30: 0.3104245375 | G30: 0.0008489511176 | H30: 0.0786993797 | I30: 0.5594569626 | J30: 0.9993610279 | K30: 0.63049118 | O30: 1 | R30: 1 | S30: 0 | T30: 0 | U30: 0 | V30: 0 | W30: 0 | X30: 0 | Y30: 0 | Z30: 0 | AA30: 0
B31: 104 | C31: 3.86011 | D31: 1.315994233e-08 | E31: 0.009895258278 | F31: 0.005731808717 | G31: 0.02663913521 | H31: 0.9577191023 | I31: 1.468229871e-05 | J31: 0.05976182958 | K31: 0.8844195982 | O31: 4 | R31: 0 | S31: 0 | T31: 0 | U31: 1 | V31: 0 | W31: 0 | X31: 0 | Y31: 0 | Z31: 0 | AA31: 0
B32: 106 | C32: 0.8365 | D32: 0.002432735868 | E32: 0.005889912808 | F32: 0.8419803863 | G32: 0.01694893234 | H32: 0.0003972870089 | I32: 0.1323507457 | J32: -0.005566422446 | K32: 0.3427830891 | O32: 6 | R32: 0 | S32: 0 | T32: 0 | U32: 0 | V32: 0 | W32: 1 | X32: 0 | Y32: 0 | Z32: 0 | AA32: 0
B33: 108 | C33: 2.40872 | D33: 2.034188206e-05 | E33: 0.06344306936 | F33: 0.006948520968 | G33: 0.2326395168 | H33: 0.0002172616218 | I33: 0.6967312894 | J33: -0.9820878559 | K33: -0.3864802614 | O33: 7 | R33: 0 | S33: 0 | T33: 0 | U33: 0 | V33: 0 | W33: 0 | X33: 1 | Y33: 0 | Z33: 0 | AA33: 0
B34: 110 | C34: 2.78748 | D34: 1.06925392e-06 | E34: 0.02435271175 | F34: 0.001380945195 | G34: 0.9526969691 | H34: 0.002168426391 | I34: 0.01939987834 | J34: -0.9989321036 | K34: 0.9513838497 | O34: 10 | R34: 0 | S34: 0 | T34: 0 | U34: 0 | V34: 0 | W34: 0 | X34: 0 | Y34: 0 | Z34: 0 | AA34: 1
B35: 112 | C35: 1.01025 | D35: 5.954818163e-07 | E35: 0.06546148097 | F35: 4.593432859e-05 | G35: 0.9079711953 | H35: 0.001968716757 | I35: 0.02455207712 | J35: 0.05306860916 | K35: -0.6501828173 | O35: 3 | R35: 0 | S35: 0 | T35: 1 | U35: 0 | V35: 0 | W35: 0 | X35: 0 | Y35: 0 | Z35: 0 | AA35: 0
B36: 114 | C36: 2.33089 | D36: 1.048827836e-05 | E36: 0.238866874 | F36: 0.007505703216 | G36: 0.7395196257 | H36: 0.01336833419 | I36: 0.0007289746152 | J36: -0.9952213298 | K36: -0.5203671111 | O36: 8 | R36: 0 | S36: 0 | T36: 0 | U36: 0 | V36: 0 | W36: 0 | X36: 0 | Y36: 1 | Z36: 0 | AA36: 0
B37: 115 | C37: 1.37038 | D37: 0.7970803901 | E37: 0.201069022 | F37: 0.001669181985 | G37: 1.055681519e-06 | H37: 7.417614344e-05 | I37: 0.0001061741438 | J37: 0.2655230677 | K37: 0.2096022552 | O37: 9 | R37: 0 | S37: 0 | T37: 0 | U37: 0 | V37: 0 | W37: 0 | X37: 0 | Y37: 0 | Z37: 1 | AA37: 0
B38: 116 | C38: 1.17316 | D38: 0.2389844266 | E38: 0.0001294862353 | F38: 0.7603831139 | G38: 1.262834405e-06 | H38: 2.146997468e-05 | I38: 0.0004802404765 | J38: 0.01101521725 | K38: 0.6664143935 | O38: 5 | R38: 0 | S38: 0 | T38: 0 | U38: 0 | V38: 1 | W38: 0 | X38: 0 | Y38: 0 | Z38: 0 | AA38: 0
B39: 118 | C39: 2.33297 | D39: 2.079329431e-09 | E39: 0.0266416324 | F39: 8.01041289e-05 | G39: 0.9731191851 | H39: 5.995988053e-05 | I39: 9.911640067e-05 | J39: -0.02215885386 | K39: -0.9935727783 | O39: 2 | R39: 0 | S39: 1 | T39: 0 | U39: 0 | V39: 0 | W39: 0 | X39: 0 | Y39: 0 | Z39: 0 | AA39: 0
B40: 119 | C40: 0.21294 | D40: 0.004319687216 | E40: 0.01790537428 | F40: 0.1560434118 | G40: 0.003701574661 | H40: 0.02726514536 | I40: 0.7907648067 | J40: 0.03394925798 | K40: 0.9085705327 | O40: 5 | R40: 0 | S40: 0 | T40: 0 | U40: 0 | V40: 1 | W40: 0 | X40: 0 | Y40: 0 | Z40: 0 | AA40: 0
B41: 120 | C41: 2.84399 | D41: 0.9818837202 | E41: 0.0003299493163 | F41: 0.01761832601 | G41: 5.46253189e-09 | H41: 6.136271511e-07 | I41: 0.0001673853809 | J41: -0.9956658821 | K41: -0.4052688622 | O41: 8 | R41: 0 | S41: 0 | T41: 0 | U41: 0 | V41: 0 | W41: 0 | X41: 0 | Y41: 1 | Z41: 0 | AA41: 0
B42: 121 | C42: 1.43603 | D42: 9.166959884e-05 | E42: 0.005796323317 | F42: 0.9823662016 | G42: 8.328548504e-05 | H42: 5.963041678e-05 | I42: 0.0116028896 | J42: 0.058819506 | K42: -0.9991478382 | O42: 1 | R42: 1 | S42: 0 | T42: 0 | U42: 0 | V42: 0 | W42: 0 | X42: 0 | Y42: 0 | Z42: 0 | AA42: 0
B43: 122 | C43: 2.40913 | D43: 5.966539397e-07 | E43: 0.0004427672065 | F43: 0.2118314591 | G43: 0.4298618419 | H43: 3.956980487e-05 | I43: 0.3578237654 | J43: -0.76809415 | K43: -0.06948308115 | O43: 2 | R43: 0 | S43: 1 | T43: 0 | U43: 0 | V43: 0 | W43: 0 | X43: 0 | Y43: 0 | Z43: 0 | AA43: 0
B44: 126 | C44: 0.90548 | D44: 0.0009981681358 | E44: 0.002488602676 | F44: 9.849658718e-06 | G44: 0.0003477382086 | H44: 9.078066423e-05 | I44: 0.9960648607 | J44: -0.1909777967 | K44: -0.9987211728 | O44: 10 | R44: 0 | S44: 0 | T44: 0 | U44: 0 | V44: 0 | W44: 0 | X44: 0 | Y44: 0 | Z44: 0 | AA44: 1
B45: 127 | C45: 3.40403 | D45: 0.007489913784 | E45: 0.6451485778 | F45: 0.3457332968 | G45: 4.80339777e-07 | H45: 3.908561208e-05 | I45: 0.001588645727 | J45: -0.03437965361 | K45: -0.8635586469 | O45: 9 | R45: 0 | S45: 0 | T45: 0 | U45: 0 | V45: 0 | W45: 0 | X45: 0 | Y45: 0 | Z45: 1 | AA45: 0
B46: 128 | C46: 1.42897 | D46: 0.001101024131 | E46: 0.00383647646 | F46: 0.01629570378 | G46: 0.7183670096 | H46: 0.06333819834 | I46: 0.1970615876 | J46: -0.9376643744 | K46: -0.667630033 | O46: 6 | R46: 0 | S46: 0 | T46: 0 | U46: 0 | V46: 0 | W46: 1 | X46: 0 | Y46: 0 | Z46: 0 | AA46: 0
B47: 129 | C47: 1.05878 | D47: 3.558205089e-07 | E47: 0.0002980696083 | F47: 2.510882093e-05 | G47: 0.03267068359 | H47: 3.957932286e-05 | I47: 0.9669662028 | J47: -0.103195129 | K47: -0.9539694253 | O47: 5 | R47: 0 | S47: 0 | T47: 0 | U47: 0 | V47: 1 | W47: 0 | X47: 0 | Y47: 0 | Z47: 0 | AA47: 0
B48: 130 | C48: 1.03443 | D48: 1.696091198e-06 | E48: 0.9774785138 | F48: 0.001178857973 | G48: 0.0008551967008 | H48: 0.0009936393966 | I48: 0.01949209607 | J48: -0.8553731714 | K48: -0.1246513778 | O48: 10 | R48: 0 | S48: 0 | T48: 0 | U48: 0 | V48: 0 | W48: 0 | X48: 0 | Y48: 0 | Z48: 0 | AA48: 1
B49: 131 | C49: 2.51962 | D49: 6.556078078e-10 | E49: 7.791669689e-07 | F49: 0.0003117515189 | G49: 1.993063656e-06 | H49: 0.9996854561 | I49: 1.945508203e-08 | J49: -0.8328988825 | K49: -0.01305723277 | O49: 6 | R49: 0 | S49: 0 | T49: 0 | U49: 0 | V49: 0 | W49: 1 | X49: 0 | Y49: 0 | Z49: 0 | AA49: 0
B50: 132 | C50: 3.53699 | D50: 3.5759952e-06 | E50: 0.01405501949 | F50: 0.9848346734 | G50: 0.001006912413 | H50: 8.325674056e-05 | I50: 1.656199384e-05 | J50: -0.4988885601 | K50: 0.2371800628 | O50: 3 | R50: 0 | S50: 0 | T50: 1 | U50: 0 | V50: 0 | W50: 0 | X50: 0 | Y50: 0 | Z50: 0 | AA50: 0
B51: 133 | C51: 1.08639 | D51: 5.922892267e-08 | E51: 0.001643346656 | F51: 2.238278324e-07 | G51: 8.451163964e-05 | H51: 0.9978578694 | I51: 0.0004139892175 | J51: 0.3266185487 | K51: 0.1040768478 | O51: 1 | R51: 1 | S51: 0 | T51: 0 | U51: 0 | V51: 0 | W51: 0 | X51: 0 | Y51: 0 | Z51: 0 | AA51: 0
B52: 135 | C52: 0.80542 | D52: 9.924100791e-05 | E52: 0.0004293750462 | F52: 0.4115728591 | G52: 0.5060809275 | H52: 0.07821505766 | I52: 0.003602539681 | J52: 0.1409923096 | K52: -0.2427083201 | O52: 9 | R52: 0 | S52: 0 | T52: 0 | U52: 0 | V52: 0 | W52: 0 | X52: 0 | Y52: 0 | Z52: 1 | AA52: 0
B53: 136 | C53: 0.27408 | D53: 2.767059187e-10 | E53: 1.07208226e-06 | F53: 8.799438427e-05 | G53: 0.9997945099 | H53: 4.512717422e-05 | I53: 7.129619745e-05 | J53: 0.9890049345 | K53: -0.990207536 | O53: 4 | R53: 0 | S53: 0 | T53: 0 | U53: 1 | V53: 0 | W53: 0 | X53: 0 | Y53: 0 | Z53: 0 | AA53: 0
B54: 138 | C54: 0.92119 | D54: 0.001621278693 | E54: 0.01993754867 | F54: 0.001236406883 | G54: 0.002964118809 | H54: 0.9741829171 | I54: 5.772980746e-05 | J54: 0.539031318 | K54: 0.9174269119 | O54: 4 | R54: 0 | S54: 0 | T54: 0 | U54: 1 | V54: 0 | W54: 0 | X54: 0 | Y54: 0 | Z54: 0 | AA54: 0
B55: 139 | C55: 0.97925 | D55: 3.603608396e-05 | E55: 0.01895130147 | F55: 7.398496993e-05 | G55: 0.9409073399 | H55: 0.0003070007018 | I55: 0.03972433691 | J55: -0.9869804708 | K55: 0.1860966529 | O55: 7 | R55: 0 | S55: 0 | T55: 0 | U55: 0 | V55: 0 | W55: 0 | X55: 1 | Y55: 0 | Z55: 0 | AA55: 0
B56: 140 | C56: 0.29335 | D56: 1.416514216e-05 | E56: 7.896530531e-05 | F56: 9.075117505e-05 | G56: 0.2439580974 | H56: 2.233818783e-05 | I56: 0.7558356828 | J56: -0.8056251737 | K56: -0.06940698669 | O56: 6 | R56: 0 | S56: 0 | T56: 0 | U56: 0 | V56: 0 | W56: 1 | X56: 0 | Y56: 0 | Z56: 0 | AA56: 0
B57: 141 | C57: 0.95627 | D57: 0.926174571 | E57: 0.002140870939 | F57: 0.000639669539 | G57: 0.01823230965 | H57: 0.0009520006795 | I57: 0.05186057824 | J57: 0.05259459816 | K57: 0.2667533708 | O57: 10 | R57: 0 | S57: 0 | T57: 0 | U57: 0 | V57: 0 | W57: 0 | X57: 0 | Y57: 0 | Z57: 0 | AA57: 1
B58: 143 | C58: 1.1109 | D58: 3.490588469e-07 | E58: 0.9102479728 | F58: 5.202393483e-05 | G58: 0.0001071283238 | H58: 0.0394248057 | I58: 0.05016772018 | J58: -0.9216760957 | K58: 0.04829719177 | O58: 1 | R58: 1 | S58: 0 | T58: 0 | U58: 0 | V58: 0 | W58: 0 | X58: 0 | Y58: 0 | Z58: 0 | AA58: 0
B59: 145 | C59: 1.18077 | D59: 0.03607974814 | E59: 0.9630268286 | F59: 0.0008805024513 | G59: 4.193773658e-08 | H59: 1.105636842e-05 | I59: 1.822522044e-06 | J59: 0.1114056869 | K59: -0.984494237 | O59: 8 | R59: 0 | S59: 0 | T59: 0 | U59: 0 | V59: 0 | W59: 0 | X59: 0 | Y59: 1 | Z59: 0 | AA59: 0
B60: 148 | C60: 1.0485 | D60: 1.829781953e-05 | E60: 0.001098942186 | F60: 8.465356998e-06 | G60: 0.9862217722 | H60: 0.001902631691 | I60: 0.01074989076 | J60: -0.02999393118 | K60: 0.4723920568 | O60: 8 | R60: 0 | S60: 0 | T60: 0 | U60: 0 | V60: 0 | W60: 0 | X60: 0 | Y60: 1 | Z60: 0 | AA60: 0
B61: 150 | C61: 1.51638 | D61: 0.004425139152 | E61: 0.00146624261 | F61: 0.9918033186 | G61: 1.801653676e-05 | H61: 1.778227292e-05 | I61: 0.002269500779 | J61: -0.9533670981 | K61: -0.7741923703 | O61: 2 | R61: 0 | S61: 1 | T61: 0 | U61: 0 | V61: 0 | W61: 0 | X61: 0 | Y61: 0 | Z61: 0 | AA61: 0
B62: 151 | C62: 1.40141 | D62: 0.0006778942359 | E62: 0.08567183209 | F62: 0.2653084257 | G62: 0.00855734196 | H62: 0.63948562 | I62: 0.0002988860065 | J62: 0.2495195069 | K62: -0.7947699642 | O62: 3 | R62: 0 | S62: 0 | T62: 1 | U62: 0 | V62: 0 | W62: 0 | X62: 0 | Y62: 0 | Z62: 0 | AA62: 0
B63: 152 | C63: 0.95815 | D63: 3.054681666e-06 | E63: 8.006993831e-06 | F63: 4.709733249e-06 | G63: 0.1630214544 | H63: 2.478489863e-05 | I63: 0.8369379893 | J63: -0.4621072103 | K63: 0.05160609999 | O63: 5 | R63: 0 | S63: 0 | T63: 0 | U63: 0 | V63: 1 | W63: 0 | X63: 0 | Y63: 0 | Z63: 0 | AA63: 0
B64: 153 | C64: 2.55482 | D64: 2.436122714e-06 | E64: 0.06017349922 | F64: 6.370861098e-07 | G64: 0.8877756108 | H64: 4.454737461e-05 | I64: 0.05200326942 | J64: -0.9656174412 | K64: -0.8872935526 | O64: 9 | R64: 0 | S64: 0 | T64: 0 | U64: 0 | V64: 0 | W64: 0 | X64: 0 | Y64: 0 | Z64: 1 | AA64: 0
B65: 155 | C65: 1.09502 | D65: 0.676622955 | E65: 0.2678039822 | F65: 0.009801975065 | G65: 0.009702525874 | H65: 0.001206816541 | I65: 0.03486174528 | J65: -0.5984237223 | K65: 0.005716646287 | O65: 3 | R65: 0 | S65: 0 | T65: 1 | U65: 0 | V65: 0 | W65: 0 | X65: 0 | Y65: 0 | Z65: 0 | AA65: 0
B66: 156 | C66: 1.08155 | D66: 0.01783266275 | E66: 0.1156071135 | F66: 0.08706629347 | G66: 5.185085508e-05 | H66: 0.7790944384 | I66: 0.0003476409991 | J66: -0.1522010574 | K66: -0.7787721979 | O66: 4 | R66: 0 | S66: 0 | T66: 0 | U66: 1 | V66: 0 | W66: 0 | X66: 0 | Y66: 0 | Z66: 0 | AA66: 0
B67: 157 | C67: 0.26359 | D67: 6.504770338e-05 | E67: 0.0009024567778 | F67: 0.003842492421 | G67: 0.8058294253 | H67: 0.1834865488 | I67: 0.005874029067 | J67: 0.9848295961 | K67: -0.5622060871 | O67: 7 | R67: 0 | S67: 0 | T67: 0 | U67: 0 | V67: 0 | W67: 0 | X67: 1 | Y67: 0 | Z67: 0 | AA67: 0
B68: 158 | C68: 5.07309 | D68: 3.345327194e-07 | E68: 2.83453734e-07 | F68: 0.9976895451 | G68: 0.002291388781 | H68: 1.043595018e-05 | I68: 8.012138083e-06 | J68: 0.05459516781 | K68: 0.6374758997 | O68: 10 | R68: 0 | S68: 0 | T68: 0 | U68: 0 | V68: 0 | W68: 0 | X68: 0 | Y68: 0 | Z68: 0 | AA68: 1
B69: 162 | C69: 1.42988 | D69: 0.0004039500339 | E69: 0.9989544148 | F69: 3.912473161e-05 | G69: 9.758838721e-05 | H69: 5.149579815e-05 | I69: 0.0004534262835 | J69: -0.04909103912 | K69: 0.8244701308 | O69: 9 | R69: 0 | S69: 0 | T69: 0 | U69: 0 | V69: 0 | W69: 0 | X69: 0 | Y69: 0 | Z69: 1 | AA69: 0
B70: 163 | C70: 0.33222 | D70: 0.01052372261 | E70: 0.01085264511 | F70: 8.711402043e-06 | G70: 8.166235619e-09 | H70: 0.978546459 | I70: 6.845370893e-05 | J70: -0.396537442 | K70: 0.0672842271 | O70: 7 | R70: 0 | S70: 0 | T70: 0 | U70: 0 | V70: 0 | W70: 0 | X70: 1 | Y70: 0 | Z70: 0 | AA70: 0
B71: 165 | C71: 0.58184 | D71: 1.950597424e-06 | E71: 0.01724812308 | F71: 4.010211013e-05 | G71: 0.01597026375 | H71: 1.475466725e-05 | I71: 0.9667248058 | J71: 0.02484149696 | K71: -0.9978209928 | O71: 3 | R71: 0 | S71: 0 | T71: 1 | U71: 0 | V71: 0 | W71: 0 | X71: 0 | Y71: 0 | Z71: 0 | AA71: 0
B72: 166 | C72: 1.12321 | D72: 1.533566157e-06 | E72: 0.0002529047289 | F72: 0.1271758666 | G72: 0.8111373192 | H72: 0.0001328983969 | I72: 0.0612994775 | J72: -0.8968991468 | K72: -0.9960981444 | O72: 5 | R72: 0 | S72: 0 | T72: 0 | U72: 0 | V72: 1 | W72: 0 | X72: 0 | Y72: 0 | Z72: 0 | AA72: 0
B73: 167 | C73: 0.75569 | D73: 2.936332961e-09 | E73: 0.9999996121 | F73: 5.334048349e-10 | G73: 1.378105011e-08 | H73: 3.704814446e-07 | I73: 1.512287849e-10 | J73: -0.02086673554 | K73: -0.5649733933 | O73: 8 | R73: 0 | S73: 0 | T73: 0 | U73: 0 | V73: 0 | W73: 0 | X73: 0 | Y73: 1 | Z73: 0 | AA73: 0
B74: 168 | C74: 1.021 | D74: 1.843962838e-07 | E74: 0.02951995614 | F74: 2.78985195e-06 | G74: 0.9284093479 | H74: 4.289053701e-05 | I74: 0.04202483113 | J74: -0.3147051676 | K74: -0.02311869571 | O74: 9 | R74: 0 | S74: 0 | T74: 0 | U74: 0 | V74: 0 | W74: 0 | X74: 0 | Y74: 0 | Z74: 1 | AA74: 0
B75: 169 | C75: 1.33944 | D75: 0.01474510898 | E75: 0.9752342151 | F75: 0.0005481380433 | G75: 0.0007317739743 | H75: 0.005824232133 | I75: 0.002916531758 | J75: -0.5639860358 | K75: 0.04781568393 | O75: 9 | R75: 0 | S75: 0 | T75: 0 | U75: 0 | V75: 0 | W75: 0 | X75: 0 | Y75: 0 | Z75: 1 | AA75: 0
B76: 170 | C76: 1.07086 | D76: 8.17832257e-07 | E76: 0.004742474817 | F76: 0.0006738846908 | G76: 0.09152414631 | H76: 0.05054225827 | I76: 0.8525164181 | J76: -0.117473198 | K76: -0.1040062526 | O76: 3 | R76: 0 | S76: 0 | T76: 1 | U76: 0 | V76: 0 | W76: 0 | X76: 0 | Y76: 0 | Z76: 0 | AA76: 0
B77: 172 | C77: 0.37716 | D77: 3.914278711e-07 | E77: 0.0007766529514 | F77: 0.005744814391 | G77: 5.626290857e-05 | H77: 0.0003101304309 | I77: 0.9931117479 | J77: -0.9644145181 | K77: -0.01745895683 | O77: 1 | R77: 1 | S77: 0 | T77: 0 | U77: 0 | V77: 0 | W77: 0 | X77: 0 | Y77: 0 | Z77: 0 | AA77: 0
B78: 173 | C78: 2.28494 | D78: 0.0004808856437 | E78: 0.1586449086 | F78: 0.0005370070261 | G78: 0.02287332548 | H78: 9.761531862e-05 | I78: 0.8173662579 | J78: -0.01352460878 | K78: 0.008881416841 | O78: 10 | R78: 0 | S78: 0 | T78: 0 | U78: 0 | V78: 0 | W78: 0 | X78: 0 | Y78: 0 | Z78: 0 | AA78: 1
B79: 174 | C79: 0.61696 | D79: 0.9887355911 | E79: 8.63979761e-05 | F79: 0.01076930491 | G79: 1.102073754e-08 | H79: 3.597723265e-05 | I79: 0.0003727177585 | J79: -0.994240918 | K79: -0.993099301 | O79: 4 | R79: 0 | S79: 0 | T79: 0 | U79: 1 | V79: 0 | W79: 0 | X79: 0 | Y79: 0 | Z79: 0 | AA79: 0
B80: 175 | C80: 1.25201 | D80: 0.03847705622 | E80: 0.9193817584 | F80: 0.03119686582 | G80: 0.001064396789 | H80: 0.000114634108 | I80: 0.009765288623 | J80: 0.230475384 | K80: 0.7960253173 | O80: 6 | R80: 0 | S80: 0 | T80: 0 | U80: 0 | V80: 0 | W80: 1 | X80: 0 | Y80: 0 | Z80: 0 | AA80: 0
B81: 176 | C81: 1.19761 | D81: 2.34973442e-07 | E81: 0.0001520506873 | F81: 6.841287671e-06 | G81: 2.178686507e-06 | H81: 0.9998386923 | I81: 2.035174085e-09 | J81: 0.1203410614 | K81: -0.415662221 | O81: 8 | R81: 0 | S81: 0 | T81: 0 | U81: 0 | V81: 0 | W81: 0 | X81: 0 | Y81: 1 | Z81: 0 | AA81: 0
B82: 177 | C82: 1.09825 | D82: 0.9407558249 | E82: 0.0009761202702 | F82: 0.05649330972 | G82: 1.837879191e-07 | H82: 0.001745421361 | I82: 2.913999971e-05 | J82: -0.01008935939 | K82: 0.07933496657 | O82: 9 | R82: 0 | S82: 0 | T82: 0 | U82: 0 | V82: 0 | W82: 0 | X82: 0 | Y82: 0 | Z82: 1 | AA82: 0
B83: 178 | C83: 1.0909 | D83: 0.2825285718 | E83: 0.4458611884 | F83: 1.430432114e-06 | G83: 9.097548545e-06 | H83: 0.2699076393 | I83: 0.001692072479 | J83: 0.3351217127 | K83: 0.9838053173 | O83: 1 | R83: 1 | S83: 0 | T83: 0 | U83: 0 | V83: 0 | W83: 0 | X83: 0 | Y83: 0 | Z83: 0 | AA83: 0
B84: 181 | C84: 0.52201 | D84: 0.004344023399 | E84: 0.7521632236 | F84: 0.2066940937 | G84: 0.0002006986707 | H84: 0.002031328429 | I84: 0.03456663216 | J84: -0.9922410052 | K84: 0.1224714508 | O84: 2 | R84: 0 | S84: 1 | T84: 0 | U84: 0 | V84: 0 | W84: 0 | X84: 0 | Y84: 0 | Z84: 0 | AA84: 0
B85: 182 | C85: 1.09952 | D85: 4.796542887e-07 | E85: 0.003020206531 | F85: 0.2488247407 | G85: 0.3230831468 | H85: 0.425017692 | I85: 5.373434689e-05 | J85: 0.01575348755 | K85: -0.5798615237 | O85: 5 | R85: 0 | S85: 0 | T85: 0 | U85: 0 | V85: 1 | W85: 0 | X85: 0 | Y85: 0 | Z85: 0 | AA85: 0
B86: 184 | C86: 1.53672 | D86: 0.0008665315818 | E86: 5.678208189e-05 | F86: 0.998907801 | G86: 0.0001281353001 | H86: 1.950515428e-06 | I86: 3.879956966e-05 | J86: 0.007914356968 | K86: -0.9948565535 | O86: 6 | R86: 0 | S86: 0 | T86: 0 | U86: 0 | V86: 0 | W86: 1 | X86: 0 | Y86: 0 | Z86: 0 | AA86: 0
B87: 187 | C87: 3.52394 | D87: 0.02887371261 | E87: 0.4382449172 | F87: 0.5321320137 | G87: 0.0002423022507 | H87: 0.0004688045103 | I87: 3.824969477e-05 | J87: -0.08924370583 | K87: -0.9441815335 | O87: 4 | R87: 0 | S87: 0 | T87: 0 | U87: 1 | V87: 0 | W87: 0 | X87: 0 | Y87: 0 | Z87: 0 | AA87: 0
B88: 192 | C88: 1.71007 | D88: 0.9998306253 | E88: 4.755376426e-06 | F88: 4.097115597e-05 | G88: 8.460565196e-10 | H88: 5.099500677e-08 | I88: 0.0001235963762 | J88: 0.102445578 | K88: 0.5096133679 | O88: 3 | R88: 0 | S88: 0 | T88: 1 | U88: 0 | V88: 0 | W88: 0 | X88: 0 | Y88: 0 | Z88: 0 | AA88: 0
B89: 193 | C89: 2.29711 | D89: 0.9864231144 | E89: 9.42620895e-05 | F89: 0.001234573277 | G89: 8.376208748e-06 | H89: 1.024717819e-05 | I89: 0.01222942685 | J89: 0.03951340237 | K89: -0.9625683851 | O89: 8 | R89: 0 | S89: 0 | T89: 0 | U89: 0 | V89: 0 | W89: 0 | X89: 0 | Y89: 1 | Z89: 0 | AA89: 0
B90: 196 | C90: 1.781 | D90: 0.007952739983 | E90: 0.3679867805 | F90: 0.004240126423 | G90: 0.0002518699903 | H90: 0.6192906417 | I90: 0.0002778413474 | J90: -0.4890703726 | K90: -0.938277553 | O90: 8 | R90: 0 | S90: 0 | T90: 0 | U90: 0 | V90: 0 | W90: 0 | X90: 0 | Y90: 1 | Z90: 0 | AA90: 0
B91: 197 | C91: 0.94429 | D91: 1.343235507e-06 | E91: 0.3221724679 | F91: 0.004957344124 | G91: 0.4314805905 | H91: 0.02863013921 | I91: 0.212758115 | J91: -0.994671515 | K91: 0.6578615117 | O91: 1 | R91: 1 | S91: 0 | T91: 0 | U91: 0 | V91: 0 | W91: 0 | X91: 0 | Y91: 0 | Z91: 0 | AA91: 0
B92: 199 | C92: 2.35884 | D92: 4.386674132e-07 | E92: 0.005644895252 | F92: 0.002433497044 | G92: 3.194158909e-05 | H92: 0.9918575528 | I92: 3.167461139e-05 | J92: -0.04306967685 | K92: -0.2065700075 | O92: 7 | R92: 0 | S92: 0 | T92: 0 | U92: 0 | V92: 0 | W92: 0 | X92: 1 | Y92: 0 | Z92: 0 | AA92: 0
B93: 200 | C93: 0.58184 | D93: 0.1013140064 | E93: 0.007371075613 | F93: 0.8910054991 | G93: 1.63438078e-08 | H93: 0.0001386232245 | I93: 0.0001707792827 | J93: -0.1655294095 | K93: 0.326266042 | O93: 9 | R93: 0 | S93: 0 | T93: 0 | U93: 0 | V93: 0 | W93: 0 | X93: 0 | Y93: 0 | Z93: 1 | AA93: 0
B94: 201 | C94: 1.42047 | D94: 4.829644524e-05 | E94: 0.04032904732 | F94: 0.001435936277 | G94: 0.2232091087 | H94: 0.06396962151 | I94: 0.6710079897 | J94: -0.2120167832 | K94: -0.6303872158 | O94: 7 | R94: 0 | S94: 0 | T94: 0 | U94: 0 | V94: 0 | W94: 0 | X94: 1 | Y94: 0 | Z94: 0 | AA94: 0
B95: 205 | C95: 2.26241 | D95: 6.559651721e-06 | E95: 0.7202883824 | F95: 0.00225526299 | G95: 0.000451260003 | H95: 0.2463813722 | I95: 0.0306171628 | J95: -0.6840770032 | K95: -0.02121076073 | O95: 10 | R95: 0 | S95: 0 | T95: 0 | U95: 0 | V95: 0 | W95: 0 | X95: 0 | Y95: 0 | Z95: 0 | AA95: 1
B96: 207 | C96: 0.9262 | D96: 0.000146994908 | E96: 0.7569073445 | F96: 0.0002263015288 | G96: 2.927613249e-08 | H96: 0.2427193278 | I96: 1.969133761e-09 | J96: 0.02063698726 | K96: 0.06384234439 | O96: 2 | R96: 0 | S96: 1 | T96: 0 | U96: 0 | V96: 0 | W96: 0 | X96: 0 | Y96: 0 | Z96: 0 | AA96: 0
B97: 209 | C97: 1.07251 | D97: 4.910318287e-05 | E97: 0.1002106659 | F97: 0.0004255159612 | G97: 0.3981493588 | H97: 0.5009658179 | I97: 0.0001995382313 | J97: 0.02346495665 | K97: -0.9649087956 | O97: 5 | R97: 0 | S97: 0 | T97: 0 | U97: 0 | V97: 1 | W97: 0 | X97: 0 | Y97: 0 | Z97: 0 | AA97: 0
B98: 210 | C98: 0.3204 | D98: 1.135218971e-06 | E98: 3.33654396e-05 | F98: 0.0001096436839 | G98: 4.064975076e-05 | H98: 2.993509506e-05 | I98: 0.9997852708 | J98: -0.9770340214 | K98: 0.7951689272 | O98: 4 | R98: 0 | S98: 0 | T98: 0 | U98: 1 | V98: 0 | W98: 0 | X98: 0 | Y98: 0 | Z98: 0 | AA98: 0
B99: 212 | C99: 0.96196 | D99: 2.696030292e-08 | E99: 0.002423986392 | F99: 0.000168408795 | G99: 0.9973246551 | H99: 6.500632934e-05 | I99: 1.791644032e-05 | J99: 0.00716490891 | K99: 0.7464631358 | O99: 8 | R99: 0 | S99: 0 | T99: 0 | U99: 0 | V99: 0 | W99: 0 | X99: 0 | Y99: 1 | Z99: 0 | AA99: 0
B100: 213 | C100: 0.28869 | D100: 3.17693685e-14 | E100: 1.901025449e-08 | F100: 1.71985141e-06 | G100: 0.9388943013 | H100: 0.06109618417 | I100: 7.775651877e-06 | J100: 0.3041406974 | K100: -0.998919956 | O100: 6 | R100: 0 | S100: 0 | T100: 0 | U100: 0 | V100: 0 | W100: 1 | X100: 0 | Y100: 0 | Z100: 0 | AA100: 0
B101: 214 | C101: 3.32692 | D101: 3.514896875e-05 | E101: 9.406484635e-05 | F101: 0.0004417116187 | G101: 1.157876665e-05 | H101: 1.469298153e-07 | I101: 0.9994173489 | J101: -0.1548463792 | K101: -0.2686136872 | O101: 6 | R101: 0 | S101: 0 | T101: 0 | U101: 0 | V101: 0 | W101: 1 | X101: 0 | Y101: 0 | Z101: 0 | AA101: 0
B102: 215 | C102: 1.78944 | D102: 3.465815678e-07 | E102: 0.009118814183 | F102: 0.0803996252 | G102: 0.0455077851 | H102: 0.8648327871 | I102: 0.0001406418327 | J102: -0.2079845078 | K102: 0.8429182068 | O102: 5 | R102: 0 | S102: 0 | T102: 0 | U102: 0 | V102: 1 | W102: 0 | X102: 0 | Y102: 0 | Z102: 0 | AA102: 0
B103: 217 | C103: 1.27341 | D103: 0.002876369528 | E103: 8.758027418e-05 | F103: 1.047724783e-06 | G103: 6.129100235e-11 | H103: 0.997030938 | I103: 4.064455706e-06 | J103: 0.03029624254 | K103: -0.9990796149 | O103: 3 | R103: 0 | S103: 0 | T103: 1 | U103: 0 | V103: 0 | W103: 0 | X103: 0 | Y103: 0 | Z103: 0 | AA103: 0
B104: 218 | C104: 0.91926 | D104: 0.08991367693 | E104: 0.3699378302 | F104: 0.3344313287 | G104: 0.000261949261 | H104: 0.0001610611165 | I104: 0.2052941538 | J104: -0.9952635783 | K104: -0.9990413987 | O104: 7 | R104: 0 | S104: 0 | T104: 0 | U104: 0 | V104: 0 | W104: 0 | X104: 1 | Y104: 0 | Z104: 0 | AA104: 0
B105: 220 | C105: 2.84399 | D105: 2.009757652e-07 | E105: 0.03556883358 | F105: 6.891237648e-06 | G105: 3.840980272e-07 | H105: 0.9644236227 | I105: 6.742507067e-08 | J105: -0.9985908773 | K105: -0.9711836206 | O105: 5 | R105: 0 | S105: 0 | T105: 0 | U105: 0 | V105: 1 | W105: 0 | X105: 0 | Y105: 0 | Z105: 0 | AA105: 0
B106: 225 | C106: 0.89723 | D106: 5.195490426e-07 | E106: 0.05686822244 | F106: 0.05914218354 | G106: 0.8727782515 | H106: 0.0002864488963 | I106: 0.01092437404 | J106: -0.9610632785 | K106: -0.3282708678 | O106: 7 | R106: 0 | S106: 0 | T106: 0 | U106: 0 | V106: 0 | W106: 0 | X106: 1 | Y106: 0 | Z106: 0 | AA106: 0
B107: 226 | C107: 2.65178 | D107: 0.0009028721472 | E107: 0.02084139858 | F107: 0.0001640693234 | G107: 0.4071732984 | H107: 0.5652159868 | I107: 0.005702374721 | J107: -0.3911695156 | K107: -0.952183905 | O107: 10 | R107: 0 | S107: 0 | T107: 0 | U107: 0 | V107: 0 | W107: 0 | X107: 0 | Y107: 0 | Z107: 0 | AA107: 1
B108: 229 | C108: 2.62922 | D108: 0.007747477848 | E108: 0.747108377 | F108: 0.0006090927458 | G108: 0.006046831431 | H108: 0.002749090335 | I108: 0.2357391307 | J108: -0.8792806994 | K108: 0.06117333086 | O108: 8 | R108: 0 | S108: 0 | T108: 0 | U108: 0 | V108: 0 | W108: 0 | X108: 0 | Y108: 1 | Z108: 0 | AA108: 0
B109: 233 | C109: 0.97432 | D109: 1.583831408e-09 | E109: 0.002374903778 | F109: 5.402472442e-06 | G109: 0.001809639862 | H109: 0.9957902348 | I109: 1.981751587e-05 | J109: -0.9989693397 | K109: 0.3195280996 | O109: 6 | R109: 0 | S109: 0 | T109: 0 | U109: 0 | V109: 0 | W109: 1 | X109: 0 | Y109: 0 | Z109: 0 | AA109: 0
B110: 236 | C110: 1.08334 | D110: 1.537326655e-09 | E110: 0.005447787421 | F110: 7.71876996e-09 | G110: 2.600407917e-06 | H110: 0.9945495924 | I110: 1.049813914e-08 | J110: -0.9978803675 | K110: 0.05570056013 | O110: 2 | R110: 0 | S110: 1 | T110: 0 | U110: 0 | V110: 0 | W110: 0 | X110: 0 | Y110: 0 | Z110: 0 | AA110: 0
B111: 237 | C111: 1.69016 | D111: 0.000145582177 | E111: 0.06823040751 | F111: 0.005224707122 | G111: 7.77322997e-06 | H111: 0.9263329619 | I111: 5.856809018e-05 | J111: -0.9068041704 | K111: 0.717559691 | O111: 5 | R111: 0 | S111: 0 | T111: 0 | U111: 0 | V111: 1 | W111: 0 | X111: 0 | Y111: 0 | Z111: 0 | AA111: 0
B112: 238 | C112: 0.95662 | D112: 4.639475832e-05 | E112: 0.7844949824 | F112: 0.0007215884734 | G112: 0.1200798134 | H112: 0.08973019062 | I112: 0.004927030363 | J112: 0.02078797729 | K112: -0.9723313437 | O112: 4 | R112: 0 | S112: 0 | T112: 0 | U112: 1 | V112: 0 | W112: 0 | X112: 0 | Y112: 0 | Z112: 0 | AA112: 0
B113: 239 | C113: 2.40173 | D113: 2.736185545e-07 | E113: 0.0006860232451 | F113: 0.0144407026 | G113: 0.9836157157 | H113: 0.001228766803 | I113: 2.851799393e-05 | J113: 0.3341711439 | K113: -0.9963530921 | O113: 6 | R113: 0 | S113: 0 | T113: 0 | U113: 0 | V113: 0 | W113: 1 | X113: 0 | Y113: 0 | Z113: 0 | AA113: 0
B114: 240 | C114: 0.85973 | D114: 0.002248274581 | E114: 0.0001296184769 | F114: 0.4517619997 | G114: 0.2329967741 | H114: 0.0001423172597 | I114: 0.3127210159 | J114: -0.134839297 | K114: -0.05484355386 | O114: 4 | R114: 0 | S114: 0 | T114: 0 | U114: 1 | V114: 0 | W114: 0 | X114: 0 | Y114: 0 | Z114: 0 | AA114: 0
B115: 245 | C115: 0.23997 | D115: 1.24432275e-06 | E115: 0.8672603034 | F115: 0.001553363825 | G115: 1.075492658e-06 | H115: 0.1311529505 | I115: 3.106237116e-05 | J115: 0.008725574024 | K115: -0.9999073417 | O115: 1 | R115: 1 | S115: 0 | T115: 0 | U115: 0 | V115: 0 | W115: 0 | X115: 0 | Y115: 0 | Z115: 0 | AA115: 0
B116: 249 | C116: 0.1611 | D116: 0.3394621916 | E116: 0.3893234934 | F116: 0.0006804782807 | G116: 0.0002717513596 | H116: 0.000552344262 | I116: 0.2697097411 | J116: 0.3505979933 | K116: 0.9464540372 | O116: 2 | R116: 0 | S116: 1 | T116: 0 | U116: 0 | V116: 0 | W116: 0 | X116: 0 | Y116: 0 | Z116: 0 | AA116: 0
B117: 253 | C117: 2.02465 | D117: 0.07222475365 | E117: 0.4874813731 | F117: 0.0008869427813 | G117: 0.0001306447989 | H117: 0.001837691244 | I117: 0.4374385944 | J117: 0.575145149 | K117: -0.8614653529 | O117: 4 | R117: 0 | S117: 0 | T117: 0 | U117: 1 | V117: 0 | W117: 0 | X117: 0 | Y117: 0 | Z117: 0 | AA117: 0
B118: 254 | C118: 2.98741 | D118: 0.9411106194 | E118: 0.05731313733 | F118: 0.001129877814 | G118: 8.513521902e-08 | H118: 8.890127447e-05 | I118: 0.0003573790278 | J118: 0.07058275448 | K118: 0.1252698847 | O118: 3 | R118: 0 | S118: 0 | T118: 1 | U118: 0 | V118: 0 | W118: 0 | X118: 0 | Y118: 0 | Z118: 0 | AA118: 0
B119: 256 | C119: 2.09574 | D119: 0.5947729141 | E119: 0.0008746144309 | F119: 0.376802183 | G119: 0.0003780272324 | H119: 2.333785389e-06 | I119: 0.02716992747 | J119: -0.1309204066 | K119: 0.5579727147 | O119: 9 | R119: 0 | S119: 0 | T119: 0 | U119: 0 | V119: 0 | W119: 0 | X119: 0 | Y119: 0 | Z119: 1 | AA119: 0
B120: 257 | C120: 0.97926 | D120: 4.720911117e-07 | E120: 0.8631441829 | F120: 3.262356573e-05 | G120: 0.08912335369 | H120: 5.839299691e-05 | I120: 0.04764097476 | J120: -0.08409264937 | K120: -0.03329390468 | O120: 7 | R120: 0 | S120: 0 | T120: 0 | U120: 0 | V120: 0 | W120: 0 | X120: 1 | Y120: 0 | Z120: 0 | AA120: 0
B121: 258 | C121: 1.28563 | D121: 4.378904209e-07 | E121: 6.281915253e-05 | F121: 7.046679739e-07 | G121: 1.028804098e-05 | H121: 0.9999257464 | I121: 3.841625655e-09 | J121: -0.9255600952 | K121: -0.8015888639 | O121: 7 | R121: 0 | S121: 0 | T121: 0 | U121: 0 | V121: 0 | W121: 0 | X121: 1 | Y121: 0 | Z121: 0 | AA121: 0
B122: 259 | C122: 2.12694 | D122: 0.002887477554 | E122: 0.130265223 | F122: 0.0004389264652 | G122: 0.008263230255 | H122: 0.8286432469 | I122: 0.02950189579 | J122: 0.06692417672 | K122: -0.9077392389 | O122: 10 | R122: 0 | S122: 0 | T122: 0 | U122: 0 | V122: 0 | W122: 0 | X122: 0 | Y122: 0 | Z122: 0 | AA122: 1
B123: 261 | C123: 1.10789 | D123: 5.326575319e-10 | E123: 2.172773273e-07 | F123: 3.68279828e-07 | G123: 0.999988186 | H123: 1.01018188e-08 | I123: 1.121779277e-05 | J123: 0.8214924506 | K123: -0.9519146763 | O123: 10 | R123: 0 | S123: 0 | T123: 0 | U123: 0 | V123: 0 | W123: 0 | X123: 0 | Y123: 0 | Z123: 0 | AA123: 1
B124: 262 | C124: 1.19655 | D124: 0.9998087133 | E124: 8.290621925e-05 | F124: 7.737644013e-05 | G124: 9.928164216e-10 | H124: 2.079526651e-05 | I124: 1.020778023e-05 | J124: -0.7227780766 | K124: 0.004052801732 | O124: 5 | R124: 0 | S124: 0 | T124: 0 | U124: 0 | V124: 1 | W124: 0 | X124: 0 | Y124: 0 | Z124: 0 | AA124: 0
B125: 263 | C125: 0.90419 | D125: 0.004488431826 | E125: 0.2493747105 | F125: 0.00138268948 | G125: 0.0001462593133 | H125: 0.7418398986 | I125: 0.00276801025 | J125: -0.008045274487 | K125: 0.9950885488 | O125: 1 | R125: 1 | S125: 0 | T125: 0 | U125: 0 | V125: 0 | W125: 0 | X125: 0 | Y125: 0 | Z125: 0 | AA125: 0
B126: 265 | C126: 0.52746 | D126: 2.226669354e-08 | E126: 2.13546461e-05 | F126: 4.024533158e-09 | G126: 1.583207698e-07 | H126: 0.9999768395 | I126: 1.621269774e-06 | J126: 0.05399842022 | K126: -0.9870774195 | O126: 9 | R126: 0 | S126: 0 | T126: 0 | U126: 0 | V126: 0 | W126: 0 | X126: 0 | Y126: 0 | Z126: 1 | AA126: 0
B127: 266 | C127: 0.38885 | D127: 2.979686259e-08 | E127: 9.675895889e-05 | F127: 0.003248238002 | G127: 0.8419354819 | H127: 0.154710249 | I127: 9.242345574e-06 | J127: -0.993536785 | K127: -0.0098061835 | O127: 2 | R127: 0 | S127: 1 | T127: 0 | U127: 0 | V127: 0 | W127: 0 | X127: 0 | Y127: 0 | Z127: 0 | AA127: 0
B128: 268 | C128: 0.90976 | D128: 0.00341035305 | E128: 0.7614680624 | F128: 0.0001171507993 | G128: 0.2278900028 | H128: 0.0003529726698 | I128: 0.006761458204 | J128: -0.9862885395 | K128: -0.6981061751 | O128: 7 | R128: 0 | S128: 0 | T128: 0 | U128: 0 | V128: 0 | W128: 0 | X128: 1 | Y128: 0 | Z128: 0 | AA128: 0
B129: 270 | C129: 0.30179 | D129: 0.6542710756 | E129: 0.3444453342 | F129: 0.0001216116306 | G129: 6.617277694e-07 | H129: 4.194059714e-07 | I129: 0.001160897394 | J129: 0.9579086983 | K129: -0.5166254979 | O129: 2 | R129: 0 | S129: 1 | T129: 0 | U129: 0 | V129: 0 | W129: 0 | X129: 0 | Y129: 0 | Z129: 0 | AA129: 0
B130: 271 | C130: 1.11043 | D130: 0.007217796778 | E130: 0.9439158917 | F130: 0.01919296372 | G130: 0.0008167600418 | H130: 0.01285400475 | I130: 0.01600258299 | J130: 0.2418924021 | K130: 0.03707791878 | O130: 3 | R130: 0 | S130: 0 | T130: 1 | U130: 0 | V130: 0 | W130: 0 | X130: 0 | Y130: 0 | Z130: 0 | AA130: 0
B131: 272 | C131: 0.8488 | D131: 1.305079608e-06 | E131: 0.0004357594527 | F131: 0.005267276498 | G131: 0.005421427081 | H131: 2.430588301e-05 | I131: 0.988849926 | J131: -0.9776718351 | K131: 0.9690353262 | O131: 3 | R131: 0 | S131: 0 | T131: 1 | U131: 0 | V131: 0 | W131: 0 | X131: 0 | Y131: 0 | Z131: 0 | AA131: 0
B132: 278 | C132: 1.19994 | D132: 0.02217367679 | E132: 0.84533972 | F132: 0.000722520757 | G132: 0.003005141333 | H132: 0.113088881 | I132: 0.01567006016 | J132: 0.2004977203 | K132: 0.5345580964 | O132: 4 | R132: 0 | S132: 0 | T132: 0 | U132: 1 | V132: 0 | W132: 0 | X132: 0 | Y132: 0 | Z132: 0 | AA132: 0
B133: 279 | C133: 0.4962 | D133: 0.4410830475 | E133: 0.0007385819259 | F133: 0.1681984218 | G133: 0.0001491334101 | H133: 9.402127619e-07 | I133: 0.3898298751 | J133: -0.4950444961 | K133: -0.9275221617 | O133: 6 | R133: 0 | S133: 0 | T133: 0 | U133: 0 | V133: 0 | W133: 1 | X133: 0 | Y133: 0 | Z133: 0 | AA133: 0
B134: 287 | C134: 0.23545 | D134: 1.599577924e-05 | E134: 0.9890422045 | F134: 0.001299661387 | G134: 0.0001831887957 | H134: 0.009414399946 | I134: 4.454962184e-05 | J134: -0.9993720756 | K134: -0.03131930169 | O134: 8 | R134: 0 | S134: 0 | T134: 0 | U134: 0 | V134: 0 | W134: 0 | X134: 0 | Y134: 1 | Z134: 0 | AA134: 0
B135: 289 | C135: 1.1538 | D135: 1.222777088e-06 | E135: 0.9943370291 | F135: 7.608646576e-08 | G135: 6.566239727e-05 | H135: 0.005551436251 | I135: 4.457337519e-05 | J135: -0.1976867282 | K135: -0.8945188052 | O135: 1 | R135: 1 | S135: 0 | T135: 0 | U135: 0 | V135: 0 | W135: 0 | X135: 0 | Y135: 0 | Z135: 0 | AA135: 0
B136: 290 | C136: 0.96696 | D136: 2.5586657e-05 | E136: 0.002907742076 | F136: 0.001508995229 | G136: 1.848143356e-08 | H136: 0.9955576575 | I136: 2.6820904e-11 | J136: -0.4342363132 | K136: 0.5179004859 | O136: 2 | R136: 0 | S136: 1 | T136: 0 | U136: 0 | V136: 0 | W136: 0 | X136: 0 | Y136: 0 | Z136: 0 | AA136: 0
B137: 291 | C137: 2.78329 | D137: 1.584058874e-09 | E137: 0.4097257235 | F137: 6.835127685e-09 | G137: 0.006789450171 | H137: 0.5809416653 | I137: 0.002543152621 | J137: -0.005604786032 | K137: -0.08346535492 | O137: 7 | R137: 0 | S137: 0 | T137: 0 | U137: 0 | V137: 0 | W137: 0 | X137: 1 | Y137: 0 | Z137: 0 | AA137: 0
B138: 294 | C138: 0.68818 | D138: 6.255995719e-05 | E138: 0.1614039283 | F138: 0.83526224 | G138: 0.002689126377 | H138: 0.0003425473043 | I138: 0.0002395981166 | J138: -0.7778215988 | K138: 0.07080280769 | O138: 3 | R138: 0 | S138: 0 | T138: 1 | U138: 0 | V138: 0 | W138: 0 | X138: 0 | Y138: 0 | Z138: 0 | AA138: 0
B139: 295 | C139: 3.60552 | D139: 1.494572689e-07 | E139: 0.7642039966 | F139: 7.91067716e-06 | G139: 0.004652164007 | H139: 0.2311351998 | I139: 5.794760587e-07 | J139: -0.1560137758 | K139: -0.9667051155 | O139: 10 | R139: 0 | S139: 0 | T139: 0 | U139: 0 | V139: 0 | W139: 0 | X139: 0 | Y139: 0 | Z139: 0 | AA139: 1
B140: 296 | C140: 2.61493 | D140: 6.400397618e-12 | E140: 1.933256062e-06 | F140: 2.701606494e-07 | G140: 0.9964047579 | H140: 4.310445158e-09 | I140: 0.00359303439 | J140: -0.02473613898 | K140: -0.9981902921 | O140: 7 | R140: 0 | S140: 0 | T140: 0 | U140: 0 | V140: 0 | W140: 0 | X140: 1 | Y140: 0 | Z140: 0 | AA140: 0
B141: 297 | C141: 0.27833 | D141: 1.283810005e-09 | E141: 9.146433064e-05 | F141: 6.335005652e-07 | G141: 0.9993438347 | H141: 0.000563544225 | I141: 5.219456889e-07 | J141: -0.5182037988 | K141: 0.282862557 | O141: 2 | R141: 0 | S141: 1 | T141: 0 | U141: 0 | V141: 0 | W141: 0 | X141: 0 | Y141: 0 | Z141: 0 | AA141: 0
B142: 298 | C142: 3.34401 | D142: 0.007440630479 | E142: 0.008647437896 | F142: 0.9536975967 | G142: 0.00320997112 | H142: 0.01637186992 | I142: 0.01063249384 | J142: 0.2974013638 | K142: 0.5314413415 | O142: 5 | R142: 0 | S142: 0 | T142: 0 | U142: 0 | V142: 1 | W142: 0 | X142: 0 | Y142: 0 | Z142: 0 | AA142: 0
B143: 299 | C143: 1.49286 | D143: 1.24182206e-06 | E143: 0.0006583624804 | F143: 0.004797409426 | G143: 0.005790235361 | H143: 0.9887395517 | I143: 1.319920224e-05 | J143: -0.001230912663 | K143: -0.737917034 | O143: 6 | R143: 0 | S143: 0 | T143: 0 | U143: 0 | V143: 0 | W143: 1 | X143: 0 | Y143: 0 | Z143: 0 | AA143: 0
B144: 302 | C144: 2.561 | D144: 0.9787546293 | E144: 0.02123615786 | F144: 8.721921734e-06 | G144: 3.743003114e-07 | H144: 1.018340276e-07 | I144: 1.476515899e-08 | J144: -0.01271531223 | K144: -0.4480321224 | O144: 8 | R144: 0 | S144: 0 | T144: 0 | U144: 0 | V144: 0 | W144: 0 | X144: 0 | Y144: 1 | Z144: 0 | AA144: 0
B145: 304 | C145: 2.65269 | D145: 5.473967135e-08 | E145: 0.758341401 | F145: 0.0002277744696 | G145: 0.2371077528 | H145: 0.004211996593 | I145: 0.00011102044 | J145: -0.9018349479 | K145: -0.9746520107 | O145: 1 | R145: 1 | S145: 0 | T145: 0 | U145: 0 | V145: 0 | W145: 0 | X145: 0 | Y145: 0 | Z145: 0 | AA145: 0
B146: 306 | C146: 0.20893 | D146: 0.06573502406 | E146: 0.009681330532 | F146: 0.04939067811 | G146: 0.0005240212156 | H146: 1.750041804e-05 | I146: 0.8746514457 | J146: 0.2498717762 | K146: 0.4976759596 | O146: 8 | R146: 0 | S146: 0 | T146: 0 | U146: 0 | V146: 0 | W146: 0 | X146: 0 | Y146: 1 | Z146: 0 | AA146: 0
B147: 309 | C147: 1.86787 | D147: 0.005014569499 | E147: 0.0006569845736 | F147: 3.58713134e-07 | G147: 6.125718007e-05 | H147: 0.0008075283168 | I147: 0.9934593017 | J147: 0.9963185631 | K147: 0.3037536328 | O147: 9 | R147: 0 | S147: 0 | T147: 0 | U147: 0 | V147: 0 | W147: 0 | X147: 0 | Y147: 0 | Z147: 1 | AA147: 0
B148: 310 | C148: 1.24397 | D148: 2.527756459e-11 | E148: 1.155990774e-06 | F148: 3.928838948e-05 | G148: 0.994361427 | H148: 9.150210713e-07 | I148: 0.005597213617 | J148: -0.07351639395 | K148: 0.7174724915 | O148: 6 | R148: 0 | S148: 0 | T148: 0 | U148: 0 | V148: 0 | W148: 1 | X148: 0 | Y148: 0 | Z148: 0 | AA148: 0
B149: 311 | C149: 0.43834 | D149: 0.003599293848 | E149: 0.9689259124 | F149: 1.984097899e-05 | G149: 0.01446423039 | H149: 8.231468889e-05 | I149: 0.0129084077 | J149: -0.5441260577 | K149: -0.3804267295 | O149: 3 | R149: 0 | S149: 0 | T149: 1 | U149: 0 | V149: 0 | W149: 0 | X149: 0 | Y149: 0 | Z149: 0 | AA149: 0
B150: 315 | C150: 0.56117 | D150: 2.408703268e-08 | E150: 0.0001692870288 | F150: 0.002461963691 | G150: 0.995869854 | H150: 0.0004182145456 | I150: 0.001080656695 | J150: -0.3651683973 | K150: 0.2605581966 | O150: 10 | R150: 0 | S150: 0 | T150: 0 | U150: 0 | V150: 0 | W150: 0 | X150: 0 | Y150: 0 | Z150: 0 | AA150: 1
B151: 316 | C151: 1.12346 | D151: 9.716249448e-09 | E151: 1.948260505e-06 | F151: 0.03532979937 | G151: 0.08186769071 | H151: 4.41945704e-07 | I151: 0.88280011 | J151: -0.003107793192 | K151: 0.8482571804 | O151: 8 | R151: 0 | S151: 0 | T151: 0 | U151: 0 | V151: 0 | W151: 0 | X151: 0 | Y151: 1 | Z151: 0 | AA151: 0
B152: 317 | C152: 2.15307 | D152: 3.048791782e-06 | E152: 0.0001941194926 | F152: 3.730126429e-07 | G152: 1.178148608e-09 | H152: 0.9998024557 | I152: 1.801281795e-09 | J152: 0.9939163353 | K152: -0.8926002867 | O152: 2 | R152: 0 | S152: 1 | T152: 0 | U152: 0 | V152: 0 | W152: 0 | X152: 0 | Y152: 0 | Z152: 0 | AA152: 0
B153: 318 | C153: 1.07667 | D153: 0.003910673525 | E153: 0.1009444908 | F153: 0.78872088 | G153: 4.04540121e-07 | H153: 0.1064224734 | I153: 1.077747332e-06 | J153: -0.01150815651 | K153: -0.9541563496 | O153: 4 | R153: 0 | S153: 0 | T153: 0 | U153: 1 | V153: 0 | W153: 0 | X153: 0 | Y153: 0 | Z153: 0 | AA153: 0
B154: 319 | C154: 2.57997 | D154: 2.937036111e-10 | E154: 0.0005684749559 | F154: 5.454663978e-05 | G154: 0.004368931257 | H154: 4.073620514e-05 | I154: 0.9949673106 | J154: -0.9992373743 | K154: -0.9971715446 | O154: 1 | R154: 1 | S154: 0 | T154: 0 | U154: 0 | V154: 0 | W154: 0 | X154: 0 | Y154: 0 | Z154: 0 | AA154: 0
B155: 320 | C155: 0.3555 | D155: 0.0008073678855 | E155: 0.99875423 | F155: 6.214464565e-05 | G155: 1.754133455e-05 | H155: 0.0002946168024 | I155: 6.409934048e-05 | J155: 0.01626647266 | K155: -0.1523483493 | O155: 9 | R155: 0 | S155: 0 | T155: 0 | U155: 0 | V155: 0 | W155: 0 | X155: 0 | Y155: 0 | Z155: 1 | AA155: 0
B156: 326 | C156: 0.496 | D156: 0.001027525 | E156: 0.3543738783 | F156: 0.009396048144 | G156: 0.0001479956442 | H156: 4.212653769e-05 | I156: 0.6350124263 | J156: -0.999899435 | K156: -0.7184273362 | O156: 7 | R156: 0 | S156: 0 | T156: 0 | U156: 0 | V156: 0 | W156: 0 | X156: 1 | Y156: 0 | Z156: 0 | AA156: 0
B157: 327 | C157: 1.01945 | D157: 0.8310983893 | E157: 0.1676855042 | F157: 0.0001757059875 | G157: 6.598423244e-09 | H157: 0.0006751327212 | I157: 0.0003652611742 | J157: -0.996887349 | K157: 0.7549053428 | O157: 5 | R157: 0 | S157: 0 | T157: 0 | U157: 0 | V157: 1 | W157: 0 | X157: 0 | Y157: 0 | Z157: 0 | AA157: 0
B158: 329 | C158: 1.00639 | D158: 6.25017229e-06 | E158: 0.06712619318 | F158: 0.07718443162 | G158: 0.003584147073 | H158: 0.7983594512 | I158: 0.05373952672 | J158: -0.9810508518 | K158: -0.03938238483 | O158: 10 | R158: 0 | S158: 0 | T158: 0 | U158: 0 | V158: 0 | W158: 0 | X158: 0 | Y158: 0 | Z158: 0 | AA158: 1
B159: 331 | C159: 0.78752 | D159: 0.01382460178 | E159: 0.9181368618 | F159: 0.06697231956 | G159: 1.12750901e-06 | H159: 0.0006080701315 | I159: 0.0004570192024 | J159: 0.9960892227 | K159: -0.07848917477 | O159: 6 | R159: 0 | S159: 0 | T159: 0 | U159: 0 | V159: 0 | W159: 1 | X159: 0 | Y159: 0 | Z159: 0 | AA159: 0
B160: 332 | C160: 3.14454 | D160: 0.04081205407 | E160: 5.331514749e-05 | F160: 0.003389266283 | G160: 4.299967229e-05 | H160: 0.852765486 | I160: 0.1029368789 | J160: 0.4488893494 | K160: 0.7088257221 | O160: 4 | R160: 0 | S160: 0 | T160: 0 | U160: 1 | V160: 0 | W160: 0 | X160: 0 | Y160: 0 | Z160: 0 | AA160: 0
B161: 333 | C161: 1.42567 | D161: 8.643526385e-06 | E161: 0.03156936327 | F161: 0.5141795777 | G161: 0.001269496422 | H161: 0.4528577681 | I161: 0.0001151510331 | J161: 0.3524029696 | K161: -0.5180207861 | O161: 2 | R161: 0 | S161: 1 | T161: 0 | U161: 0 | V161: 0 | W161: 0 | X161: 0 | Y161: 0 | Z161: 0 | AA161: 0
B162: 335 | C162: 1.32963 | D162: 0.1243198466 | E162: 0.06084686636 | F162: 0.05046741294 | G162: 0.0659356684 | H162: 0.04373575403 | I162: 0.6546944517 | J162: 0.7260295401 | K162: 0.6059000355 | O162: 10 | R162: 0 | S162: 0 | T162: 0 | U162: 0 | V162: 0 | W162: 0 | X162: 0 | Y162: 0 | Z162: 0 | AA162: 1
B163: 336 | C163: 0.90583 | D163: 1.273489467e-06 | E163: 8.286546353e-05 | F163: 0.07357522075 | G163: 1.434471508e-05 | H163: 0.8855748802 | I163: 0.04075141539 | J163: -0.2283360514 | K163: -0.2945629422 | O163: 7 | R163: 0 | S163: 0 | T163: 0 | U163: 0 | V163: 0 | W163: 0 | X163: 1 | Y163: 0 | Z163: 0 | AA163: 0
B164: 338 | C164: 2.04286 | D164: 1.110649644e-08 | E164: 0.1806554795 | F164: 1.333827946e-07 | G164: 2.604871868e-08 | H164: 0.8193443499 | I164: 1.954142872e-12 | J164: 0.1905464658 | K164: -0.8025559586 | O164: 5 | R164: 0 | S164: 0 | T164: 0 | U164: 0 | V164: 1 | W164: 0 | X164: 0 | Y164: 0 | Z164: 0 | AA164: 0
B165: 339 | C165: 0.4788 | D165: 1.652824518e-06 | E165: 4.712741622e-05 | F165: 2.131619797e-06 | G165: 0.002576128865 | H165: 0.97063126 | I165: 0.02674169924 | J165: 0.02903450315 | K165: 0.8494746947 | O165: 1 | R165: 1 | S165: 0 | T165: 0 | U165: 0 | V165: 0 | W165: 0 | X165: 0 | Y165: 0 | Z165: 0 | AA165: 0
B166: 340 | C166: 4.6929 | D166: 6.618346588e-07 | E166: 0.000159273005 | F166: 0.2506925308 | G166: 0.7207726809 | H166: 0.02831303817 | I166: 6.181532238e-05 | J166: 0.4640669133 | K166: 0.1256963272 | O166: 8 | R166: 0 | S166: 0 | T166: 0 | U166: 0 | V166: 0 | W166: 0 | X166: 0 | Y166: 1 | Z166: 0 | AA166: 0
B167: 343 | C167: 2.35104 | D167: 0.1628313237 | E167: 0.001317222877 | F167: 0.824709309 | G167: 4.175061016e-06 | H167: 0.0002190897728 | I167: 0.0109188796 | J167: 0.6655438046 | K167: 0.9099442297 | O167: 3 | R167: 0 | S167: 0 | T167: 1 | U167: 0 | V167: 0 | W167: 0 | X167: 0 | Y167: 0 | Z167: 0 | AA167: 0
B168: 345 | C168: 0.92648 | D168: 6.079634192e-06 | E168: 0.4208100265 | F168: 0.00642180703 | G168: 0.00168899809 | H168: 0.007319839565 | I168: 0.5637532492 | J168: -0.7876461978 | K168: -0.9998619052 | O168: 1 | R168: 1 | S168: 0 | T168: 0 | U168: 0 | V168: 0 | W168: 0 | X168: 0 | Y168: 0 | Z168: 0 | AA168: 0
B169: 347 | C169: 1.1109 | D169: 0.9999973146 | E169: 1.021252309e-07 | F169: 2.056286809e-06 | G169: 4.290578327e-11 | H169: 6.621165673e-10 | I169: 5.262758803e-07 | J169: -1.569317944e-05 | K169: -0.9289387894 | O169: 6 | R169: 0 | S169: 0 | T169: 0 | U169: 0 | V169: 0 | W169: 1 | X169: 0 | Y169: 0 | Z169: 0 | AA169: 0
B170: 349 | C170: 0.98027 | D170: 0.1661095994 | E170: 0.005174930763 | F170: 0.7523944074 | G170: 0.0001852174587 | H170: 9.219331391e-05 | I170: 0.07604365171 | J170: 0.1134378191 | K170: -0.8009614084 | O170: 5 | R170: 0 | S170: 0 | T170: 0 | U170: 0 | V170: 1 | W170: 0 | X170: 0 | Y170: 0 | Z170: 0 | AA170: 0
B171: 350 | C171: 0.48121 | D171: 0.2877676664 | E171: 0.1523070737 | F171: 0.5445015615 | G171: 4.226403204e-06 | H171: 1.105243183e-05 | I171: 0.01540841947 | J171: 0.4269495667 | K171: -0.249061941 | O171: 9 | R171: 0 | S171: 0 | T171: 0 | U171: 0 | V171: 0 | W171: 0 | X171: 0 | Y171: 0 | Z171: 1 | AA171: 0
B172: 351 | C172: 1.02262 | D172: 0.004702040736 | E172: 3.504564306e-05 | F172: 0.001774689451 | G172: 0.06751937113 | H172: 0.001409441402 | I172: 0.9245594116 | J172: -0.06040164202 | K172: 0.09528863878 | O172: 4 | R172: 0 | S172: 0 | T172: 0 | U172: 1 | V172: 0 | W172: 0 | X172: 0 | Y172: 0 | Z172: 0 | AA172: 0
B173: 352 | C173: 3.18752 | D173: 3.638008026e-10 | E173: 9.770976173e-08 | F173: 0.01758240239 | G173: 0.0003534927857 | H173: 1.923613494e-08 | I173: 0.9820639875 | J173: 0.01964651282 | K173: -0.999692204 | O173: 10 | R173: 0 | S173: 0 | T173: 0 | U173: 0 | V173: 0 | W173: 0 | X173: 0 | Y173: 0 | Z173: 0 | AA173: 1
B174: 353 | C174: 0.33817 | D174: 5.149847686e-05 | E174: 0.00499693338 | F174: 6.249778405e-06 | G174: 2.927768914e-10 | H174: 0.9949452972 | I174: 2.084693135e-08 | J174: -0.1356792758 | K174: -0.02445185514 | O174: 3 | R174: 0 | S174: 0 | T174: 1 | U174: 0 | V174: 0 | W174: 0 | X174: 0 | Y174: 0 | Z174: 0 | AA174: 0
B175: 354 | C175: 0.31005 | D175: 0.62475694 | E175: 0.009099951827 | F175: 0.2762688086 | G175: 0.003339234635 | H175: 8.278175497e-06 | I175: 0.08652678672 | J175: 0.03128697511 | K175: -0.775030981 | O175: 7 | R175: 0 | S175: 0 | T175: 0 | U175: 0 | V175: 0 | W175: 0 | X175: 1 | Y175: 0 | Z175: 0 | AA175: 0
B176: 358 | C176: 0.68827 | D176: 2.76875611e-05 | E176: 0.08096256923 | F176: 0.06092057494 | G176: 0.3119182461 | H176: 0.543700691 | I176: 0.002470231179 | J176: -0.004449805811 | K176: -0.914131418 | O176: 2 | R176: 0 | S176: 1 | T176: 0 | U176: 0 | V176: 0 | W176: 0 | X176: 0 | Y176: 0 | Z176: 0 | AA176: 0
B177: 359 | C177: 1.07213 | D177: 2.018628739e-08 | E177: 0.1146888657 | F177: 0.0002071538008 | G177: 0.8826987689 | H177: 0.002404788916 | I177: 4.024414664e-07 | J177: 0.006790336665 | K177: -0.03915629825 | O177: 6 | R177: 0 | S177: 0 | T177: 0 | U177: 0 | V177: 0 | W177: 1 | X177: 0 | Y177: 0 | Z177: 0 | AA177: 0
B178: 361 | C178: 0.93117 | D178: 0.0006545599603 | E178: 0.4970635833 | F178: 0.0002937161911 | G178: 0.003778286567 | H178: 0.005147026114 | I178: 0.4930628279 | J178: -0.2604642644 | K178: -0.9021241046 | O178: 2 | R178: 0 | S178: 1 | T178: 0 | U178: 0 | V178: 0 | W178: 0 | X178: 0 | Y178: 0 | Z178: 0 | AA178: 0
B179: 365 | C179: 4.56753 | D179: 0.04728320259 | E179: 0.001787713927 | F179: 0.0002248075026 | G179: 3.129081387e-10 | H179: 0.9506944613 | I179: 9.814331016e-06 | J179: -0.002688140578 | K179: 0.9270635718 | O179: 7 | R179: 0 | S179: 0 | T179: 0 | U179: 0 | V179: 0 | W179: 0 | X179: 1 | Y179: 0 | Z179: 0 | AA179: 0
B180: 366 | C180: 2.63793 | D180: 0.0006400376876 | E180: 0.0004368093969 | F180: 0.9965575256 | G180: 0.001588877957 | H180: 2.119052992e-06 | I180: 0.0007746302728 | J180: 0.8883063847 | K180: 0.3177112612 | O180: 6 | R180: 0 | S180: 0 | T180: 0 | U180: 0 | V180: 0 | W180: 1 | X180: 0 | Y180: 0 | Z180: 0 | AA180: 0
B181: 368 | C181: 3.53699 | D181: 1.693287378e-09 | E181: 0.0005041802616 | F181: 0.0005378801488 | G181: 0.9967267735 | H181: 0.002071413987 | I181: 0.0001597503758 | J181: 0.01805759263 | K181: 0.8986587296 | O181: 6 | R181: 0 | S181: 0 | T181: 0 | U181: 0 | V181: 0 | W181: 1 | X181: 0 | Y181: 0 | Z181: 0 | AA181: 0
B182: 369 | C182: 1.36048 | D182: 0.9986800806 | E182: 5.086982116e-05 | F182: 1.451794289e-06 | G182: 4.076361598e-10 | H182: 1.167929885e-08 | I182: 0.001267585698 | J182: -0.7199275414 | K182: -0.01158016909 | O182: 8 | R182: 0 | S182: 0 | T182: 0 | U182: 0 | V182: 0 | W182: 0 | X182: 0 | Y182: 1 | Z182: 0 | AA182: 0
B183: 371 | C183: 1.42864 | D183: 3.195347968e-06 | E183: 0.02887795181 | F183: 9.461652313e-09 | G183: 2.268118827e-10 | H183: 0.9711188178 | I183: 2.530614809e-08 | J183: 0.00469237315 | K183: -0.06474252422 | O183: 5 | R183: 0 | S183: 0 | T183: 0 | U183: 0 | V183: 1 | W183: 0 | X183: 0 | Y183: 0 | Z183: 0 | AA183: 0
B184: 373 | C184: 1.02823 | D184: 0.9346429675 | E184: 0.06507777255 | F184: 0.0001178022273 | G184: 4.29176385e-08 | H184: 2.284325452e-06 | I184: 0.0001591305109 | J184: -0.8234670423 | K184: -0.3886583458 | O184: 9 | R184: 0 | S184: 0 | T184: 0 | U184: 0 | V184: 0 | W184: 0 | X184: 0 | Y184: 0 | Z184: 1 | AA184: 0
B185: 374 | C185: 1.46604 | D185: 0.0009600076536 | E185: 0.08387553375 | F185: 0.07229045449 | G185: 0.138100299 | H185: 0.002311047033 | I185: 0.7024626581 | J185: -0.04280337441 | K185: 0.5927201223 | O185: 1 | R185: 1 | S185: 0 | T185: 0 | U185: 0 | V185: 0 | W185: 0 | X185: 0 | Y185: 0 | Z185: 0 | AA185: 0
B186: 375 | C186: 1.21224 | D186: 0.01561222822 | E186: 0.02918247857 | F186: 0.003389701415 | G186: 0.007249221005 | H186: 0.7568217702 | I186: 0.1877446006 | J186: 0.1785185138 | K186: -0.9542540457 | O186: 8 | R186: 0 | S186: 0 | T186: 0 | U186: 0 | V186: 0 | W186: 0 | X186: 0 | Y186: 1 | Z186: 0 | AA186: 0
B187: 376 | C187: 0.33557 | D187: 0.000165061437 | E187: 0.821042961 | F187: 0.0005039032897 | G187: 0.1254493307 | H187: 0.01299480826 | I187: 0.03984393536 | J187: -0.9963595337 | K187: 0.7841511451 | O187: 9 | R187: 0 | S187: 0 | T187: 0 | U187: 0 | V187: 0 | W187: 0 | X187: 0 | Y187: 0 | Z187: 1 | AA187: 0
B188: 379 | C188: 1.18141 | D188: 1.711699851e-05 | E188: 0.7407246284 | F188: 0.2297679888 | G188: 0.009101522545 | H188: 0.01370253926 | I188: 0.006686203964 | J188: 0.960330206 | K188: -0.02394187807 | O188: 4 | R188: 0 | S188: 0 | T188: 0 | U188: 1 | V188: 0 | W188: 0 | X188: 0 | Y188: 0 | Z188: 0 | AA188: 0
B189: 380 | C189: 1.41242 | D189: 0.8598784062 | E189: 0.0004163189794 | F189: 0.00366343694 | G189: 1.041974767e-05 | H189: 0.006132504473 | I189: 0.1298989137 | J189: -0.3471740451 | K189: 0.02913967554 | O189: 10 | R189: 0 | S189: 0 | T189: 0 | U189: 0 | V189: 0 | W189: 0 | X189: 0 | Y189: 0 | Z189: 0 | AA189: 1
B190: 381 | C190: 1.09591 | D190: 0.0001037755835 | E190: 0.05223726539 | F190: 0.001513839746 | G190: 8.367796807e-07 | H190: 0.9461442823 | I190: 2.262490871e-10 | J190: -0.08099568652 | K190: -0.3144039251 | O190: 2 | R190: 0 | S190: 1 | T190: 0 | U190: 0 | V190: 0 | W190: 0 | X190: 0 | Y190: 0 | Z190: 0 | AA190: 0
B191: 382 | C191: 1.06979 | D191: 1.066464779e-06 | E191: 0.0001173860349 | F191: 0.9350934202 | G191: 0.06396926968 | H191: 0.0007780718626 | I191: 4.078579956e-05 | J191: 0.1177321471 | K191: -0.763237763 | O191: 1 | R191: 1 | S191: 0 | T191: 0 | U191: 0 | V191: 0 | W191: 0 | X191: 0 | Y191: 0 | Z191: 0 | AA191: 0
B192: 384 | C192: 2.61493 | D192: 0.000118467137 | E192: 0.05430929059 | F192: 0.511285393 | G192: 0.00318216383 | H192: 0.4088607955 | I192: 0.02224388994 | J192: -0.02796280274 | K192: -0.3660238722 | O192: 10 | R192: 0 | S192: 0 | T192: 0 | U192: 0 | V192: 0 | W192: 0 | X192: 0 | Y192: 0 | Z192: 0 | AA192: 1
B193: 385 | C193: 3.00129 | D193: 0.0001101692836 | E193: 0.9977379432 | F193: 7.195297441e-05 | G193: 0.00169832015 | H193: 0.0003104517775 | I193: 7.116265368e-05 | J193: 0.8332345124 | K193: 0.09329607262 | O193: 5 | R193: 0 | S193: 0 | T193: 0 | U193: 0 | V193: 1 | W193: 0 | X193: 0 | Y193: 0 | Z193: 0 | AA193: 0
B194: 386 | C194: 1.02339 | D194: 0.0007849068737 | E194: 1.298700451e-05 | F194: 0.02974582726 | G194: 0.00224831159 | H194: 9.496640005e-06 | I194: 0.9671984706 | J194: -0.2601957463 | K194: -0.1959934999 | O194: 8 | R194: 0 | S194: 0 | T194: 0 | U194: 0 | V194: 0 | W194: 0 | X194: 0 | Y194: 1 | Z194: 0 | AA194: 0
B195: 388 | C195: 0.91264 | D195: 0.001112061481 | E195: 0.00131328549 | F195: 0.009570277002 | G195: 0.000123435092 | H195: 1.757224206e-05 | I195: 0.9878633687 | J195: -0.9806671258 | K195: -0.01060227512 | O195: 3 | R195: 0 | S195: 0 | T195: 1 | U195: 0 | V195: 0 | W195: 0 | X195: 0 | Y195: 0 | Z195: 0 | AA195: 0
B196: 390 | C196: 0.92237 | D196: 3.973928885e-05 | E196: 1.301904261e-07 | F196: 0.0004475510697 | G196: 5.168741474e-07 | H196: 9.854296743e-09 | I196: 0.9995120527 | J196: -0.07120786912 | K196: -0.5493261522 | O196: 8 | R196: 0 | S196: 0 | T196: 0 | U196: 0 | V196: 0 | W196: 0 | X196: 0 | Y196: 1 | Z196: 0 | AA196: 0
B197: 392 | C197: 0.83131 | D197: 6.300251865e-07 | E197: 0.0001621385611 | F197: 0.02740034817 | G197: 0.9627478564 | H197: 0.005411950256 | I197: 0.004277076603 | J197: -0.8602973257 | K197: -0.8036477263 | O197: 10 | R197: 0 | S197: 0 | T197: 0 | U197: 0 | V197: 0 | W197: 0 | X197: 0 | Y197: 0 | Z197: 0 | AA197: 1
B198: 393 | C198: 1.56483 | D198: 1.90205457e-05 | E198: 0.0002651981874 | F198: 0.07858694235 | G198: 0.8523668176 | H198: 2.126215886e-06 | I198: 0.06875989507 | J198: 0.9878913107 | K198: 0.4566614807 | O198: 1 | R198: 1 | S198: 0 | T198: 0 | U198: 0 | V198: 0 | W198: 0 | X198: 0 | Y198: 0 | Z198: 0 | AA198: 0
B199: 394 | C199: 2.56583 | D199: 4.216254561e-10 | E199: 0.0001339432387 | F199: 6.384643857e-05 | G199: 0.9989257189 | H199: 0.0008764307178 | I199: 6.032744877e-08 | J199: -0.9968143246 | K199: -0.4323470344 | O199: 7 | R199: 0 | S199: 0 | T199: 0 | U199: 0 | V199: 0 | W199: 0 | X199: 1 | Y199: 0 | Z199: 0 | AA199: 0
B200: 396 | C200: 0.94074 | D200: 0.002455730829 | E200: 0.0001067825113 | F200: 1.398160498e-05 | G200: 0.000134801509 | H200: 8.270566295e-06 | I200: 0.997280433 | J200: -0.02834778258 | K200: -0.03282026031 | O200: 9 | R200: 0 | S200: 0 | T200: 0 | U200: 0 | V200: 0 | W200: 0 | X200: 0 | Y200: 0 | Z200: 1 | AA200: 0
B201: 398 | C201: 1.03298 | D201: 2.334974733e-10 | E201: 4.796903041e-05 | F201: 1.963598709e-05 | G201: 0.000157931587 | H201: 1.766448277e-06 | I201: 0.9997726967 | J201: -0.9844461552 | K201: -0.9972469252 | O201: 4 | R201: 0 | S201: 0 | T201: 0 | U201: 1 | V201: 0 | W201: 0 | X201: 0 | Y201: 0 | Z201: 0 | AA201: 0
B202: 400 | C202: 1.0202 | D202: 4.476099063e-11 | E202: 8.845050764e-05 | F202: 4.856738668e-07 | G202: 0.9998600383 | H202: 4.579096791e-07 | I202: 5.056760737e-05 | J202: -0.02693177483 | K202: -0.4030857876 | O202: 3 | R202: 0 | S202: 0 | T202: 1 | U202: 0 | V202: 0 | W202: 0 | X202: 0 | Y202: 0 | Z202: 0 | AA202: 0
... 2046 more rows

Sheet AttrNames (hidden)
B2: Attribute names and descriptions
B3: Item number | C3: Short name | D3: Full Description | E3: Share | F3: Old Item number
B4: 1 | C4: Buses going to more places you want to go | D4: The places you can get to by bus
B5: 2 | C5: Buses running more often than they do now | D5: When the buses are scheduled to run
B6: 3 | C6: More buses arriving on time at your bus stop | D6: How many buses arrive near enough on time
B7: 4 | C7: More bus stops with next bus displays | D7: The number of bus stops having next bus displays
B8: 5 | C8: Improved information via apps/online on bus arrival/running times | D8: The availability of live bus arrival times through mobile apps/online
B9: 6 | C9: Improved display of route numbers and destinations on the outside of buses | D9: How clear route numbers and destinations are on the outside of buses
B10: 7 | C10: More buses having next stop announcements/displays | D10: How many buses have next stop announcements/displays
B11: 8 | C11: Making it easier to step on and off buses | D11: The ease of stepping on and off buses
B12: 9 | C12: Cleaner and better maintained buses | D12: How clean buses are
B13: 10 | C13: Improved ventilation and temperature control | D13: The temperature and ventilation on buses
B14: 11 | C14: Seats being more comfortable | D14: The comfort of the seats on buses
B15: 12 | C15: More personal space on buses (whether seated or standing) | D15: The amount of personal space you have on buses
B16: 13 | C16: More space for wheelchairs and buggies | D16: The space available for wheelchairs and buggies
B17: 14 | C17: More seating being made available | D17: The availability of seats on buses
B18: 15 | C18: More effort made to tackle any anti-social behaviour | D18: How well any anti-social behaviour is dealt with
B19: 16 | C19: Free wi-fi being more widely available | D19: The availability of wi-fi on buses
B20: 17 | C20: Tickets which better allow travel on all local bus companies | D20: The availability of tickets/passes allowing travel with any bus company
B21: 18 | C21: A more suitable range of tickets for how and when you use buses | D21: How suitable the range of tickets/passes is for your usage of buses
B22: 19 | C22: Being able to pay for bus travel with smartcards/ contactless cards/ mobile phones/ apps | D22: More ways to pay for tickets/travel: smartcards /contactless/mobile phones/apps
B23: 20 | C23: Being able to buy tickets from more places | D23: The number of places tickets/passes can be bought from
B24: 21 | C24: Better value for money from bus journeys | D24: The price of bus travel
B25: 22 | C25: More journeys on buses running to time | D25: How well buses run to time during journeys
B26: 23 | C26: Shorter journey times on buses | D26: The amount of time journeys take on buses
B27: 24 | C27: Being given more/better information when delays occur on journeys | D27: The information given on buses about delays or changes to journeys
B28: 25 | C28: Drivers showing more consideration to passengers | D28: How considerate drivers are to passengers
B29: 26 | C29: A smoother ride with less sudden braking or jolting | D29: The smoothness of the ride
B30: 27 | C30: Drivers allowing more time for passengers to get to their seats | D30: The time bus drivers allow passengers to get to their seats
B31: 28 | C31: Drivers communicating better with passengers | D31: The way drivers communicate with passengers
B32: 29 | C32: Better maintained bus stops | D32: The standard of bus stops
B33: 30 | C33: Better security at bus stops so people feel safer waiting for buses | D33: How safe you feel whilst waiting for buses
B34: 31 | C34: Better quality information at bus stops | D34: The quality of information at bus stops

Sheet SubgroupData (hidden)
B4: Problem specific steering data created by hand
B6: Output column | C6: Subgroup titles | D6: Data Column | E6: Value | F6: Data Column | G6: Value | J6: Total | K6: bk_gender_rec1 | L6: bk_gender_rec2 | M6: bk_age1_rec1 | N6: bk_age1_rec2 | O6: bk_age1_rec3 | P6: bk_age1_rec4 | Q6: bk_age1_rec5 | R6: bk_age1_rec6 | S6: bk_age2_rec1 | T6: bk_age2_rec2 | U6: bk_age2_rec3 | V6: bk_genage_rec1 | W6: bk_genage_rec2 | X6: bk_genage_rec3 | Y6: bk_genage_rec4 | Z6: bk_genage_rec5 | AA6: bk_genage_rec6 | AB6: bk_seg_rec1 | AC6: bk_seg_rec2 | AD6: bk_user21_rec1 | AE6: bk_user21_rec2 | AF6: bk_user21_rec3 | AG6: bk_user21_rec4 | AH6: bk_pte_rec2 | AI6: bk_pte_rec3 | AJ6: bk_pte_rec4 | AK6: bk_pte_rec5 | AL6: bk_pte_rec6 | AM6: bk_pte_rec7 | AN6: bk_pte_rec8 | AO6: bk_company_rec1 | AP6: bk_company_rec2 | AQ6: bk_company_rec3 | AR6: bk_company_rec4 | AS6: bk_company_rec6 | AT6: bk_company_rec7 | AU6: bk_journey_rec1 | AV6: bk_journey_rec2 | AW6: bk_journey_rec3 | AX6: bk_journey_rec4 | AY6: bk_journey_rec5 | AZ6: bk_journey_rec6 | BA6: bk_journey_rec7 | BB6: bk_length_rec1 | BC6: bk_length_rec2 | BD6: bk_length_rec3 | BE6: bk_length_rec4 | BF6: bk_length_rec5 | BG6: bk_length_rec6 | BH6: bk_type_rec1 | BI6: bk_type_rec2 | BJ6: bk_type_rec3 | BK6: bk_type_rec4 | BL6: bk_type_rec5 | BM6: bk_type_rec6 | BN6: bk_ticket_rec1 | BO6: bk_ticket_rec2 | BP6: bk_ticket_rec3 | BQ6: bk_ticket_rec4 | BR6: bk_income_rec1 | BS6: bk_income_rec2 | BT6: bk_income_rec3 | BU6: bk_disability_rec1 | BV6: bk_disability_rec2 | BW6: bk_disability_rec3
B7: =ROW()-6 -> 1 | C7: Total | J7: 1 | K7: 1 | L7: 0 | M7: 0 | N7: 0 | O7: 0 | P7: 1 | Q7: 0 | R7: 0 | S7: 0 | T7: 1 | U7: 0 | V7: 0 | W7: 1 | X7: 0 | Y7: 0 | Z7: 0 | AA7: 0 | AB7: 1 | AC7: 0 | AD7: 0 | AE7: 1 | AF7: 0 | AG7: 0 | AH7: 0 | AI7: 0 | AJ7: 0 | AK7: 0 | AL7: 0 | AM7: 0 | AN7: 0 | AO7: 0 | AP7: 0 | AQ7: 0 | AR7: 0 | AS7: 0 | AT7: 0 | AU7: 1 | AV7: 0 | AW7: 1 | AX7: 0 | AY7: 0 | AZ7: 0 | BA7: 0 | BB7: 0 | BC7: 1 | BD7: 0 | BE7: 0 | BF7: 1 | BG7: 0 | BH7: 0 | BI7: 1 | BJ7: 0 | BK7: 0 | BL7: 0 | BM7: 0 | BN7: 0 | BO7: 1 | BP7: 0 | BQ7: 0 | BR7: 0 | BS7: 1 | BT7: 0 | BU7: 0 | BV7: 0 | BW7: 1
B8: =ROW()-6 -> 2 | C8: Male | J8: 1 | K8: 0 | L8: 1 | M8: 0 | N8: 0 | O8: 0 | P8: 0 | Q8: 0 | R8: 1 | S8: 0 | T8: 0 | U8: 1 | V8: 0 | W8: 0 | X8: 0 | Y8: 0 | Z8: 0 | AA8: 1 | AB8: 1 | AC8: 0 | AD8: 0 | AE8: 0 | AF8: 1 | AG8: 0 | AH8: 0 | AI8: 0 | AJ8: 0 | AK8: 0 | AL8: 1 | AM8: 0 | AN8: 0 | AO8: 0 | AP8: 0 | AQ8: 1 | AR8: 0 | AS8: 0 | AT8: 0 | AU8: 0 | AV8: 0 | AW8: 0 | AX8: 1 | AY8: 1 | AZ8: 0 | BA8: 1 | BB8: 0 | BC8: 1 | BD8: 0 | BE8: 0 | BF8: 1 | BG8: 0 | BH8: 0 | BI8: 0 | BJ8: 0 | BK8: 0 | BL8: 1 | BM8: 0 | BN8: 1 | BO8: 0 | BP8: 0 | BQ8: 0 | BR8: 0 | BS8: 1 | BT8: 0 | BU8: 0 | BV8: 0 | BW8: 1
B9: 3 | C9: Female | J9: 1 | K9: 0 | L9: 1 | M9: 0 | N9: 1 | O9: 0 | P9: 0 | Q9: 0 | R9: 0 | S9: 1 | T9: 0 | U9: 0 | V9: 0 | W9: 0 | X9: 0 | Y9: 1 | Z9: 0 | AA9: 0 | AB9: 0 | AC9: 1 | AD9: 0 | AE9: 1 | AF9: 0 | AG9: 0 | AH9: 0 | AI9: 0 | AJ9: 0 | AK9: 0 | AL9: 0 | AM9: 1 | AN9: 0 | AO9: 1 | AP9: 0 | AQ9: 0 | AR9: 0 | AS9: 0 | AT9: 0 | AU9: 1 | AV9: 1 | AW9: 1 | AX9: 1 | AY9: 1 | AZ9: 0 | BA9: 1 | BB9: 0 | BC9: 0 | BD9: 1 | BE9: 0 | BF9: 0 | BG9: 1 | BH9: 0 | BI9: 0 | BJ9: 0 | BK9: 0 | BL9: 0 | BM9: 1 | BN9: 0 | BO9: 0 | BP9: 1 | BQ9: 0 | BR9: 1 | BS9: 0 | BT9: 0 | BU9: 0 | BV9: 0 | BW9: 0
B10: 4 | C10: Age 1: 16-24 | J10: 1 | K10: 0 | L10: 1 | M10: 0 | N10: 0 | O10: 0 | P10: 0 | Q10: 1 | R10: 0 | S10: 0 | T10: 1 | U10: 0 | V10: 0 | W10: 0 | X10: 0 | Y10: 0 | Z10: 1 | AA10: 0 | AB10: 1 | AC10: 0 | AD10: 0 | AE10: 0 | AF10: 0 | AG10: 1 | AH10: 0 | AI10: 0 | AJ10: 0 | AK10: 0 | AL10: 0 | AM10: 0 | AN10: 0 | AO10: 0 | AP10: 0 | AQ10: 0 | AR10: 0 | AS10: 0 | AT10: 1 | AU10: 0 | AV10: 0 | AW10: 0 | AX10: 1 | AY10: 0 | AZ10: 0 | BA10: 1 | BB10: 0 | BC10: 0 | BD10: 1 | BE10: 0 | BF10: 0 | BG10: 1 | BH10: 1 | BI10: 0 | BJ10: 0 | BK10: 0 | BL10: 0 | BM10: 0 | BN10: 0 | BO10: 1 | BP10: 0 | BQ10: 0 | BR10: 0 | BS10: 1 | BT10: 0 | BU10: 0 | BV10: 0 | BW10: 1
B11: 5 | C11: Age 1: 25-34 | J11: 1 | K11: 0 | L11: 1 | M11: 0 | N11: 0 | O11: 0 | P11: 0 | Q11: 0 | R11: 1 | S11: 0 | T11: 0 | U11: 1 | V11: 0 | W11: 0 | X11: 0 | Y11: 0 | Z11: 0 | AA11: 1 | AB11: 1 | AC11: 0 | AD11: 0 | AE11: 0 | AF11: 1 | AG11: 0 | AH11: 0 | AI11: 0 | AJ11: 0 | AK11: 0 | AL11: 0 | AM11: 0 | AN11: 0 | AO11: 0 | AP11: 0 | AQ11: 0 | AR11: 1 | AS11: 0 | AT11: 0 | AU11: 0 | AV11: 0 | AW11: 0 | AX11: 1 | AY11: 0 | AZ11: 1 | BA11: 1 | BB11: 0 | BC11: 0 | BD11: 0 | BE11: 1 | BF11: 0 | BG11: 1 | BH11: 0 | BI11: 0 | BJ11: 0 | BK11: 1 | BL11: 0 | BM11: 0 | BN11: 1 | BO11: 0 | BP11: 0 | BQ11: 0 | BR11: 0 | BS11: 1 | BT11: 0 | BU11: 0 | BV11: 0 | BW11: 0
B12: 6 | C12: Age 1: 35-44 | J12: 1 | K12: 0 | L12: 1 | M12: 0 | N12: 0 | O12: 0 | P12: 0 | Q12: 0 | R12: 1 | S12: 0 | T12: 0 | U12: 1 | V12: 0 | W12: 0 | X12: 0 | Y12: 0 | Z12: 0 | AA12: 1 | AB12: 1 | AC12: 0 | AD12: 0 | AE12: 0 | AF12: 1 | AG12: 0 | AH12: 0 | AI12: 0 | AJ12: 0 | AK12: 0 | AL12: 0 | AM12: 1 | AN12: 0 | AO12: 1 | AP12: 0 | AQ12: 0 | AR12: 0 | AS12: 0 | AT12: 0 | AU12: 1 | AV12: 0 | AW12: 1 | AX12: 1 | AY12: 0 | AZ12: 0 | BA12: 1 | BB12: 0 | BC12: 0 | BD12: 1 | BE12: 0 | BF12: 0 | BG12: 1 | BH12: 0 | BI12: 0 | BJ12: 0 | BK12: 0 | BL12: 1 | BM12: 0 | BN12: 1 | BO12: 0 | BP12: 0 | BQ12: 0 | BR12: 1 | BS12: 0 | BT12: 0 | BU12: 0 | BV12: 1 | BW12: 0
B13: 7 | C13: Age 1: 45-54 | J13: 1 | K13: 1 | L13: 0 | M13: 0 | N13: 0 | O13: 0 | P13: 1 | Q13: 0 | R13: 0 | S13: 0 | T13: 1 | U13: 0 | V13: 0 | W13: 1 | X13: 0 | Y13: 0 | Z13: 0 | AA13: 0 | AB13: 1 | AC13: 0 | AD13: 0 | AE13: 1 | AF13: 0 | AG13: 0 | AH13: 0 | AI13: 0 | AJ13: 0 | AK13: 0 | AL13: 0 | AM13: 0 | AN13: 0 | AO13: 1 | AP13: 0 | AQ13: 0 | AR13: 0 | AS13: 0 | AT13: 0 | AU13: 1 | AV13: 0 | AW13: 1 | AX13: 0 | AY13: 1 | AZ13: 0 | BA13: 1 | BB13: 0 | BC13: 0 | BD13: 0 | BE13: 1 | BF13: 0 | BG13: 1 | BH13: 0 | BI13: 1 | BJ13: 0 | BK13: 0 | BL13: 0 | BM13: 0 | BN13: 0 | BO13: 0 | BP13: 0 | BQ13: 0 | BR13: 0 | BS13: 1 | BT13: 0 | BU13: 0 | BV13: 0 | BW13: 1
B14: 8 | C14: Age 1: 55-64 | J14: 1 | K14: 0 | L14: 1 | M14: 0 | N14: 0 | O14: 1 | P14: 0 | Q14: 0 | R14: 0 | S14: 0 | T14: 1 | U14: 0 | V14: 0 | W14: 0 | X14: 0 | Y14: 0 | Z14: 1 | AA14: 0 | AB14: 1 | AC14: 0 | AD14: 0 | AE14: 1 | AF14: 0 | AG14: 0 | AH14: 0 | AI14: 0 | AJ14: 0 | AK14: 0 | AL14: 0 | AM14: 0 | AN14: 0 | AO14: 1 | AP14: 0 | AQ14: 0 | AR14: 0 | AS14: 0 | AT14: 0 | AU14: 1 | AV14: 0 | AW14: 1 | AX14: 1 | AY14: 1 | AZ14: 0 | BA14: 1 | BB14: 0 | BC14: 1 | BD14: 0 | BE14: 0 | BF14: 1 | BG14: 0 | BH14: 1 | BI14: 0 | BJ14: 0 | BK14: 0 | BL14: 0 | BM14: 0 | BN14: 0 | BO14: 0 | BP14: 1 | BQ14: 0 | BR14: 0 | BS14: 1 | BT14: 0 | BU14: 0 | BV14: 0 | BW14: 1
B15: 9 | C15: Age 1: 65+ | J15: 1 | K15: 1 | L15: 0 | M15: 0 | N15: 0 | O15: 0 | P15: 0 | Q15: 1 | R15: 0 | S15: 0 | T15: 1 | U15: 0 | V15: 0 | W15: 1 | X15: 0 | Y15: 0 | Z15: 0 | AA15: 0 | AB15: 1 | AC15: 0 | AD15: 0 | AE15: 0 | AF15: 1 | AG15: 0 | AH15: 0 | AI15: 0 | AJ15: 0 | AK15: 0 | AL15: 0 | AM15: 0 | AN15: 0 | AO15: 0 | AP15: 0 | AQ15: 0 | AR15: 0 | AS15: 0 | AT15: 0 | AU15: 0 | AV15: 0 | AW15: 0 | AX15: 0 | AY15: 1 | AZ15: 1 | BA15: 1 | BB15: 0 | BC15: 1 | BD15: 0 | BE15: 0 | BF15: 1 | BG15: 0 | BH15: 1 | BI15: 0 | BJ15: 0 | BK15: 0 | BL15: 0 | BM15: 0 | BN15: 0 | BO15: 1 | BP15: 0 | BQ15: 0 | BR15: 1 | BS15: 0 | BT15: 0 | BU15: 0 | BV15: 0 | BW15: 1
B16: 10 | C16: Age 2: 16-34 | J16: 1 | K16: 1 | L16: 0 | M16: 0 | N16: 0 | O16: 0 | P16: 0 | Q16: 0 | R16: 1 | S16: 0 | T16: 0 | U16: 1 | V16: 0 | W16: 0 | X16: 1 | Y16: 0 | Z16: 0 | AA16: 0 | AB16: 1 | AC16: 0 | AD16: 0 | AE16: 0 | AF16: 0 | AG16: 1 | AH16: 0 | AI16: 0 | AJ16: 0 | AK16: 0 | AL16: 0 | AM16: 0 | AN16: 0 | AO16: 0 | AP16: 0 | AQ16: 0 | AR16: 0 | AS16: 0 | AT16: 0 | AU16: 0 | AV16: 0 | AW16: 0 | AX16: 1 | AY16: 0 | AZ16: 1 | BA16: 1 | BB16: 1 | BC16: 0 | BD16: 0 | BE16: 0 | BF16: 1 | BG16: 0 | BH16: 1 | BI16: 0 | BJ16: 0 | BK16: 0 | BL16: 0 | BM16: 0 | BN16: 1 | BO16: 0 | BP16: 0 | BQ16: 0 | BR16: 1 | BS16: 0 | BT16: 0 | BU16: 1 | BV16: 0 | BW16: 0
B17: 11 | C17: Age 2: 35-64 | J17: 1 | K17: 1 | L17: 0 | M17: 0 | N17: 0 | O17: 0 | P17: 0 | Q17: 1 | R17: 0 | S17: 0 | T17: 1 | U17: 0 | V17: 0 | W17: 1 | X17: 0 | Y17: 0 | Z17: 0 | AA17: 0 | AB17: 0 | AC17: 1 | AD17: 0 | AE17: 1 | AF17: 0 | AG17: 0 | AH17: 1 | AI17: 0 | AJ17: 0 | AK17: 0 | AL17: 0 | AM17: 0 | AN17: 0 | AO17: 1 | AP17: 0 | AQ17: 0 | AR17: 0 | AS17: 0 | AT17: 0 | AU17: 0 | AV17: 0 | AW17: 0 | AX17: 1 | AY17: 1 | AZ17: 0 | BA17: 1 | BB17: 0 | BC17: 0 | BD17: 1 | BE17: 0 | BF17: 0 | BG17: 1 | BH17: 0 | BI17: 0 | BJ17: 0 | BK17: 0 | BL17: 1 | BM17: 0 | BN17: 0 | BO17: 0 | BP17: 1 | BQ17: 0 | BR17: 1 | BS17: 0 | BT17: 0 | BU17: 0 | BV17: 0 | BW17: 1
B18: 12 | C18: Age 2: 65+ | J18: 1 | K18: 1 | L18: 0 | M18: 0 | N18: 1 | O18: 0 | P18: 0 | Q18: 0 | R18: 0 | S18: 1 | T18: 0 | U18: 0 | V18: 1 | W18: 0 | X18: 0 | Y18: 0 | Z18: 0 | AA18: 0 | AB18: 0 | AC18: 1 | AD18: 1 | AE18: 0 | AF18: 0 | AG18: 0 | AH18: 0 | AI18: 0 | AJ18: 0 | AK18: 0 | AL18: 0 | AM18: 0 | AN18: 0 | AO18: 1 | AP18: 0 | AQ18: 0 | AR18: 0 | AS18: 0 | AT18: 0 | AU18: 1 | AV18: 1 | AW18: 1 | AX18: 0 | AY18: 0 | AZ18: 1 | BA18: 1 | BB18: 0 | BC18: 1 | BD18: 0 | BE18: 0 | BF18: 1 | BG18: 0 | BH18: 1 | BI18: 0 | BJ18: 0 | BK18: 0 | BL18: 0 | BM18: 0 | BN18: 0 | BO18: 0 | BP18: 1 | BQ18: 0 | BR18: 1 | BS18: 0 | BT18: 0 | BU18: 0 | BV18: 0 | BW18: 1
B19: 13 | C19: Male: 16-34 | J19: 1 | K19: 0 | L19: 1 | M19: 0 | N19: 0 | O19: 0 | P19: 1 | Q19: 0 | R19: 0 | S19: 0 | T19: 1 | U19: 0 | V19: 0 | W19: 0 | X19: 0 | Y19: 0 | Z19: 1 | AA19: 0 | AB19: 0 | AC19: 1 | AD19: 0 | AE19: 1 | AF19: 0 | AG19: 0 | AH19: 0 | AI19: 1 | AJ19: 0 | AK19: 0 | AL19: 0 | AM19: 0 | AN19: 0 | AO19: 0 | AP19: 0 | AQ19: 0 | AR19: 1 | AS19: 0 | AT19: 0 | AU19: 0 | AV19: 0 | AW19: 0 | AX19: 1 | AY19: 1 | AZ19: 1 | BA19: 1 | BB19: 0 | BC19: 0 | BD19: 0 | BE19: 1 | BF19: 0 | BG19: 1 | BH19: 0 | BI19: 0 | BJ19: 0 | BK19: 0 | BL19: 0 | BM19: 1 | BN19: 0 | BO19: 0 | BP19: 1 | BQ19: 0 | BR19: 1 | BS19: 0 | BT19: 0 | BU19: 0 | BV19: 1 | BW19: 0
B20: 14 | C20: Male: 35-64 | J20: 1 | K20: 1 | L20: 0 | M20: 0 | N20: 1 | O20: 0 | P20: 0 | Q20: 0 | R20: 0 | S20: 1 | T20: 0 | U20: 0 | V20: 1 | W20: 0 | X20: 0 | Y20: 0 | Z20: 0 | AA20: 0 | AB20: 0 | AC20: 1 | AD20: 0 | AE20: 0 | AF20: 1 | AG20: 0 | AH20: 0 | AI20: 0 | AJ20: 0 | AK20: 0 | AL20: 0 | AM20: 0 | AN20: 0 | AO20: 0 | AP20: 0 | AQ20: 0 | AR20: 1 | AS20: 0 | AT20: 0 | AU20: 0 | AV20: 0 | AW20: 0 | AX20: 0 | AY20: 1 | AZ20: 0 | BA20: 1 | BB20: 0 | BC20: 0 | BD20: 0 | BE20: 1 | BF20: 0 | BG20: 1 | BH20: 0 | BI20: 0 | BJ20: 0 | BK20: 0 | BL20: 0 | BM20: 1 | BN20: 0 | BO20: 1 | BP20: 0 | BQ20: 0 | BR20: 0 | BS20: 1 | BT20: 0 | BU20: 0 | BV20: 0 | BW20: 1
B21: 15 | C21: Male: 65+ | J21: 1 | K21: 1 | L21: 0 | M21: 0 | N21: 1 | O21: 0 | P21: 0 | Q21: 0 | R21: 0 | S21: 1 | T21: 0 | U21: 0 | V21: 1 | W21: 0 | X21: 0 | Y21: 0 | Z21: 0 | AA21: 0 | AB21: 1 | AC21: 0 | AD21: 1 | AE21: 0 | AF21: 0 | AG21: 0 | AH21: 0 | AI21: 0 | AJ21: 0 | AK21: 0 | AL21: 0 | AM21: 0 | AN21: 0 | AO21: 0 | AP21: 0 | AQ21: 0 | AR21: 0 | AS21: 0 | AT21: 0 | AU21: 1 | AV21: 1 | AW21: 1 | AX21: 1 | AY21: 1 | AZ21: 1 | BA21: 1 | BB21: 0 | BC21: 1 | BD21: 0 | BE21: 0 | BF21: 1 | BG21: 0 | BH21: 0 | BI21: 1 | BJ21: 0 | BK21: 0 | BL21: 0 | BM21: 0 | BN21: 0 | BO21: 0 | BP21: 0 | BQ21: 1 | BR21: 0 | BS21: 0 | BT21: 1 | BU21: 0 | BV21: 0 | BW21: 0
B22: 16 | C22: Female: 16-34 | J22: 1 | K22: 1 | L22: 0 | M22: 0 | N22: 0 | O22: 0 | P22: 1 | Q22: 0 | R22: 0 | S22: 0 | T22: 1 | U22: 0 | V22: 0 | W22: 1 | X22: 0 | Y22: 0 | Z22: 0 | AA22: 0 | AB22: 1 | AC22: 0 | AD22: 0 | AE22: 0 | AF22: 1 | AG22: 0 | AH22: 0 | AI22: 0 | AJ22: 0 | AK22: 0 | AL22: 0 | AM22: 0 | AN22: 0 | AO22: 0 | AP22: 0 | AQ22: 0 | AR22: 0 | AS22: 0 | AT22: 0 | AU22: 0 | AV22: 0 | AW22: 0 | AX22: 1 | AY22: 1 | AZ22: 0 | BA22: 1 | BB22: 0 | BC22: 1 | BD22: 0 | BE22: 0 | BF22: 1 | BG22: 0 | BH22: 1 | BI22: 0 | BJ22: 0 | BK22: 0 | BL22: 0 | BM22: 0 | BN22: 0 | BO22: 0 | BP22: 1 | BQ22: 0 | BR22: 0 | BS22: 1 | BT22: 0 | BU22: 0 | BV22: 0 | BW22: 0
B23: 17 | C23: Female: 35-64 | J23: 1 | K23: 1 | L23: 0 | M23: 0 | N23: 0 | O23: 0 | P23: 1 | Q23: 0 | R23: 0 | S23: 0 | T23: 1 | U23: 0 | V23: 0 | W23: 1 | X23: 0 | Y23: 0 | Z23: 0 | AA23: 0 | AB23: 1 | AC23: 0 | AD23: 0 | AE23: 1 | AF23: 0 | AG23: 0 | AH23: 0 | AI23: 0 | AJ23: 0 | AK23: 0 | AL23: 0 | AM23: 0 | AN23: 0 | AO23: 0 | AP23: 0 | AQ23: 0 | AR23: 0 | AS23: 0 | AT23: 0 | AU23: 1 | AV23: 0 | AW23: 1 | AX23: 0 | AY23: 0 | AZ23: 0 | BA23: 0 | BB23: 1 | BC23: 0 | BD23: 0 | BE23: 0 | BF23: 1 | BG23: 0 | BH23: 0 | BI23: 1 | BJ23: 0 | BK23: 0 | BL23: 0 | BM23: 0 | BN23: 0 | BO23: 0 | BP23: 0 | BQ23: 0 | BR23: 1 | BS23: 0 | BT23: 0 | BU23: 0 | BV23: 0 | BW23: 1
B24: 18 | C24: Female: 65+ | J24: 1 | K24: 0 | L24: 1 | M24: 0 | N24: 0 | O24: 0 | P24: 0 | Q24: 0 | R24: 1 | S24: 0 | T24: 0 | U24: 1 | V24: 0 | W24: 0 | X24: 0 | Y24: 0 | Z24: 0 | AA24: 1 | AB24: 1 | AC24: 0 | AD24: 0 | AE24: 1 | AF24: 0 | AG24: 0 | AH24: 0 | AI24: 0 | AJ24: 0 | AK24: 0 | AL24: 0 | AM24: 0 | AN24: 0 | AO24: 1 | AP24: 0 | AQ24: 0 | AR24: 0 | AS24: 0 | AT24: 0 | AU24: 0 | AV24: 0 | AW24: 0 | AX24: 1 | AY24: 0 | AZ24: 0 | BA24: 1 | BB24: 0 | BC24: 0 | BD24: 1 | BE24: 0 | BF24: 0 | BG24: 1 | BH24: 0 | BI24: 0 | BJ24: 0 | BK24: 0 | BL24: 1 | BM24: 0 | BN24: 1 | BO24: 0 | BP24: 0 | BQ24: 0 | BR24: 1 | BS24: 0 | BT24: 0 | BU24: 0 | BV24: 0 | BW24: 1
B25: 19 | C25: Social Grade: ABC1 | J25: 1 | K25: 1 | L25: 0 | M25: 0 | N25: 0 | O25: 0 | P25: 1 | Q25: 0 | R25: 0 | S25: 0 | T25: 1 | U25: 0 | V25: 0 | W25: 1 | X25: 0 | Y25: 0 | Z25: 0 | AA25: 0 | AB25: 1 | AC25: 0 | AD25: 0 | AE25: 1 | AF25: 0 | AG25: 0 | AH25: 0 | AI25: 0 | AJ25: 0 | AK25: 0 | AL25: 0 | AM25: 0 | AN25: 0 | AO25: 0 | AP25: 0 | AQ25: 0 | AR25: 0 | AS25: 0 | AT25: 0 | AU25: 0 | AV25: 0 | AW25: 0 | AX25: 1 | AY25: 1 | AZ25: 0 | BA25: 1 | BB25: 0 | BC25: 1 | BD25: 0 | BE25: 0 | BF25: 1 | BG25: 0 | BH25: 1 | BI25: 0 | BJ25: 0 | BK25: 0 | BL25: 0 | BM25: 0 | BN25: 0 | BO25: 0 | BP25: 1 | BQ25: 0 | BR25: 0 | BS25: 1 | BT25: 0 | BU25: 0 | BV25: 0 | BW25: 0
B26: 20 | C26: Social Grade: C2DE | J26: 1 | K26: 0 | L26: 1 | M26: 0 | N26: 1 | O26: 0 | P26: 0 | Q26: 0 | R26: 0 | S26: 1 | T26: 0 | U26: 0 | V26: 0 | W26: 0 | X26: 0 | Y26: 1 | Z26: 0 | AA26: 0 | AB26: 1 | AC26: 0 | AD26: 0 | AE26: 1 | AF26: 0 | AG26: 0 | AH26: 0 | AI26: 0 | AJ26: 0 | AK26: 0 | AL26: 0 | AM26: 0 | AN26: 0 | AO26: 0 | AP26: 0 | AQ26: 0 | AR26: 1 | AS26: 0 | AT26: 0 | AU26: 0 | AV26: 0 | AW26: 0 | AX26: 1 | AY26: 1 | AZ26: 0 | BA26: 1 | BB26: 0 | BC26: 0 | BD26: 1 | BE26: 0 | BF26: 0 | BG26: 1 | BH26: 0 | BI26: 0 | BJ26: 1 | BK26: 0 | BL26: 0 | BM26: 0 | BN26: 0 | BO26: 1 | BP26: 0 | BQ26: 0 | BR26: 0 | BS26: 1 | BT26: 0 | BU26: 0 | BV26: 0 | BW26: 1
B27: 21 | C27: Bus User type: Daily | J27: 1 | K27: 0 | L27: 1 | M27: 0 | N27: 0 | O27: 0 | P27: 1 | Q27: 0 | R27: 0 | S27: 0 | T27: 1 | U27: 0 | V27: 0 | W27: 0 | X27: 0 | Y27: 0 | Z27: 1 | AA27: 0 | AB27: 1 | AC27: 0 | AD27: 0 | AE27: 0 | AF27: 1 | AG27: 0 | AH27: 0 | AI27: 0 | AJ27: 0 | AK27: 1 | AL27: 0 | AM27: 0 | AN27: 0 | AO27: 1 | AP27: 0 | AQ27: 0 | AR27: 0 | AS27: 0 | AT27: 0 | AU27: 0 | AV27: 0 | AW27: 0 | AX27: 1 | AY27: 0 | AZ27: 0 | BA27: 1 | BB27: 0 | BC27: 1 | BD27: 0 | BE27: 0 | BF27: 1 | BG27: 0 | BH27: 0 | BI27: 1 | BJ27: 0 | BK27: 0 | BL27: 0 | BM27: 0 | BN27: 0 | BO27: 0 | BP27: 1 | BQ27: 0 | BR27: 0 | BS27: 0 | BT27: 0 | BU27: 0 | BV27: 0 | BW27: 1
B28: 22 | C28: Bus User type: Weekly | J28: 1 | K28: 1 | L28: 0 | M28: 0 | N28: 0 | O28: 1 | P28: 0 | Q28: 0 | R28: 0 | S28: 0 | T28: 1 | U28: 0 | V28: 0 | W28: 1 | X28: 0 | Y28: 0 | Z28: 0 | AA28: 0 | AB28: 1 | AC28: 0 | AD28: 0 | AE28: 0 | AF28: 1 | AG28: 0 | AH28: 0 | AI28: 0 | AJ28: 0 | AK28: 0 | AL28: 0 | AM28: 0 | AN28: 0 | AO28: 0 | AP28: 0 | AQ28: 0 | AR28: 0 | AS28: 0 | AT28: 0 | AU28: 1 | AV28: 0 | AW28: 1 | AX28: 1 | AY28: 1 | AZ28: 0 | BA28: 1 | BB28: 0 | BC28: 0 | BD28: 1 | BE28: 0 | BF28: 0 | BG28: 1 | BH28: 1 | BI28: 0 | BJ28: 0 | BK28: 0 | BL28: 0 | BM28: 0 | BN28: 0 | BO28: 0 | BP28: 1 | BQ28: 0 | BR28: 0 | BS28: 0 | BT28: 1 | BU28: 0 | BV28: 0 | BW28: 1
B29: 23 | C29: Bus User type: Monthly | J29: 1 | K29: 0 | L29: 1 | M29: 0 | N29: 0 | O29: 0 | P29: 0 | Q29: 0 | R29: 1 | S29: 0 | T29: 0 | U29: 1 | V29: 0 | W29: 0 | X29: 0 | Y29: 0 | Z29: 0 | AA29: 1 | AB29: 1 | AC29: 0 | AD29: 0 | AE29: 1 | AF29: 0 | AG29: 0 | AH29: 0 | AI29: 0 | AJ29: 0 | AK29: 0 | AL29: 0 | AM29: 0 | AN29: 0 | AO29: 0 | AP29: 0 | AQ29: 0 | AR29: 1 | AS29: 0 | AT29: 0 | AU29: 0 | AV29: 0 | AW29: 0 | AX29: 1 | AY29: 1 | AZ29: 1 | BA29: 1 | BB29: 0 | BC29: 1 | BD29: 0 | BE29: 0 | BF29: 1 | BG29: 0 | BH29: 0 | BI29: 0 | BJ29: 0 | BK29: 0 | BL29: 1 | BM29: 0 | BN29: 1 | BO29: 0 | BP29: 0 | BQ29: 0 | BR29: 1 | BS29: 0 | BT29: 0 | BU29: 0 | BV29: 0 | BW29: 1
B30: 24 | C30: Bus User type: Every Three Months | J30: 1 | K30: 0 | L30: 1 | M30: 0 | N30: 1 | O30: 0 | P30: 0 | Q30: 0 | R30: 0 | S30: 1 | T30: 0 | U30: 0 | V30: 0 | W30: 0 | X30: 0 | Y30: 1 | Z30: 0 | AA30: 0 | AB30: 1 | AC30: 0 | AD30: 0 | AE30: 0 | AF30: 1 | AG30: 0 | AH30: 0 | AI30: 0 | AJ30: 0 | AK30: 0 | AL30: 0 | AM30: 1 | AN30: 0 | AO30: 0 | AP30: 1 | AQ30: 0 | AR30: 0 | AS30: 0 | AT30: 0 | AU30: 0 | AV30: 0 | AW30: 0 | AX30: 0 | AY30: 1 | AZ30: 0 | BA30: 1 | BB30: 0 | BC30: 0 | BD30: 1 | BE30: 0 | BF30: 0 | BG30: 1 | BH30: 0 | BI30: 1 | BJ30: 0 | BK30: 0 | BL30: 0 | BM30: 0 | BN30: 0 | BO30: 1 | BP30: 0 | BQ30: 0 | BR30: 1 | BS30: 0 | BT30: 0 | BU30: 0 | BV30: 0 | BW30: 1
B31: 25 | C31: PTE - Merserside | J31: 1 | K31: 0 | L31: 1 | M31: 0 | N31: 1 | O31: 0 | P31: 0 | Q31: 0 | R31: 0 | S31: 1 | T31: 0 | U31: 0 | V31: 0 | W31: 0 | X31: 0 | Y31: 1 | Z31: 0 | AA31: 0 | AB31: 0 | AC31: 1 | AD31: 0 | AE31: 1 | AF31: 0 | AG31: 0 | AH31: 0 | AI31: 0 | AJ31: 0 | AK31: 0 | AL31: 0 | AM31: 0 | AN31: 0 | AO31: 0 | AP31: 0 | AQ31: 0 | AR31: 0 | AS31: 0 | AT31: 0 | AU31: 1 | AV31: 0 | AW31: 1 | AX31: 0 | AY31: 0 | AZ31: 0 | BA31: 0 | BB31: 0 | BC31: 1 | BD31: 0 | BE31: 0 | BF31: 1 | BG31: 0 | BH31: 1 | BI31: 0 | BJ31: 0 | BK31: 0 | BL31: 0 | BM31: 0 | BN31: 0 | BO31: 1 | BP31: 0 | BQ31: 0 | BR31: 0 | BS31: 1 | BT31: 0 | BU31: 0 | BV31: 0 | BW31: 1
B32: 26 | C32: PTE - Grt Manchester | J32: 1 | K32: 0 | L32: 1 | M32: 1 | N32: 0 | O32: 0 | P32: 0 | Q32: 0 | R32: 0 | S32: 1 | T32: 0 | U32: 0 | V32: 0 | W32: 0 | X32: 0 | Y32: 1 | Z32: 0 | AA32: 0 | AB32: 0 | AC32: 1 | AD32: 0 | AE32: 1 | AF32: 0 | AG32: 0 | AH32: 1 | AI32: 0 | AJ32: 0 | AK32: 0 | AL32: 0 | AM32: 0 | AN32: 0 | AO32: 1 | AP32: 0 | AQ32: 0 | AR32: 0 | AS32: 0 | AT32: 0 | AU32: 0 | AV32: 0 | AW32: 0 | AX32: 1 | AY32: 1 | AZ32: 1 | BA32: 1 | BB32: 0 | BC32: 0 | BD32: 1 | BE32: 0 | BF32: 0 | BG32: 1 | BH32: 0 | BI32: 0 | BJ32: 0 | BK32: 0 | BL32: 1 | BM32: 0 | BN32: 0 | BO32: 1 | BP32: 0 | BQ32: 0 | BR32: 1 | BS32: 0 | BT32: 0 | BU32: 1 | BV32: 0 | BW32: 0
B33: 27 | C33: PTE - South Yorkshire | J33: 1 | K33: 0 | L33: 1 | M33: 0 | N33: 1 | O33: 0 | P33: 0 | Q33: 0 | R33: 0 | S33: 1 | T33: 0 | U33: 0 | V33: 0 | W33: 0 | X33: 0 | Y33: 1 | Z33: 0 | AA33: 0 | AB33: 1 | AC33: 0 | AD33: 0 | AE33: 1 | AF33: 0 | AG33: 0 | AH33: 0 | AI33: 0 | AJ33: 0 | AK33: 0 | AL33: 0 | AM33: 0 | AN33: 0 | AO33: 0 | AP33: 0 | AQ33: 0 | AR33: 0 | AS33: 0 | AT33: 0 | AU33: 1 | AV33: 0 | AW33: 1 | AX33: 1 | AY33: 1 | AZ33: 0 | BA33: 1 | BB33: 0 | BC33: 0 | BD33: 1 | BE33: 0 | BF33: 0 | BG33: 1 | BH33: 0 | BI33: 0 | BJ33: 0 | BK33: 0 | BL33: 0 | BM33: 1 | BN33: 0 | BO33: 0 | BP33: 0 | BQ33: 0 | BR33: 0 | BS33: 1 | BT33: 0 | BU33: 0 | BV33: 0 | BW33: 1
B34: 28 | C34: PTE - Tyne and Wear | J34: 1 | K34: 1 | L34: 0 | M34: 0 | N34: 0 | O34: 0 | P34: 0 | Q34: 0 | R34: 1 | S34: 0 | T34: 0 | U34: 1 | V34: 0 | W34: 0 | X34: 1 | Y34: 0 | Z34: 0 | AA34: 0 | AB34: 1 | AC34: 0 | AD34: 0 | AE34: 0 | AF34: 0 | AG34: 1 | AH34: 0 | AI34: 0 | AJ34: 0 | AK34: 0 | AL34: 0 | AM34: 0 | AN34: 0 | AO34: 0 | AP34: 0 | AQ34: 0 | AR34: 0 | AS34: 0 | AT34: 0 | AU34: 0 | AV34: 0 | AW34: 0 | AX34: 1 | AY34: 1 | AZ34: 0 | BA34: 1 | BB34: 0 | BC34: 0 | BD34: 1 | BE34: 0 | BF34: 0 | BG34: 1 | BH34: 0 | BI34: 1 | BJ34: 0 | BK34: 0 | BL34: 0 | BM34: 0 | BN34: 1 | BO34: 0 | BP34: 0 | BQ34: 0 | BR34: 0 | BS34: 1 | BT34: 0 | BU34: 0 | BV34: 0 | BW34: 1
B35: 29 | C35: PTE - West Mids Metropolitan Area | J35: 1 | K35: 0 | L35: 1 | M35: 1 | N35: 0 | O35: 0 | P35: 0 | Q35: 0 | R35: 0 | S35: 1 | T35: 0 | U35: 0 | V35: 0 | W35: 0 | X35: 0 | Y35: 1 | Z35: 0 | AA35: 0 | AB35: 1 | AC35: 0 | AD35: 0 | AE35: 1 | AF35: 0 | AG35: 0 | AH35: 0 | AI35: 0 | AJ35: 0 | AK35: 0 | AL35: 0 | AM35: 0 | AN35: 0 | AO35: 0 | AP35: 0 | AQ35: 0 | AR35: 1 | AS35: 0 | AT35: 0 | AU35: 1 | AV35: 0 | AW35: 1 | AX35: 0 | AY35: 0 | AZ35: 0 | BA35: 0 | BB35: 0 | BC35: 1 | BD35: 0 | BE35: 0 | BF35: 1 | BG35: 0 | BH35: 0 | BI35: 0 | BJ35: 1 | BK35: 0 | BL35: 0 | BM35: 0 | BN35: 0 | BO35: 0 | BP35: 0 | BQ35: 1 | BR35: 0 | BS35: 1 | BT35: 0 | BU35: 0 | BV35: 0 | BW35: 1
B36: 30 | C36: PTE - West Yorkshire | J36: 1 | K36: 1 | L36: 0 | M36: 0 | N36: 0 | O36: 0 | P36: 0 | Q36: 0 | R36: 1 | S36: 0 | T36: 0 | U36: 1 | V36: 0 | W36: 0 | X36: 1 | Y36: 0 | Z36: 0 | AA36: 0 | AB36: 1 | AC36: 0 | AD36: 0 | AE36: 1 | AF36: 0 | AG36: 0 | AH36: 0 | AI36: 0 | AJ36: 0 | AK36: 0 | AL36: 0 | AM36: 0 | AN36: 0 | AO36: 0 | AP36: 0 | AQ36: 0 | AR36: 0 | AS36: 0 | AT36: 0 | AU36: 0 | AV36: 0 | AW36: 0 | AX36: 0 | AY36: 1 | AZ36: 1 | BA36: 1 | BB36: 0 | BC36: 0 | BD36: 1 | BE36: 0 | BF36: 0 | BG36: 1 | BH36: 1 | BI36: 0 | BJ36: 0 | BK36: 0 | BL36: 0 | BM36: 0 | BN36: 1 | BO36: 0 | BP36: 0 | BQ36: 0 | BR36: 0 | BS36: 0 | BT36: 1 | BU36: 0 | BV36: 0 | BW36: 1
B37: 31 | C37: PTE - Bristol Area | J37: 1 | K37: 1 | L37: 0 | M37: 0 | N37: 0 | O37: 0 | P37: 0 | Q37: 1 | R37: 0 | S37: 0 | T37: 1 | U37: 0 | V37: 0 | W37: 1 | X37: 0 | Y37: 0 | Z37: 0 | AA37: 0 | AB37: 0 | AC37: 1 | AD37: 0 | AE37: 1 | AF37: 0 | AG37: 0 | AH37: 0 | AI37: 0 | AJ37: 0 | AK37: 0 | AL37: 0 | AM37: 0 | AN37: 0 | AO37: 1 | AP37: 0 | AQ37: 0 | AR37: 0 | AS37: 0 | AT37: 0 | AU37: 0 | AV37: 0 | AW37: 0 | AX37: 0 | AY37: 0 | AZ37: 1 | BA37: 1 | BB37: 0 | BC37: 0 | BD37: 0 | BE37: 1 | BF37: 0 | BG37: 1 | BH37: 0 | BI37: 0 | BJ37: 0 | BK37: 0 | BL37: 0 | BM37: 1 | BN37: 0 | BO37: 0 | BP37: 1 | BQ37: 0 | BR37: 1 | BS37: 0 | BT37: 0 | BU37: 0 | BV37: 0 | BW37: 0
B38: 32 | C38: Bus company used: Arriva Bus | J38: 1 | K38: 0 | L38: 1 | M38: 0 | N38: 0 | O38: 0 | P38: 1 | Q38: 0 | R38: 0 | S38: 0 | T38: 1 | U38: 0 | V38: 0 | W38: 0 | X38: 0 | Y38: 0 | Z38: 1 | AA38: 0 | AB38: 0 | AC38: 1 | AD38: 0 | AE38: 1 | AF38: 0 | AG38: 0 | AH38: 0 | AI38: 0 | AJ38: 0 | AK38: 0 | AL38: 0 | AM38: 0 | AN38: 0 | AO38: 1 | AP38: 0 | AQ38: 0 | AR38: 0 | AS38: 0 | AT38: 0 | AU38: 0 | AV38: 0 | AW38: 0 | AX38: 1 | AY38: 1 | AZ38: 0 | BA38: 1 | BB38: 0 | BC38: 1 | BD38: 0 | BE38: 0 | BF38: 1 | BG38: 0 | BH38: 0 | BI38: 0 | BJ38: 0 | BK38: 1 | BL38: 0 | BM38: 0 | BN38: 0 | BO38: 0 | BP38: 1 | BQ38: 0 | BR38: 1 | BS38: 0 | BT38: 0 | BU38: 0 | BV38: 1 | BW38: 0
B39: 33 | C39: Bus company used: First Bus | J39: 1 | K39: 1 | L39: 0 | M39: 0 | N39: 0 | O39: 0 | P39: 0 | Q39: 0 | R39: 1 | S39: 0 | T39: 0 | U39: 1 | V39: 0 | W39: 0 | X39: 1 | Y39: 0 | Z39: 0 | AA39: 0 | AB39: 1 | AC39: 0 | AD39: 0 | AE39: 0 | AF39: 1 | AG39: 0 | AH39: 0 | AI39: 0 | AJ39: 0 | AK39: 0 | AL39: 0 | AM39: 0 | AN39: 0 | AO39: 0 | AP39: 0 | AQ39: 0 | AR39: 0 | AS39: 0 | AT39: 0 | AU39: 0 | AV39: 0 | AW39: 0 | AX39: 1 | AY39: 1 | AZ39: 1 | BA39: 1 | BB39: 1 | BC39: 0 | BD39: 0 | BE39: 0 | BF39: 1 | BG39: 0 | BH39: 0 | BI39: 0 | BJ39: 0 | BK39: 0 | BL39: 1 | BM39: 0 | BN39: 1 | BO39: 0 | BP39: 0 | BQ39: 0 | BR39: 0 | BS39: 0 | BT39: 1 | BU39: 0 | BV39: 0 | BW39: 1
B40: 34 | C40: Bus company used: National Express | J40: 1 | K40: 0 | L40: 1 | M40: 0 | N40: 0 | O40: 0 | P40: 0 | Q40: 0 | R40: 1 | S40: 0 | T40: 0 | U40: 1 | V40: 0 | W40: 0 | X40: 0 | Y40: 0 | Z40: 0 | AA40: 1 | AB40: 1 | AC40: 0 | AD40: 0 | AE40: 1 | AF40: 0 | AG40: 0 | AH40: 1 | AI40: 0 | AJ40: 0 | AK40: 0 | AL40: 0 | AM40: 0 | AN40: 0 | AO40: 1 | AP40: 0 | AQ40: 0 | AR40: 0 | AS40: 0 | AT40: 0 | AU40: 0 | AV40: 0 | AW40: 0 | AX40: 1 | AY40: 1 | AZ40: 0 | BA40: 1 | BB40: 0 | BC40: 0 | BD40: 1 | BE40: 0 | BF40: 0 | BG40: 1 | BH40: 0 | BI40: 0 | BJ40: 0 | BK40: 0 | BL40: 1 | BM40: 0 | BN40: 1 | BO40: 0 | BP40: 0 | BQ40: 0 | BR40: 1 | BS40: 0 | BT40: 0 | BU40: 0 | BV40: 0 | BW40: 1
B41: 35 | C41: Bus company used: Stagecoach | J41: 1 | K41: 0 | L41: 1 | M41: 0 | N41: 0 | O41: 1 | P41: 0 | Q41: 0 | R41: 0 | S41: 0 | T41: 1 | U41: 0 | V41: 0 | W41: 0 | X41: 0 | Y41: 0 | Z41: 1 | AA41: 0 | AB41: 0 | AC41: 1 | AD41: 0 | AE41: 1 | AF41: 0 | AG41: 0 | AH41: 0 | AI41: 0 | AJ41: 0 | AK41: 0 | AL41: 0 | AM41: 0 | AN41: 0 | AO41: 0 | AP41: 0 | AQ41: 0 | AR41: 0 | AS41: 0 | AT41: 0 | AU41: 0 | AV41: 1 | AW41: 1 | AX41: 1 | AY41: 1 | AZ41: 1 | BA41: 1 | BB41: 0 | BC41: 0 | BD41: 0 | BE41: 1 | BF41: 0 | BG41: 1 | BH41: 0 | BI41: 0 | BJ41: 0 | BK41: 0 | BL41: 0 | BM41: 0 | BN41: 0 | BO41: 0 | BP41: 0 | BQ41: 0 | BR41: 0 | BS41: 1 | BT41: 0 | BU41: 0 | BV41: 1 | BW41: 0
B42: 36 | C42: Bus company used: Go Ahead | J42: 1 | K42: 0 | L42: 1 | M42: 0 | N42: 0 | O42: 0 | P42: 0 | Q42: 1 | R42: 0 | S42: 0 | T42: 1 | U42: 0 | V42: 0 | W42: 0 | X42: 0 | Y42: 0 | Z42: 1 | AA42: 0 | AB42: 0 | AC42: 1 | AD42: 0 | AE42: 0 | AF42: 0 | AG42: 1 | AH42: 0 | AI42: 0 | AJ42: 0 | AK42: 0 | AL42: 0 | AM42: 0 | AN42: 0 | AO42: 1 | AP42: 0 | AQ42: 0 | AR42: 0 | AS42: 0 | AT42: 0 | AU42: 0 | AV42: 0 | AW42: 0 | AX42: 1 | AY42: 0 | AZ42: 0 | BA42: 1 | BB42: 1 | BC42: 0 | BD42: 0 | BE42: 0 | BF42: 1 | BG42: 0 | BH42: 0 | BI42: 0 | BJ42: 0 | BK42: 0 | BL42: 1 | BM42: 0 | BN42: 0 | BO42: 0 | BP42: 1 | BQ42: 0 | BR42: 0 | BS42: 1 | BT42: 0 | BU42: 0 | BV42: 0 | BW42: 1
B43: 37 | C43: Bus company used: Other bus company | J43: 1 | K43: 1 | L43: 0 | M43: 0 | N43: 0 | O43: 0 | P43: 0 | Q43: 1 | R43: 0 | S43: 0 | T43: 1 | U43: 0 | V43: 0 | W43: 1 | X43: 0 | Y43: 0 | Z43: 0 | AA43: 0 | AB43: 0 | AC43: 1 | AD43: 0 | AE43: 1 | AF43: 0 | AG43: 0 | AH43: 0 | AI43: 0 | AJ43: 0 | AK43: 0 | AL43: 0 | AM43: 0 | AN43: 0 | AO43: 0 | AP43: 0 | AQ43: 0 | AR43: 0 | AS43: 0 | AT43: 0 | AU43: 0 | AV43: 0 | AW43: 0 | AX43: 0 | AY43: 1 | AZ43: 0 | BA43: 1 | BB43: 0 | BC43: 0 | BD43: 0 | BE43: 1 | BF43: 0 | BG43: 1 | BH43: 0 | BI43: 1 | BJ43: 0 | BK43: 0 | BL43: 0 | BM43: 0 | BN43: 1 | BO43: 0 | BP43: 0 | BQ43: 0 | BR43: 1 | BS43: 0 | BT43: 0 | BU43: 0 | BV43: 0 | BW43: 1
B44: 38 | C44: Typical Journey Purpose: Commuting work | J44: 1 | K44: 1 | L44: 0 | M44: 0 | N44: 0 | O44: 0 | P44: 0 | Q44: 0 | R44: 1 | S44: 0 | T44: 0 | U44: 1 | V44: 0 | W44: 0 | X44: 1 | Y44: 0 | Z44: 0 | AA44: 0 | AB44: 1 | AC44: 0 | AD44: 0 | AE44: 1 | AF44: 0 | AG44: 0 | AH44: 0 | AI44: 0 | AJ44: 0 | AK44: 0 | AL44: 0 | AM44: 0 | AN44: 0 | AO44: 1 | AP44: 0 | AQ44: 0 | AR44: 0 | AS44: 0 | AT44: 0 | AU44: 0 | AV44: 0 | AW44: 0 | AX44: 1 | AY44: 0 | AZ44: 1 | BA44: 1 | BB44: 0 | BC44: 0 | BD44: 1 | BE44: 0 | BF44: 0 | BG44: 1 | BH44: 0 | BI44: 0 | BJ44: 0 | BK44: 0 | BL44: 1 | BM44: 0 | BN44: 1 | BO44: 0 | BP44: 0 | BQ44: 0 | BR44: 0 | BS44: 1 | BT44: 0 | BU44: 0 | BV44: 1 | BW44: 0
B45: 39 | C45: Typical Journey Purpose: Communting education | J45: 1 | K45: 0 | L45: 1 | M45: 0 | N45: 0 | O45: 0 | P45: 1 | Q45: 0 | R45: 0 | S45: 0 | T45: 1 | U45: 0 | V45: 0 | W45: 0 | X45: 0 | Y45: 0 | Z45: 1 | AA45: 0 | AB45: 1 | AC45: 0 | AD45: 0 | AE45: 0 | AF45: 0 | AG45: 1 | AH45: 0 | AI45: 0 | AJ45: 0 | AK45: 0 | AL45: 0 | AM45: 0 | AN45: 0 | AO45: 0 | AP45: 0 | AQ45: 0 | AR45: 0 | AS45: 0 | AT45: 0 | AU45: 0 | AV45: 0 | AW45: 0 | AX45: 0 | AY45: 1 | AZ45: 0 | BA45: 1 | BB45: 0 | BC45: 0 | BD45: 1 | BE45: 0 | BF45: 0 | BG45: 1 | BH45: 0 | BI45: 0 | BJ45: 0 | BK45: 1 | BL45: 0 | BM45: 0 | BN45: 0 | BO45: 0 | BP45: 1 | BQ45: 0 | BR45: 1 | BS45: 0 | BT45: 0 | BU45: 0 | BV45: 0 | BW45: 1
B46: 40 | C46: Typical Journey Purpose: NET: Commuting | J46: 1 | K46: 0 | L46: 1 | M46: 0 | N46: 0 | O46: 0 | P46: 0 | Q46: 1 | R46: 0 | S46: 0 | T46: 1 | U46: 0 | V46: 0 | W46: 0 | X46: 0 | Y46: 0 | Z46: 1 | AA46: 0 | AB46: 1 | AC46: 0 | AD46: 0 | AE46: 0 | AF46: 0 | AG46: 1 | AH46: 0 | AI46: 0 | AJ46: 0 | AK46: 0 | AL46: 0 | AM46: 0 | AN46: 0 | AO46: 0 | AP46: 0 | AQ46: 0 | AR46: 0 | AS46: 0 | AT46: 0 | AU46: 0 | AV46: 0 | AW46: 0 | AX46: 1 | AY46: 1 | AZ46: 0 | BA46: 1 | BB46: 0 | BC46: 1 | BD46: 0 | BE46: 0 | BF46: 1 | BG46: 0 | BH46: 0 | BI46: 0 | BJ46: 0 | BK46: 1 | BL46: 0 | BM46: 0 | BN46: 1 | BO46: 0 | BP46: 0 | BQ46: 0 | BR46: 1 | BS46: 0 | BT46: 0 | BU46: 0 | BV46: 0 | BW46: 1
B47: 41 | C47: Typical Journey Purpose: Shopping trips | J47: 1 | K47: 0 | L47: 1 | M47: 0 | N47: 0 | O47: 0 | P47: 0 | Q47: 0 | R47: 1 | S47: 0 | T47: 0 | U47: 1 | V47: 0 | W47: 0 | X47: 0 | Y47: 0 | Z47: 0 | AA47: 1 | AB47: 0 | AC47: 1 | AD47: 0 | AE47: 0 | AF47: 1 | AG47: 0 | AH47: 0 | AI47: 0 | AJ47: 0 | AK47: 0 | AL47: 0 | AM47: 0 | AN47: 0 | AO47: 0 | AP47: 0 | AQ47: 0 | AR47: 1 | AS47: 0 | AT47: 0 | AU47: 0 | AV47: 0 | AW47: 0 | AX47: 1 | AY47: 1 | AZ47: 0 | BA47: 1 | BB47: 0 | BC47: 0 | BD47: 1 | BE47: 0 | BF47: 0 | BG47: 1 | BH47: 0 | BI47: 0 | BJ47: 0 | BK47: 1 | BL47: 0 | BM47: 0 | BN47: 1 | BO47: 0 | BP47: 0 | BQ47: 0 | BR47: 1 | BS47: 0 | BT47: 0 | BU47: 0 | BV47: 0 | BW47: 0
B48: 42 | C48: Typical Journey Purpose: Socialising / relatives | J48: 1 | K48: 1 | L48: 0 | M48: 0 | N48: 0 | O48: 0 | P48: 0 | Q48: 0 | R48: 1 | S48: 0 | T48: 0 | U48: 1 | V48: 0 | W48: 0 | X48: 1 | Y48: 0 | Z48: 0 | AA48: 0 | AB48: 0 | AC48: 1 | AD48: 0 | AE48: 0 | AF48: 1 | AG48: 0 | AH48: 0 | AI48: 0 | AJ48: 0 | AK48: 0 | AL48: 0 | AM48: 0 | AN48: 0 | AO48: 0 | AP48: 0 | AQ48: 0 | AR48: 0 | AS48: 1 | AT48: 0 | AU48: 0 | AV48: 0 | AW48: 0 | AX48: 1 | AY48: 0 | AZ48: 0 | BA48: 1 | BB48: 0 | BC48: 0 | BD48: 1 | BE48: 0 | BF48: 0 | BG48: 1 | BH48: 0 | BI48: 0 | BJ48: 0 | BK48: 0 | BL48: 0 | BM48: 1 | BN48: 1 | BO48: 0 | BP48: 0 | BQ48: 0 | BR48: 1 | BS48: 0 | BT48: 0 | BU48: 0 | BV48: 0 | BW48: 1
B49: 43 | C49: Typical Journey Purpose: Other | J49: 1 | K49: 0 | L49: 1 | M49: 0 | N49: 0 | O49: 1 | P49: 0 | Q49: 0 | R49: 0 | S49: 0 | T49: 1 | U49: 0 | V49: 0 | W49: 0 | X49: 0 | Y49: 0 | Z49: 1 | AA49: 0 | AB49: 1 | AC49: 0 | AD49: 1 | AE49: 0 | AF49: 0 | AG49: 0 | AH49: 0 | AI49: 0 | AJ49: 0 | AK49: 0 | AL49: 0 | AM49: 0 | AN49: 0 | AO49: 0 | AP49: 0 | AQ49: 0 | AR49: 0 | AS49: 0 | AT49: 0 | AU49: 1 | AV49: 0 | AW49: 1 | AX49: 1 | AY49: 0 | AZ49: 0 | BA49: 1 | BB49: 0 | BC49: 0 | BD49: 1 | BE49: 0 | BF49: 0 | BG49: 1 | BH49: 1 | BI49: 0 | BJ49: 0 | BK49: 0 | BL49: 0 | BM49: 0 | BN49: 0 | BO49: 0 | BP49: 0 | BQ49: 1 | BR49: 0 | BS49: 0 | BT49: 1 | BU49: 0 | BV49: 0 | BW49: 1
B50: 44 | C50: Typical Journey Purpose: NET: Non Commuter | J50: 1 | K50: 1 | L50: 0 | M50: 0 | N50: 0 | O50: 0 | P50: 0 | Q50: 1 | R50: 0 | S50: 0 | T50: 1 | U50: 0 | V50: 0 | W50: 1 | X50: 0 | Y50: 0 | Z50: 0 | AA50: 0 | AB50: 0 | AC50: 1 | AD50: 0 | AE50: 1 | AF50: 0 | AG50: 0 | AH50: 0 | AI50: 0 | AJ50: 0 | AK50: 0 | AL50: 0 | AM50: 0 | AN50: 0 | AO50: 1 | AP50: 0 | AQ50: 0 | AR50: 0 | AS50: 0 | AT50: 0 | AU50: 0 | AV50: 0 | AW50: 0 | AX50: 1 | AY50: 1 | AZ50: 0 | BA50: 1 | BB50: 0 | BC50: 1 | BD50: 0 | BE50: 0 | BF50: 1 | BG50: 0 | BH50: 0 | BI50: 0 | BJ50: 0 | BK50: 1 | BL50: 0 | BM50: 0 | BN50: 1 | BO50: 0 | BP50: 0 | BQ50: 0 | BR50: 0 | BS50: 0 | BT50: 1 | BU50: 0 | BV50: 0 | BW50: 1
B51: 45 | C51: Typical journey length: 10 mins or less | J51: 1 | K51: 1 | L51: 0 | M51: 0 | N51: 0 | O51: 0 | P51: 1 | Q51: 0 | R51: 0 | S51: 0 | T51: 1 | U51: 0 | V51: 0 | W51: 1 | X51: 0 | Y51: 0 | Z51: 0 | AA51: 0 | AB51: 1 | AC51: 0 | AD51: 1 | AE51: 0 | AF51: 0 | AG51: 0 | AH51: 0 | AI51: 0 | AJ51: 0 | AK51: 0 | AL51: 0 | AM51: 0 | AN51: 0 | AO51: 1 | AP51: 0 | AQ51: 0 | AR51: 0 | AS51: 0 | AT51: 0 | AU51: 1 | AV51: 0 | AW51: 1 | AX51: 0 | AY51: 0 | AZ51: 0 | BA51: 0 | BB51: 0 | BC51: 0 | BD51: 0 | BE51: 1 | BF51: 0 | BG51: 1 | BH51: 0 | BI51: 0 | BJ51: 0 | BK51: 1 | BL51: 0 | BM51: 0 | BN51: 0 | BO51: 0 | BP51: 0 | BQ51: 1 | BR51: 0 | BS51: 1 | BT51: 0 | BU51: 0 | BV51: 0 | BW51: 1
B52: 46 | C52: Typical journey length: 11 to 20 mins | J52: 1 | K52: 0 | L52: 1 | M52: 1 | N52: 0 | O52: 0 | P52: 0 | Q52: 0 | R52: 0 | S52: 1 | T52: 0 | U52: 0 | V52: 0 | W52: 0 | X52: 0 | Y52: 1 | Z52: 0 | AA52: 0 | AB52: 1 | AC52: 0 | AD52: 0 | AE52: 0 | AF52: 0 | AG52: 1 | AH52: 0 | AI52: 0 | AJ52: 0 | AK52: 0 | AL52: 1 | AM52: 0 | AN52: 0 | AO52: 0 | AP52: 0 | AQ52: 1 | AR52: 0 | AS52: 0 | AT52: 0 | AU52: 0 | AV52: 0 | AW52: 0 | AX52: 0 | AY52: 1 | AZ52: 1 | BA52: 1 | BB52: 0 | BC52: 1 | BD52: 0 | BE52: 0 | BF52: 1 | BG52: 0 | BH52: 1 | BI52: 0 | BJ52: 0 | BK52: 0 | BL52: 0 | BM52: 0 | BN52: 0 | BO52: 0 | BP52: 1 | BQ52: 0 | BR52: 0 | BS52: 1 | BT52: 0 | BU52: 0 | BV52: 0 | BW52: 1
B53: 47 | C53: Typical journey length: 21 to 30 mins | J53: 1 | K53: 1 | L53: 0 | M53: 0 | N53: 0 | O53: 1 | P53: 0 | Q53: 0 | R53: 0 | S53: 0 | T53: 1 | U53: 0 | V53: 0 | W53: 1 | X53: 0 | Y53: 0 | Z53: 0 | AA53: 0 | AB53: 1 | AC53: 0 | AD53: 0 | AE53: 0 | AF53: 0 | AG53: 1 | AH53: 0 | AI53: 0 | AJ53: 0 | AK53: 1 | AL53: 0 | AM53: 0 | AN53: 0 | AO53: 1 | AP53: 0 | AQ53: 0 | AR53: 0 | AS53: 0 | AT53: 0 | AU53: 0 | AV53: 0 | AW53: 0 | AX53: 0 | AY53: 1 | AZ53: 0 | BA53: 1 | BB53: 0 | BC53: 1 | BD53: 0 | BE53: 0 | BF53: 1 | BG53: 0 | BH53: 0 | BI53: 0 | BJ53: 0 | BK53: 0 | BL53: 1 | BM53: 0 | BN53: 0 | BO53: 1 | BP53: 0 | BQ53: 0 | BR53: 0 | BS53: 1 | BT53: 0 | BU53: 0 | BV53: 0 | BW53: 1
B54: 48 | C54: Typical journey length: Over half an hour | J54: 1 | K54: 1 | L54: 0 | M54: 0 | N54: 0 | O54: 0 | P54: 1 | Q54: 0 | R54: 0 | S54: 0 | T54: 1 | U54: 0 | V54: 0 | W54: 1 | X54: 0 | Y54: 0 | Z54: 0 | AA54: 0 | AB54: 1 | AC54: 0 | AD54: 0 | AE54: 0 | AF54: 1 | AG54: 0 | AH54: 0 | AI54: 0 | AJ54: 0 | AK54: 0 | AL54: 0 | AM54: 0 | AN54: 0 | AO54: 0 | AP54: 1 | AQ54: 0 | AR54: 0 | AS54: 0 | AT54: 0 | AU54: 0 | AV54: 0 | AW54: 0 | AX54: 0 | AY54: 1 | AZ54: 1 | BA54: 1 | BB54: 0 | BC54: 0 | BD54: 0 | BE54: 1 | BF54: 0 | BG54: 1 | BH54: 0 | BI54: 0 | BJ54: 0 | BK54: 1 | BL54: 0 | BM54: 0 | BN54: 0 | BO54: 1 | BP54: 0 | BQ54: 0 | BR54: 0 | BS54: 1 | BT54: 0 | BU54: 0 | BV54: 0 | BW54: 1
B55: 49 | C55: Typical journey length: NET up to 20 min | J55: 1 | K55: 0 | L55: 1 | M55: 0 | N55: 0 | O55: 0 | P55: 0 | Q55: 0 | R55: 1 | S55: 0 | T55: 0 | U55: 1 | V55: 0 | W55: 0 | X55: 0 | Y55: 0 | Z55: 0 | AA55: 1 | AB55: 1 | AC55: 0 | AD55: 0 | AE55: 1 | AF55: 0 | AG55: 0 | AH55: 0 | AI55: 0 | AJ55: 0 | AK55: 0 | AL55: 0 | AM55: 0 | AN55: 0 | AO55: 0 | AP55: 1 | AQ55: 0 | AR55: 0 | AS55: 0 | AT55: 0 | AU55: 0 | AV55: 0 | AW55: 0 | AX55: 1 | AY55: 1 | AZ55: 1 | BA55: 1 | BB55: 0 | BC55: 1 | BD55: 0 | BE55: 0 | BF55: 1 | BG55: 0 | BH55: 0 | BI55: 0 | BJ55: 0 | BK55: 0 | BL55: 1 | BM55: 0 | BN55: 1 | BO55: 0 | BP55: 0 | BQ55: 0 | BR55: 0 | BS55: 1 | BT55: 0 | BU55: 0 | BV55: 0 | BW55: 1
B56: 50 | C56: Typical journey length: NET longer than 20 min | J56: 1 | K56: 0 | L56: 1 | M56: 0 | N56: 0 | O56: 0 | P56: 0 | Q56: 0 | R56: 1 | S56: 0 | T56: 0 | U56: 1 | V56: 0 | W56: 0 | X56: 0 | Y56: 0 | Z56: 0 | AA56: 1 | AB56: 1 | AC56: 0 | AD56: 0 | AE56: 1 | AF56: 0 | AG56: 0 | AH56: 0 | AI56: 0 | AJ56: 1 | AK56: 0 | AL56: 0 | AM56: 0 | AN56: 0 | AO56: 0 | AP56: 1 | AQ56: 0 | AR56: 0 | AS56: 0 | AT56: 0 | AU56: 0 | AV56: 0 | AW56: 0 | AX56: 1 | AY56: 1 | AZ56: 0 | BA56: 1 | BB56: 0 | BC56: 0 | BD56: 0 | BE56: 1 | BF56: 0 | BG56: 1 | BH56: 0 | BI56: 0 | BJ56: 0 | BK56: 0 | BL56: 0 | BM56: 1 | BN56: 1 | BO56: 0 | BP56: 0 | BQ56: 0 | BR56: 0 | BS56: 1 | BT56: 0 | BU56: 0 | BV56: 0 | BW56: 1
B57: 51 | C57: Typical journey type: Across town centre | J57: 1 | K57: 1 | L57: 0 | M57: 0 | N57: 0 | O57: 0 | P57: 0 | Q57: 1 | R57: 0 | S57: 0 | T57: 1 | U57: 0 | V57: 0 | W57: 1 | X57: 0 | Y57: 0 | Z57: 0 | AA57: 0 | AB57: 0 | AC57: 1 | AD57: 0 | AE57: 0 | AF57: 0 | AG57: 1 | AH57: 0 | AI57: 0 | AJ57: 0 | AK57: 0 | AL57: 0 | AM57: 0 | AN57: 0 | AO57: 0 | AP57: 0 | AQ57: 0 | AR57: 0 | AS57: 0 | AT57: 1 | AU57: 0 | AV57: 0 | AW57: 0 | AX57: 1 | AY57: 1 | AZ57: 0 | BA57: 1 | BB57: 0 | BC57: 0 | BD57: 0 | BE57: 1 | BF57: 0 | BG57: 1 | BH57: 0 | BI57: 0 | BJ57: 0 | BK57: 1 | BL57: 0 | BM57: 0 | BN57: 0 | BO57: 1 | BP57: 0 | BQ57: 0 | BR57: 0 | BS57: 1 | BT57: 0 | BU57: 0 | BV57: 0 | BW57: 1
B58: 52 | C58: Typical journey type: Across outskirts of town | J58: 1 | K58: 0 | L58: 1 | M58: 0 | N58: 0 | O58: 0 | P58: 0 | Q58: 0 | R58: 1 | S58: 0 | T58: 0 | U58: 1 | V58: 0 | W58: 0 | X58: 0 | Y58: 0 | Z58: 0 | AA58: 1 | AB58: 0 | AC58: 1 | AD58: 0 | AE58: 0 | AF58: 0 | AG58: 1 | AH58: 0 | AI58: 0 | AJ58: 0 | AK58: 0 | AL58: 0 | AM58: 0 | AN58: 0 | AO58: 0 | AP58: 0 | AQ58: 0 | AR58: 0 | AS58: 0 | AT58: 1 | AU58: 0 | AV58: 0 | AW58: 0 | AX58: 0 | AY58: 0 | AZ58: 1 | BA58: 1 | BB58: 0 | BC58: 0 | BD58: 0 | BE58: 1 | BF58: 0 | BG58: 1 | BH58: 0 | BI58: 0 | BJ58: 0 | BK58: 0 | BL58: 0 | BM58: 1 | BN58: 1 | BO58: 0 | BP58: 0 | BQ58: 0 | BR58: 1 | BS58: 0 | BT58: 0 | BU58: 0 | BV58: 0 | BW58: 1
B59: 53 | C59: Typical journey type: Across rural areas | J59: 1 | K59: 0 | L59: 1 | M59: 0 | N59: 1 | O59: 0 | P59: 0 | Q59: 0 | R59: 0 | S59: 1 | T59: 0 | U59: 0 | V59: 0 | W59: 0 | X59: 0 | Y59: 1 | Z59: 0 | AA59: 0 | AB59: 1 | AC59: 0 | AD59: 0 | AE59: 0 | AF59: 1 | AG59: 0 | AH59: 0 | AI59: 0 | AJ59: 0 | AK59: 0 | AL59: 0 | AM59: 0 | AN59: 0 | AO59: 0 | AP59: 1 | AQ59: 0 | AR59: 0 | AS59: 0 | AT59: 0 | AU59: 0 | AV59: 0 | AW59: 0 | AX59: 1 | AY59: 0 | AZ59: 0 | BA59: 1 | BB59: 1 | BC59: 0 | BD59: 0 | BE59: 0 | BF59: 1 | BG59: 0 | BH59: 1 | BI59: 0 | BJ59: 0 | BK59: 0 | BL59: 0 | BM59: 0 | BN59: 0 | BO59: 1 | BP59: 0 | BQ59: 0 | BR59: 1 | BS59: 0 | BT59: 0 | BU59: 0 | BV59: 0 | BW59: 1
B60: 54 | C60: Typical journey type: Between a rural area and a town | J60: 1 | K60: 1 | L60: 0 | M60: 0 | N60: 0 | O60: 0 | P60: 0 | Q60: 0 | R60: 1 | S60: 0 | T60: 0 | U60: 1 | V60: 0 | W60: 0 | X60: 1 | Y60: 0 | Z60: 0 | AA60: 0 | AB60: 0 | AC60: 1 | AD60: 0 | AE60: 1 | AF60: 0 | AG60: 0 | AH60: 0 | AI60: 0 | AJ60: 0 | AK60: 0 | AL60: 0 | AM60: 0 | AN60: 0 | AO60: 0 | AP60: 0 | AQ60: 0 | AR60: 1 | AS60: 0 | AT60: 0 | AU60: 0 | AV60: 0 | AW60: 0 | AX60: 1 | AY60: 1 | AZ60: 1 | BA60: 1 | BB60: 0 | BC60: 0 | BD60: 0 | BE60: 1 | BF60: 0 | BG60: 1 | BH60: 0 | BI60: 0 | BJ60: 0 | BK60: 0 | BL60: 0 | BM60: 1 | BN60: 1 | BO60: 0 | BP60: 0 | BQ60: 0 | BR60: 0 | BS60: 0 | BT60: 1 | BU60: 0 | BV60: 0 | BW60: 1
B61: 55 | C61: Typical journey type: Between outskirts of town & town centre | J61: 1 | K61: 1 | L61: 0 | M61: 0 | N61: 0 | O61: 0 | P61: 0 | Q61: 1 | R61: 0 | S61: 0 | T61: 1 | U61: 0 | V61: 0 | W61: 1 | X61: 0 | Y61: 0 | Z61: 0 | AA61: 0 | AB61: 0 | AC61: 1 | AD61: 0 | AE61: 1 | AF61: 0 | AG61: 0 | AH61: 0 | AI61: 0 | AJ61: 0 | AK61: 0 | AL61: 0 | AM61: 0 | AN61: 0 | AO61: 0 | AP61: 1 | AQ61: 0 | AR61: 0 | AS61: 0 | AT61: 0 | AU61: 0 | AV61: 0 | AW61: 0 | AX61: 0 | AY61: 0 | AZ61: 1 | BA61: 1 | BB61: 0 | BC61: 1 | BD61: 0 | BE61: 0 | BF61: 1 | BG61: 0 | BH61: 1 | BI61: 0 | BJ61: 0 | BK61: 0 | BL61: 0 | BM61: 0 | BN61: 0 | BO61: 1 | BP61: 0 | BQ61: 0 | BR61: 0 | BS61: 1 | BT61: 0 | BU61: 0 | BV61: 0 | BW61: 0
B62: 56 | C62: Typical journey type: Between one town and another town | J62: 1 | K62: 0 | L62: 1 | M62: 0 | N62: 0 | O62: 0 | P62: 1 | Q62: 0 | R62: 0 | S62: 0 | T62: 1 | U62: 0 | V62: 0 | W62: 0 | X62: 0 | Y62: 0 | Z62: 1 | AA62: 0 | AB62: 1 | AC62: 0 | AD62: 0 | AE62: 1 | AF62: 0 | AG62: 0 | AH62: 0 | AI62: 0 | AJ62: 0 | AK62: 0 | AL62: 0 | AM62: 0 | AN62: 0 | AO62: 0 | AP62: 1 | AQ62: 0 | AR62: 0 | AS62: 0 | AT62: 0 | AU62: 0 | AV62: 0 | AW62: 0 | AX62: 1 | AY62: 0 | AZ62: 0 | BA62: 1 | BB62: 0 | BC62: 0 | BD62: 1 | BE62: 0 | BF62: 0 | BG62: 1 | BH62: 0 | BI62: 0 | BJ62: 1 | BK62: 0 | BL62: 0 | BM62: 0 | BN62: 0 | BO62: 1 | BP62: 0 | BQ62: 0 | BR62: 1 | BS62: 0 | BT62: 0 | BU62: 0 | BV62: 0 | BW62: 1
B63: 57 | C63: Ticket type: A free pass | J63: 1 | K63: 1 | L63: 0 | M63: 0 | N63: 0 | O63: 0 | P63: 0 | Q63: 0 | R63: 1 | S63: 0 | T63: 0 | U63: 1 | V63: 0 | W63: 0 | X63: 1 | Y63: 0 | Z63: 0 | AA63: 0 | AB63: 1 | AC63: 0 | AD63: 0 | AE63: 0 | AF63: 0 | AG63: 1 | AH63: 0 | AI63: 0 | AJ63: 0 | AK63: 0 | AL63: 0 | AM63: 0 | AN63: 0 | AO63: 0 | AP63: 0 | AQ63: 0 | AR63: 0 | AS63: 0 | AT63: 0 | AU63: 0 | AV63: 0 | AW63: 0 | AX63: 0 | AY63: 0 | AZ63: 1 | BA63: 1 | BB63: 0 | BC63: 1 | BD63: 0 | BE63: 0 | BF63: 1 | BG63: 0 | BH63: 0 | BI63: 0 | BJ63: 0 | BK63: 0 | BL63: 0 | BM63: 0 | BN63: 0 | BO63: 0 | BP63: 1 | BQ63: 0 | BR63: 0 | BS63: 0 | BT63: 1 | BU63: 0 | BV63: 0 | BW63: 1
B64: 58 | C64: Ticket type: Single/ return/ multi tickets | J64: 1 | K64: 1 | L64: 0 | M64: 0 | N64: 0 | O64: 0 | P64: 1 | Q64: 0 | R64: 0 | S64: 0 | T64: 1 | U64: 0 | V64: 0 | W64: 1 | X64: 0 | Y64: 0 | Z64: 0 | AA64: 0 | AB64: 1 | AC64: 0 | AD64: 0 | AE64: 1 | AF64: 0 | AG64: 0 | AH64: 0 | AI64: 0 | AJ64: 0 | AK64: 0 | AL64: 0 | AM64: 0 | AN64: 0 | AO64: 1 | AP64: 0 | AQ64: 0 | AR64: 0 | AS64: 0 | AT64: 0 | AU64: 1 | AV64: 0 | AW64: 1 | AX64: 1 | AY64: 1 | AZ64: 0 | BA64: 1 | BB64: 0 | BC64: 0 | BD64: 1 | BE64: 0 | BF64: 0 | BG64: 1 | BH64: 1 | BI64: 0 | BJ64: 0 | BK64: 0 | BL64: 0 | BM64: 0 | BN64: 0 | BO64: 0 | BP64: 0 | BQ64: 0 | BR64: 0 | BS64: 1 | BT64: 0 | BU64: 0 | BV64: 0 | BW64: 1
B65: 59 | C65: Ticket type: One day travelcard/ticket | J65: 1 | K65: 1 | L65: 0 | M65: 0 | N65: 0 | O65: 0 | P65: 0 | Q65: 0 | R65: 1 | S65: 0 | T65: 0 | U65: 1 | V65: 0 | W65: 0 | X65: 1 | Y65: 0 | Z65: 0 | AA65: 0 | AB65: 0 | AC65: 1 | AD65: 0 | AE65: 0 | AF65: 1 | AG65: 0 | AH65: 0 | AI65: 0 | AJ65: 0 | AK65: 0 | AL65: 0 | AM65: 0 | AN65: 0 | AO65: 0 | AP65: 0 | AQ65: 1 | AR65: 0 | AS65: 0 | AT65: 0 | AU65: 0 | AV65: 0 | AW65: 0 | AX65: 1 | AY65: 1 | AZ65: 1 | BA65: 1 | BB65: 0 | BC65: 0 | BD65: 1 | BE65: 0 | BF65: 0 | BG65: 1 | BH65: 0 | BI65: 0 | BJ65: 0 | BK65: 1 | BL65: 0 | BM65: 0 | BN65: 1 | BO65: 0 | BP65: 0 | BQ65: 0 | BR65: 0 | BS65: 1 | BT65: 0 | BU65: 0 | BV65: 0 | BW65: 1
B66: 60 | C66: Ticket type: A season ticket for a longer period | J66: 1 | K66: 0 | L66: 1 | M66: 0 | N66: 0 | O66: 0 | P66: 1 | Q66: 0 | R66: 0 | S66: 0 | T66: 1 | U66: 0 | V66: 0 | W66: 0 | X66: 0 | Y66: 0 | Z66: 1 | AA66: 0 | AB66: 1 | AC66: 0 | AD66: 0 | AE66: 1 | AF66: 0 | AG66: 0 | AH66: 0 | AI66: 0 | AJ66: 0 | AK66: 0 | AL66: 0 | AM66: 0 | AN66: 0 | AO66: 0 | AP66: 0 | AQ66: 0 | AR66: 0 | AS66: 0 | AT66: 1 | AU66: 1 | AV66: 0 | AW66: 1 | AX66: 1 | AY66: 1 | AZ66: 0 | BA66: 1 | BB66: 0 | BC66: 0 | BD66: 1 | BE66: 0 | BF66: 0 | BG66: 1 | BH66: 0 | BI66: 0 | BJ66: 0 | BK66: 0 | BL66: 1 | BM66: 0 | BN66: 0 | BO66: 0 | BP66: 1 | BQ66: 0 | BR66: 1 | BS66: 0 | BT66: 0 | BU66: 0 | BV66: 0 | BW66: 1
B67: 61 | C67: Income: Up to 21K | J67: 1 | K67: 1 | L67: 0 | M67: 0 | N67: 0 | O67: 0 | P67: 0 | Q67: 1 | R67: 0 | S67: 0 | T67: 1 | U67: 0 | V67: 0 | W67: 1 | X67: 0 | Y67: 0 | Z67: 0 | AA67: 0 | AB67: 1 | AC67: 0 | AD67: 0 | AE67: 1 | AF67: 0 | AG67: 0 | AH67: 0 | AI67: 0 | AJ67: 0 | AK67: 1 | AL67: 0 | AM67: 0 | AN67: 0 | AO67: 1 | AP67: 0 | AQ67: 0 | AR67: 0 | AS67: 0 | AT67: 0 | AU67: 0 | AV67: 0 | AW67: 0 | AX67: 1 | AY67: 1 | AZ67: 1 | BA67: 1 | BB67: 0 | BC67: 1 | BD67: 0 | BE67: 0 | BF67: 1 | BG67: 0 | BH67: 0 | BI67: 1 | BJ67: 0 | BK67: 0 | BL67: 0 | BM67: 0 | BN67: 0 | BO67: 1 | BP67: 0 | BQ67: 0 | BR67: 0 | BS67: 1 | BT67: 0 | BU67: 0 | BV67: 0 | BW67: 1
B68: 62 | C68: Income: 21K to 41K | J68: 1 | K68: 1 | L68: 0 | M68: 1 | N68: 0 | O68: 0 | P68: 0 | Q68: 0 | R68: 0 | S68: 1 | T68: 0 | U68: 0 | V68: 1 | W68: 0 | X68: 0 | Y68: 0 | Z68: 0 | AA68: 0 | AB68: 0 | AC68: 1 | AD68: 1 | AE68: 0 | AF68: 0 | AG68: 0 | AH68: 0 | AI68: 0 | AJ68: 0 | AK68: 0 | AL68: 0 | AM68: 0 | AN68: 0 | AO68: 0 | AP68: 0 | AQ68: 0 | AR68: 0 | AS68: 0 | AT68: 0 | AU68: 1 | AV68: 0 | AW68: 1 | AX68: 1 | AY68: 0 | AZ68: 0 | BA68: 1 | BB68: 0 | BC68: 0 | BD68: 1 | BE68: 0 | BF68: 0 | BG68: 1 | BH68: 1 | BI68: 0 | BJ68: 0 | BK68: 0 | BL68: 0 | BM68: 0 | BN68: 0 | BO68: 1 | BP68: 0 | BQ68: 0 | BR68: 0 | BS68: 1 | BT68: 0 | BU68: 0 | BV68: 0 | BW68: 1
B69: 63 | C69: Income: More than 41K | J69: 1 | K69: 1 | L69: 0 | M69: 1 | N69: 0 | O69: 0 | P69: 0 | Q69: 0 | R69: 0 | S69: 1 | T69: 0 | U69: 0 | V69: 1 | W69: 0 | X69: 0 | Y69: 0 | Z69: 0 | AA69: 0 | AB69: 0 | AC69: 1 | AD69: 0 | AE69: 1 | AF69: 0 | AG69: 0 | AH69: 0 | AI69: 0 | AJ69: 1 | AK69: 0 | AL69: 0 | AM69: 0 | AN69: 0 | AO69: 0 | AP69: 0 | AQ69: 0 | AR69: 1 | AS69: 0 | AT69: 0 | AU69: 1 | AV69: 0 | AW69: 1 | AX69: 0 | AY69: 1 | AZ69: 0 | BA69: 1 | BB69: 0 | BC69: 0 | BD69: 1 | BE69: 0 | BF69: 0 | BG69: 1 | BH69: 0 | BI69: 0 | BJ69: 0 | BK69: 0 | BL69: 0 | BM69: 0 | BN69: 0 | BO69: 1 | BP69: 0 | BQ69: 0 | BR69: 1 | BS69: 0 | BT69: 0 | BU69: 0 | BV69: 0 | BW69: 0
B70: 64 | C70: Disability: Yes - high impact | J70: 1 | K70: 1 | L70: 0 | M70: 0 | N70: 0 | O70: 0 | P70: 1 | Q70: 0 | R70: 0 | S70: 0 | T70: 1 | U70: 0 | V70: 0 | W70: 1 | X70: 0 | Y70: 0 | Z70: 0 | AA70: 0 | AB70: 1 | AC70: 0 | AD70: 0 | AE70: 1 | AF70: 0 | AG70: 0 | AH70: 0 | AI70: 0 | AJ70: 0 | AK70: 0 | AL70: 0 | AM70: 1 | AN70: 0 | AO70: 0 | AP70: 0 | AQ70: 0 | AR70: 0 | AS70: 0 | AT70: 1 | AU70: 1 | AV70: 0 | AW70: 1 | AX70: 1 | AY70: 1 | AZ70: 0 | BA70: 1 | BB70: 0 | BC70: 1 | BD70: 0 | BE70: 0 | BF70: 1 | BG70: 0 | BH70: 0 | BI70: 0 | BJ70: 0 | BK70: 0 | BL70: 1 | BM70: 0 | BN70: 0 | BO70: 1 | BP70: 0 | BQ70: 0 | BR70: 1 | BS70: 0 | BT70: 0 | BU70: 0 | BV70: 1 | BW70: 0
B71: 65 | C71: Disability: Yes - low impact | J71: 1 | K71: 0 | L71: 1 | M71: 0 | N71: 0 | O71: 1 | P71: 0 | Q71: 0 | R71: 0 | S71: 0 | T71: 1 | U71: 0 | V71: 0 | W71: 0 | X71: 0 | Y71: 0 | Z71: 1 | AA71: 0 | AB71: 0 | AC71: 1 | AD71: 0 | AE71: 1 | AF71: 0 | AG71: 0 | AH71: 0 | AI71: 0 | AJ71: 0 | AK71: 0 | AL71: 1 | AM71: 0 | AN71: 0 | AO71: 0 | AP71: 0 | AQ71: 0 | AR71: 1 | AS71: 0 | AT71: 0 | AU71: 0 | AV71: 0 | AW71: 0 | AX71: 1 | AY71: 0 | AZ71: 0 | BA71: 1 | BB71: 0 | BC71: 1 | BD71: 0 | BE71: 0 | BF71: 1 | BG71: 0 | BH71: 1 | BI71: 0 | BJ71: 0 | BK71: 0 | BL71: 0 | BM71: 0 | BN71: 0 | BO71: 0 | BP71: 1 | BQ71: 0 | BR71: 0 | BS71: 1 | BT71: 0 | BU71: 0 | BV71: 0 | BW71: 1
B72: 66 | C72: Disability: NET no disability / no disability impacting bus use | J72: 1 | K72: 0 | L72: 1 | M72: 0 | N72: 0 | O72: 0 | P72: 0 | Q72: 0 | R72: 1 | S72: 0 | T72: 0 | U72: 1 | V72: 0 | W72: 0 | X72: 0 | Y72: 0 | Z72: 0 | AA72: 1 | AB72: 1 | AC72: 0 | AD72: 0 | AE72: 1 | AF72: 0 | AG72: 0 | AH72: 0 | AI72: 0 | AJ72: 0 | AK72: 0 | AL72: 0 | AM72: 0 | AN72: 0 | AO72: 0 | AP72: 0 | AQ72: 0 | AR72: 0 | AS72: 1 | AT72: 0 | AU72: 1 | AV72: 0 | AW72: 1 | AX72: 1 | AY72: 1 | AZ72: 1 | BA72: 1 | BB72: 0 | BC72: 1 | BD72: 0 | BE72: 0 | BF72: 1 | BG72: 0 | BH72: 0 | BI72: 1 | BJ72: 0 | BK72: 0 | BL72: 0 | BM72: 0 | BN72: 1 | BO72: 0 | BP72: 0 | BQ72: 0 | BR72: 1 | BS72: 0 | BT72: 0 | BU72: 0 | BV72: 0 | BW72: 1
J73: 1 | K73: 1 | L73: 0 | M73: 0 | N73: 0 | O73: 0 | P73: 1 | Q73: 0 | R73: 0 | S73: 0 | T73: 1 | U73: 0 | V73: 0 | W73: 1 | X73: 0 | Y73: 0 | Z73: 0 | AA73: 0 | AB73: 1 | AC73: 0 | AD73: 0 | AE73: 1 | AF73: 0 | AG73: 0 | AH73: 0 | AI73: 0 | AJ73: 0 | AK73: 0 | AL73: 0 | AM73: 0 | AN73: 0 | AO73: 0 | AP73: 0 | AQ73: 0 | AR73: 0 | AS73: 0 | AT73: 1 | AU73: 1 | AV73: 0 | AW73: 1 | AX73: 1 | AY73: 0 | AZ73: 0 | BA73: 1 | BB73: 0 | BC73: 0 | BD73: 0 | BE73: 1 | BF73: 0 | BG73: 1 | BH73: 0 | BI73: 0 | BJ73: 1 | BK73: 0 | BL73: 0 | BM73: 0 | BN73: 0 | BO73: 0 | BP73: 1 | BQ73: 0 | BR73: 0 | BS73: 0 | BT73: 1 | BU73: 0 | BV73: 0 | BW73: 1
J74: 1 | K74: 1 | L74: 0 | M74: 0 | N74: 0 | O74: 0 | P74: 0 | Q74: 0 | R74: 1 | S74: 0 | T74: 0 | U74: 1 | V74: 0 | W74: 0 | X74: 1 | Y74: 0 | Z74: 0 | AA74: 0 | AB74: 0 | AC74: 1 | AD74: 0 | AE74: 0 | AF74: 1 | AG74: 0 | AH74: 0 | AI74: 0 | AJ74: 0 | AK74: 0 | AL74: 0 | AM74: 0 | AN74: 0 | AO74: 1 | AP74: 0 | AQ74: 0 | AR74: 0 | AS74: 0 | AT74: 0 | AU74: 0 | AV74: 0 | AW74: 0 | AX74: 1 | AY74: 1 | AZ74: 1 | BA74: 1 | BB74: 0 | BC74: 0 | BD74: 0 | BE74: 1 | BF74: 0 | BG74: 1 | BH74: 0 | BI74: 0 | BJ74: 0 | BK74: 1 | BL74: 0 | BM74: 0 | BN74: 0 | BO74: 0 | BP74: 0 | BQ74: 0 | BR74: 1 | BS74: 0 | BT74: 0 | BU74: 0 | BV74: 0 | BW74: 1
J75: 1 | K75: 0 | L75: 1 | M75: 0 | N75: 0 | O75: 0 | P75: 1 | Q75: 0 | R75: 0 | S75: 0 | T75: 1 | U75: 0 | V75: 0 | W75: 0 | X75: 0 | Y75: 0 | Z75: 1 | AA75: 0 | AB75: 1 | AC75: 0 | AD75: 0 | AE75: 0 | AF75: 1 | AG75: 0 | AH75: 0 | AI75: 0 | AJ75: 0 | AK75: 0 | AL75: 0 | AM75: 0 | AN75: 0 | AO75: 0 | AP75: 0 | AQ75: 0 | AR75: 0 | AS75: 1 | AT75: 0 | AU75: 0 | AV75: 0 | AW75: 0 | AX75: 1 | AY75: 0 | AZ75: 0 | BA75: 1 | BB75: 0 | BC75: 1 | BD75: 0 | BE75: 0 | BF75: 1 | BG75: 0 | BH75: 1 | BI75: 0 | BJ75: 0 | BK75: 0 | BL75: 0 | BM75: 0 | BN75: 0 | BO75: 1 | BP75: 0 | BQ75: 0 | BR75: 1 | BS75: 0 | BT75: 0 | BU75: 0 | BV75: 0 | BW75: 0
J76: 1 | K76: 1 | L76: 0 | M76: 0 | N76: 0 | O76: 0 | P76: 0 | Q76: 0 | R76: 1 | S76: 0 | T76: 0 | U76: 1 | V76: 0 | W76: 0 | X76: 1 | Y76: 0 | Z76: 0 | AA76: 0 | AB76: 1 | AC76: 0 | AD76: 0 | AE76: 0 | AF76: 1 | AG76: 0 | AH76: 0 | AI76: 0 | AJ76: 0 | AK76: 0 | AL76: 0 | AM76: 0 | AN76: 0 | AO76: 0 | AP76: 1 | AQ76: 0 | AR76: 0 | AS76: 0 | AT76: 0 | AU76: 0 | AV76: 0 | AW76: 0 | AX76: 1 | AY76: 0 | AZ76: 0 | BA76: 1 | BB76: 0 | BC76: 1 | BD76: 0 | BE76: 0 | BF76: 1 | BG76: 0 | BH76: 0 | BI76: 0 | BJ76: 0 | BK76: 1 | BL76: 0 | BM76: 0 | BN76: 1 | BO76: 0 | BP76: 0 | BQ76: 0 | BR76: 0 | BS76: 0 | BT76: 1 | BU76: 0 | BV76: 0 | BW76: 1
J77: 1 | K77: 1 | L77: 0 | M77: 0 | N77: 0 | O77: 0 | P77: 0 | Q77: 0 | R77: 1 | S77: 0 | T77: 0 | U77: 1 | V77: 0 | W77: 0 | X77: 1 | Y77: 0 | Z77: 0 | AA77: 0 | AB77: 1 | AC77: 0 | AD77: 0 | AE77: 1 | AF77: 0 | AG77: 0 | AH77: 0 | AI77: 0 | AJ77: 0 | AK77: 0 | AL77: 1 | AM77: 0 | AN77: 0 | AO77: 0 | AP77: 0 | AQ77: 1 | AR77: 0 | AS77: 0 | AT77: 0 | AU77: 0 | AV77: 0 | AW77: 0 | AX77: 1 | AY77: 1 | AZ77: 1 | BA77: 1 | BB77: 0 | BC77: 1 | BD77: 0 | BE77: 0 | BF77: 1 | BG77: 0 | BH77: 0 | BI77: 1 | BJ77: 0 | BK77: 0 | BL77: 0 | BM77: 0 | BN77: 1 | BO77: 0 | BP77: 0 | BQ77: 0 | BR77: 1 | BS77: 0 | BT77: 0 | BU77: 0 | BV77: 0 | BW77: 1
J78: 1 | K78: 1 | L78: 0 | M78: 0 | N78: 0 | O78: 0 | P78: 0 | Q78: 1 | R78: 0 | S78: 0 | T78: 1 | U78: 0 | V78: 0 | W78: 1 | X78: 0 | Y78: 0 | Z78: 0 | AA78: 0 | AB78: 1 | AC78: 0 | AD78: 0 | AE78: 1 | AF78: 0 | AG78: 0 | AH78: 0 | AI78: 0 | AJ78: 0 | AK78: 0 | AL78: 0 | AM78: 0 | AN78: 0 | AO78: 0 | AP78: 0 | AQ78: 0 | AR78: 0 | AS78: 0 | AT78: 0 | AU78: 0 | AV78: 0 | AW78: 0 | AX78: 1 | AY78: 1 | AZ78: 1 | BA78: 1 | BB78: 0 | BC78: 0 | BD78: 0 | BE78: 1 | BF78: 0 | BG78: 1 | BH78: 1 | BI78: 0 | BJ78: 0 | BK78: 0 | BL78: 0 | BM78: 0 | BN78: 0 | BO78: 0 | BP78: 0 | BQ78: 0 | BR78: 1 | BS78: 0 | BT78: 0 | BU78: 0 | BV78: 0 | BW78: 1
J79: 1 | K79: 0 | L79: 1 | M79: 0 | N79: 0 | O79: 0 | P79: 1 | Q79: 0 | R79: 0 | S79: 0 | T79: 1 | U79: 0 | V79: 0 | W79: 0 | X79: 0 | Y79: 0 | Z79: 1 | AA79: 0 | AB79: 0 | AC79: 1 | AD79: 0 | AE79: 0 | AF79: 1 | AG79: 0 | AH79: 0 | AI79: 0 | AJ79: 0 | AK79: 0 | AL79: 1 | AM79: 0 | AN79: 0 | AO79: 0 | AP79: 0 | AQ79: 1 | AR79: 0 | AS79: 0 | AT79: 0 | AU79: 0 | AV79: 0 | AW79: 0 | AX79: 1 | AY79: 1 | AZ79: 0 | BA79: 1 | BB79: 0 | BC79: 0 | BD79: 0 | BE79: 1 | BF79: 0 | BG79: 1 | BH79: 1 | BI79: 0 | BJ79: 0 | BK79: 0 | BL79: 0 | BM79: 0 | BN79: 0 | BO79: 0 | BP79: 1 | BQ79: 0 | BR79: 0 | BS79: 1 | BT79: 0 | BU79: 0 | BV79: 0 | BW79: 1
J80: 1 | K80: 0 | L80: 1 | M80: 1 | N80: 0 | O80: 0 | P80: 0 | Q80: 0 | R80: 0 | S80: 1 | T80: 0 | U80: 0 | V80: 0 | W80: 0 | X80: 0 | Y80: 1 | Z80: 0 | AA80: 0 | AB80: 1 | AC80: 0 | AD80: 1 | AE80: 0 | AF80: 0 | AG80: 0 | AH80: 0 | AI80: 0 | AJ80: 0 | AK80: 0 | AL80: 0 | AM80: 0 | AN80: 0 | AO80: 0 | AP80: 0 | AQ80: 0 | AR80: 1 | AS80: 0 | AT80: 0 | AU80: 1 | AV80: 0 | AW80: 1 | AX80: 1 | AY80: 1 | AZ80: 1 | BA80: 1 | BB80: 0 | BC80: 0 | BD80: 1 | BE80: 0 | BF80: 0 | BG80: 1 | BH80: 0 | BI80: 0 | BJ80: 0 | BK80: 1 | BL80: 0 | BM80: 0 | BN80: 0 | BO80: 0 | BP80: 1 | BQ80: 0 | BR80: 1 | BS80: 0 | BT80: 0 | BU80: 0 | BV80: 0 | BW80: 1
J81: 1 | K81: 1 | L81: 0 | M81: 0 | N81: 0 | O81: 1 | P81: 0 | Q81: 0 | R81: 0 | S81: 0 | T81: 1 | U81: 0 | V81: 0 | W81: 1 | X81: 0 | Y81: 0 | Z81: 0 | AA81: 0 | AB81: 0 | AC81: 1 | AD81: 0 | AE81: 0 | AF81: 0 | AG81: 1 | AH81: 0 | AI81: 0 | AJ81: 0 | AK81: 0 | AL81: 0 | AM81: 0 | AN81: 0 | AO81: 0 | AP81: 0 | AQ81: 0 | AR81: 1 | AS81: 0 | AT81: 0 | AU81: 0 | AV81: 0 | AW81: 0 | AX81: 1 | AY81: 0 | AZ81: 0 | BA81: 1 | BB81: 0 | BC81: 1 | BD81: 0 | BE81: 0 | BF81: 1 | BG81: 0 | BH81: 0 | BI81: 1 | BJ81: 0 | BK81: 0 | BL81: 0 | BM81: 0 | BN81: 0 | BO81: 1 | BP81: 0 | BQ81: 0 | BR81: 0 | BS81: 0 | BT81: 1 | BU81: 0 | BV81: 0 | BW81: 1
J82: 1 | K82: 0 | L82: 1 | M82: 0 | N82: 0 | O82: 0 | P82: 1 | Q82: 0 | R82: 0 | S82: 0 | T82: 1 | U82: 0 | V82: 0 | W82: 0 | X82: 0 | Y82: 0 | Z82: 1 | AA82: 0 | AB82: 1 | AC82: 0 | AD82: 0 | AE82: 1 | AF82: 0 | AG82: 0 | AH82: 0 | AI82: 0 | AJ82: 0 | AK82: 0 | AL82: 0 | AM82: 0 | AN82: 0 | AO82: 0 | AP82: 0 | AQ82: 0 | AR82: 0 | AS82: 0 | AT82: 1 | AU82: 0 | AV82: 0 | AW82: 0 | AX82: 1 | AY82: 0 | AZ82: 0 | BA82: 1 | BB82: 0 | BC82: 0 | BD82: 0 | BE82: 1 | BF82: 0 | BG82: 1 | BH82: 1 | BI82: 0 | BJ82: 0 | BK82: 0 | BL82: 0 | BM82: 0 | BN82: 0 | BO82: 1 | BP82: 0 | BQ82: 0 | BR82: 0 | BS82: 1 | BT82: 0 | BU82: 0 | BV82: 0 | BW82: 1
J83: 1 | K83: 1 | L83: 0 | M83: 0 | N83: 0 | O83: 0 | P83: 0 | Q83: 1 | R83: 0 | S83: 0 | T83: 1 | U83: 0 | V83: 0 | W83: 1 | X83: 0 | Y83: 0 | Z83: 0 | AA83: 0 | AB83: 1 | AC83: 0 | AD83: 0 | AE83: 0 | AF83: 1 | AG83: 0 | AH83: 0 | AI83: 0 | AJ83: 0 | AK83: 0 | AL83: 0 | AM83: 0 | AN83: 0 | AO83: 1 | AP83: 0 | AQ83: 0 | AR83: 0 | AS83: 0 | AT83: 0 | AU83: 0 | AV83: 0 | AW83: 0 | AX83: 1 | AY83: 1 | AZ83: 0 | BA83: 1 | BB83: 0 | BC83: 1 | BD83: 0 | BE83: 0 | BF83: 1 | BG83: 0 | BH83: 1 | BI83: 0 | BJ83: 0 | BK83: 0 | BL83: 0 | BM83: 0 | BN83: 0 | BO83: 1 | BP83: 0 | BQ83: 0 | BR83: 0 | BS83: 1 | BT83: 0 | BU83: 0 | BV83: 0 | BW83: 1
J84: 1 | K84: 1 | L84: 0 | M84: 0 | N84: 0 | O84: 0 | P84: 1 | Q84: 0 | R84: 0 | S84: 0 | T84: 1 | U84: 0 | V84: 0 | W84: 1 | X84: 0 | Y84: 0 | Z84: 0 | AA84: 0 | AB84: 1 | AC84: 0 | AD84: 0 | AE84: 1 | AF84: 0 | AG84: 0 | AH84: 0 | AI84: 0 | AJ84: 0 | AK84: 0 | AL84: 1 | AM84: 0 | AN84: 0 | AO84: 0 | AP84: 0 | AQ84: 1 | AR84: 0 | AS84: 0 | AT84: 0 | AU84: 0 | AV84: 0 | AW84: 0 | AX84: 1 | AY84: 0 | AZ84: 0 | BA84: 1 | BB84: 0 | BC84: 0 | BD84: 0 | BE84: 1 | BF84: 0 | BG84: 1 | BH84: 0 | BI84: 0 | BJ84: 0 | BK84: 0 | BL84: 1 | BM84: 0 | BN84: 0 | BO84: 0 | BP84: 1 | BQ84: 0 | BR84: 0 | BS84: 1 | BT84: 0 | BU84: 0 | BV84: 0 | BW84: 1
J85: 1 | K85: 1 | L85: 0 | M85: 0 | N85: 0 | O85: 0 | P85: 0 | Q85: 0 | R85: 1 | S85: 0 | T85: 0 | U85: 1 | V85: 0 | W85: 0 | X85: 1 | Y85: 0 | Z85: 0 | AA85: 0 | AB85: 0 | AC85: 1 | AD85: 0 | AE85: 0 | AF85: 0 | AG85: 1 | AH85: 0 | AI85: 0 | AJ85: 0 | AK85: 0 | AL85: 0 | AM85: 0 | AN85: 0 | AO85: 0 | AP85: 1 | AQ85: 0 | AR85: 0 | AS85: 0 | AT85: 0 | AU85: 0 | AV85: 0 | AW85: 0 | AX85: 1 | AY85: 0 | AZ85: 0 | BA85: 1 | BB85: 0 | BC85: 1 | BD85: 0 | BE85: 0 | BF85: 1 | BG85: 0 | BH85: 1 | BI85: 0 | BJ85: 0 | BK85: 0 | BL85: 0 | BM85: 0 | BN85: 1 | BO85: 0 | BP85: 0 | BQ85: 0 | BR85: 0 | BS85: 1 | BT85: 0 | BU85: 1 | BV85: 0 | BW85: 0
J86: 1 | K86: 0 | L86: 1 | M86: 1 | N86: 0 | O86: 0 | P86: 0 | Q86: 0 | R86: 0 | S86: 1 | T86: 0 | U86: 0 | V86: 0 | W86: 0 | X86: 0 | Y86: 1 | Z86: 0 | AA86: 0 | AB86: 0 | AC86: 1 | AD86: 0 | AE86: 0 | AF86: 1 | AG86: 0 | AH86: 0 | AI86: 0 | AJ86: 0 | AK86: 0 | AL86: 0 | AM86: 0 | AN86: 0 | AO86: 0 | AP86: 0 | AQ86: 0 | AR86: 1 | AS86: 0 | AT86: 0 | AU86: 0 | AV86: 1 | AW86: 1 | AX86: 0 | AY86: 0 | AZ86: 1 | BA86: 1 | BB86: 0 | BC86: 0 | BD86: 0 | BE86: 1 | BF86: 0 | BG86: 1 | BH86: 1 | BI86: 0 | BJ86: 0 | BK86: 0 | BL86: 0 | BM86: 0 | BN86: 0 | BO86: 0 | BP86: 1 | BQ86: 0 | BR86: 0 | BS86: 1 | BT86: 0 | BU86: 0 | BV86: 1 | BW86: 0
J87: 1 | K87: 1 | L87: 0 | M87: 0 | N87: 0 | O87: 0 | P87: 0 | Q87: 1 | R87: 0 | S87: 0 | T87: 1 | U87: 0 | V87: 0 | W87: 1 | X87: 0 | Y87: 0 | Z87: 0 | AA87: 0 | AB87: 0 | AC87: 1 | AD87: 1 | AE87: 0 | AF87: 0 | AG87: 0 | AH87: 0 | AI87: 0 | AJ87: 0 | AK87: 0 | AL87: 0 | AM87: 0 | AN87: 0 | AO87: 1 | AP87: 0 | AQ87: 0 | AR87: 0 | AS87: 0 | AT87: 0 | AU87: 1 | AV87: 0 | AW87: 1 | AX87: 1 | AY87: 1 | AZ87: 0 | BA87: 1 | BB87: 0 | BC87: 0 | BD87: 0 | BE87: 1 | BF87: 0 | BG87: 1 | BH87: 1 | BI87: 0 | BJ87: 0 | BK87: 0 | BL87: 0 | BM87: 0 | BN87: 0 | BO87: 0 | BP87: 0 | BQ87: 0 | BR87: 0 | BS87: 1 | BT87: 0 | BU87: 0 | BV87: 0 | BW87: 1
J88: 1 | K88: 0 | L88: 1 | M88: 1 | N88: 0 | O88: 0 | P88: 0 | Q88: 0 | R88: 0 | S88: 1 | T88: 0 | U88: 0 | V88: 0 | W88: 0 | X88: 0 | Y88: 1 | Z88: 0 | AA88: 0 | AB88: 0 | AC88: 1 | AD88: 0 | AE88: 1 | AF88: 0 | AG88: 0 | AH88: 0 | AI88: 0 | AJ88: 0 | AK88: 0 | AL88: 0 | AM88: 0 | AN88: 0 | AO88: 0 | AP88: 0 | AQ88: 0 | AR88: 1 | AS88: 0 | AT88: 0 | AU88: 0 | AV88: 1 | AW88: 1 | AX88: 0 | AY88: 0 | AZ88: 0 | BA88: 0 | BB88: 0 | BC88: 1 | BD88: 0 | BE88: 0 | BF88: 1 | BG88: 0 | BH88: 0 | BI88: 1 | BJ88: 0 | BK88: 0 | BL88: 0 | BM88: 0 | BN88: 0 | BO88: 1 | BP88: 0 | BQ88: 0 | BR88: 0 | BS88: 1 | BT88: 0 | BU88: 0 | BV88: 0 | BW88: 1
J89: 1 | K89: 1 | L89: 0 | M89: 0 | N89: 1 | O89: 0 | P89: 0 | Q89: 0 | R89: 0 | S89: 1 | T89: 0 | U89: 0 | V89: 1 | W89: 0 | X89: 0 | Y89: 0 | Z89: 0 | AA89: 0 | AB89: 0 | AC89: 1 | AD89: 0 | AE89: 0 | AF89: 0 | AG89: 1 | AH89: 0 | AI89: 0 | AJ89: 0 | AK89: 0 | AL89: 0 | AM89: 0 | AN89: 0 | AO89: 0 | AP89: 0 | AQ89: 0 | AR89: 0 | AS89: 0 | AT89: 1 | AU89: 0 | AV89: 0 | AW89: 0 | AX89: 1 | AY89: 0 | AZ89: 0 | BA89: 1 | BB89: 0 | BC89: 1 | BD89: 0 | BE89: 0 | BF89: 1 | BG89: 0 | BH89: 0 | BI89: 0 | BJ89: 0 | BK89: 1 | BL89: 0 | BM89: 0 | BN89: 0 | BO89: 1 | BP89: 0 | BQ89: 0 | BR89: 0 | BS89: 1 | BT89: 0 | BU89: 0 | BV89: 0 | BW89: 1
J90: 1 | K90: 1 | L90: 0 | M90: 1 | N90: 0 | O90: 0 | P90: 0 | Q90: 0 | R90: 0 | S90: 1 | T90: 0 | U90: 0 | V90: 1 | W90: 0 | X90: 0 | Y90: 0 | Z90: 0 | AA90: 0 | AB90: 0 | AC90: 1 | AD90: 0 | AE90: 1 | AF90: 0 | AG90: 0 | AH90: 1 | AI90: 0 | AJ90: 0 | AK90: 0 | AL90: 0 | AM90: 0 | AN90: 0 | AO90: 1 | AP90: 0 | AQ90: 0 | AR90: 0 | AS90: 0 | AT90: 0 | AU90: 0 | AV90: 1 | AW90: 1 | AX90: 0 | AY90: 0 | AZ90: 0 | BA90: 0 | BB90: 1 | BC90: 0 | BD90: 0 | BE90: 0 | BF90: 1 | BG90: 0 | BH90: 1 | BI90: 0 | BJ90: 0 | BK90: 0 | BL90: 0 | BM90: 0 | BN90: 0 | BO90: 0 | BP90: 0 | BQ90: 1 | BR90: 0 | BS90: 1 | BT90: 0 | BU90: 0 | BV90: 0 | BW90: 1
J91: 1 | K91: 1 | L91: 0 | M91: 0 | N91: 0 | O91: 0 | P91: 0 | Q91: 0 | R91: 1 | S91: 0 | T91: 0 | U91: 1 | V91: 0 | W91: 0 | X91: 1 | Y91: 0 | Z91: 0 | AA91: 0 | AB91: 1 | AC91: 0 | AD91: 0 | AE91: 0 | AF91: 0 | AG91: 1 | AH91: 0 | AI91: 0 | AJ91: 0 | AK91: 0 | AL91: 0 | AM91: 0 | AN91: 0 | AO91: 0 | AP91: 0 | AQ91: 0 | AR91: 0 | AS91: 0 | AT91: 1 | AU91: 0 | AV91: 0 | AW91: 0 | AX91: 1 | AY91: 1 | AZ91: 1 | BA91: 1 | BB91: 0 | BC91: 1 | BD91: 0 | BE91: 0 | BF91: 1 | BG91: 0 | BH91: 0 | BI91: 0 | BJ91: 0 | BK91: 1 | BL91: 0 | BM91: 0 | BN91: 1 | BO91: 0 | BP91: 0 | BQ91: 0 | BR91: 0 | BS91: 1 | BT91: 0 | BU91: 0 | BV91: 0 | BW91: 1
J92: 1 | K92: 0 | L92: 1 | M92: 0 | N92: 0 | O92: 0 | P92: 0 | Q92: 0 | R92: 1 | S92: 0 | T92: 0 | U92: 1 | V92: 0 | W92: 0 | X92: 0 | Y92: 0 | Z92: 0 | AA92: 1 | AB92: 1 | AC92: 0 | AD92: 0 | AE92: 1 | AF92: 0 | AG92: 0 | AH92: 0 | AI92: 0 | AJ92: 0 | AK92: 0 | AL92: 0 | AM92: 0 | AN92: 0 | AO92: 0 | AP92: 0 | AQ92: 0 | AR92: 1 | AS92: 0 | AT92: 0 | AU92: 0 | AV92: 0 | AW92: 0 | AX92: 1 | AY92: 0 | AZ92: 1 | BA92: 1 | BB92: 1 | BC92: 0 | BD92: 0 | BE92: 0 | BF92: 1 | BG92: 0 | BH92: 1 | BI92: 0 | BJ92: 0 | BK92: 0 | BL92: 0 | BM92: 0 | BN92: 1 | BO92: 0 | BP92: 0 | BQ92: 0 | BR92: 0 | BS92: 1 | BT92: 0 | BU92: 0 | BV92: 0 | BW92: 1
J93: 1 | K93: 0 | L93: 1 | M93: 0 | N93: 0 | O93: 1 | P93: 0 | Q93: 0 | R93: 0 | S93: 0 | T93: 1 | U93: 0 | V93: 0 | W93: 0 | X93: 0 | Y93: 0 | Z93: 1 | AA93: 0 | AB93: 0 | AC93: 1 | AD93: 0 | AE93: 1 | AF93: 0 | AG93: 0 | AH93: 0 | AI93: 0 | AJ93: 0 | AK93: 0 | AL93: 1 | AM93: 0 | AN93: 0 | AO93: 0 | AP93: 0 | AQ93: 1 | AR93: 0 | AS93: 0 | AT93: 0 | AU93: 1 | AV93: 0 | AW93: 1 | AX93: 0 | AY93: 0 | AZ93: 0 | BA93: 0 | BB93: 1 | BC93: 0 | BD93: 0 | BE93: 0 | BF93: 1 | BG93: 0 | BH93: 1 | BI93: 0 | BJ93: 0 | BK93: 0 | BL93: 0 | BM93: 0 | BN93: 0 | BO93: 1 | BP93: 0 | BQ93: 0 | BR93: 1 | BS93: 0 | BT93: 0 | BU93: 0 | BV93: 0 | BW93: 1
J94: 1 | K94: 0 | L94: 1 | M94: 0 | N94: 0 | O94: 0 | P94: 0 | Q94: 1 | R94: 0 | S94: 0 | T94: 1 | U94: 0 | V94: 0 | W94: 0 | X94: 0 | Y94: 0 | Z94: 1 | AA94: 0 | AB94: 0 | AC94: 1 | AD94: 0 | AE94: 1 | AF94: 0 | AG94: 0 | AH94: 0 | AI94: 0 | AJ94: 0 | AK94: 0 | AL94: 0 | AM94: 0 | AN94: 0 | AO94: 0 | AP94: 1 | AQ94: 0 | AR94: 0 | AS94: 0 | AT94: 0 | AU94: 0 | AV94: 0 | AW94: 0 | AX94: 1 | AY94: 1 | AZ94: 0 | BA94: 1 | BB94: 0 | BC94: 0 | BD94: 0 | BE94: 1 | BF94: 0 | BG94: 1 | BH94: 0 | BI94: 1 | BJ94: 0 | BK94: 0 | BL94: 0 | BM94: 0 | BN94: 1 | BO94: 0 | BP94: 0 | BQ94: 0 | BR94: 1 | BS94: 0 | BT94: 0 | BU94: 0 | BV94: 0 | BW94: 1
J95: 1 | K95: 0 | L95: 1 | M95: 0 | N95: 1 | O95: 0 | P95: 0 | Q95: 0 | R95: 0 | S95: 1 | T95: 0 | U95: 0 | V95: 0 | W95: 0 | X95: 0 | Y95: 1 | Z95: 0 | AA95: 0 | AB95: 1 | AC95: 0 | AD95: 1 | AE95: 0 | AF95: 0 | AG95: 0 | AH95: 0 | AI95: 0 | AJ95: 0 | AK95: 0 | AL95: 0 | AM95: 0 | AN95: 0 | AO95: 0 | AP95: 0 | AQ95: 0 | AR95: 0 | AS95: 0 | AT95: 0 | AU95: 1 | AV95: 0 | AW95: 1 | AX95: 1 | AY95: 0 | AZ95: 0 | BA95: 1 | BB95: 0 | BC95: 0 | BD95: 0 | BE95: 1 | BF95: 0 | BG95: 1 | BH95: 0 | BI95: 0 | BJ95: 0 | BK95: 0 | BL95: 0 | BM95: 1 | BN95: 0 | BO95: 0 | BP95: 1 | BQ95: 0 | BR95: 0 | BS95: 0 | BT95: 1 | BU95: 0 | BV95: 0 | BW95: 1
J96: 1 | K96: 0 | L96: 1 | M96: 1 | N96: 0 | O96: 0 | P96: 0 | Q96: 0 | R96: 0 | S96: 1 | T96: 0 | U96: 0 | V96: 0 | W96: 0 | X96: 0 | Y96: 1 | Z96: 0 | AA96: 0 | AB96: 1 | AC96: 0 | AD96: 0 | AE96: 0 | AF96: 1 | AG96: 0 | AH96: 0 | AI96: 0 | AJ96: 0 | AK96: 0 | AL96: 0 | AM96: 0 | AN96: 0 | AO96: 1 | AP96: 0 | AQ96: 0 | AR96: 0 | AS96: 0 | AT96: 0 | AU96: 1 | AV96: 1 | AW96: 1 | AX96: 1 | AY96: 1 | AZ96: 1 | BA96: 1 | BB96: 0 | BC96: 0 | BD96: 1 | BE96: 0 | BF96: 0 | BG96: 1 | BH96: 0 | BI96: 0 | BJ96: 0 | BK96: 1 | BL96: 0 | BM96: 0 | BN96: 0 | BO96: 1 | BP96: 0 | BQ96: 0 | BR96: 0 | BS96: 1 | BT96: 0 | BU96: 0 | BV96: 0 | BW96: 1
J97: 1 | K97: 0 | L97: 1 | M97: 0 | N97: 1 | O97: 0 | P97: 0 | Q97: 0 | R97: 0 | S97: 1 | T97: 0 | U97: 0 | V97: 0 | W97: 0 | X97: 0 | Y97: 1 | Z97: 0 | AA97: 0 | AB97: 1 | AC97: 0 | AD97: 0 | AE97: 0 | AF97: 1 | AG97: 0 | AH97: 0 | AI97: 0 | AJ97: 0 | AK97: 0 | AL97: 0 | AM97: 0 | AN97: 0 | AO97: 0 | AP97: 0 | AQ97: 0 | AR97: 0 | AS97: 0 | AT97: 0 | AU97: 0 | AV97: 0 | AW97: 0 | AX97: 0 | AY97: 1 | AZ97: 0 | BA97: 1 | BB97: 1 | BC97: 0 | BD97: 0 | BE97: 0 | BF97: 1 | BG97: 0 | BH97: 1 | BI97: 0 | BJ97: 0 | BK97: 0 | BL97: 0 | BM97: 0 | BN97: 0 | BO97: 1 | BP97: 0 | BQ97: 0 | BR97: 0 | BS97: 1 | BT97: 0 | BU97: 0 | BV97: 0 | BW97: 1
J98: 1 | K98: 0 | L98: 1 | M98: 0 | N98: 0 | O98: 0 | P98: 1 | Q98: 0 | R98: 0 | S98: 0 | T98: 1 | U98: 0 | V98: 0 | W98: 0 | X98: 0 | Y98: 0 | Z98: 1 | AA98: 0 | AB98: 0 | AC98: 1 | AD98: 0 | AE98: 1 | AF98: 0 | AG98: 0 | AH98: 0 | AI98: 0 | AJ98: 1 | AK98: 0 | AL98: 0 | AM98: 0 | AN98: 0 | AO98: 0 | AP98: 1 | AQ98: 0 | AR98: 0 | AS98: 0 | AT98: 0 | AU98: 0 | AV98: 0 | AW98: 0 | AX98: 1 | AY98: 0 | AZ98: 1 | BA98: 1 | BB98: 0 | BC98: 0 | BD98: 1 | BE98: 0 | BF98: 0 | BG98: 1 | BH98: 1 | BI98: 0 | BJ98: 0 | BK98: 0 | BL98: 0 | BM98: 0 | BN98: 1 | BO98: 0 | BP98: 0 | BQ98: 0 | BR98: 1 | BS98: 0 | BT98: 0 | BU98: 0 | BV98: 1 | BW98: 0
J99: 1 | K99: 1 | L99: 0 | M99: 0 | N99: 0 | O99: 0 | P99: 1 | Q99: 0 | R99: 0 | S99: 0 | T99: 1 | U99: 0 | V99: 0 | W99: 1 | X99: 0 | Y99: 0 | Z99: 0 | AA99: 0 | AB99: 0 | AC99: 1 | AD99: 0 | AE99: 1 | AF99: 0 | AG99: 0 | AH99: 0 | AI99: 0 | AJ99: 0 | AK99: 0 | AL99: 0 | AM99: 0 | AN99: 0 | AO99: 0 | AP99: 0 | AQ99: 0 | AR99: 1 | AS99: 0 | AT99: 0 | AU99: 1 | AV99: 0 | AW99: 1 | AX99: 1 | AY99: 1 | AZ99: 1 | BA99: 1 | BB99: 1 | BC99: 0 | BD99: 0 | BE99: 0 | BF99: 1 | BG99: 0 | BH99: 0 | BI99: 0 | BJ99: 0 | BK99: 0 | BL99: 0 | BM99: 1 | BN99: 0 | BO99: 0 | BP99: 0 | BQ99: 1 | BR99: 1 | BS99: 0 | BT99: 0 | BU99: 0 | BV99: 1 | BW99: 0
J100: 1 | K100: 1 | L100: 0 | M100: 0 | N100: 0 | O100: 0 | P100: 0 | Q100: 1 | R100: 0 | S100: 0 | T100: 1 | U100: 0 | V100: 0 | W100: 1 | X100: 0 | Y100: 0 | Z100: 0 | AA100: 0 | AB100: 0 | AC100: 1 | AD100: 0 | AE100: 0 | AF100: 1 | AG100: 0 | AH100: 0 | AI100: 0 | AJ100: 0 | AK100: 0 | AL100: 0 | AM100: 1 | AN100: 0 | AO100: 0 | AP100: 1 | AQ100: 0 | AR100: 0 | AS100: 0 | AT100: 0 | AU100: 0 | AV100: 0 | AW100: 0 | AX100: 0 | AY100: 1 | AZ100: 0 | BA100: 1 | BB100: 0 | BC100: 1 | BD100: 0 | BE100: 0 | BF100: 1 | BG100: 0 | BH100: 0 | BI100: 0 | BJ100: 0 | BK100: 0 | BL100: 1 | BM100: 0 | BN100: 0 | BO100: 0 | BP100: 1 | BQ100: 0 | BR100: 1 | BS100: 0 | BT100: 0 | BU100: 0 | BV100: 0 | BW100: 1
J101: 1 | K101: 0 | L101: 1 | M101: 0 | N101: 0 | O101: 0 | P101: 0 | Q101: 1 | R101: 0 | S101: 0 | T101: 1 | U101: 0 | V101: 0 | W101: 0 | X101: 0 | Y101: 0 | Z101: 1 | AA101: 0 | AB101: 1 | AC101: 0 | AD101: 0 | AE101: 0 | AF101: 1 | AG101: 0 | AH101: 0 | AI101: 0 | AJ101: 0 | AK101: 0 | AL101: 0 | AM101: 0 | AN101: 0 | AO101: 0 | AP101: 0 | AQ101: 0 | AR101: 0 | AS101: 0 | AT101: 0 | AU101: 0 | AV101: 0 | AW101: 0 | AX101: 0 | AY101: 1 | AZ101: 0 | BA101: 1 | BB101: 1 | BC101: 0 | BD101: 0 | BE101: 0 | BF101: 1 | BG101: 0 | BH101: 1 | BI101: 0 | BJ101: 0 | BK101: 0 | BL101: 0 | BM101: 0 | BN101: 0 | BO101: 0 | BP101: 0 | BQ101: 0 | BR101: 1 | BS101: 0 | BT101: 0 | BU101: 0 | BV101: 0 | BW101: 1
J102: 1 | K102: 0 | L102: 1 | M102: 1 | N102: 0 | O102: 0 | P102: 0 | Q102: 0 | R102: 0 | S102: 1 | T102: 0 | U102: 0 | V102: 0 | W102: 0 | X102: 0 | Y102: 1 | Z102: 0 | AA102: 0 | AB102: 0 | AC102: 1 | AD102: 0 | AE102: 0 | AF102: 1 | AG102: 0 | AH102: 0 | AI102: 0 | AJ102: 0 | AK102: 0 | AL102: 0 | AM102: 0 | AN102: 0 | AO102: 0 | AP102: 1 | AQ102: 0 | AR102: 0 | AS102: 0 | AT102: 0 | AU102: 1 | AV102: 1 | AW102: 1 | AX102: 1 | AY102: 1 | AZ102: 1 | BA102: 1 | BB102: 0 | BC102: 0 | BD102: 1 | BE102: 0 | BF102: 0 | BG102: 1 | BH102: 0 | BI102: 0 | BJ102: 0 | BK102: 0 | BL102: 1 | BM102: 0 | BN102: 0 | BO102: 1 | BP102: 0 | BQ102: 0 | BR102: 0 | BS102: 1 | BT102: 0 | BU102: 0 | BV102: 0 | BW102: 1
J103: 1 | K103: 1 | L103: 0 | M103: 0 | N103: 0 | O103: 1 | P103: 0 | Q103: 0 | R103: 0 | S103: 0 | T103: 1 | U103: 0 | V103: 0 | W103: 1 | X103: 0 | Y103: 0 | Z103: 0 | AA103: 0 | AB103: 1 | AC103: 0 | AD103: 0 | AE103: 1 | AF103: 0 | AG103: 0 | AH103: 0 | AI103: 0 | AJ103: 0 | AK103: 0 | AL103: 0 | AM103: 0 | AN103: 0 | AO103: 0 | AP103: 0 | AQ103: 0 | AR103: 1 | AS103: 0 | AT103: 0 | AU103: 0 | AV103: 0 | AW103: 0 | AX103: 1 | AY103: 1 | AZ103: 0 | BA103: 1 | BB103: 0 | BC103: 1 | BD103: 0 | BE103: 0 | BF103: 1 | BG103: 0 | BH103: 1 | BI103: 0 | BJ103: 0 | BK103: 0 | BL103: 0 | BM103: 0 | BN103: 0 | BO103: 1 | BP103: 0 | BQ103: 0 | BR103: 0 | BS103: 1 | BT103: 0 | BU103: 0 | BV103: 0 | BW103: 1
J104: 1 | K104: 0 | L104: 1 | M104: 0 | N104: 0 | O104: 0 | P104: 0 | Q104: 0 | R104: 1 | S104: 0 | T104: 0 | U104: 1 | V104: 0 | W104: 0 | X104: 0 | Y104: 0 | Z104: 0 | AA104: 1 | AB104: 1 | AC104: 0 | AD104: 0 | AE104: 0 | AF104: 0 | AG104: 1 | AH104: 0 | AI104: 0 | AJ104: 0 | AK104: 0 | AL104: 0 | AM104: 0 | AN104: 0 | AO104: 0 | AP104: 0 | AQ104: 0 | AR104: 1 | AS104: 0 | AT104: 0 | AU104: 0 | AV104: 0 | AW104: 0 | AX104: 1 | AY104: 0 | AZ104: 1 | BA104: 1 | BB104: 0 | BC104: 1 | BD104: 0 | BE104: 0 | BF104: 1 | BG104: 0 | BH104: 0 | BI104: 0 | BJ104: 0 | BK104: 0 | BL104: 1 | BM104: 0 | BN104: 1 | BO104: 0 | BP104: 0 | BQ104: 0 | BR104: 1 | BS104: 0 | BT104: 0 | BU104: 0 | BV104: 1 | BW104: 0
J105: 1 | K105: 0 | L105: 1 | M105: 0 | N105: 0 | O105: 1 | P105: 0 | Q105: 0 | R105: 0 | S105: 0 | T105: 1 | U105: 0 | V105: 0 | W105: 0 | X105: 0 | Y105: 0 | Z105: 1 | AA105: 0 | AB105: 0 | AC105: 1 | AD105: 0 | AE105: 1 | AF105: 0 | AG105: 0 | AH105: 0 | AI105: 0 | AJ105: 0 | AK105: 0 | AL105: 0 | AM105: 0 | AN105: 0 | AO105: 0 | AP105: 0 | AQ105: 0 | AR105: 0 | AS105: 0 | AT105: 0 | AU105: 0 | AV105: 0 | AW105: 0 | AX105: 1 | AY105: 1 | AZ105: 1 | BA105: 1 | BB105: 0 | BC105: 0 | BD105: 1 | BE105: 0 | BF105: 0 | BG105: 1 | BH105: 1 | BI105: 0 | BJ105: 0 | BK105: 0 | BL105: 0 | BM105: 0 | BN105: 0 | BO105: 0 | BP105: 0 | BQ105: 0 | BR105: 1 | BS105: 0 | BT105: 0 | BU105: 0 | BV105: 0 | BW105: 1
J106: 1 | K106: 1 | L106: 0 | M106: 0 | N106: 0 | O106: 0 | P106: 0 | Q106: 0 | R106: 1 | S106: 0 | T106: 0 | U106: 1 | V106: 0 | W106: 0 | X106: 1 | Y106: 0 | Z106: 0 | AA106: 0 | AB106: 1 | AC106: 0 | AD106: 0 | AE106: 0 | AF106: 0 | AG106: 1 | AH106: 0 | AI106: 0 | AJ106: 0 | AK106: 0 | AL106: 0 | AM106: 0 | AN106: 0 | AO106: 0 | AP106: 0 | AQ106: 0 | AR106: 0 | AS106: 0 | AT106: 1 | AU106: 0 | AV106: 0 | AW106: 0 | AX106: 0 | AY106: 0 | AZ106: 1 | BA106: 1 | BB106: 0 | BC106: 1 | BD106: 0 | BE106: 0 | BF106: 1 | BG106: 0 | BH106: 0 | BI106: 0 | BJ106: 1 | BK106: 0 | BL106: 0 | BM106: 0 | BN106: 1 | BO106: 0 | BP106: 0 | BQ106: 0 | BR106: 1 | BS106: 0 | BT106: 0 | BU106: 0 | BV106: 0 | BW106: 0
J107: 1 | K107: 1 | L107: 0 | M107: 0 | N107: 0 | O107: 1 | P107: 0 | Q107: 0 | R107: 0 | S107: 0 | T107: 1 | U107: 0 | V107: 0 | W107: 1 | X107: 0 | Y107: 0 | Z107: 0 | AA107: 0 | AB107: 1 | AC107: 0 | AD107: 1 | AE107: 0 | AF107: 0 | AG107: 0 | AH107: 0 | AI107: 0 | AJ107: 0 | AK107: 0 | AL107: 0 | AM107: 0 | AN107: 0 | AO107: 0 | AP107: 0 | AQ107: 0 | AR107: 0 | AS107: 0 | AT107: 0 | AU107: 1 | AV107: 0 | AW107: 1 | AX107: 0 | AY107: 0 | AZ107: 0 | BA107: 0 | BB107: 0 | BC107: 0 | BD107: 0 | BE107: 1 | BF107: 0 | BG107: 1 | BH107: 1 | BI107: 0 | BJ107: 0 | BK107: 0 | BL107: 0 | BM107: 0 | BN107: 0 | BO107: 0 | BP107: 0 | BQ107: 1 | BR107: 0 | BS107: 1 | BT107: 0 | BU107: 0 | BV107: 0 | BW107: 1
J108: 1 | K108: 0 | L108: 1 | M108: 0 | N108: 1 | O108: 0 | P108: 0 | Q108: 0 | R108: 0 | S108: 1 | T108: 0 | U108: 0 | V108: 0 | W108: 0 | X108: 0 | Y108: 1 | Z108: 0 | AA108: 0 | AB108: 0 | AC108: 1 | AD108: 0 | AE108: 1 | AF108: 0 | AG108: 0 | AH108: 0 | AI108: 0 | AJ108: 0 | AK108: 0 | AL108: 0 | AM108: 0 | AN108: 0 | AO108: 0 | AP108: 0 | AQ108: 0 | AR108: 0 | AS108: 0 | AT108: 0 | AU108: 1 | AV108: 1 | AW108: 1 | AX108: 1 | AY108: 0 | AZ108: 0 | BA108: 1 | BB108: 0 | BC108: 0 | BD108: 0 | BE108: 0 | BF108: 0 | BG108: 0 | BH108: 0 | BI108: 0 | BJ108: 0 | BK108: 1 | BL108: 0 | BM108: 0 | BN108: 0 | BO108: 1 | BP108: 0 | BQ108: 0 | BR108: 1 | BS108: 0 | BT108: 0 | BU108: 0 | BV108: 0 | BW108: 1
J109: 1 | K109: 1 | L109: 0 | M109: 0 | N109: 0 | O109: 0 | P109: 0 | Q109: 0 | R109: 1 | S109: 0 | T109: 0 | U109: 1 | V109: 0 | W109: 0 | X109: 1 | Y109: 0 | Z109: 0 | AA109: 0 | AB109: 1 | AC109: 0 | AD109: 0 | AE109: 0 | AF109: 1 | AG109: 0 | AH109: 0 | AI109: 0 | AJ109: 0 | AK109: 0 | AL109: 0 | AM109: 0 | AN109: 0 | AO109: 0 | AP109: 0 | AQ109: 0 | AR109: 0 | AS109: 0 | AT109: 1 | AU109: 0 | AV109: 0 | AW109: 0 | AX109: 1 | AY109: 1 | AZ109: 0 | BA109: 1 | BB109: 0 | BC109: 0 | BD109: 0 | BE109: 1 | BF109: 0 | BG109: 1 | BH109: 0 | BI109: 0 | BJ109: 0 | BK109: 1 | BL109: 0 | BM109: 0 | BN109: 1 | BO109: 0 | BP109: 0 | BQ109: 0 | BR109: 0 | BS109: 0 | BT109: 0 | BU109: 0 | BV109: 0 | BW109: 1
J110: 1 | K110: 1 | L110: 0 | M110: 0 | N110: 0 | O110: 0 | P110: 0 | Q110: 0 | R110: 1 | S110: 0 | T110: 0 | U110: 1 | V110: 0 | W110: 0 | X110: 1 | Y110: 0 | Z110: 0 | AA110: 0 | AB110: 1 | AC110: 0 | AD110: 0 | AE110: 0 | AF110: 0 | AG110: 1 | AH110: 0 | AI110: 0 | AJ110: 0 | AK110: 0 | AL110: 0 | AM110: 0 | AN110: 0 | AO110: 0 | AP110: 1 | AQ110: 0 | AR110: 0 | AS110: 0 | AT110: 0 | AU110: 0 | AV110: 0 | AW110: 0 | AX110: 1 | AY110: 0 | AZ110: 0 | BA110: 1 | BB110: 0 | BC110: 0 | BD110: 1 | BE110: 0 | BF110: 0 | BG110: 1 | BH110: 0 | BI110: 0 | BJ110: 0 | BK110: 0 | BL110: 1 | BM110: 0 | BN110: 1 | BO110: 0 | BP110: 0 | BQ110: 0 | BR110: 0 | BS110: 0 | BT110: 1 | BU110: 0 | BV110: 0 | BW110: 1
J111: 1 | K111: 1 | L111: 0 | M111: 1 | N111: 0 | O111: 0 | P111: 0 | Q111: 0 | R111: 0 | S111: 1 | T111: 0 | U111: 0 | V111: 1 | W111: 0 | X111: 0 | Y111: 0 | Z111: 0 | AA111: 0 | AB111: 0 | AC111: 1 | AD111: 1 | AE111: 0 | AF111: 0 | AG111: 0 | AH111: 0 | AI111: 1 | AJ111: 0 | AK111: 0 | AL111: 0 | AM111: 0 | AN111: 0 | AO111: 0 | AP111: 1 | AQ111: 0 | AR111: 0 | AS111: 0 | AT111: 0 | AU111: 0 | AV111: 0 | AW111: 0 | AX111: 1 | AY111: 1 | AZ111: 1 | BA111: 1 | BB111: 0 | BC111: 0 | BD111: 0 | BE111: 1 | BF111: 0 | BG111: 1 | BH111: 0 | BI111: 0 | BJ111: 0 | BK111: 0 | BL111: 0 | BM111: 1 | BN111: 0 | BO111: 0 | BP111: 1 | BQ111: 0 | BR111: 1 | BS111: 0 | BT111: 0 | BU111: 0 | BV111: 0 | BW111: 1
J112: 1 | K112: 1 | L112: 0 | M112: 0 | N112: 0 | O112: 0 | P112: 0 | Q112: 0 | R112: 1 | S112: 0 | T112: 0 | U112: 1 | V112: 0 | W112: 0 | X112: 1 | Y112: 0 | Z112: 0 | AA112: 0 | AB112: 1 | AC112: 0 | AD112: 0 | AE112: 0 | AF112: 0 | AG112: 1 | AH112: 0 | AI112: 0 | AJ112: 0 | AK112: 0 | AL112: 0 | AM112: 0 | AN112: 0 | AO112: 0 | AP112: 0 | AQ112: 0 | AR112: 0 | AS112: 0 | AT112: 1 | AU112: 0 | AV112: 0 | AW112: 0 | AX112: 1 | AY112: 0 | AZ112: 0 | BA112: 1 | BB112: 0 | BC112: 1 | BD112: 0 | BE112: 0 | BF112: 1 | BG112: 0 | BH112: 0 | BI112: 0 | BJ112: 0 | BK112: 0 | BL112: 1 | BM112: 0 | BN112: 1 | BO112: 0 | BP112: 0 | BQ112: 0 | BR112: 0 | BS112: 1 | BT112: 0 | BU112: 0 | BV112: 0 | BW112: 1
J113: 1 | K113: 1 | L113: 0 | M113: 0 | N113: 0 | O113: 0 | P113: 1 | Q113: 0 | R113: 0 | S113: 0 | T113: 1 | U113: 0 | V113: 0 | W113: 1 | X113: 0 | Y113: 0 | Z113: 0 | AA113: 0 | AB113: 0 | AC113: 1 | AD113: 0 | AE113: 0 | AF113: 0 | AG113: 1 | AH113: 0 | AI113: 0 | AJ113: 0 | AK113: 0 | AL113: 0 | AM113: 0 | AN113: 0 | AO113: 0 | AP113: 0 | AQ113: 0 | AR113: 0 | AS113: 0 | AT113: 0 | AU113: 1 | AV113: 0 | AW113: 1 | AX113: 0 | AY113: 0 | AZ113: 1 | BA113: 1 | BB113: 0 | BC113: 1 | BD113: 0 | BE113: 0 | BF113: 1 | BG113: 0 | BH113: 0 | BI113: 0 | BJ113: 0 | BK113: 0 | BL113: 0 | BM113: 1 | BN113: 0 | BO113: 0 | BP113: 0 | BQ113: 0 | BR113: 0 | BS113: 1 | BT113: 0 | BU113: 0 | BV113: 0 | BW113: 0
J114: 1 | K114: 1 | L114: 0 | M114: 0 | N114: 0 | O114: 0 | P114: 0 | Q114: 1 | R114: 0 | S114: 0 | T114: 1 | U114: 0 | V114: 0 | W114: 1 | X114: 0 | Y114: 0 | Z114: 0 | AA114: 0 | AB114: 1 | AC114: 0 | AD114: 0 | AE114: 1 | AF114: 0 | AG114: 0 | AH114: 0 | AI114: 0 | AJ114: 0 | AK114: 0 | AL114: 0 | AM114: 0 | AN114: 0 | AO114: 0 | AP114: 0 | AQ114: 0 | AR114: 1 | AS114: 0 | AT114: 0 | AU114: 0 | AV114: 0 | AW114: 0 | AX114: 1 | AY114: 1 | AZ114: 0 | BA114: 1 | BB114: 0 | BC114: 0 | BD114: 1 | BE114: 0 | BF114: 0 | BG114: 1 | BH114: 0 | BI114: 0 | BJ114: 0 | BK114: 1 | BL114: 0 | BM114: 0 | BN114: 1 | BO114: 0 | BP114: 0 | BQ114: 0 | BR114: 1 | BS114: 0 | BT114: 0 | BU114: 0 | BV114: 1 | BW114: 0
J115: 1 | K115: 1 | L115: 0 | M115: 0 | N115: 0 | O115: 0 | P115: 1 | Q115: 0 | R115: 0 | S115: 0 | T115: 1 | U115: 0 | V115: 0 | W115: 1 | X115: 0 | Y115: 0 | Z115: 0 | AA115: 0 | AB115: 1 | AC115: 0 | AD115: 0 | AE115: 0 | AF115: 1 | AG115: 0 | AH115: 0 | AI115: 0 | AJ115: 1 | AK115: 0 | AL115: 0 | AM115: 0 | AN115: 0 | AO115: 1 | AP115: 0 | AQ115: 0 | AR115: 0 | AS115: 0 | AT115: 0 | AU115: 0 | AV115: 0 | AW115: 0 | AX115: 1 | AY115: 0 | AZ115: 0 | BA115: 1 | BB115: 0 | BC115: 0 | BD115: 1 | BE115: 0 | BF115: 0 | BG115: 1 | BH115: 0 | BI115: 0 | BJ115: 1 | BK115: 0 | BL115: 0 | BM115: 0 | BN115: 0 | BO115: 0 | BP115: 1 | BQ115: 0 | BR115: 0 | BS115: 1 | BT115: 0 | BU115: 0 | BV115: 0 | BW115: 1
J116: 1 | K116: 1 | L116: 0 | M116: 0 | N116: 0 | O116: 0 | P116: 0 | Q116: 1 | R116: 0 | S116: 0 | T116: 1 | U116: 0 | V116: 0 | W116: 1 | X116: 0 | Y116: 0 | Z116: 0 | AA116: 0 | AB116: 1 | AC116: 0 | AD116: 1 | AE116: 0 | AF116: 0 | AG116: 0 | AH116: 1 | AI116: 0 | AJ116: 0 | AK116: 0 | AL116: 0 | AM116: 0 | AN116: 0 | AO116: 1 | AP116: 0 | AQ116: 0 | AR116: 0 | AS116: 0 | AT116: 0 | AU116: 1 | AV116: 0 | AW116: 1 | AX116: 1 | AY116: 1 | AZ116: 1 | BA116: 1 | BB116: 1 | BC116: 0 | BD116: 0 | BE116: 0 | BF116: 1 | BG116: 0 | BH116: 0 | BI116: 0 | BJ116: 0 | BK116: 0 | BL116: 0 | BM116: 0 | BN116: 0 | BO116: 0 | BP116: 0 | BQ116: 1 | BR116: 0 | BS116: 1 | BT116: 0 | BU116: 0 | BV116: 0 | BW116: 1
J117: 1 | K117: 1 | L117: 0 | M117: 1 | N117: 0 | O117: 0 | P117: 0 | Q117: 0 | R117: 0 | S117: 1 | T117: 0 | U117: 0 | V117: 1 | W117: 0 | X117: 0 | Y117: 0 | Z117: 0 | AA117: 0 | AB117: 0 | AC117: 1 | AD117: 0 | AE117: 1 | AF117: 0 | AG117: 0 | AH117: 0 | AI117: 0 | AJ117: 0 | AK117: 0 | AL117: 0 | AM117: 0 | AN117: 0 | AO117: 0 | AP117: 1 | AQ117: 0 | AR117: 0 | AS117: 0 | AT117: 0 | AU117: 1 | AV117: 0 | AW117: 1 | AX117: 0 | AY117: 1 | AZ117: 0 | BA117: 1 | BB117: 0 | BC117: 1 | BD117: 0 | BE117: 0 | BF117: 1 | BG117: 0 | BH117: 1 | BI117: 0 | BJ117: 0 | BK117: 0 | BL117: 0 | BM117: 0 | BN117: 0 | BO117: 1 | BP117: 0 | BQ117: 0 | BR117: 1 | BS117: 0 | BT117: 0 | BU117: 0 | BV117: 0 | BW117: 1
J118: 1 | K118: 1 | L118: 0 | M118: 1 | N118: 0 | O118: 0 | P118: 0 | Q118: 0 | R118: 0 | S118: 1 | T118: 0 | U118: 0 | V118: 1 | W118: 0 | X118: 0 | Y118: 0 | Z118: 0 | AA118: 0 | AB118: 0 | AC118: 1 | AD118: 0 | AE118: 0 | AF118: 0 | AG118: 1 | AH118: 0 | AI118: 0 | AJ118: 0 | AK118: 0 | AL118: 0 | AM118: 0 | AN118: 0 | AO118: 0 | AP118: 1 | AQ118: 0 | AR118: 0 | AS118: 0 | AT118: 0 | AU118: 0 | AV118: 0 | AW118: 0 | AX118: 0 | AY118: 1 | AZ118: 0 | BA118: 1 | BB118: 0 | BC118: 0 | BD118: 1 | BE118: 0 | BF118: 0 | BG118: 1 | BH118: 0 | BI118: 0 | BJ118: 1 | BK118: 0 | BL118: 0 | BM118: 0 | BN118: 0 | BO118: 1 | BP118: 0 | BQ118: 0 | BR118: 1 | BS118: 0 | BT118: 0 | BU118: 0 | BV118: 0 | BW118: 1
J119: 1 | K119: 0 | L119: 1 | M119: 0 | N119: 0 | O119: 0 | P119: 0 | Q119: 1 | R119: 0 | S119: 0 | T119: 1 | U119: 0 | V119: 0 | W119: 0 | X119: 0 | Y119: 0 | Z119: 1 | AA119: 0 | AB119: 0 | AC119: 1 | AD119: 0 | AE119: 1 | AF119: 0 | AG119: 0 | AH119: 0 | AI119: 0 | AJ119: 0 | AK119: 0 | AL119: 0 | AM119: 0 | AN119: 0 | AO119: 0 | AP119: 1 | AQ119: 0 | AR119: 0 | AS119: 0 | AT119: 0 | AU119: 0 | AV119: 1 | AW119: 1 | AX119: 1 | AY119: 1 | AZ119: 1 | BA119: 1 | BB119: 0 | BC119: 0 | BD119: 1 | BE119: 0 | BF119: 0 | BG119: 1 | BH119: 1 | BI119: 0 | BJ119: 0 | BK119: 0 | BL119: 0 | BM119: 0 | BN119: 1 | BO119: 0 | BP119: 0 | BQ119: 0 | BR119: 1 | BS119: 0 | BT119: 0 | BU119: 0 | BV119: 0 | BW119: 1
J120: 1 | K120: 0 | L120: 1 | M120: 0 | N120: 0 | O120: 0 | P120: 0 | Q120: 0 | R120: 1 | S120: 0 | T120: 0 | U120: 1 | V120: 0 | W120: 0 | X120: 0 | Y120: 0 | Z120: 0 | AA120: 1 | AB120: 1 | AC120: 0 | AD120: 0 | AE120: 0 | AF120: 1 | AG120: 0 | AH120: 0 | AI120: 0 | AJ120: 0 | AK120: 0 | AL120: 0 | AM120: 0 | AN120: 0 | AO120: 0 | AP120: 0 | AQ120: 0 | AR120: 1 | AS120: 0 | AT120: 0 | AU120: 0 | AV120: 0 | AW120: 0 | AX120: 1 | AY120: 0 | AZ120: 0 | BA120: 1 | BB120: 0 | BC120: 0 | BD120: 1 | BE120: 0 | BF120: 0 | BG120: 1 | BH120: 0 | BI120: 0 | BJ120: 0 | BK120: 0 | BL120: 1 | BM120: 0 | BN120: 1 | BO120: 0 | BP120: 0 | BQ120: 0 | BR120: 0 | BS120: 0 | BT120: 0 | BU120: 0 | BV120: 0 | BW120: 1
J121: 1 | K121: 1 | L121: 0 | M121: 0 | N121: 0 | O121: 0 | P121: 1 | Q121: 0 | R121: 0 | S121: 0 | T121: 1 | U121: 0 | V121: 0 | W121: 1 | X121: 0 | Y121: 0 | Z121: 0 | AA121: 0 | AB121: 0 | AC121: 1 | AD121: 0 | AE121: 0 | AF121: 0 | AG121: 1 | AH121: 0 | AI121: 0 | AJ121: 0 | AK121: 0 | AL121: 0 | AM121: 0 | AN121: 0 | AO121: 1 | AP121: 0 | AQ121: 0 | AR121: 0 | AS121: 0 | AT121: 0 | AU121: 1 | AV121: 0 | AW121: 1 | AX121: 0 | AY121: 0 | AZ121: 0 | BA121: 0 | BB121: 0 | BC121: 0 | BD121: 0 | BE121: 1 | BF121: 0 | BG121: 1 | BH121: 0 | BI121: 0 | BJ121: 0 | BK121: 0 | BL121: 0 | BM121: 1 | BN121: 0 | BO121: 0 | BP121: 1 | BQ121: 0 | BR121: 1 | BS121: 0 | BT121: 0 | BU121: 0 | BV121: 0 | BW121: 1
J122: 1 | K122: 1 | L122: 0 | M122: 1 | N122: 0 | O122: 0 | P122: 0 | Q122: 0 | R122: 0 | S122: 1 | T122: 0 | U122: 0 | V122: 1 | W122: 0 | X122: 0 | Y122: 0 | Z122: 0 | AA122: 0 | AB122: 1 | AC122: 0 | AD122: 0 | AE122: 1 | AF122: 0 | AG122: 0 | AH122: 0 | AI122: 0 | AJ122: 0 | AK122: 0 | AL122: 0 | AM122: 0 | AN122: 0 | AO122: 0 | AP122: 0 | AQ122: 0 | AR122: 0 | AS122: 0 | AT122: 0 | AU122: 1 | AV122: 0 | AW122: 1 | AX122: 0 | AY122: 0 | AZ122: 0 | BA122: 0 | BB122: 0 | BC122: 1 | BD122: 0 | BE122: 0 | BF122: 1 | BG122: 0 | BH122: 1 | BI122: 0 | BJ122: 0 | BK122: 0 | BL122: 0 | BM122: 0 | BN122: 0 | BO122: 1 | BP122: 0 | BQ122: 0 | BR122: 0 | BS122: 1 | BT122: 0 | BU122: 0 | BV122: 0 | BW122: 1
J123: 1 | K123: 0 | L123: 1 | M123: 0 | N123: 0 | O123: 0 | P123: 0 | Q123: 0 | R123: 1 | S123: 0 | T123: 0 | U123: 1 | V123: 0 | W123: 0 | X123: 0 | Y123: 0 | Z123: 0 | AA123: 1 | AB123: 1 | AC123: 0 | AD123: 0 | AE123: 0 | AF123: 1 | AG123: 0 | AH123: 0 | AI123: 0 | AJ123: 0 | AK123: 0 | AL123: 0 | AM123: 0 | AN123: 0 | AO123: 0 | AP123: 0 | AQ123: 0 | AR123: 0 | AS123: 1 | AT123: 0 | AU123: 0 | AV123: 0 | AW123: 0 | AX123: 0 | AY123: 0 | AZ123: 1 | BA123: 1 | BB123: 0 | BC123: 0 | BD123: 0 | BE123: 1 | BF123: 0 | BG123: 1 | BH123: 0 | BI123: 0 | BJ123: 1 | BK123: 0 | BL123: 0 | BM123: 0 | BN123: 1 | BO123: 0 | BP123: 0 | BQ123: 0 | BR123: 0 | BS123: 1 | BT123: 0 | BU123: 0 | BV123: 0 | BW123: 1
J124: 1 | K124: 1 | L124: 0 | M124: 0 | N124: 0 | O124: 1 | P124: 0 | Q124: 0 | R124: 0 | S124: 0 | T124: 1 | U124: 0 | V124: 0 | W124: 1 | X124: 0 | Y124: 0 | Z124: 0 | AA124: 0 | AB124: 0 | AC124: 1 | AD124: 0 | AE124: 1 | AF124: 0 | AG124: 0 | AH124: 0 | AI124: 0 | AJ124: 0 | AK124: 0 | AL124: 0 | AM124: 0 | AN124: 0 | AO124: 0 | AP124: 0 | AQ124: 0 | AR124: 1 | AS124: 0 | AT124: 0 | AU124: 0 | AV124: 0 | AW124: 0 | AX124: 1 | AY124: 1 | AZ124: 1 | BA124: 1 | BB124: 0 | BC124: 0 | BD124: 0 | BE124: 1 | BF124: 0 | BG124: 1 | BH124: 0 | BI124: 0 | BJ124: 0 | BK124: 0 | BL124: 0 | BM124: 1 | BN124: 0 | BO124: 0 | BP124: 1 | BQ124: 0 | BR124: 1 | BS124: 0 | BT124: 0 | BU124: 0 | BV124: 1 | BW124: 0
J125: 1 | K125: 1 | L125: 0 | M125: 0 | N125: 0 | O125: 0 | P125: 0 | Q125: 1 | R125: 0 | S125: 0 | T125: 1 | U125: 0 | V125: 0 | W125: 1 | X125: 0 | Y125: 0 | Z125: 0 | AA125: 0 | AB125: 0 | AC125: 1 | AD125: 0 | AE125: 0 | AF125: 0 | AG125: 1 | AH125: 0 | AI125: 0 | AJ125: 0 | AK125: 0 | AL125: 0 | AM125: 0 | AN125: 0 | AO125: 0 | AP125: 0 | AQ125: 0 | AR125: 1 | AS125: 0 | AT125: 0 | AU125: 1 | AV125: 0 | AW125: 1 | AX125: 0 | AY125: 0 | AZ125: 0 | BA125: 0 | BB125: 0 | BC125: 0 | BD125: 1 | BE125: 0 | BF125: 0 | BG125: 1 | BH125: 0 | BI125: 0 | BJ125: 0 | BK125: 1 | BL125: 0 | BM125: 0 | BN125: 0 | BO125: 0 | BP125: 0 | BQ125: 1 | BR125: 0 | BS125: 1 | BT125: 0 | BU125: 0 | BV125: 0 | BW125: 1
J126: 1 | K126: 0 | L126: 1 | M126: 0 | N126: 0 | O126: 1 | P126: 0 | Q126: 0 | R126: 0 | S126: 0 | T126: 1 | U126: 0 | V126: 0 | W126: 0 | X126: 0 | Y126: 0 | Z126: 1 | AA126: 0 | AB126: 1 | AC126: 0 | AD126: 1 | AE126: 0 | AF126: 0 | AG126: 0 | AH126: 0 | AI126: 0 | AJ126: 0 | AK126: 0 | AL126: 1 | AM126: 0 | AN126: 0 | AO126: 0 | AP126: 0 | AQ126: 1 | AR126: 0 | AS126: 0 | AT126: 0 | AU126: 1 | AV126: 0 | AW126: 1 | AX126: 1 | AY126: 0 | AZ126: 0 | BA126: 1 | BB126: 0 | BC126: 0 | BD126: 1 | BE126: 0 | BF126: 0 | BG126: 1 | BH126: 1 | BI126: 0 | BJ126: 0 | BK126: 0 | BL126: 0 | BM126: 0 | BN126: 0 | BO126: 0 | BP126: 0 | BQ126: 1 | BR126: 0 | BS126: 0 | BT126: 1 | BU126: 0 | BV126: 0 | BW126: 1
J127: 1 | K127: 0 | L127: 1 | M127: 0 | N127: 0 | O127: 0 | P127: 0 | Q127: 1 | R127: 0 | S127: 0 | T127: 1 | U127: 0 | V127: 0 | W127: 0 | X127: 0 | Y127: 0 | Z127: 1 | AA127: 0 | AB127: 1 | AC127: 0 | AD127: 0 | AE127: 0 | AF127: 1 | AG127: 0 | AH127: 0 | AI127: 1 | AJ127: 0 | AK127: 0 | AL127: 0 | AM127: 0 | AN127: 0 | AO127: 0 | AP127: 0 | AQ127: 0 | AR127: 0 | AS127: 0 | AT127: 1 | AU127: 0 | AV127: 0 | AW127: 0 | AX127: 1 | AY127: 1 | AZ127: 0 | BA127: 1 | BB127: 0 | BC127: 0 | BD127: 0 | BE127: 1 | BF127: 0 | BG127: 1 | BH127: 0 | BI127: 0 | BJ127: 0 | BK127: 1 | BL127: 0 | BM127: 0 | BN127: 1 | BO127: 0 | BP127: 0 | BQ127: 0 | BR127: 0 | BS127: 1 | BT127: 0 | BU127: 0 | BV127: 0 | BW127: 1
J128: 1 | K128: 1 | L128: 0 | M128: 0 | N128: 0 | O128: 0 | P128: 0 | Q128: 0 | R128: 1 | S128: 0 | T128: 0 | U128: 1 | V128: 0 | W128: 0 | X128: 1 | Y128: 0 | Z128: 0 | AA128: 0 | AB128: 1 | AC128: 0 | AD128: 0 | AE128: 1 | AF128: 0 | AG128: 0 | AH128: 0 | AI128: 0 | AJ128: 0 | AK128: 0 | AL128: 0 | AM128: 0 | AN128: 0 | AO128: 0 | AP128: 0 | AQ128: 0 | AR128: 0 | AS128: 1 | AT128: 0 | AU128: 0 | AV128: 0 | AW128: 0 | AX128: 1 | AY128: 0 | AZ128: 1 | BA128: 1 | BB128: 0 | BC128: 1 | BD128: 0 | BE128: 0 | BF128: 1 | BG128: 0 | BH128: 0 | BI128: 0 | BJ128: 0 | BK128: 0 | BL128: 1 | BM128: 0 | BN128: 1 | BO128: 0 | BP128: 0 | BQ128: 0 | BR128: 0 | BS128: 1 | BT128: 0 | BU128: 0 | BV128: 0 | BW128: 0
J129: 1 | K129: 0 | L129: 1 | M129: 0 | N129: 1 | O129: 0 | P129: 0 | Q129: 0 | R129: 0 | S129: 1 | T129: 0 | U129: 0 | V129: 0 | W129: 0 | X129: 0 | Y129: 1 | Z129: 0 | AA129: 0 | AB129: 1 | AC129: 0 | AD129: 0 | AE129: 0 | AF129: 1 | AG129: 0 | AH129: 0 | AI129: 0 | AJ129: 0 | AK129: 0 | AL129: 0 | AM129: 0 | AN129: 1 | AO129: 0 | AP129: 1 | AQ129: 0 | AR129: 0 | AS129: 0 | AT129: 0 | AU129: 0 | AV129: 0 | AW129: 0 | AX129: 1 | AY129: 1 | AZ129: 1 | BA129: 1 | BB129: 0 | BC129: 0 | BD129: 0 | BE129: 1 | BF129: 0 | BG129: 1 | BH129: 0 | BI129: 1 | BJ129: 0 | BK129: 0 | BL129: 0 | BM129: 0 | BN129: 0 | BO129: 0 | BP129: 1 | BQ129: 0 | BR129: 1 | BS129: 0 | BT129: 0 | BU129: 0 | BV129: 1 | BW129: 0
J130: 1 | K130: 0 | L130: 1 | M130: 0 | N130: 0 | O130: 0 | P130: 1 | Q130: 0 | R130: 0 | S130: 0 | T130: 1 | U130: 0 | V130: 0 | W130: 0 | X130: 0 | Y130: 0 | Z130: 1 | AA130: 0 | AB130: 1 | AC130: 0 | AD130: 0 | AE130: 0 | AF130: 1 | AG130: 0 | AH130: 0 | AI130: 0 | AJ130: 0 | AK130: 0 | AL130: 0 | AM130: 0 | AN130: 0 | AO130: 0 | AP130: 0 | AQ130: 0 | AR130: 1 | AS130: 0 | AT130: 0 | AU130: 1 | AV130: 0 | AW130: 1 | AX130: 0 | AY130: 0 | AZ130: 0 | BA130: 0 | BB130: 0 | BC130: 0 | BD130: 1 | BE130: 0 | BF130: 0 | BG130: 1 | BH130: 0 | BI130: 0 | BJ130: 0 | BK130: 1 | BL130: 0 | BM130: 0 | BN130: 0 | BO130: 1 | BP130: 0 | BQ130: 0 | BR130: 0 | BS130: 1 | BT130: 0 | BU130: 0 | BV130: 0 | BW130: 1
J131: 1 | K131: 0 | L131: 1 | M131: 0 | N131: 0 | O131: 0 | P131: 0 | Q131: 0 | R131: 1 | S131: 0 | T131: 0 | U131: 1 | V131: 0 | W131: 0 | X131: 0 | Y131: 0 | Z131: 0 | AA131: 1 | AB131: 0 | AC131: 1 | AD131: 1 | AE131: 0 | AF131: 0 | AG131: 0 | AH131: 0 | AI131: 0 | AJ131: 0 | AK131: 0 | AL131: 1 | AM131: 0 | AN131: 0 | AO131: 0 | AP131: 0 | AQ131: 0 | AR131: 0 | AS131: 0 | AT131: 1 | AU131: 0 | AV131: 0 | AW131: 0 | AX131: 1 | AY131: 1 | AZ131: 1 | BA131: 1 | BB131: 1 | BC131: 0 | BD131: 0 | BE131: 0 | BF131: 1 | BG131: 0 | BH131: 0 | BI131: 1 | BJ131: 0 | BK131: 0 | BL131: 0 | BM131: 0 | BN131: 1 | BO131: 0 | BP131: 0 | BQ131: 0 | BR131: 1 | BS131: 0 | BT131: 0 | BU131: 0 | BV131: 0 | BW131: 1
J132: 1 | K132: 0 | L132: 1 | M132: 0 | N132: 0 | O132: 0 | P132: 0 | Q132: 0 | R132: 1 | S132: 0 | T132: 0 | U132: 1 | V132: 0 | W132: 0 | X132: 0 | Y132: 0 | Z132: 0 | AA132: 1 | AB132: 0 | AC132: 1 | AD132: 0 | AE132: 1 | AF132: 0 | AG132: 0 | AH132: 0 | AI132: 0 | AJ132: 0 | AK132: 0 | AL132: 0 | AM132: 0 | AN132: 0 | AO132: 1 | AP132: 0 | AQ132: 0 | AR132: 0 | AS132: 0 | AT132: 0 | AU132: 1 | AV132: 0 | AW132: 1 | AX132: 1 | AY132: 1 | AZ132: 1 | BA132: 1 | BB132: 0 | BC132: 0 | BD132: 1 | BE132: 0 | BF132: 0 | BG132: 1 | BH132: 0 | BI132: 1 | BJ132: 0 | BK132: 0 | BL132: 0 | BM132: 0 | BN132: 1 | BO132: 0 | BP132: 0 | BQ132: 0 | BR132: 1 | BS132: 0 | BT132: 0 | BU132: 0 | BV132: 1 | BW132: 0
J133: 1 | K133: 0 | L133: 1 | M133: 0 | N133: 0 | O133: 0 | P133: 0 | Q133: 1 | R133: 0 | S133: 0 | T133: 1 | U133: 0 | V133: 0 | W133: 0 | X133: 0 | Y133: 0 | Z133: 1 | AA133: 0 | AB133: 0 | AC133: 1 | AD133: 0 | AE133: 1 | AF133: 0 | AG133: 0 | AH133: 0 | AI133: 1 | AJ133: 0 | AK133: 0 | AL133: 0 | AM133: 0 | AN133: 0 | AO133: 0 | AP133: 1 | AQ133: 0 | AR133: 0 | AS133: 0 | AT133: 0 | AU133: 0 | AV133: 0 | AW133: 0 | AX133: 0 | AY133: 1 | AZ133: 1 | BA133: 1 | BB133: 0 | BC133: 1 | BD133: 0 | BE133: 0 | BF133: 1 | BG133: 0 | BH133: 0 | BI133: 1 | BJ133: 0 | BK133: 0 | BL133: 0 | BM133: 0 | BN133: 0 | BO133: 0 | BP133: 1 | BQ133: 0 | BR133: 0 | BS133: 1 | BT133: 0 | BU133: 0 | BV133: 1 | BW133: 0
J134: 1 | K134: 0 | L134: 1 | M134: 0 | N134: 0 | O134: 0 | P134: 0 | Q134: 0 | R134: 1 | S134: 0 | T134: 0 | U134: 1 | V134: 0 | W134: 0 | X134: 0 | Y134: 0 | Z134: 0 | AA134: 1 | AB134: 1 | AC134: 0 | AD134: 0 | AE134: 1 | AF134: 0 | AG134: 0 | AH134: 0 | AI134: 0 | AJ134: 0 | AK134: 1 | AL134: 0 | AM134: 0 | AN134: 0 | AO134: 1 | AP134: 0 | AQ134: 0 | AR134: 0 | AS134: 0 | AT134: 0 | AU134: 0 | AV134: 0 | AW134: 0 | AX134: 1 | AY134: 1 | AZ134: 0 | BA134: 1 | BB134: 0 | BC134: 0 | BD134: 0 | BE134: 1 | BF134: 0 | BG134: 1 | BH134: 0 | BI134: 0 | BJ134: 0 | BK134: 0 | BL134: 0 | BM134: 1 | BN134: 1 | BO134: 0 | BP134: 0 | BQ134: 0 | BR134: 0 | BS134: 1 | BT134: 0 | BU134: 0 | BV134: 0 | BW134: 1
J135: 1 | K135: 1 | L135: 0 | M135: 0 | N135: 0 | O135: 0 | P135: 0 | Q135: 0 | R135: 1 | S135: 0 | T135: 0 | U135: 1 | V135: 0 | W135: 0 | X135: 1 | Y135: 0 | Z135: 0 | AA135: 0 | AB135: 1 | AC135: 0 | AD135: 0 | AE135: 1 | AF135: 0 | AG135: 0 | AH135: 0 | AI135: 0 | AJ135: 0 | AK135: 0 | AL135: 0 | AM135: 0 | AN135: 0 | AO135: 0 | AP135: 0 | AQ135: 0 | AR135: 1 | AS135: 0 | AT135: 0 | AU135: 1 | AV135: 0 | AW135: 1 | AX135: 1 | AY135: 0 | AZ135: 0 | BA135: 1 | BB135: 1 | BC135: 0 | BD135: 0 | BE135: 0 | BF135: 1 | BG135: 0 | BH135: 0 | BI135: 0 | BJ135: 0 | BK135: 0 | BL135: 1 | BM135: 0 | BN135: 1 | BO135: 0 | BP135: 0 | BQ135: 0 | BR135: 0 | BS135: 1 | BT135: 0 | BU135: 0 | BV135: 1 | BW135: 0
J136: 1 | K136: 1 | L136: 0 | M136: 0 | N136: 1 | O136: 0 | P136: 0 | Q136: 0 | R136: 0 | S136: 1 | T136: 0 | U136: 0 | V136: 1 | W136: 0 | X136: 0 | Y136: 0 | Z136: 0 | AA136: 0 | AB136: 1 | AC136: 0 | AD136: 0 | AE136: 1 | AF136: 0 | AG136: 0 | AH136: 0 | AI136: 0 | AJ136: 0 | AK136: 0 | AL136: 1 | AM136: 0 | AN136: 0 | AO136: 0 | AP136: 0 | AQ136: 1 | AR136: 0 | AS136: 0 | AT136: 0 | AU136: 1 | AV136: 1 | AW136: 1 | AX136: 1 | AY136: 1 | AZ136: 1 | BA136: 1 | BB136: 0 | BC136: 0 | BD136: 1 | BE136: 0 | BF136: 0 | BG136: 1 | BH136: 0 | BI136: 0 | BJ136: 0 | BK136: 0 | BL136: 1 | BM136: 0 | BN136: 0 | BO136: 1 | BP136: 0 | BQ136: 0 | BR136: 0 | BS136: 1 | BT136: 0 | BU136: 0 | BV136: 0 | BW136: 0
J137: 1 | K137: 1 | L137: 0 | M137: 0 | N137: 0 | O137: 0 | P137: 0 | Q137: 0 | R137: 1 | S137: 0 | T137: 0 | U137: 1 | V137: 0 | W137: 0 | X137: 1 | Y137: 0 | Z137: 0 | AA137: 0 | AB137: 1 | AC137: 0 | AD137: 1 | AE137: 0 | AF137: 0 | AG137: 0 | AH137: 0 | AI137: 0 | AJ137: 0 | AK137: 0 | AL137: 0 | AM137: 0 | AN137: 0 | AO137: 0 | AP137: 0 | AQ137: 0 | AR137: 0 | AS137: 0 | AT137: 0 | AU137: 0 | AV137: 0 | AW137: 0 | AX137: 1 | AY137: 1 | AZ137: 1 | BA137: 1 | BB137: 0 | BC137: 0 | BD137: 1 | BE137: 0 | BF137: 0 | BG137: 1 | BH137: 0 | BI137: 0 | BJ137: 0 | BK137: 0 | BL137: 1 | BM137: 0 | BN137: 1 | BO137: 0 | BP137: 0 | BQ137: 0 | BR137: 1 | BS137: 0 | BT137: 0 | BU137: 0 | BV137: 0 | BW137: 1
J138: 1 | K138: 0 | L138: 1 | M138: 0 | N138: 1 | O138: 0 | P138: 0 | Q138: 0 | R138: 0 | S138: 1 | T138: 0 | U138: 0 | V138: 0 | W138: 0 | X138: 0 | Y138: 1 | Z138: 0 | AA138: 0 | AB138: 1 | AC138: 0 | AD138: 0 | AE138: 1 | AF138: 0 | AG138: 0 | AH138: 0 | AI138: 1 | AJ138: 0 | AK138: 0 | AL138: 0 | AM138: 0 | AN138: 0 | AO138: 0 | AP138: 0 | AQ138: 0 | AR138: 0 | AS138: 0 | AT138: 1 | AU138: 1 | AV138: 0 | AW138: 1 | AX138: 1 | AY138: 0 | AZ138: 0 | BA138: 1 | BB138: 0 | BC138: 0 | BD138: 0 | BE138: 1 | BF138: 0 | BG138: 1 | BH138: 0 | BI138: 0 | BJ138: 0 | BK138: 0 | BL138: 0 | BM138: 1 | BN138: 0 | BO138: 1 | BP138: 0 | BQ138: 0 | BR138: 0 | BS138: 0 | BT138: 0 | BU138: 0 | BV138: 0 | BW138: 1
J139: 1 | K139: 1 | L139: 0 | M139: 0 | N139: 1 | O139: 0 | P139: 0 | Q139: 0 | R139: 0 | S139: 1 | T139: 0 | U139: 0 | V139: 1 | W139: 0 | X139: 0 | Y139: 0 | Z139: 0 | AA139: 0 | AB139: 1 | AC139: 0 | AD139: 1 | AE139: 0 | AF139: 0 | AG139: 0 | AH139: 0 | AI139: 0 | AJ139: 0 | AK139: 0 | AL139: 0 | AM139: 0 | AN139: 0 | AO139: 0 | AP139: 0 | AQ139: 0 | AR139: 0 | AS139: 0 | AT139: 0 | AU139: 1 | AV139: 0 | AW139: 1 | AX139: 0 | AY139: 0 | AZ139: 0 | BA139: 0 | BB139: 0 | BC139: 1 | BD139: 0 | BE139: 0 | BF139: 1 | BG139: 0 | BH139: 0 | BI139: 0 | BJ139: 0 | BK139: 1 | BL139: 0 | BM139: 0 | BN139: 0 | BO139: 0 | BP139: 0 | BQ139: 1 | BR139: 0 | BS139: 1 | BT139: 0 | BU139: 0 | BV139: 0 | BW139: 1
J140: 1 | K140: 1 | L140: 0 | M140: 0 | N140: 0 | O140: 0 | P140: 0 | Q140: 0 | R140: 1 | S140: 0 | T140: 0 | U140: 1 | V140: 0 | W140: 0 | X140: 1 | Y140: 0 | Z140: 0 | AA140: 0 | AB140: 0 | AC140: 1 | AD140: 0 | AE140: 1 | AF140: 0 | AG140: 0 | AH140: 0 | AI140: 0 | AJ140: 0 | AK140: 0 | AL140: 0 | AM140: 0 | AN140: 0 | AO140: 1 | AP140: 0 | AQ140: 0 | AR140: 0 | AS140: 0 | AT140: 0 | AU140: 0 | AV140: 0 | AW140: 0 | AX140: 1 | AY140: 1 | AZ140: 1 | BA140: 1 | BB140: 0 | BC140: 1 | BD140: 0 | BE140: 0 | BF140: 1 | BG140: 0 | BH140: 1 | BI140: 0 | BJ140: 0 | BK140: 0 | BL140: 0 | BM140: 0 | BN140: 1 | BO140: 0 | BP140: 0 | BQ140: 0 | BR140: 1 | BS140: 0 | BT140: 0 | BU140: 0 | BV140: 0 | BW140: 0
J141: 1 | K141: 0 | L141: 1 | M141: 0 | N141: 0 | O141: 0 | P141: 0 | Q141: 1 | R141: 0 | S141: 0 | T141: 1 | U141: 0 | V141: 0 | W141: 0 | X141: 0 | Y141: 0 | Z141: 1 | AA141: 0 | AB141: 1 | AC141: 0 | AD141: 0 | AE141: 0 | AF141: 1 | AG141: 0 | AH141: 1 | AI141: 0 | AJ141: 0 | AK141: 0 | AL141: 0 | AM141: 0 | AN141: 0 | AO141: 1 | AP141: 0 | AQ141: 0 | AR141: 0 | AS141: 0 | AT141: 0 | AU141: 0 | AV141: 0 | AW141: 0 | AX141: 1 | AY141: 0 | AZ141: 0 | BA141: 1 | BB141: 0 | BC141: 1 | BD141: 0 | BE141: 0 | BF141: 1 | BG141: 0 | BH141: 0 | BI141: 0 | BJ141: 0 | BK141: 0 | BL141: 1 | BM141: 0 | BN141: 1 | BO141: 0 | BP141: 0 | BQ141: 0 | BR141: 0 | BS141: 0 | BT141: 1 | BU141: 0 | BV141: 0 | BW141: 1
J142: 1 | K142: 0 | L142: 1 | M142: 0 | N142: 0 | O142: 0 | P142: 0 | Q142: 1 | R142: 0 | S142: 0 | T142: 1 | U142: 0 | V142: 0 | W142: 0 | X142: 0 | Y142: 0 | Z142: 1 | AA142: 0 | AB142: 1 | AC142: 0 | AD142: 0 | AE142: 1 | AF142: 0 | AG142: 0 | AH142: 0 | AI142: 0 | AJ142: 0 | AK142: 0 | AL142: 0 | AM142: 0 | AN142: 0 | AO142: 1 | AP142: 0 | AQ142: 0 | AR142: 0 | AS142: 0 | AT142: 0 | AU142: 1 | AV142: 0 | AW142: 1 | AX142: 1 | AY142: 1 | AZ142: 1 | BA142: 1 | BB142: 1 | BC142: 0 | BD142: 0 | BE142: 0 | BF142: 1 | BG142: 0 | BH142: 1 | BI142: 0 | BJ142: 0 | BK142: 0 | BL142: 0 | BM142: 0 | BN142: 1 | BO142: 0 | BP142: 0 | BQ142: 0 | BR142: 0 | BS142: 1 | BT142: 0 | BU142: 0 | BV142: 0 | BW142: 1
J143: 1 | K143: 1 | L143: 0 | M143: 0 | N143: 1 | O143: 0 | P143: 0 | Q143: 0 | R143: 0 | S143: 1 | T143: 0 | U143: 0 | V143: 1 | W143: 0 | X143: 0 | Y143: 0 | Z143: 0 | AA143: 0 | AB143: 1 | AC143: 0 | AD143: 0 | AE143: 0 | AF143: 1 | AG143: 0 | AH143: 0 | AI143: 0 | AJ143: 0 | AK143: 0 | AL143: 0 | AM143: 1 | AN143: 0 | AO143: 1 | AP143: 0 | AQ143: 0 | AR143: 0 | AS143: 0 | AT143: 0 | AU143: 0 | AV143: 0 | AW143: 0 | AX143: 1 | AY143: 0 | AZ143: 0 | BA143: 1 | BB143: 0 | BC143: 1 | BD143: 0 | BE143: 0 | BF143: 1 | BG143: 0 | BH143: 0 | BI143: 1 | BJ143: 0 | BK143: 0 | BL143: 0 | BM143: 0 | BN143: 0 | BO143: 1 | BP143: 0 | BQ143: 0 | BR143: 1 | BS143: 0 | BT143: 0 | BU143: 0 | BV143: 0 | BW143: 1
J144: 1 | K144: 1 | L144: 0 | M144: 0 | N144: 0 | O144: 0 | P144: 1 | Q144: 0 | R144: 0 | S144: 0 | T144: 1 | U144: 0 | V144: 0 | W144: 1 | X144: 0 | Y144: 0 | Z144: 0 | AA144: 0 | AB144: 1 | AC144: 0 | AD144: 0 | AE144: 1 | AF144: 0 | AG144: 0 | AH144: 0 | AI144: 0 | AJ144: 0 | AK144: 0 | AL144: 0 | AM144: 0 | AN144: 0 | AO144: 0 | AP144: 0 | AQ144: 0 | AR144: 0 | AS144: 0 | AT144: 0 | AU144: 0 | AV144: 0 | AW144: 0 | AX144: 1 | AY144: 1 | AZ144: 1 | BA144: 1 | BB144: 0 | BC144: 0 | BD144: 0 | BE144: 1 | BF144: 0 | BG144: 1 | BH144: 0 | BI144: 0 | BJ144: 0 | BK144: 0 | BL144: 1 | BM144: 0 | BN144: 0 | BO144: 1 | BP144: 0 | BQ144: 0 | BR144: 0 | BS144: 0 | BT144: 1 | BU144: 0 | BV144: 0 | BW144: 1
J145: 1 | K145: 0 | L145: 1 | M145: 0 | N145: 0 | O145: 0 | P145: 0 | Q145: 0 | R145: 1 | S145: 0 | T145: 0 | U145: 1 | V145: 0 | W145: 0 | X145: 0 | Y145: 0 | Z145: 0 | AA145: 1 | AB145: 0 | AC145: 1 | AD145: 0 | AE145: 1 | AF145: 0 | AG145: 0 | AH145: 0 | AI145: 0 | AJ145: 0 | AK145: 0 | AL145: 0 | AM145: 0 | AN145: 0 | AO145: 0 | AP145: 0 | AQ145: 0 | AR145: 0 | AS145: 0 | AT145: 0 | AU145: 0 | AV145: 0 | AW145: 0 | AX145: 1 | AY145: 1 | AZ145: 1 | BA145: 1 | BB145: 0 | BC145: 1 | BD145: 0 | BE145: 0 | BF145: 1 | BG145: 0 | BH145: 0 | BI145: 0 | BJ145: 0 | BK145: 0 | BL145: 0 | BM145: 1 | BN145: 1 | BO145: 0 | BP145: 0 | BQ145: 0 | BR145: 1 | BS145: 0 | BT145: 0 | BU145: 0 | BV145: 0 | BW145: 0
J146: 1 | K146: 0 | L146: 1 | M146: 0 | N146: 0 | O146: 0 | P146: 0 | Q146: 1 | R146: 0 | S146: 0 | T146: 1 | U146: 0 | V146: 0 | W146: 0 | X146: 0 | Y146: 0 | Z146: 1 | AA146: 0 | AB146: 1 | AC146: 0 | AD146: 0 | AE146: 0 | AF146: 0 | AG146: 1 | AH146: 0 | AI146: 0 | AJ146: 0 | AK146: 0 | AL146: 0 | AM146: 0 | AN146: 1 | AO146: 0 | AP146: 1 | AQ146: 0 | AR146: 0 | AS146: 0 | AT146: 0 | AU146: 0 | AV146: 0 | AW146: 0 | AX146: 1 | AY146: 1 | AZ146: 1 | BA146: 1 | BB146: 0 | BC146: 1 | BD146: 0 | BE146: 0 | BF146: 1 | BG146: 0 | BH146: 1 | BI146: 0 | BJ146: 0 | BK146: 0 | BL146: 0 | BM146: 0 | BN146: 0 | BO146: 0 | BP146: 1 | BQ146: 0 | BR146: 0 | BS146: 1 | BT146: 0 | BU146: 0 | BV146: 0 | BW146: 1
J147: 1 | K147: 0 | L147: 1 | M147: 0 | N147: 0 | O147: 0 | P147: 1 | Q147: 0 | R147: 0 | S147: 0 | T147: 1 | U147: 0 | V147: 0 | W147: 0 | X147: 0 | Y147: 0 | Z147: 1 | AA147: 0 | AB147: 0 | AC147: 1 | AD147: 0 | AE147: 1 | AF147: 0 | AG147: 0 | AH147: 0 | AI147: 0 | AJ147: 0 | AK147: 0 | AL147: 0 | AM147: 0 | AN147: 0 | AO147: 1 | AP147: 0 | AQ147: 0 | AR147: 0 | AS147: 0 | AT147: 0 | AU147: 0 | AV147: 0 | AW147: 0 | AX147: 1 | AY147: 0 | AZ147: 1 | BA147: 1 | BB147: 0 | BC147: 0 | BD147: 1 | BE147: 0 | BF147: 0 | BG147: 1 | BH147: 0 | BI147: 0 | BJ147: 0 | BK147: 1 | BL147: 0 | BM147: 0 | BN147: 0 | BO147: 1 | BP147: 0 | BQ147: 0 | BR147: 0 | BS147: 1 | BT147: 0 | BU147: 0 | BV147: 0 | BW147: 1
J148: 1 | K148: 1 | L148: 0 | M148: 0 | N148: 0 | O148: 0 | P148: 0 | Q148: 0 | R148: 1 | S148: 0 | T148: 0 | U148: 1 | V148: 0 | W148: 0 | X148: 1 | Y148: 0 | Z148: 0 | AA148: 0 | AB148: 1 | AC148: 0 | AD148: 0 | AE148: 1 | AF148: 0 | AG148: 0 | AH148: 0 | AI148: 0 | AJ148: 0 | AK148: 0 | AL148: 0 | AM148: 0 | AN148: 0 | AO148: 1 | AP148: 0 | AQ148: 0 | AR148: 0 | AS148: 0 | AT148: 0 | AU148: 1 | AV148: 0 | AW148: 1 | AX148: 1 | AY148: 1 | AZ148: 0 | BA148: 1 | BB148: 0 | BC148: 1 | BD148: 0 | BE148: 0 | BF148: 1 | BG148: 0 | BH148: 1 | BI148: 0 | BJ148: 0 | BK148: 0 | BL148: 0 | BM148: 0 | BN148: 1 | BO148: 0 | BP148: 0 | BQ148: 0 | BR148: 1 | BS148: 0 | BT148: 0 | BU148: 0 | BV148: 0 | BW148: 1
J149: 1 | K149: 0 | L149: 1 | M149: 0 | N149: 0 | O149: 0 | P149: 0 | Q149: 0 | R149: 1 | S149: 0 | T149: 0 | U149: 1 | V149: 0 | W149: 0 | X149: 0 | Y149: 0 | Z149: 0 | AA149: 1 | AB149: 1 | AC149: 0 | AD149: 0 | AE149: 1 | AF149: 0 | AG149: 0 | AH149: 0 | AI149: 0 | AJ149: 0 | AK149: 0 | AL149: 1 | AM149: 0 | AN149: 0 | AO149: 0 | AP149: 0 | AQ149: 0 | AR149: 0 | AS149: 0 | AT149: 1 | AU149: 0 | AV149: 0 | AW149: 0 | AX149: 1 | AY149: 1 | AZ149: 1 | BA149: 1 | BB149: 1 | BC149: 0 | BD149: 0 | BE149: 0 | BF149: 1 | BG149: 0 | BH149: 0 | BI149: 0 | BJ149: 0 | BK149: 0 | BL149: 1 | BM149: 0 | BN149: 1 | BO149: 0 | BP149: 0 | BQ149: 0 | BR149: 0 | BS149: 1 | BT149: 0 | BU149: 0 | BV149: 0 | BW149: 0
J150: 1 | K150: 0 | L150: 1 | M150: 0 | N150: 0 | O150: 1 | P150: 0 | Q150: 0 | R150: 0 | S150: 0 | T150: 1 | U150: 0 | V150: 0 | W150: 0 | X150: 0 | Y150: 0 | Z150: 1 | AA150: 0 | AB150: 0 | AC150: 1 | AD150: 0 | AE150: 0 | AF150: 1 | AG150: 0 | AH150: 0 | AI150: 0 | AJ150: 0 | AK150: 1 | AL150: 0 | AM150: 0 | AN150: 0 | AO150: 0 | AP150: 1 | AQ150: 0 | AR150: 0 | AS150: 0 | AT150: 0 | AU150: 0 | AV150: 0 | AW150: 0 | AX150: 1 | AY150: 0 | AZ150: 0 | BA150: 1 | BB150: 0 | BC150: 1 | BD150: 0 | BE150: 0 | BF150: 1 | BG150: 0 | BH150: 1 | BI150: 0 | BJ150: 0 | BK150: 0 | BL150: 0 | BM150: 0 | BN150: 0 | BO150: 1 | BP150: 0 | BQ150: 0 | BR150: 0 | BS150: 1 | BT150: 0 | BU150: 0 | BV150: 0 | BW150: 1
J151: 1 | K151: 0 | L151: 1 | M151: 0 | N151: 0 | O151: 0 | P151: 0 | Q151: 0 | R151: 1 | S151: 0 | T151: 0 | U151: 1 | V151: 0 | W151: 0 | X151: 0 | Y151: 0 | Z151: 0 | AA151: 1 | AB151: 1 | AC151: 0 | AD151: 0 | AE151: 0 | AF151: 1 | AG151: 0 | AH151: 0 | AI151: 0 | AJ151: 0 | AK151: 0 | AL151: 0 | AM151: 0 | AN151: 0 | AO151: 0 | AP151: 1 | AQ151: 0 | AR151: 0 | AS151: 0 | AT151: 0 | AU151: 0 | AV151: 0 | AW151: 0 | AX151: 1 | AY151: 0 | AZ151: 0 | BA151: 1 | BB151: 0 | BC151: 1 | BD151: 0 | BE151: 0 | BF151: 1 | BG151: 0 | BH151: 0 | BI151: 0 | BJ151: 0 | BK151: 0 | BL151: 1 | BM151: 0 | BN151: 1 | BO151: 0 | BP151: 0 | BQ151: 0 | BR151: 1 | BS151: 0 | BT151: 0 | BU151: 0 | BV151: 0 | BW151: 1
J152: 1 | K152: 1 | L152: 0 | M152: 1 | N152: 0 | O152: 0 | P152: 0 | Q152: 0 | R152: 0 | S152: 1 | T152: 0 | U152: 0 | V152: 1 | W152: 0 | X152: 0 | Y152: 0 | Z152: 0 | AA152: 0 | AB152: 1 | AC152: 0 | AD152: 0 | AE152: 0 | AF152: 0 | AG152: 1 | AH152: 0 | AI152: 0 | AJ152: 0 | AK152: 0 | AL152: 0 | AM152: 0 | AN152: 0 | AO152: 0 | AP152: 0 | AQ152: 0 | AR152: 0 | AS152: 1 | AT152: 0 | AU152: 1 | AV152: 0 | AW152: 1 | AX152: 0 | AY152: 0 | AZ152: 0 | BA152: 0 | BB152: 0 | BC152: 0 | BD152: 0 | BE152: 1 | BF152: 0 | BG152: 1 | BH152: 0 | BI152: 0 | BJ152: 0 | BK152: 0 | BL152: 1 | BM152: 0 | BN152: 0 | BO152: 0 | BP152: 1 | BQ152: 0 | BR152: 1 | BS152: 0 | BT152: 0 | BU152: 0 | BV152: 0 | BW152: 1
